Workbook

Sheet Participation (hidden)
B2: PRIOR YEAR | H2: CURRENT Quarter
A3: Sum of qtr_calfresh_pers_ly | B3: Column Labels | H3: Sum of qtr_calfresh_pers_curr_qtr
B4: 2012 | C4: 2013 | I4: 2013 | M4: 2014 | Q4: 2015 | U4: 2016
A5: Row Labels | B5: 4 | C5: 1 | D5: 2 | E5: 3 | F5: 4 | I5: Qtr1 | J5: Qtr2 | K5: Qtr3 | L5: Qtr4 | M5: Qtr1 | N5: Qtr2 | O5: Qtr3 | P5: Qtr4 | Q5: Qtr1 | R5: Qtr2 | S5: Qtr3 | T5: Qtr4 | U5: Qtr1 | V5: Qtr2
A6: California | B6: 3905210 | C6: 3956654 | D6: 3996483 | E6: 4074650 | F6: 4147355 | H6: California | I6: 4194682 | J6: 4202850 | K6: 4221057 | L6: 4285622 | M6: 4351103 | N6: 4393812 | O6: 4476030 | P6: 4477428 | Q6: 4445534 | R6: 4462799 | S6: 4480570 | T6: 4483272 | U6: 4431790 | V6: 4369738
A7: Alameda | B7: 120874 | C7: 122112 | D7: 123210 | E7: 124622 | F7: 126571 | H7: Alameda | I7: 126482 | J7: 126214 | K7: 125835 | L7: 129167 | M7: 128065 | N7: 127457 | O7: 125434 | P7: 123955 | Q7: 121684 | R7: 119790 | S7: 121577 | T7: 121539 | U7: 118228 | V7: 117298
A8: Alpine | B8: 144 | C8: 152 | D8: 145 | E8: 147 | F8: 137 | H8: Alpine | I8: 151 | J8: 153 | K8: 171 | L8: 154 | M8: 176 | N8: 180 | O8: 194 | P8: 185 | Q8: 171 | R8: 163 | S8: 171 | T8: 164 | U8: 158 | V8: 155
A9: Amador | B9: 3032 | C9: 3081 | D9: 3214 | E9: 3287 | F9: 3340 | H9: Amador | I9: 3319 | J9: 3262 | K9: 3280 | L9: 3261 | M9: 3428 | N9: 3411 | O9: 3373 | P9: 3308 | Q9: 3278 | R9: 3438 | S9: 3445 | T9: 3440 | U9: 3384 | V9: 3415
A10: Butte | B10: 28120 | C10: 28228 | D10: 28623 | E10: 29226 | F10: 29899 | H10: Butte | I10: 29807 | J10: 29770 | K10: 30211 | L10: 30365 | M10: 30348 | N10: 30559 | O10: 31036 | P10: 31231 | Q10: 31299 | R10: 31927 | S10: 32207 | T10: 32287 | U10: 32167 | V10: 32218
A11: Calaveras | B11: 4774 | C11: 4875 | D11: 5000 | E11: 4998 | F11: 4951 | H11: Calaveras | I11: 5004 | J11: 5023 | K11: 4969 | L11: 4866 | M11: 5060 | N11: 5094 | O11: 5231 | P11: 5378 | Q11: 5421 | R11: 5509 | S11: 5498 | T11: 5406 | U11: 5246 | V11: 5156
A12: Colusa | B12: 1628 | C12: 1707 | D12: 1810 | E12: 1728 | F12: 1600 | H12: Colusa | I12: 1820 | J12: 1840 | K12: 1710 | L12: 1624 | M12: 1749 | N12: 1810 | O12: 1722 | P12: 1540 | Q12: 1627 | R12: 1725 | S12: 1563 | T12: 1319 | U12: 1325 | V12: 1434
A13: Contra Costa | B13: 66920 | C13: 67029 | D13: 67462 | E13: 68789 | F13: 70227 | H13: Contra Costa | I13: 68857 | J13: 68625 | K13: 67763 | L13: 70212 | M13: 71039 | N13: 71884 | O13: 76061 | P13: 77345 | Q13: 72012 | R13: 71323 | S13: 72362 | T13: 71977 | U13: 70493 | V13: 69736
A14: Del Norte | B14: 5203 | C14: 5366 | D14: 5423 | E14: 5445 | F14: 5247 | H14: Del Norte | I14: 5251 | J14: 5149 | K14: 5132 | L14: 5032 | M14: 5205 | N14: 5175 | O14: 5227 | P14: 5167 | Q14: 5136 | R14: 5146 | S14: 5205 | T14: 5281 | U14: 5361 | V14: 5369
A15: El Dorado | B15: 11284 | C15: 11341 | D15: 11522 | E15: 11620 | F15: 11772 | H15: El Dorado | I15: 11975 | J15: 11947 | K15: 11765 | L15: 11497 | M15: 11899 | N15: 12431 | O15: 12479 | P15: 12578 | Q15: 13063 | R15: 13261 | S15: 13278 | T15: 13063 | U15: 12975 | V15: 12850
A16: Fresno | B16: 208200 | C16: 211602 | D16: 213832 | E16: 215016 | F16: 215286 | H16: Fresno | I16: 219915 | J16: 220493 | K16: 217757 | L16: 220916 | M16: 226573 | N16: 230446 | O16: 224430 | P16: 223686 | Q16: 227846 | R16: 229388 | S16: 227770 | T16: 227643 | U16: 226870 | V16: 224870
A17: Glenn | B17: 3253 | C17: 3384 | D17: 3422 | E17: 3419 | F17: 3436 | H17: Glenn | I17: 3555 | J17: 3606 | K17: 3549 | L17: 3412 | M17: 3606 | N17: 3735 | O17: 3697 | P17: 3565 | Q17: 3684 | R17: 3682 | S17: 3645 | T17: 3551 | U17: 3581 | V17: 3655
A18: Humboldt | B18: 14973 | C18: 15105 | D18: 15302 | E18: 15495 | F18: 15547 | H18: Humboldt | I18: 15689 | J18: 15819 | K18: 16507 | L18: 16624 | M18: 17196 | N18: 18257 | O18: 19098 | P18: 19813 | Q18: 20309 | R18: 20875 | S18: 21066 | T18: 21435 | U18: 21226 | V18: 21361
A19: Imperial | B19: 35463 | C19: 35317 | D19: 35099 | E19: 36091 | F19: 37524 | H19: Imperial | I19: 36983 | J19: 36277 | K19: 37083 | L19: 38207 | M19: 38782 | N19: 38209 | O19: 40394 | P19: 42202 | Q19: 42073 | R19: 42432 | S19: 43485 | T19: 44547 | U19: 43457 | V19: 42432
A20: Inyo | B20: 1838 | C20: 1954 | D20: 1945 | E20: 1951 | F20: 1967 | H20: Inyo | I20: 1992 | J20: 2058 | K20: 2132 | L20: 2028 | M20: 2152 | N20: 2198 | O20: 2149 | P20: 2093 | Q20: 2064 | R20: 2073 | S20: 2076 | T20: 2138 | U20: 2104 | V20: 2089
A21: Kern | B21: 134045 | C21: 136622 | D21: 138799 | E21: 140798 | F21: 140403 | H21: Kern | I21: 144045 | J21: 144678 | K21: 144653 | L21: 142748 | M21: 147170 | N21: 147731 | O21: 148150 | P21: 147285 | Q21: 149749 | R21: 157116 | S21: 160254 | T21: 161315 | U21: 163371 | V21: 165582
A22: Kings | B22: 22197 | C22: 22772 | D22: 23029 | E22: 22949 | F22: 22594 | H22: Kings | I22: 23337 | J22: 23729 | K22: 23543 | L22: 22985 | M22: 23815 | N22: 24396 | O22: 24002 | P22: 23550 | Q22: 24051 | R22: 24693 | S22: 24942 | T22: 24665 | U22: 25133 | V22: 24891
A23: Lake | B23: 9863 | C23: 9935 | D23: 10174 | E23: 10039 | F23: 10118 | H23: Lake | I23: 10232 | J23: 10263 | K23: 10453 | L23: 10290 | M23: 10622 | N23: 10896 | O23: 11036 | P23: 11283 | Q23: 11629 | R23: 11957 | S23: 12127 | T23: 14694 | U23: 12618 | V23: 12649
A24: Lassen | B24: 2980 | C24: 2931 | D24: 2948 | E24: 2933 | F24: 2956 | H24: Lassen | I24: 2939 | J24: 2954 | K24: 2971 | L24: 3015 | M24: 3149 | N24: 3235 | O24: 3168 | P24: 3216 | Q24: 3182 | R24: 3212 | S24: 3205 | T24: 3144 | U24: 3164 | V24: 3154
A25: Los Angeles | B25: 1055754 | C25: 1058962 | D25: 1059973 | E25: 1093422 | F25: 1124832 | H25: Los Angeles | I25: 1133944 | J25: 1134472 | K25: 1148512 | L25: 1169214 | M25: 1177757 | N25: 1180079 | O25: 1193453 | P25: 1190842 | Q25: 1185400 | R25: 1178282 | S25: 1183107 | T25: 1171844 | U25: 1148399 | V25: 1115699
A26: Madera | B26: 25548 | C26: 26172 | D26: 26783 | E26: 26670 | F26: 25845 | H26: Madera | I26: 26692 | J26: 27189 | K26: 26856 | L26: 26658 | M26: 28263 | N26: 29027 | O26: 28885 | P26: 28701 | Q26: 29310 | R26: 29932 | S26: 29699 | T26: 29653 | U26: 30164 | V26: 29647
A27: Marin | B27: 8995 | C27: 8957 | D27: 9221 | E27: 9408 | F27: 9538 | H27: Marin | I27: 9420 | J27: 9542 | K27: 9774 | L27: 9846 | M27: 9998 | N27: 10224 | O27: 10397 | P27: 10475 | Q27: 10403 | R27: 10485 | S27: 10687 | T27: 10717 | U27: 10420 | V27: 10351
A28: Mariposa | B28: 1704 | C28: 1730 | D28: 1783 | E28: 1804 | F28: 1746 | H28: Mariposa | I28: 1837 | J28: 1828 | K28: 1855 | L28: 1905 | M28: 2034 | N28: 2059 | O28: 1974 | P28: 1972 | Q28: 2033 | R28: 2127 | S28: 2152 | T28: 2075 | U28: 2098 | V28: 2101
A29: Mendocino | B29: 13222 | C29: 13454 | D29: 13785 | E29: 13660 | F29: 13612 | H29: Mendocino | I29: 13483 | J29: 13205 | K29: 13202 | L29: 13061 | M29: 13415 | N29: 14074 | O29: 14007 | P29: 13591 | Q29: 13178 | R29: 13008 | S29: 13204 | T29: 13395 | U29: 13099 | V29: 12720
A30: Merced | B30: 51481 | C30: 52771 | D30: 53475 | E30: 53940 | F30: 53540 | H30: Merced | I30: 55147 | J30: 55780 | K30: 55568 | L30: 54349 | M30: 55842 | N30: 57288 | O30: 57733 | P30: 57128 | Q30: 57836 | R30: 58981 | S30: 58778 | T30: 57934 | U30: 58122 | V30: 57715
A31: Modoc | B31: 1000 | C31: 1021 | D31: 1046 | E31: 997 | F31: 959 | H31: Modoc | I31: 965 | J31: 955 | K31: 935 | L31: 952 | M31: 963 | N31: 997 | O31: 1001 | P31: 1033 | Q31: 1023 | R31: 1012 | S31: 966 | T31: 972 | U31: 1061 | V31: 1050
A32: Mono | B32: 570 | C32: 698 | D32: 709 | E32: 709 | F32: 619 | H32: Mono | I32: 703 | J32: 606 | K32: 656 | L32: 644 | M32: 823 | N32: 920 | O32: 855 | P32: 778 | Q32: 849 | R32: 852 | S32: 856 | T32: 768 | U32: 797 | V32: 790
A33: Monterey | B33: 39133 | C33: 44819 | D33: 47110 | E33: 44518 | F33: 41994 | H33: Monterey | I33: 48096 | J33: 50064 | K33: 46145 | L33: 43325 | M33: 51281 | N33: 53709 | O33: 49132 | P33: 45843 | Q33: 52560 | R33: 54990 | S33: 50601 | T33: 48021 | U33: 54487 | V33: 55488
A34: Napa | B34: 6993 | C34: 7073 | D34: 7209 | E34: 7287 | F34: 7181 | H34: Napa | I34: 7165 | J34: 7097 | K34: 6710 | L34: 6599 | M34: 7164 | N34: 7455 | O34: 7324 | P34: 7124 | Q34: 7421 | R34: 7653 | S34: 7444 | T34: 7414 | U34: 7533 | V34: 7533
A35: Nevada | B35: 6345 | C35: 6509 | D35: 6919 | E35: 7105 | F35: 7339 | H35: Nevada | I35: 7389 | J35: 7327 | K35: 7452 | L35: 7422 | M35: 7593 | N35: 7813 | O35: 7804 | P35: 7687 | Q35: 7705 | R35: 7675 | S35: 7776 | T35: 7833 | U35: 7694 | V35: 7768
A36: Orange | B36: 205059 | C36: 209924 | D36: 213200 | E36: 218827 | F36: 225212 | H36: Orange | I36: 227792 | J36: 230478 | K36: 232862 | L36: 240817 | M36: 245759 | N36: 248563 | O36: 270245 | P36: 273208 | Q36: 253714 | R36: 254662 | S36: 257750 | T36: 260178 | U36: 257551 | V36: 254598
A37: Placer | B37: 17899 | C37: 17900 | D37: 18082 | E37: 17815 | F37: 17834 | H37: Placer | I37: 17706 | J37: 17632 | K37: 17673 | L37: 18178 | M37: 18465 | N37: 18437 | O37: 18455 | P37: 18731 | Q37: 18407 | R37: 18325 | S37: 18190 | T37: 18090 | U37: 17969 | V37: 17795
A38: Plumas | B38: 1514 | C38: 1564 | D38: 1662 | E38: 1654 | F38: 1612 | H38: Plumas | I38: 1759 | J38: 1729 | K38: 1604 | L38: 1660 | M38: 1844 | N38: 1951 | O38: 1793 | P38: 1888 | Q38: 2030 | R38: 2151 | S38: 1993 | T38: 2010 | U38: 2208 | V38: 2239
A39: Riverside | B39: 253780 | C39: 259798 | D39: 259750 | E39: 267997 | F39: 276481 | H39: Riverside | I39: 276891 | J39: 274951 | K39: 278117 | L39: 284797 | M39: 287272 | N39: 285410 | O39: 289618 | P39: 296194 | Q39: 292785 | R39: 290231 | S39: 295239 | T39: 299730 | U39: 293265 | V39: 287669
A40: Sacramento | B40: 199285 | C40: 200011 | D40: 200900 | E40: 204104 | F40: 208709 | H40: Sacramento | I40: 210145 | J40: 209287 | K40: 210033 | L40: 213386 | M40: 213072 | N40: 215919 | O40: 217077 | P40: 220147 | Q40: 219747 | R40: 219096 | S40: 219932 | T40: 220373 | U40: 218604 | V40: 215894
A41: San Benito | B41: 6125 | C41: 6211 | D41: 6186 | E41: 6114 | F41: 6053 | H41: San Benito | I41: 6390 | J41: 6339 | K41: 6232 | L41: 5979 | M41: 6378 | N41: 6390 | O41: 6169 | P41: 5905 | Q41: 6193 | R41: 6283 | S41: 5988 | T41: 5936 | U41: 5967 | V41: 5850
A42: San Bernardino | B42: 342917 | C42: 346744 | D42: 350194 | E42: 361404 | F42: 368935 | H42: San Bernardino | I42: 368618 | J42: 369163 | K42: 373620 | L42: 378592 | M42: 382585 | N42: 385964 | O42: 392265 | P42: 399898 | Q42: 398410 | R42: 398523 | S42: 403228 | T42: 405834 | U42: 396730 | V42: 392070
A43: San Diego | B43: 235332 | C43: 240771 | D43: 243130 | E43: 246971 | F43: 253631 | H43: San Diego | I43: 253991 | J43: 256921 | K43: 260576 | L43: 270406 | M43: 272951 | N43: 276963 | O43: 300896 | P43: 285499 | Q43: 287399 | R43: 289089 | S43: 291188 | T43: 293435 | U43: 291088 | V43: 287392
A44: San Francisco | B44: 51367 | C44: 50905 | D44: 50876 | E44: 50894 | F44: 50994 | H44: San Francisco | I44: 50440 | J44: 50482 | K44: 50124 | L44: 50731 | M44: 50484 | N44: 51155 | O44: 53900 | P44: 54246 | Q44: 50987 | R44: 51449 | S44: 52180 | T44: 52684 | U44: 52672 | V44: 52749
A45: San Joaquin | B45: 102770 | C45: 104725 | D45: 106481 | E45: 107532 | F45: 108719 | H45: San Joaquin | I45: 110995 | J45: 112172 | K45: 113230 | L45: 113328 | M45: 114754 | N45: 116685 | O45: 118029 | P45: 119161 | Q45: 120014 | R45: 122470 | S45: 122077 | T45: 121228 | U45: 119261 | V45: 118036
A46: San Luis Obispo | B46: 17122 | C46: 17679 | D46: 17630 | E46: 17269 | F46: 17603 | H46: San Luis Obispo | I46: 17743 | J46: 17852 | K46: 17319 | L46: 17380 | M46: 17988 | N46: 18502 | O46: 17983 | P46: 17677 | Q46: 18402 | R46: 18578 | S46: 18642 | T46: 18677 | U46: 18697 | V46: 18513
A47: San Mateo | B47: 25111 | C47: 26275 | D47: 27156 | E47: 28106 | F47: 28900 | H47: San Mateo | I47: 28487 | J47: 28842 | K47: 29339 | L47: 31071 | M47: 32181 | N47: 32354 | O47: 32208 | P47: 32074 | Q47: 31880 | R47: 31947 | S47: 31752 | T47: 31527 | U47: 30873 | V47: 30014
A48: Santa Barbara | B48: 30550 | C48: 31120 | D48: 33118 | E48: 32030 | F48: 31696 | H48: Santa Barbara | I48: 33164 | J48: 34310 | K48: 32221 | L48: 32271 | M48: 34841 | N48: 36132 | O48: 34497 | P48: 34829 | Q48: 37090 | R48: 37966 | S48: 36443 | T48: 36809 | U48: 39696 | V48: 40218
A49: Santa Clara | B49: 99799 | C49: 100983 | D49: 103487 | E49: 105676 | F49: 108071 | H49: Santa Clara | I49: 108748 | J49: 110071 | K49: 110622 | L49: 112280 | M49: 112246 | N49: 113186 | O49: 113439 | P49: 113741 | Q49: 112449 | R49: 111985 | S49: 110974 | T49: 109453 | U49: 106496 | V49: 105301
A50: Santa Cruz | B50: 19790 | C50: 20577 | D50: 22588 | E50: 22390 | F50: 21161 | H50: Santa Cruz | I50: 23021 | J50: 24017 | K50: 22732 | L50: 22237 | M50: 23647 | N50: 24910 | O50: 23719 | P50: 23430 | Q50: 25385 | R50: 26274 | S50: 25934 | T50: 25930 | U50: 27374 | V50: 27613
A51: Shasta | B51: 24418 | C51: 24418 | D51: 24673 | E51: 25025 | F51: 24689 | H51: Shasta | I51: 23749 | J51: 23665 | K51: 23709 | L51: 22949 | M51: 23916 | N51: 24283 | O51: 24671 | P51: 24856 | Q51: 24775 | R51: 25180 | S51: 25293 | T51: 25247 | U51: 24753 | V51: 24569
A52: Sierra | B52: 239 | C52: 262 | D52: 266 | E52: 302 | F52: 292 | H52: Sierra | I52: 314 | J52: 306 | K52: 305 | L52: 293 | M52: 299 | N52: 306 | O52: 294 | P52: 298 | Q52: 320 | R52: 324 | S52: 317 | T52: 307 | U52: 297 | V52: 271
A53: Siskiyou | B53: 5784 | C53: 5978 | D53: 6089 | E53: 6100 | F53: 6114 | H53: Siskiyou | I53: 6426 | J53: 6527 | K53: 6486 | L53: 6523 | M53: 6927 | N53: 7024 | O53: 6907 | P53: 6911 | Q53: 6993 | R53: 7132 | S53: 6992 | T53: 7026 | U53: 7116 | V53: 6942
A54: Solano | B54: 38995 | C54: 39019 | D54: 39399 | E54: 40161 | F54: 41119 | H54: Solano | I54: 41335 | J54: 41065 | K54: 41287 | L54: 41998 | M54: 42499 | N54: 43407 | O54: 43531 | P54: 43554 | Q54: 43385 | R54: 43830 | S54: 44119 | T54: 44388 | U54: 43644 | V54: 42828
A55: Sonoma | B55: 31820 | C55: 31838 | D55: 33291 | E55: 34447 | F55: 34288 | H55: Sonoma | I55: 40348 | J55: 34800 | K55: 34451 | L55: 34664 | M55: 34735 | N55: 35221 | O55: 34951 | P55: 35567 | Q55: 35677 | R55: 36090 | S55: 36183 | T55: 35691 | U55: 35037 | V55: 34425
A56: Stanislaus | B56: 84867 | C56: 85530 | D56: 86863 | E56: 88848 | F56: 89458 | H56: Stanislaus | I56: 90507 | J56: 90467 | K56: 91048 | L56: 90962 | M56: 92065 | N56: 92163 | O56: 92778 | P56: 91500 | Q56: 91585 | R56: 92704 | S56: 92572 | T56: 92379 | U56: 90153 | V56: 89096
A57: Sutter | B57: 11259 | C57: 11667 | D57: 11972 | E57: 11946 | F57: 11901 | H57: Sutter | I57: 12365 | J57: 12460 | K57: 12440 | L57: 12119 | M57: 12740 | N57: 12986 | O57: 13083 | P57: 12903 | Q57: 13047 | R57: 13160 | S57: 13236 | T57: 13230 | U57: 13253 | V57: 13467
A58: Tehama | B58: 9262 | C58: 9410 | D58: 9592 | E58: 9899 | F58: 9693 | H58: Tehama | I58: 9737 | J58: 9682 | K58: 9916 | L58: 10181 | M58: 10409 | N58: 10963 | O58: 11155 | P58: 10646 | Q58: 10255 | R58: 10371 | S58: 10543 | T58: 10600 | U58: 10136 | V58: 10196
A59: Trinity | B59: 1463 | C59: 1531 | D59: 1513 | E59: 1557 | F59: 1638 | H59: Trinity | I59: 1613 | J59: 1548 | K59: 1516 | L59: 1561 | M59: 1609 | N59: 1775 | O59: 1838 | P59: 1880 | Q59: 1829 | R59: 1808 | S59: 1867 | T59: 1862 | U59: 1796 | V59: 1757
A60: Tulare | B60: 105927 | C60: 108269 | D60: 109820 | E60: 110086 | F60: 110559 | H60: Tulare | I60: 114115 | J60: 115236 | K60: 114774 | L60: 116505 | M60: 120087 | N60: 123505 | O60: 132774 | P60: 133499 | Q60: 123898 | R60: 125269 | S60: 123955 | T60: 125031 | U60: 125618 | V60: 125132
A61: Tuolumne | B61: 5073 | C61: 5211 | D61: 5167 | E61: 5103 | F61: 5153 | H61: Tuolumne | I61: 5253 | J61: 5227 | K61: 5153 | L61: 5192 | M61: 5409 | N61: 5567 | O61: 5556 | P61: 5465 | Q61: 5414 | R61: 5559 | S61: 5603 | T61: 5707 | U61: 5609 | V61: 5493
A62: Ventura | B62: 62970 | C62: 63349 | D62: 64668 | E62: 64382 | F62: 66179 | H62: Ventura | I62: 66999 | J62: 67793 | K62: 66971 | L62: 69194 | M62: 69753 | N62: 71740 | O62: 77031 | P62: 78777 | Q62: 74220 | R62: 75528 | S62: 75003 | T62: 76720 | U62: 76144 | V62: 75635
A63: Yolo | B63: 16160 | C63: 16466 | D63: 16835 | E63: 16880 | F63: 16929 | H63: Yolo | I63: 16966 | J63: 16990 | K63: 16629 | L63: 17295 | M63: 17981 | N63: 18353 | O63: 18273 | P63: 18981 | Q63: 20044 | R63: 20591 | S63: 20610 | T63: 21088 | U63: 21479 | V63: 21293
A64: Yuba | B64: 13017 | C64: 12840 | D64: 12923 | E64: 13058 | F64: 12952 | H64: Yuba | I64: 12871 | J64: 12913 | K64: 12919 | L64: 12695 | M64: 13040 | N64: 13249 | O64: 13449 | P64: 13409 | Q64: 13204 | R64: 13517 | S64: 13621 | T64: 13868 | U64: 13569 | V64: 13507

Sheet PRI_both_methods (hidden)
G1: Clean table
A2: Single Year Counties | B2: 2013 PRI | C2: 2014 PRI | D2: 2015 PRI (using the OLD 2014 Methodology) | E2: 2015 PRI (using NEW REFINED Methodology)* | G2: County | H2: =B2 -> 2013 PRI | I2: =C2 -> 2014 PRI | J2: =D2 -> 2015 PRI (using the OLD 2014 Methodology) | K2: =E2 -> 2015 PRI (using NEW REFINED Methodology)*
A3: California | B3: 0.5844587908 | C3: 0.634479719 | D3: 0.6727767723 | E3: 0.6973301642 | G3: California | H3: 0.5844587908 | I3: 0.634479719 | J3: 0.6727767723 | K3: 0.6973301642
A4: Alameda County | B4: 0.5671724404 | C4: 0.5877058885 | D4: 0.6098780922 | E4: 0.6372229791 | G4: Alameda | H4: 0.5671724404 | I4: 0.5877058885 | J4: 0.6098780922 | K4: 0.6372229791
A5: Butte County | B5: 0.52065367 | C5: 0.5669304689 | D5: 0.5968532803 | E5: 0.6000226148 | G5: Alpine | H5: 0.7013495105 | I5: 0.8029296497 | J5: 0.6659719542 | K5: 0.6659719542
A6: Contra Costa County | B6: 0.470679712 | C6: 0.5714334885 | D6: 0.5354193677 | E6: 0.5560411479 | G6: Amador | H6: 0.6570444195 | I6: 0.664659921 | J6: 0.7254222921 | K6: 0.7318305952
A7: El Dorado County | B7: 0.441067046 | C7: 0.4569636428 | D7: 0.6464351024 | E7: 0.6540955679 | G7: Butte | H7: 0.52065367 | I7: 0.5669304689 | J7: 0.5968532803 | K7: 0.6000226148
A8: Fresno County | B8: 0.7829362252 | C8: 0.8062690642 | D8: 0.8537557992 | E8: 0.8732227017 | G8: Calaveras | H8: 0.8242712335 | I8: 0.8029351972 | J8: 0.8287775527 | K8: 0.8341216822
A9: Humboldt County | B9: 0.4740359234 | C9: 0.5656343537 | D9: 0.6536684424 | E9: 0.6587786163 | G9: Colusa | H9: 0.461131511 | I9: 0.391419843 | J9: 0.3776273461 | K9: 0.3978126065
A10: Imperial County | B10: 0.8146401716 | C10: 0.8950814433 | D10: 0.8983875924 | E10: 0.9073345757 | G10: Contra Costa | H10: 0.470679712 | I10: 0.5714334885 | J10: 0.5354193677 | K10: 0.5560411479
A11: Kern County | B11: 0.6403652026 | C11: 0.6560986851 | D11: 0.7469377355 | E11: 0.7660550802 | G11: Del Norte | H11: 0.8643108494 | I11: 0.9150760188 | J11: 0.9021168241 | K11: 0.9073176937
A12: Kings County | B12: 0.6693004744 | C12: 0.6167506024 | D12: 0.6747476388 | E12: 0.686006533 | G12: El Dorado | H12: 0.441067046 | I12: 0.4569636428 | J12: 0.6464351024 | K12: 0.6540955679
A13: Lake County | B13: 0.5899448946 | C13: 0.631767504 | D13: 0.814499895 | E13: 0.8347488374 | G13: Fresno | H13: 0.7829362252 | I13: 0.8062690642 | J13: 0.8537557992 | K13: 0.8732227017
A14: Los Angeles County | B14: 0.5421149477 | C14: 0.5833405163 | D14: 0.6343699497 | E14: 0.6627606146 | G14: Glenn | H14: 0.568507573 | I14: 0.5583835589 | J14: 0.5423383335 | K14: 0.555878983
A15: Madera County | B15: 0.6909622774 | C15: 0.7412099061 | D15: 0.896562197 | E15: 0.918082343 | G15: Humboldt | H15: 0.4740359234 | I15: 0.5656343537 | J15: 0.6536684424 | K15: 0.6587786163
A16: Marin County | B16: 0.4197660983 | C16: 0.4541696272 | D16: 0.429252823 | E16: 0.4465073387 | G16: Imperial | H16: 0.8146401716 | I16: 0.8950814433 | J16: 0.8983875924 | K16: 0.9073345757
A17: Mendocino County | B17: 0.5879193018 | C17: 0.6949142224 | D17: 0.6648515259 | E17: 0.6880146098 | G17: Inyo | H17: 0.7394649236 | I17: 0.7204226942 | J17: 0.787830261 | K17: 0.8030296946
A18: Merced County | B18: 0.7856586062 | C18: 0.76763611 | D18: 0.7192405708 | E18: 0.7358684255 | G18: Kern | H18: 0.6403652026 | I18: 0.6560986851 | J18: 0.7469377355 | K18: 0.7660550802
A19: Monterey County | B19: 0.5646953884 | C19: 0.6519082293 | D19: 0.7231414479 | E19: 0.7596243495 | G19: Kings | H19: 0.6693004744 | I19: 0.6167506024 | J19: 0.6747476388 | K19: 0.686006533
A20: Napa County | B20: 0.4066139368 | C20: 0.5216094463 | D20: 0.3727424421 | E20: 0.38161674 | G20: Lake | H20: 0.5899448946 | I20: 0.631767504 | J20: 0.814499895 | K20: 0.8347488374
A21: Nevada County | B21: 0.4424824208 | C21: 0.6105744039 | D21: 0.4203955928 | E21: 0.4280006258 | G21: Lassen | H21: 0.677804475 | I21: 0.7861142636 | J21: 0.8480294239 | K21: 0.8539336808
A22: Orange County | B22: 0.5178853663 | C22: 0.5826261943 | D22: 0.5853549376 | E22: 0.6107392777 | G22: Los Angeles | H22: 0.5421149477 | I22: 0.5833405163 | J22: 0.6343699497 | K22: 0.6627606146
A23: Placer County | B23: 0.4497674488 | C23: 0.4494527749 | D23: 0.4612140345 | E23: 0.4737160431 | G23: Madera | H23: 0.6909622774 | I23: 0.7412099061 | J23: 0.896562197 | K23: 0.918082343
A24: Riverside County | B24: 0.5912491432 | C24: 0.6375116386 | D24: 0.6681319124 | E24: 0.6948403373 | G24: Marin | H24: 0.4197660983 | I24: 0.4541696272 | J24: 0.429252823 | K24: 0.4465073387
A25: Sacramento County | B25: 0.6810164841 | C25: 0.7368741653 | D25: 0.8104847567 | E25: 0.8326028726 | G25: Mariposa | H25: 0.5878256815 | I25: 0.6358445908 | J25: 0.6866925028 | K25: 0.6889404965
A26: San Bernardino County | B26: 0.8415261065 | C26: 0.8548051396 | D26: 0.9036027768 | E26: 0.9266551879 | G26: Mendocino | H26: 0.5879193018 | I26: 0.6949142224 | J26: 0.6648515259 | K26: 0.6880146098
A27: San Diego County | B27: 0.4659832261 | C27: 0.5173190533 | D27: 0.5499762212 | E27: 0.5729210956 | G27: Merced | H27: 0.7856586062 | I27: 0.76763611 | J27: 0.7192405708 | K27: 0.7358684255
A28: San Francisco County | B28: 0.4059468564 | C28: 0.5187795521 | D28: 0.495325008 | E28: 0.506983021 | G28: Modoc | H28: 0.3609965783 | I28: 0.4472268902 | J28: 0.4889767965 | K28: 0.4957644817
A29: San Joaquin County | B29: 0.7128220892 | C29: 0.7544840586 | D29: 0.9042586804 | E29: 0.9245508156 | G29: Mono | H29: 0.3155489675 | I29: 0.4993941229 | J29: 0.6073279298 | K29: 0.6916414919
A30: San Luis Obispo County | B30: 0.3662575252 | C30: 0.3937855684 | D30: 0.4019977353 | E30: 0.408729867 | G30: Monterey | H30: 0.5646953884 | I30: 0.6519082293 | J30: 0.7231414479 | K30: 0.7596243495
A31: San Mateo County | B31: 0.4229914507 | C31: 0.5047687081 | D31: 0.4230144774 | E31: 0.4425394435 | G31: Napa | H31: 0.4066139368 | I31: 0.5216094463 | J31: 0.3727424421 | K31: 0.38161674
A32: Santa Barbara County | B32: 0.4141920085 | C32: 0.4220011978 | D32: 0.4804232902 | E32: 0.5075038029 | G32: Nevada | H32: 0.4424824208 | I32: 0.6105744039 | J32: 0.4203955928 | K32: 0.4280006258
A33: Santa Clara County | B33: 0.5031122822 | C33: 0.6519460162 | D33: 0.6483804233 | E33: 0.6885490342 | G33: Orange | H33: 0.5178853663 | I33: 0.5826261943 | J33: 0.5853549376 | K33: 0.6107392777
A34: Santa Cruz County | B34: 0.5446741752 | C34: 0.5050267509 | D34: 0.5625865549 | E34: 0.5795364204 | G34: Placer | H34: 0.4497674488 | I34: 0.4494527749 | J34: 0.4612140345 | K34: 0.4737160431
A35: Shasta County | B35: 0.5827313218 | C35: 0.8303425338 | D35: 0.6880220275 | E35: 0.6930066029 | G35: Plumas | H35: 0.438544378 | I35: 0.5261404932 | J35: 0.5830251134 | K35: 0.5946938265
A36: Solano County | B36: 0.6676453847 | C36: 0.7692594955 | D36: 0.6590491825 | E36: 0.6749623297 | G36: Riverside | H36: 0.5912491432 | I36: 0.6375116386 | J36: 0.6681319124 | K36: 0.6948403373
A37: Sonoma County | B37: 0.4906653206 | C37: 0.5034531504 | D37: 0.5970451615 | E37: 0.6199553571 | G37: Sacramento | H37: 0.6810164841 | I37: 0.7368741653 | J37: 0.8104847567 | K37: 0.8326028726
A38: Stanislaus County | B38: 0.7221488969 | C38: 0.7949778118 | D38: 0.8476391608 | E38: 0.8742244423 | G38: San Benito | H38: 0.7267506246 | I38: 0.7074153186 | J38: 0.7503604037 | K38: 0.7834749966
A39: Sutter County | B39: 0.5376950917 | C39: 0.8091986652 | D39: 0.5808152343 | E39: 0.5919871746 | G39: San Bernardino | H39: 0.8415261065 | I39: 0.8548051396 | J39: 0.9036027768 | K39: 0.9266551879
A40: Tulare County | B40: 0.7750488154 | C40: 0.9035851815 | D40: 0.8863895631 | E40: 0.9133550994 | G40: San Diego | H40: 0.4659832261 | I40: 0.5173190533 | J40: 0.5499762212 | K40: 0.5729210956
A41: Ventura County | B41: 0.6010535496 | C41: 0.6499799313 | D41: 0.7992226104 | E41: 0.8310954941 | G41: San Francisco | H41: 0.4059468564 | I41: 0.5187795521 | J41: 0.495325008 | K41: 0.506983021
A42: Yolo County | B42: 0.3925789106 | C42: 0.3707119276 | D42: 0.4969811427 | E42: 0.5074149493 | G42: San Joaquin | H42: 0.7128220892 | I42: 0.7544840586 | J42: 0.9042586804 | K42: 0.9245508156
A43: Yuba County | B43: 0.8955697839 | C43: 0.766188712 | D43: 0.7145245059 | E43: 0.7244269327 | G43: San Luis Obispo | H43: 0.3662575252 | I43: 0.3937855684 | J43: 0.4019977353 | K43: 0.408729867
A44: Sources: 1) 2013, 2014 and 2015 American Community Survey Single-Year Estimates | G44: San Mateo | H44: 0.4229914507 | I44: 0.5047687081 | J44: 0.4230144774 | K44: 0.4425394435
A45: 2) 2013, 2014 and 2015 ACS PUMS Single-Year Estimates | G45: Santa Barbara | H45: 0.4141920085 | I45: 0.4220011978 | J45: 0.4804232902 | K45: 0.5075038029
A46: 3) Medi-Cal Eligibility Data Systems (MEDS) | G46: Santa Clara | H46: 0.5031122822 | I46: 0.6519460162 | J46: 0.6483804233 | K46: 0.6885490342
G47: Santa Cruz | H47: 0.5446741752 | I47: 0.5050267509 | J47: 0.5625865549 | K47: 0.5795364204
A48: Five Year Counties | B48: 2013 PRI | C48: 2014 PRI | D48: 2015 PRI (using the OLD 2014 Methodology) | E48: 2015 PRI (using NEW REFINED Methodology)* | G48: Shasta | H48: 0.5827313218 | I48: 0.8303425338 | J48: 0.6880220275 | K48: 0.6930066029
A49: Alpine | B49: 0.7013495105 | C49: 0.8029296497 | D49: 0.6659719542 | E49: 0.6659719542 | G49: Sierra | H49: 0.4362699972 | I49: 0.5615942745 | J49: 0.5969329915 | K49: 0.6038538287
A50: Amador | B50: 0.6570444195 | C50: 0.664659921 | D50: 0.7254222921 | E50: 0.7318305952 | G50: Siskiyou | H50: 0.6264990397 | I50: 0.6058243585 | J50: 0.6089189193 | K50: 0.6172318348
A51: Calaveras | B51: 0.8242712335 | C51: 0.8029351972 | D51: 0.8287775527 | E51: 0.8341216822 | G51: Solano | H51: 0.6676453847 | I51: 0.7692594955 | J51: 0.6590491825 | K51: 0.6749623297
A52: Colusa | B52: 0.461131511 | C52: 0.391419843 | D52: 0.3776273461 | E52: 0.3978126065 | G52: Sonoma | H52: 0.4906653206 | I52: 0.5034531504 | J52: 0.5970451615 | K52: 0.6199553571
A53: Del Norte | B53: 0.8643108494 | C53: 0.9150760188 | D53: 0.9021168241 | E53: 0.9073176937 | G53: Stanislaus | H53: 0.7221488969 | I53: 0.7949778118 | J53: 0.8476391608 | K53: 0.8742244423
A54: Glenn | B54: 0.568507573 | C54: 0.5583835589 | D54: 0.5423383335 | E54: 0.555878983 | G54: Sutter | H54: 0.5376950917 | I54: 0.8091986652 | J54: 0.5808152343 | K54: 0.5919871746
A55: Inyo | B55: 0.7394649236 | C55: 0.7204226942 | D55: 0.787830261 | E55: 0.8030296946 | G55: Tehama | H55: 0.6923153144 | I55: 0.7632710421 | J55: 0.6827886221 | K55: 0.6955494929
A56: Lassen | B56: 0.677804475 | C56: 0.7861142636 | D56: 0.8480294239 | E56: 0.8539336808 | G56: Trinity | H56: 0.5015027929 | I56: 0.591242214 | J56: 0.5612350358 | K56: 0.564694458
A57: Mariposa | B57: 0.5878256815 | C57: 0.6358445908 | D57: 0.6866925028 | E57: 0.6889404965 | G57: Tulare | H57: 0.7750488154 | I57: 0.9035851815 | J57: 0.8863895631 | K57: 0.9133550994
A58: Modoc | B58: 0.3609965783 | C58: 0.4472268902 | D58: 0.4889767965 | E58: 0.4957644817 | G58: Tuolumne | H58: 0.5308063709 | I58: 0.5509620804 | J58: 0.6158015353 | K58: 0.6188715462
A59: Mono | B59: 0.3155489675 | C59: 0.4993941229 | D59: 0.6073279298 | E59: 0.6916414919 | G59: Ventura | H59: 0.6010535496 | I59: 0.6499799313 | J59: 0.7992226104 | K59: 0.8310954941
A60: Plumas | B60: 0.438544378 | C60: 0.5261404932 | D60: 0.5830251134 | E60: 0.5946938265 | G60: Yolo | H60: 0.3925789106 | I60: 0.3707119276 | J60: 0.4969811427 | K60: 0.5074149493
A61: San Benito | B61: 0.7267506246 | C61: 0.7074153186 | D61: 0.7503604037 | E61: 0.7834749966 | G61: Yuba | H61: 0.8955697839 | I61: 0.766188712 | J61: 0.7145245059 | K61: 0.7244269327
A62: Sierra | B62: 0.4362699972 | C62: 0.5615942745 | D62: 0.5969329915 | E62: 0.6038538287
A63: Siskiyou | B63: 0.6264990397 | C63: 0.6058243585 | D63: 0.6089189193 | E63: 0.6172318348
A64: Tehama | B64: 0.6923153144 | C64: 0.7632710421 | D64: 0.6827886221 | E64: 0.6955494929
A65: Trinity | B65: 0.5015027929 | C65: 0.591242214 | D65: 0.5612350358 | E65: 0.564694458
A66: Tuolumne | B66: 0.5308063709 | C66: 0.5509620804 | D66: 0.6158015353 | E66: 0.6188715462
A67: Sources: 1) 2009-2013, 2010-2014, and 2011-2015 American Community Survey Five-Years Estimates
A68: 2) 2009-2013 and 2010-2014 ACS PUMS five-Year Estimates
A69: 3) Medi-Cal Eligibility Data Systems (MEDS)
A70: *NOTE: NEW METHODOLOGY includes a more precise estimates of eligible individuals

Sheet PRI (hidden)
I2: 2015 Methodology Adjusted to remove undoc children!
A3: Max of ann_eligibles_excl_undocs_ssi_2yr_prior | B3: Column Labels | E3: Max of ann_eligibles_excl_undocs_ssi_yr_of_report | F3: Column Labels
A4: Row Labels | B4: 2012 | C4: 2013 | E4: Row Labels | F4: 2012 | G4: 2013 | H4: 2014 | I4: 2015 | J4: 2016
A5: California | B5: 0.509 | C5: 0.552 | E5: California | F5: 0.57 | G5: 0.584 | H5: 0.634 | I5: 0.6973301642 | J5: 0
A6: Alameda | B6: 0.472 | C6: 0.525 | E6: Alameda | F6: 0.565 | G6: 0.567 | H6: 0.5877058885 | I6: 0.6372229791 | J6: 0
A7: Alpine | B7: 0.01 | C7: 0.721 | E7: Alpine | F7: 0.749 | G7: 0.701 | H7: 0.8029296497 | I7: 0.6659719542 | J7: 0
A8: Amador | B8: 0.757 | C8: 0.703 | E8: Amador | F8: 0.767 | G8: 0.657 | H8: 0.664659921 | I8: 0.7318305952 | J8: 0
A9: Butte | B9: 0.516 | C9: 0.443 | E9: Butte | F9: 0.512 | G9: 0.521 | H9: 0.5669304689 | I9: 0.6000226148 | J9: 0
A10: Calaveras | B10: 0.806 | C10: 0.955 | E10: Calaveras | F10: 0.831 | G10: 0.824 | H10: 0.8029351972 | I10: 0.8341216822 | J10: 0
A11: Colusa | B11: 0.379 | C11: 0.38 | E11: Colusa | F11: 0.389 | G11: 0.461 | H11: 0.391419843 | I11: 0.3978126065 | J11: 0
A12: Contra Costa | B12: 0.485 | C12: 0.432 | E12: Contra Costa | F12: 0.507 | G12: 0.471 | H12: 0.5714334885 | I12: 0.5560411479 | J12: 0
A13: Del Norte | B13: 0.859 | C13: 0.954 | E13: Del Norte | F13: 0.944 | G13: 0.864 | H13: 0.9150760188 | I13: 0.9073176937 | J13: 0
A14: El Dorado | B14: 0.473 | C14: 0.435 | E14: El Dorado | F14: 0.606 | G14: 0.441 | H14: 0.4569636428 | I14: 0.6540955679 | J14: 0
A15: Fresno | B15: 0.783 | C15: 0.789 | E15: Fresno | F15: 0.758 | G15: 0.783 | H15: 0.8062690642 | I15: 0.8732227017 | J15: 0
A16: Glenn | B16: 0.566 | C16: 0.544 | E16: Glenn | F16: 0.537 | G16: 0.569 | H16: 0.5583835589 | I16: 0.555878983 | J16: 0
A17: Humboldt | B17: 0.494 | C17: 0.5 | E17: Humboldt | F17: 0.467 | G17: 0.474 | H17: 0.5656343537 | I17: 0.6587786163 | J17: 0
A18: Imperial | B18: 0.707 | C18: 0.651 | E18: Imperial | F18: 0.808 | G18: 0.815 | H18: 0.8950814433 | I18: 0.9073345757 | J18: 0
A19: Inyo | B19: 0.659 | C19: 0.688 | E19: Inyo | F19: 0.777 | G19: 0.739 | H19: 0.7204226942 | I19: 0.8030296946 | J19: 0
A20: Kern | B20: 0.596 | C20: 0.626 | E20: Kern | F20: 0.654 | G20: 0.64 | H20: 0.6560986851 | I20: 0.7660550802 | J20: 0
A21: Kings | B21: 0.572 | C21: 0.783 | E21: Kings | F21: 0.686 | G21: 0.669 | H21: 0.6167506024 | I21: 0.686006533 | J21: 0
A22: Lake | B22: 0.485 | C22: 0.52 | E22: Lake | F22: 0.523 | G22: 0.59 | H22: 0.631767504 | I22: 0.8347488374 | J22: 0
A23: Lassen | B23: 0.741 | C23: 0.717 | E23: Lassen | F23: 0.658 | G23: 0.678 | H23: 0.7861142636 | I23: 0.8539336808 | J23: 0
A24: Los Angeles | B24: 0.474 | C24: 0.521 | E24: Los Angeles | F24: 0.539 | G24: 0.542 | H24: 0.5833405163 | I24: 0.6627606146 | J24: 0
A25: Madera | B25: 0.683 | C25: 0.757 | E25: Madera | F25: 0.693 | G25: 0.691 | H25: 0.7412099061 | I25: 0.918082343 | J25: 0
A26: Marin | B26: 0.307 | C26: 0.311 | E26: Marin | F26: 0.463 | G26: 0.42 | H26: 0.4541696272 | I26: 0.4465073387 | J26: 0
A27: Mariposa | B27: 0.5 | C27: 0.574 | E27: Mariposa | F27: 0.623 | G27: 0.588 | H27: 0.6358445908 | I27: 0.6889404965 | J27: 0
A28: Mendocino | B28: 0.52 | C28: 0.611 | E28: Mendocino | F28: 0.687 | G28: 0.588 | H28: 0.6949142224 | I28: 0.6880146098 | J28: 0
A29: Merced | B29: 0.775 | C29: 0.632 | E29: Merced | F29: 0.79 | G29: 0.786 | H29: 0.76763611 | I29: 0.7358684255 | J29: 0
A30: Modoc | B30: 0.494 | C30: 0.414 | E30: Modoc | F30: 0.409 | G30: 0.361 | H30: 0.4472268902 | I30: 0.4957644817 | J30: 0
A31: Mono | B31: 0.229 | C31: 0.232 | E31: Mono | F31: 0.313 | G31: 0.316 | H31: 0.4993941229 | I31: 0.6916414919 | J31: 0
A32: Monterey | B32: 0.439 | C32: 0.476 | E32: Monterey | F32: 0.556 | G32: 0.565 | H32: 0.6519082293 | I32: 0.7596243495 | J32: 0
A33: Napa | B33: 0.309 | C33: 0.312 | E33: Napa | F33: 0.393 | G33: 0.407 | H33: 0.5216094463 | I33: 0.38161674 | J33: 0
A34: Nevada | B34: 0.391 | C34: 0.395 | E34: Nevada | F34: 0.495 | G34: 0.442 | H34: 0.6105744039 | I34: 0.4280006258 | J34: 0
A35: Orange | B35: 0.395 | C35: 0.45 | E35: Orange | F35: 0.482 | G35: 0.518 | H35: 0.5826261943 | I35: 0.6107392777 | J35: 0
A36: Placer | B36: 0.33 | C36: 0.416 | E36: Placer | F36: 0.426 | G36: 0.45 | H36: 0.4494527749 | I36: 0.4737160431 | J36: 0
A37: Plumas | B37: 0.388 | C37: 0.447 | E37: Plumas | F37: 0.461 | G37: 0.439 | H37: 0.5261404932 | I37: 0.5946938265 | J37: 0
A38: Riverside | B38: 0.478 | C38: 0.554 | E38: Riverside | F38: 0.554 | G38: 0.591 | H38: 0.6375116386 | I38: 0.6948403373 | J38: 0
A39: Sacramento | B39: 0.69 | C39: 0.703 | E39: Sacramento | F39: 0.658 | G39: 0.681 | H39: 0.7368741653 | I39: 0.8326028726 | J39: 0
A40: San Benito | B40: 0.743 | C40: 0.829 | E40: San Benito | F40: 0.721 | G40: 0.727 | H40: 0.7074153186 | I40: 0.7834749966 | J40: 0
A41: San Bernardino | B41: 0.697 | C41: 0.788 | E41: San Bernardino | F41: 0.756 | G41: 0.842 | H41: 0.8548051396 | I41: 0.9266551879 | J41: 0
A42: San Diego | B42: 0.337 | C42: 0.412 | E42: San Diego | F42: 0.438 | G42: 0.466 | H42: 0.5173190533 | I42: 0.5729210956 | J42: 0
A43: San Francisco | B43: 0.394 | C43: 0.426 | E43: San Francisco | F43: 0.42 | G43: 0.406 | H43: 0.5187795521 | I43: 0.506983021 | J43: 0
A44: San Joaquin | B44: 0.63 | C44: 0.724 | E44: San Joaquin | F44: 0.776 | G44: 0.713 | H44: 0.7544840586 | I44: 0.9245508156 | J44: 0
A45: San Luis Obispo | B45: 0.346 | C45: 0.345 | E45: San Luis Obispo | F45: 0.402 | G45: 0.366 | H45: 0.3937855684 | I45: 0.408729867 | J45: 0
A46: San Mateo | B46: 0.299 | C46: 0.326 | E46: San Mateo | F46: 0.382 | G46: 0.423 | H46: 0.5047687081 | I46: 0.4425394435 | J46: 0
A47: Santa Barbara | B47: 0.329 | C47: 0.478 | E47: Santa Barbara | F47: 0.418 | G47: 0.414 | H47: 0.4220011978 | I47: 0.5075038029 | J47: 0
A48: Santa Clara | B48: 0.433 | C48: 0.48 | E48: Santa Clara | F48: 0.477 | G48: 0.503 | H48: 0.6519460162 | I48: 0.6885490342 | J48: 0
A49: Santa Cruz | B49: 0.46 | C49: 0.499 | E49: Santa Cruz | F49: 0.588 | G49: 0.545 | H49: 0.5050267509 | I49: 0.5795364204 | J49: 0
A50: Shasta | B50: 0.589 | C50: 0.577 | E50: Shasta | F50: 0.74 | G50: 0.583 | H50: 0.8303425338 | I50: 0.6930066029 | J50: 0
A51: Sierra | B51: 0.594 | C51: 0.409 | E51: Sierra | F51: 0.456 | G51: 0.436 | H51: 0.5615942745 | I51: 0.6038538287 | J51: 0
A52: Siskiyou | B52: 0.594 | C52: 0.583 | E52: Siskiyou | F52: 0.597 | G52: 0.626 | H52: 0.6058243585 | I52: 0.6172318348 | J52: 0
A53: Solano | B53: 0.653 | C53: 0.654 | E53: Solano | F53: 0.617 | G53: 0.668 | H53: 0.7692594955 | I53: 0.6749623297 | J53: 0
A54: Sonoma | B54: 0.334 | C54: 0.455 | E54: Sonoma | F54: 0.455 | G54: 0.491 | H54: 0.5034531504 | I54: 0.6199553571 | J54: 0
A55: Stanislaus | B55: 0.631 | C55: 0.65 | E55: Stanislaus | F55: 0.75 | G55: 0.722 | H55: 0.7949778118 | I55: 0.8742244423 | J55: 0
A56: Sutter | B56: 0.528 | C56: 0.535 | E56: Sutter | F56: 0.727 | G56: 0.538 | H56: 0.8091986652 | I56: 0.5919871746 | J56: 0
A57: Tehama | B57: 0.631 | C57: 0.629 | E57: Tehama | F57: 0.666 | G57: 0.692 | H57: 0.7632710421 | I57: 0.6955494929 | J57: 0
A58: Trinity | B58: 0.592 | C58: 0.495 | E58: Trinity | F58: 0.506 | G58: 0.502 | H58: 0.591242214 | I58: 0.564694458 | J58: 0
A59: Tulare | B59: 0.783 | C59: 0.802 | E59: Tulare | F59: 0.572 | G59: 0.775 | H59: 0.9035851815 | I59: 0.9133550994 | J59: 0
A60: Tuolumne | B60: 0.704 | C60: 0.604 | E60: Tuolumne | F60: 0.574 | G60: 0.531 | H60: 0.5509620804 | I60: 0.6188715462 | J60: 0
A61: Ventura | B61: 0.577 | C61: 0.601 | E61: Ventura | F61: 0.615 | G61: 0.601 | H61: 0.6499799313 | I61: 0.8310954941 | J61: 0
A62: Yolo | B62: 0.387 | C62: 0.308 | E62: Yolo | F62: 0.383 | G62: 0.393 | H62: 0.3707119276 | I62: 0.5074149493 | J62: 0
A63: Yuba | B63: 0.777 | C63: 0.948 | E63: Yuba | F63: 0.663 | G63: 0.896 | H63: 0.766 | I63: 0.7244269327 | J63: 0

Sheet PRI_MOE (hidden)
N1: Details and sources here: R:\Advocacy and Policy\^ALLIANCE to TRANSFORM CALFRESH\^Data Dashboard Analysis\Participation Rates\2015 ACS Margins of Error.xls
A2: Sources: 1) 2015 American Community Survey Single-Year Estimates
A3: 2) 2015 ACS PUMS Single-Year Estimates
A4: 3) Medi-Cal Eligibility Data Systems (MEDS)
O6: ACS 2015 | P6: Under .50 | T6: .50 to .99 | X6: 1.00 to 1.24 | AB6: Sum (E7+I7+M7) | AC6: Sq of Sum | AD6: Under 125% MoE | AG6: PRI 2015
B7: Under 125% FPL1 | C7: Adjusting to 130% (130/125) = 1.04 | D7: 2015 Childonly HHs | E7: Estimating Undocs. (ChildonlyHH *0.94*1.77*1.70) | F7: Percent of SSI Below 130% FPL (PUMS 2014)2 | G7: CY_2015SSI (CDSS) | H7: Adjusted SSI | I7: Undocumented Children (NEW)3 | J7: Adjsued Deno | K7: DFA256 (CY2015) | L7: PRI NEW | M7: PRI OLD | N7: Source | O7: County | P7: Estimate | Q7: MoE | R7: Standard Error (@1.645) | S7: SE Squared | T7: Estimate | U7: MoE | V7: Standard Error (@1.645) | W7: SE Squared | X7: Estimate | Y7: MoE | Z7: Standard Error (@1.645) | AA7: SE Squared | AE7: Low adjusted denominator | AF7: High adjusted denominator | AG7: High | AH7: Low | AI7: Point
A8: California | B8: 7768650 | C8: =+B8*1.04 -> 8079396 | D8: 321046 | E8: =+D8*0.94*1.77*1.7 -> 908065.7692 | F8: 0.431 | G8: 1225021 | H8: =+G8*F8 -> 527984.051 | I8: 233916 | J8: =+C8-E8-H8-I8 -> 6409430.18 | K8: 4469489 | L8: =+K8/J8 -> 0.6973301642 | M8: =+K8/(C8-E8-H8) -> 0.6727767723
A9: Alameda | B9: 239570 | C9: =+B9*1.04 -> 249152.8 | D9: 9197 | E9: =+D9*0.94*1.77*1.7 -> 26013.34662 | F9: 0.5036421053 | G9: 49716 | H9: =+G9*F9 -> 25039.07091 | I9: 8501 | J9: =+C9-E9-H9-I9 -> 189599.3825 | K9: 120817.0833 | L9: =+K9/J9 -> 0.6372229791 | M9: =+K9/(C9-E9-H9) -> 0.6098780922 | N9: 1-year | O9: Alameda | P9: 82636 | Q9: 6447 | R9: 3919.148936 | S9: 15359728.38 | T9: 100548 | U9: 9486 | V9: 5766.56535 | W9: 33253275.93 | X9: 56386 | Y9: 6623 | Z9: 4026.139818 | AA9: 16209801.83 | AB9: 64822806.15 | AC9: 8051.261152 | AD9: 13244.3246 | AE9: =J9-AD9 -> 176355.0579 | AF9: =J9+AD9 -> 202843.7071 | AG9: =K9/AE9 -> 0.6850786407 | AH9: =K9/AF9 -> 0.5956166207 | AI9: =K9/J9 -> 0.6372229791
A10: Butte | B10: 59620 | C10: =+B10*1.04 -> 62004.8 | D10: 982 | E10: =+D10*0.94*1.77*1.7 -> 2777.54772 | F10: 0.5113429208 | G10: 11048 | H10: 5649.316589 | I10: 283 | J10: 53294.93569 | K10: 31978.16667 | L10: =+K10/J10 -> 0.6000226148 | M10: 0.5968532803 | N10: 1-year | O10: Butte | P10: 21346 | Q10: 3612 | R10: 2195.744681 | S10: 4821294.703 | T10: 26450 | U10: 4033 | V10: 2451.671733 | W10: 6010694.284 | X10: 11824 | Y10: 2529 | Z10: 1537.386018 | AA10: 2363555.769 | AB10: 13195544.76 | AC10: 3632.56724 | AD10: 5975.573111 | AE10: =J10-AD10 -> 47319.36258 | AF10: =J10+AD10 -> 59270.5088 | AG10: =K10/AE10 -> 0.6757945357 | AH10: =K10/AF10 -> 0.5395291404 | AI10: =K10/J10 -> 0.6000226148
A11: Contra Costa | B11: 152865 | C11: 158979.6 | D11: 5486 | E11: 15516.93156 | F11: 0.3727593133 | G11: 25214 | H11: 9398.753326 | I11: 4972 | J11: 129091.9151 | K11: 71780.41667 | L11: =+K11/J11 -> 0.5560411479 | M11: 0.5354193677 | N11: 1-year | O11: Contra Costa | P11: 54576 | Q11: 6450 | R11: 3920.972644 | S11: 15374026.48 | T11: 60000 | U11: 6772 | V11: 4116.717325 | W11: 16947361.54 | X11: 38289 | Y11: 7070 | Z11: 4297.87234 | AA11: 18471706.65 | AB11: 50793094.67 | AC11: 7126.927435 | AD11: 11723.79563 | AE11: 117368.1195 | AF11: 140815.7107 | AG11: 0.6115835968 | AH11: 0.509747217 | AI11: 0.5560411479
A12: El Dorado | B12: 21394 | C12: 22249.76 | D12: 357 | E12: 1009.76022 | F12: 0.3064622486 | G12: 2996 | H12: 918.1608968 | I12: 238 | J12: 20083.83888 | K12: 13136.75 | L12: 0.6540955679 | M12: 0.6464351024 | N12: 1-year | O12: El Dorado | P12: 7748 | Q12: 2355 | R12: 1431.610942 | S12: 2049509.89 | T12: 8155 | U12: 2317 | V12: 1408.510638 | W12: 1983902.218 | X12: 5491 | Y12: 1981 | Z12: 1204.255319 | AA12: 1450230.874 | AB12: 5483642.982 | AC12: 2341.717955 | AD12: 3852.126036 | AE12: 16231.71285 | AF12: 23935.96492 | AG12: 0.8093261706 | AH12: 0.5488289294 | AI12: 0.6540955679
A13: Fresno | B13: 311966 | C13: 324444.64 | D13: 13775 | E13: 38962.0365 | F13: 0.4515411934 | G13: 40165 | H13: 18136.15203 | I13: 5960 | J13: 261386.4515 | K13: 228248.5833 | L13: 0.8732227017 | M13: 0.8537557992 | N13: 1-year | O13: Fresno | P13: 115105 | Q13: 10565 | R13: 6422.492401 | S13: 41248408.64 | T13: 126978 | U13: 9782 | V13: 5946.504559 | W13: 35360916.47 | X13: 69883 | Y13: 8169 | Z13: 4965.957447 | AA13: 24660733.36 | AB13: 101270058.5 | AC13: 10063.30256 | AD13: 16554.13272 | AE13: 244832.3188 | AF13: 277940.5842 | AG13: 0.9322649252 | AH13: 0.8212135842 | AI13: 0.8732227017
A14: Humboldt | B14: 35272 | C14: 36682.88 | D14: 647 | E14: 1830.01362 | F14: 0.4353953148 | G14: 6323 | H14: 2753.004575 | I14: 249 | J14: 31850.8618 | K14: 20982.66667 | L14: 0.6587786163 | M14: 0.6536684424 | N14: 1-year | O14: Humboldt | P14: 11835 | Q14: 1790 | R14: 1088.145897 | S14: 1184061.492 | T14: 15961 | U14: 2656 | V14: 1614.589666 | W14: 2606899.788 | X14: 7476 | Y14: 2075 | Z14: 1261.398176 | AA14: 1591125.359 | AB14: 5382086.64 | AC14: 2319.932465 | AD14: 3816.288904 | AE14: 28034.5729 | AF14: 35667.15071 | AG14: 0.748456798 | AH14: 0.5882910816 | AI14: 0.6587786163
A15: Imperial | B15: 53126 | C15: 55251.04 | D15: 904 | E15: 2556.92784 | F15: 0.4476054325 | G15: 10332 | H15: 4624.659328 | I15: 474 | J15: 47595.45283 | K15: 43185 | L15: 0.9073345757 | M15: 0.8983875924 | N15: 1-year | O15: Imperial | P15: 14934 | Q15: 3784 | R15: 2300.303951 | S15: 5291398.269 | T15: 27704 | U15: 5227 | V15: 3177.507599 | W15: 10096554.54 | X15: 10488 | Y15: 3554 | Z15: 2160.486322 | AA15: 4667701.148 | AB15: 20055653.96 | AC15: 4478.353934 | AD15: 7366.892221 | AE15: 40228.56061 | AF15: 54962.34505 | AG15: 1.073491056 | AH15: 0.7857197497 | AI15: 0.9073345757
A16: Kern | B16: 245436 | C16: 255253.44 | D16: 10210 | E16: 28878.5766 | F16: 0.4250180656 | G16: 31991 | H16: 13596.75294 | I16: 5310 | J16: 207468.1105 | K16: 158932 | L16: 0.7660550802 | M16: 0.7469377355 | N16: 1-year | O16: Kern | P16: 80802 | Q16: 9785 | R16: 5948.328267 | S16: 35382609.18 | T16: 105699 | U16: 10847 | V16: 6593.920973 | W16: 43479793.79 | X16: 58935 | Y16: 9069 | Z16: 5513.069909 | AA16: 30393939.82 | AB16: 109256342.8 | AC16: 10452.57589 | AD16: 17194.48734 | AE16: 190273.6231 | AF16: 224662.5978 | AG16: 0.8352813038 | AH16: 0.7074252748 | AI16: 0.7660550802
A17: Kings | B17: 40612 | C17: 42236.48 | D17: 1311 | E17: 3708.11106 | F17: 0.4392991239 | G17: 4485 | H17: 1970.256571 | I17: 600 | J17: 35958.11237 | K17: 24667.5 | L17: 0.686006533 | M17: 0.6747476388 | N17: 1-year | O17: Kings | P17: 12519 | Q17: 3551 | R17: 2158.662614 | S17: 4659824.281 | T17: 18934 | U17: 4621 | V17: 2809.118541 | W17: 7891146.978 | X17: 9159 | Y17: 3295 | Z17: 2003.039514 | AA17: 4012167.293 | AB17: 16563138.55 | AC17: 4069.7836 | AD17: 6694.794022 | AE17: 29263.31835 | AF17: 42652.90639 | AG17: 0.8429495147 | AH17: 0.5783310467 | AI17: 0.686006533
A18: Lake | B18: 17546 | C18: 18247.84 | D18: 364 | E18: 1029.55944 | F18: 0.5475638051 | G18: 3815 | H18: 2088.955916 | I18: 367 | J18: 14762.32464 | K18: 12322.83333 | L18: 0.8347488374 | M18: 0.814499895 | N18: 1-year | O18: Lake | P18: 6418 | Q18: 1804 | R18: 1096.656535 | S18: 1202655.556 | T18: 5978 | U18: 1782 | V18: 1083.282675 | W18: 1173501.353 | X18: 5150 | Y18: 2391 | Z18: 1453.495441 | AA18: 2112648.996 | AB18: 4488805.905 | AC18: 2118.680227 | AD18: 3485.228974 | AE18: 11277.09567 | AF18: 18247.55362 | AG18: 1.092731116 | AH18: 0.6753142691 | AI18: 0.8347488374
A19: Los Angeles | B19: 2243097 | C19: 2332820.88 | D19: 105760 | E19: 299137.9296 | F19: 0.4521197016 | G19: 392248 | H19: 177343.0487 | I19: 79520 | J19: 1776819.902 | K19: 1177606.25 | L19: 0.6627606146 | M19: 0.6343699497 | N19: 1-year | O19: Los Angeles | P19: 702785 | Q19: 22487 | R19: 13669.90881 | S19: 186866407 | T19: 965344 | U19: 30674 | V19: 18646.80851 | W19: 347703467.6 | X19: 574968 | Y19: 22880 | Z19: 13908.81459 | AA19: 193455123.3 | AB19: 728024997.9 | AC19: 26981.93836 | AD19: 44385.28861 | AE19: 1732434.613 | AF19: 1821205.19 | AG19: 0.6797406616 | AH19: 0.646608222 | AI19: 0.6627606146
A20: Madera | B20: 41983 | C20: 43662.32 | D20: 2860 | E20: 8089.3956 | F20: 0.5254200305 | G20: 4534 | H20: 2382.254419 | I20: 778 | J20: 32412.66998 | K20: 29757.5 | L20: 0.918082343 | M20: 0.896562197 | N20: 1-year | O20: Madera | P20: 13924 | Q20: 3986 | R20: 2423.100304 | S20: 5871415.083 | T20: 20303 | U20: 6233 | V20: 3789.057751 | W20: 14356958.64 | X20: 7756 | Y20: 3060 | Z20: 1860.182371 | AA20: 3460278.453 | AB20: 23688652.17 | AC20: 4867.098948 | AD20: 8006.37777 | AE20: 24406.29221 | AF20: 40419.04775 | AG20: 1.219255254 | AH20: 0.7362246677 | AI20: 0.918082343
A21: Marin | B21: 28760 | C21: 29910.4 | D21: 1279 | E21: 3617.60034 | F21: 0.4853742183 | G21: 3361 | H21: 1631.342748 | I21: 953 | J21: 23708.45691 | K21: 10586 | L21: 0.4465073387 | M21: 0.429252823 | N21: 1-year | O21: Marin | P21: 8226 | Q21: 2031 | R21: 1234.650456 | S21: 1524361.748 | T21: 9801 | U21: 2339 | V21: 1421.884498 | W21: 2021755.527 | X21: 10733 | Y21: 4118 | Z21: 2503.343465 | AA21: 6266728.504 | AB21: 9812845.779 | AC21: 3132.546213 | AD21: 5153.038521 | AE21: 18555.41839 | AF21: 28861.49543 | AG21: 0.5705072113 | AH21: 0.3667862611 | AI21: 0.4465073387
A22: Mendocino | B22: 22482 | C22: 23381.28 | D22: 594 | E22: 1680.10524 | F22: 0.5475638051 | G22: 3396 | H22: 1859.526682 | I22: 668 | J22: 19173.64808 | K22: 13191.75 | L22: 0.6880146098 | M22: 0.6648515259 | N22: 1-year | O22: Mendocino | P22: 6134 | Q22: 1528 | R22: 928.8753799 | S22: 862809.4715 | T22: 12073 | U22: 2826 | V22: 1717.933131 | W22: 2951294.242 | X22: 4275 | Y22: 1592 | Z22: 967.781155 | AA22: 936600.364 | AB22: 4750704.077 | AC22: 2179.610992 | AD22: 3585.460082 | AE22: 15588.188 | AF22: 22759.10816 | AG22: 0.8462657753 | AH22: 0.5796250849 | AI22: 0.6880146098
A23: Merced | B23: 93446 | C23: 97183.84 | D23: 3942 | E23: 11149.78932 | F23: 0.4489557935 | G23: 10749 | H23: 4825.825824 | I23: 1835 | J23: 79373.22486 | K23: 58408.25 | L23: 0.7358684255 | M23: 0.7192405708 | N23: 1-year | O23: Merced | P23: 35910 | Q23: 5984 | R23: 3637.68997 | S23: 13232788.31 | T23: 34208 | U23: 4818 | V23: 2928.87538 | W23: 8578310.991 | X23: 23328 | Y23: 5125 | Z23: 3115.50152 | AA23: 9706349.72 | AB23: 31517449.03 | AC23: 5614.040348 | AD23: 9235.096372 | AE23: 70138.12848 | AF23: 88608.32123 | AG23: 0.8327603154 | AH23: 0.6591734184 | AI23: 0.7358684255
A24: Monterey | B24: 89925 | C24: 93522 | D24: 6814 | E24: 19273.12644 | F24: 0.3288283495 | G24: 8611 | H24: 2831.540917 | I24: 3430 | J24: 67987.33264 | K24: 51644.83333 | L24: 0.7596243495 | M24: 0.7231414479 | N24: 1-year | O24: Monterey | P24: 26925 | Q24: 4845 | R24: 2945.288754 | S24: 8674725.843 | T24: 36712 | U24: 5877 | V24: 3572.644377 | W24: 12763787.84 | X24: 26288 | Y24: 5008 | Z24: 3044.3769 | AA24: 9268230.707 | AB24: 30706744.39 | AC24: 5541.366654 | AD24: 9115.548146 | AE24: 58871.7845 | AF24: 77102.88079 | AG24: 0.8772425326 | AH24: 0.669817169 | AI24: 0.7596243495
A25: Napa | B25: 22111 | C25: 22995.44 | D25: 807 | E25: 2282.56722 | F25: 0.2677522691 | G25: 2195 | H25: 587.7162306 | I25: 468 | J25: 19657.15655 | K25: 7501.5 | L25: 0.38161674 | M25: 0.3727424421 | N25: 1-year | O25: Napa | P25: 7052 | Q25: 2386 | R25: 1450.455927 | S25: 2103822.396 | T25: 7937 | U25: 2182 | V25: 1326.443769 | W25: 1759453.072 | X25: 7122 | Y25: 2644 | Z25: 1607.294833 | AA25: 2583396.68 | AB25: 6446672.148 | AC25: 2539.029765 | AD25: 4176.703964 | AE25: 15480.45259 | AF25: 23833.86051 | AG25: 0.4845788557 | AH25: 0.3147412899 | AI25: 0.38161674
A26: Nevada | B26: 19277 | C26: 20048.08 | D26: 162 | E26: 458.21052 | F26: 0.6018086348 | G26: 1972 | H26: 1186.766628 | I26: 327 | J26: 18076.10285 | K26: 7736.583333 | L26: 0.4280006258 | M26: 0.4203955928 | N26: 1-year | O26: Nevada | P26: 5462 | Q26: 1538 | R26: 934.9544073 | S26: 874139.7437 | T26: 7646 | U26: 2506 | V26: 1523.404255 | W26: 2320760.525 | X26: 6169 | Y26: 1840 | Z26: 1118.541033 | AA26: 1251134.043 | AB26: 4446034.312 | AC26: 2108.562143 | AD26: 3468.584726 | AE26: 14607.51813 | AF26: 21544.68758 | AG26: 0.5296302402 | AH26: 0.3590947098 | AI26: 0.4280006258
A27: Orange | B27: 525106 | C27: 546110.24 | D27: 27898 | E27: 78908.37708 | F27: 0.4047879509 | G27: 69569 | H27: 28160.69295 | I27: 18248 | J27: 420793.17 | K27: 256994.9167 | L27: 0.6107392777 | M27: 0.5853549376 | N27: 1-year | O27: Orange | P27: 177737 | Q27: 14146 | R27: 8599.392097 | S27: 73949544.44 | T27: 218435 | U27: 15631 | V27: 9502.12766 | W27: 90290430.06 | X27: 128934 | Y27: 10765 | Z27: 6544.072948 | AA27: 42824890.75 | AB27: 207064865.3 | AC27: 14389.74862 | AD27: 23671.13647 | AE27: 397122.0335 | AF27: 444464.3064 | AG27: 0.6471434345 | AH27: 0.5782127225 | AI27: 0.6107392777
A28: Placer | B28: 41321 | C28: 42973.84 | D28: 759 | E28: 2146.80114 | F28: 0.2383295838 | G28: 5482 | H28: 1306.522778 | I28: 1043 | J28: 38477.51608 | K28: 18227.41667 | L28: 0.4737160431 | M28: 0.4612140345 | N28: 1-year | O28: Placer | P28: 12765 | Q28: 1938 | R28: 1178.115502 | S28: 1387956.135 | T28: 20889 | U28: 4048 | V28: 2460.790274 | W28: 6055488.77 | X28: 7667 | Y28: 1979 | Z28: 1203.039514 | AA28: 1447304.071 | AB28: 8890748.977 | AC28: 2981.7359 | AD28: 4904.955555 | AE28: 33572.56053 | AF28: 43382.47164 | AG28: 0.54292602 | AH28: 0.4201562516 | AI28: 0.4737160431
A29: Riverside | B29: 489332 | C29: 508905.28 | D29: 16447 | E29: 46519.68162 | F29: 0.3684958868 | G29: 58900 | H29: 21704.40773 | I29: 16939 | J29: 423742.1906 | K29: 294433.1667 | L29: 0.6948403373 | M29: 0.6681319124 | N29: 1-year | O29: Riverside | P29: 158508 | Q29: 11821 | R29: 7186.018237 | S29: 51638858.1 | T29: 217673 | U29: 18461 | V29: 11222.4924 | W29: 125944335.7 | X29: 113151 | Y29: 10714 | Z29: 6513.069909 | AA29: 42420079.64 | AB29: 220003273.4 | AC29: 14832.50732 | AD29: 24399.47454 | AE29: 399342.7161 | AF29: 448141.6652 | AG29: 0.7372944461 | AH29: 0.6570091325 | AI29: 0.6948403373
A30: Sacramento | B30: 312513 | C30: 325013.52 | D30: 9477 | E30: 26805.31542 | F30: 0.4133629877 | G30: 64922 | H30: 26836.35189 | I30: 7209 | J30: 264162.8527 | K30: 219942.75 | L30: 0.8326028726 | M30: 0.8104847567 | N30: 1-year | O30: Sacramento | P30: 107353 | Q30: 9069 | R30: 5513.069909 | S30: 30393939.82 | T30: 142620 | U30: 10694 | V30: 6500.911854 | W30: 42261854.93 | X30: 62540 | Y30: 7560 | Z30: 4595.744681 | AA30: 21120869.17 | AB30: 93776663.93 | AC30: 9683.835187 | AD30: 15929.90888 | AE30: 248232.9438 | AF30: 280092.7616 | AG30: 0.8860336852 | AH30: 0.785249675 | AI30: 0.8326028726
A31: San Bernardino | B31: 511787 | C31: 532258.48 | D31: 20850 | E31: 58973.391 | F31: 0.4182713982 | G31: 69764 | H31: 29180.28582 | I31: 11048 | J31: 433056.8032 | K31: 401294.3333 | L31: 0.9266551879 | M31: 0.9036027768 | N31: 1-year | O31: San Bernardino | P31: 181265 | Q31: 13891 | R31: 8444.3769 | S31: 71307501.22 | T31: 211244 | U31: 12501 | V31: 7599.392097 | W31: 57750760.25 | X31: 119278 | Y31: 11453 | Z31: 6962.31003 | AA31: 48473760.96 | AB31: 177532022.4 | AC31: 13324.11432 | AD31: 21918.16806 | AE31: 411138.6351 | AF31: 454974.9712 | AG31: 0.9760560041 | AH31: 0.8820140858 | AI31: 0.9266551879
A32: San Diego | B32: 581014 | C32: 604254.56 | D32: 15635 | E32: 44222.9721 | F32: 0.3788627375 | G32: 80779 | H32: 30604.15307 | I32: 21203 | J32: 508224.4348 | K32: 291172.5 | L32: 0.5729210956 | M32: 0.5499762212 | N32: 1-year | O32: San Diego | P32: 200816 | Q32: 14381 | R32: 8742.24924 | S32: 76426921.78 | T32: 243444 | U32: 15633 | V32: 9503.343465 | W32: 90313537.01 | X32: 136754 | Y32: 10775 | Z32: 6550.151976 | AA32: 42904490.9 | AB32: 209644949.7 | AC32: 14479.12116 | AD32: 23818.15432 | AE32: 484406.2805 | AF32: 532042.5891 | AG32: 0.6010915046 | AH32: 0.5472729175 | AI32: 0.5729210956
A33: San Francisco | B33: 133618 | C33: 138962.72 | D33: 4016 | E33: 11359.09536 | F33: 0.5298650709 | G33: 42533 | H33: 22536.75106 | I33: 2416 | J33: 102650.8736 | K33: 52042.25 | L33: 0.506983021 | M33: 0.495325008 | N33: 1-year | O33: San Francisco | P33: 49405 | Q33: 4578 | R33: 2782.978723 | S33: 7744970.575 | T33: 55801 | U33: 6605 | V33: 4015.197568 | W33: 16121811.51 | X33: 28412 | Y33: 4999 | Z33: 3038.905775 | AA33: 9234948.31 | AB33: 33101730.4 | AC33: 5753.410328 | AD33: 9464.359989 | AE33: 93186.51359 | AF33: 112115.2336 | AG33: 0.5584740537 | AH33: 0.4641853595 | AI33: 0.506983021
A34: San Joaquin | B34: 160339 | C34: 166752.56 | D34: 7141 | E34: 20198.03286 | F34: 0.4349051867 | G34: 28453 | H34: 12374.35728 | I34: 2945 | J34: 131235.1699 | K34: 121333.5833 | L34: 0.9245508156 | M34: 0.9042586804 | N34: 1-year | O34: San Joaquin | P34: 50158 | Q34: 5764 | R34: 3503.951368 | S34: 12277675.19 | T34: 73659 | U34: 9152 | V34: 5563.525836 | W34: 30952819.73 | X34: 36522 | Y34: 5295 | Z34: 3218.844985 | AA34: 10360963.04 | AB34: 53591457.95 | AC34: 7320.618686 | AD34: 12042.41774 | AE34: 119192.7521 | AF34: 143277.5876 | AG34: 1.017961085 | AH34: 0.8468427293 | AI34: 0.9245508156
A35: San Luis Obispo | B35: 49437 | C35: 51414.48 | D35: 1098 | E35: 3105.64908 | F35: 0.4419410745 | G35: 4628 | H35: 2045.303293 | I35: 762 | J35: 45501.52763 | K35: 18597.83333 | L35: 0.408729867 | M35: 0.4019977353 | N35: 1-year | O35: San Luis Obispo | P35: 20227 | Q35: 3021 | R35: 1836.474164 | S35: 3372637.356 | T35: 19514 | U35: 4462 | V35: 2712.462006 | W35: 7357450.134 | X35: 9696 | Y35: 2863 | Z35: 1740.425532 | AA35: 3029081.032 | AB35: 13759168.52 | AC35: 3709.335321 | AD35: 6101.856603 | AE35: 39399.67102 | AF35: 51603.38423 | AG35: 0.472030168 | AH35: 0.3603994895 | AI35: 0.408729867
A36: San Mateo | B36: 84345 | C36: 87718.8 | D36: 3206 | E36: 9068.04276 | F36: 0.3036064584 | G36: 11429 | H36: 3469.918213 | I36: 3317 | J36: 71863.83903 | K36: 31802.58333 | L36: 0.4425394435 | M36: 0.4230144774 | N36: 1-year | O36: San Mateo | P36: 30842 | Q36: 3661 | R36: 2225.531915 | S36: 4952992.304 | T36: 33408 | U36: 4821 | V36: 2930.699088 | W36: 8588997.145 | X36: 20095 | Y36: 4133 | Z36: 2512.462006 | AA36: 6312465.332 | AB36: 19854454.78 | AC36: 4455.833792 | AD36: 7329.846588 | AE36: 64533.99244 | AF36: 79193.68561 | AG36: 0.4928035928 | AH36: 0.4015797861 | AI36: 0.4425394435
A37: Santa Barbara | B37: 89878 | C37: 93473.12 | D37: 4409 | E37: 12470.68014 | F37: 0.3891446571 | G37: 8587 | H37: 3341.585171 | I37: 4144 | J37: 73516.85469 | K37: 37310.08333 | L37: 0.5075038029 | M37: 0.4804232902 | N37: 1-year | O37: Santa Barbara | P37: 29966 | Q37: 4572 | R37: 2779.331307 | S37: 7724682.514 | T37: 37119 | U37: 5238 | V37: 3184.194529 | W37: 10139094.8 | X37: 22793 | Y37: 4769 | Z37: 2899.088146 | AA37: 8404712.078 | AB37: 26268489.39 | AC37: 5125.279445 | AD37: 8431.084687 | AE37: 65085.77 | AF37: 81947.93938 | AG37: 0.5732448634 | AH37: 0.4552900734 | AI37: 0.5075038029
A38: Santa Clara | B38: 212059 | C38: 220541.36 | D38: 11104 | E38: 31407.21984 | F38: 0.408250011 | G38: 44789 | H38: 18285.10974 | I38: 9967 | J38: 160882.0304 | K38: 110775.1667 | L38: 0.6885490342 | M38: 0.6483804233 | N38: 1-year | O38: Santa Clara | P38: 75195 | Q38: 7641 | R38: 4644.984802 | S38: 21575883.81 | T38: 78890 | U38: 7505 | V38: 4562.31003 | W38: 20814672.81 | X38: 57974 | Y38: 8168 | Z38: 4965.349544 | AA38: 24654696.09 | AB38: 67045252.72 | AC38: 8188.116555 | AD38: 13469.45173 | AE38: 147412.5787 | AF38: 174351.4822 | AG38: 0.7514634616 | AH38: 0.635355463 | AI38: 0.6885490342
A39: Santa Cruz | B39: 55356 | C39: 57570.24 | D39: 2766 | E39: 7823.52036 | F39: 0.6232654266 | G39: 5648 | H39: 3520.20313 | I39: 1352 | J39: 44874.51651 | K39: 26006.41667 | L39: 0.5795364204 | M39: 0.5625865549 | N39: 1-year | O39: Santa Cruz | P39: 21319 | Q39: 3818 | R39: 2320.972644 | S39: 5386914.016 | T39: 21145 | U39: 4988 | V39: 3032.218845 | W39: 9194351.124 | X39: 12892 | Y39: 4417 | Z39: 2685.106383 | AA39: 7209796.288 | AB39: 21791061.43 | AC39: 4668.089698 | AD39: 7679.007553 | AE39: 37195.50896 | AF39: 52553.52406 | AG39: 0.6991816323 | AH39: 0.494855809 | AI39: 0.5795364204
A40: Shasta | B40: 41655 | C40: 43321.2 | D40: 639 | E40: 1807.38594 | F40: 0.5239313117 | G40: 9711 | H40: 5087.896967 | I40: 262 | J40: 36163.91709 | K40: 25061.83333 | L40: 0.6930066029 | M40: 0.6880220275 | N40: 1-year | O40: Shasta | P40: 15488 | Q40: 3513 | R40: 2135.56231 | S40: 4560626.38 | T40: 19236 | U40: 3595 | V40: 2185.410334 | W40: 4776018.329 | X40: 6931 | Y40: 1837 | Z40: 1116.717325 | AA40: 1247057.584 | AB40: 10583702.29 | AC40: 3253.260256 | AD40: 5351.613121 | AE40: 30812.30397 | AF40: 41515.53021 | AG40: 0.8133709624 | AH40: 0.6036736904 | AI40: 0.6930066029
A41: Solano | B41: 75208 | C41: 78216.32 | D41: 2409 | E41: 6813.76014 | F41: 0.3874687165 | G41: 12196 | H41: 4725.568466 | I41: 1572 | J41: 65104.99139 | K41: 43943.41667 | L41: 0.6749623297 | M41: 0.6590491825 | N41: 1-year | O41: Solano | P41: 19602 | Q41: 3531 | R41: 2146.504559 | S41: 4607481.823 | T41: 31774 | U41: 5090 | V41: 3094.224924 | W41: 9574227.88 | X41: 23832 | Y41: 5766 | Z41: 3505.167173 | AA41: 12286196.91 | AB41: 26467906.62 | AC41: 5144.696941 | AD41: 8463.026468 | AE41: 56641.96493 | AF41: 73568.01786 | AG41: 0.7758102447 | AH41: 0.5973168497 | AI41: 0.6749623297
A42: Sonoma | B42: 70708 | C42: 73536.32 | D42: 3267 | E42: 9240.57882 | F42: 0.4441144513 | G42: 9141 | H42: 4059.650199 | I42: 2226 | J42: 58010.09098 | K42: 35963.66667 | L42: 0.6199553571 | M42: 0.5970451615 | N42: 1-year | O42: Sonoma | P42: 23558 | Q42: 3991 | R42: 2426.139818 | S42: 5886154.415 | T42: 31170 | U42: 4504 | V42: 2737.993921 | W42: 7496610.711 | X42: 15980 | Y42: 3797 | Z42: 2308.206687 | AA42: 5327818.11 | AB42: 18710583.24 | AC42: 4325.573168 | AD42: 7115.567862 | AE42: 50894.52312 | AF42: 65125.65884 | AG42: 0.7066313714 | AH42: 0.5522196214 | AI42: 0.6199553571
A43: Stanislaus | B43: 129564 | C43: 134746.56 | D43: 5363 | E43: 15169.03098 | F43: 0.5167898627 | G43: 20958 | H43: 10830.88194 | I43: 3307 | J43: 105439.6471 | K43: 92177.91667 | L43: 0.8742244423 | M43: 0.8476391608 | N43: 1-year | O43: Stanislaus | P43: 40917 | Q43: 6572 | R43: 3995.136778 | S43: 15961117.88 | T43: 63884 | U43: 9173 | V43: 5576.291793 | W43: 31095030.16 | X43: 24763 | Y43: 3958 | Z43: 2406.079027 | AA43: 5789216.286 | AB43: 52845364.33 | AC43: 7269.48171 | AD43: 11958.29741 | AE43: 93481.34966 | AF43: 117397.9445 | AG43: 0.9860567589 | AH43: 0.7851748774 | AI43: 0.8742244423
A44: Sutter | B44: 25423 | C44: 26439.92 | D44: 703 | E44: 1988.40738 | F44: 0.4508590002 | G44: 3931 | H44: 1772.32673 | I44: 428 | J44: 22251.18589 | K44: 13172.41667 | L44: 0.5919871746 | M44: 0.5808152343 | N44: 1-year | O44: Sutter | P44: 6229 | Q44: 1924 | R44: 1169.604863 | S44: 1367975.536 | T44: 11523 | U44: 2730 | V44: 1659.574468 | W44: 2754187.415 | X44: 7671 | Y44: 3260 | Z44: 1981.762918 | AA44: 3927384.263 | AB44: 8049547.214 | AC44: 2837.172398 | AD44: 4667.148594 | AE44: 17584.0373 | AF44: 26918.33448 | AG44: 0.7491121888 | AH44: 0.4893473879 | AI44: 0.5919871746
A45: Tulare | B45: 164826 | C45: 171419.04 | D45: 7958 | E45: 22508.88468 | F45: 0.4544230769 | G45: 17916 | H45: 8141.443846 | I45: 4156 | J45: 136612.7115 | K45: 124775.9167 | L45: 0.9133550994 | M45: 0.8863895631 | N45: 1-year | O45: Tulare | P45: 41231 | Q45: 6653 | R45: 4044.3769 | S45: 16356984.51 | T45: 84497 | U45: 8749 | V45: 5318.541033 | W45: 28286878.72 | X45: 39098 | Y45: 6214 | Z45: 3777.507599 | AA45: 14269563.66 | AB45: 58913426.89 | AC45: 7675.50825 | AD45: 12626.21107 | AE45: 123986.5004 | AF45: 149238.9225 | AG45: 1.006366953 | AH45: 0.8360815968 | AI45: 0.9133550994
A46: Ventura | B46: 113734 | C46: 118283.36 | D46: 6719 | E46: 19004.42274 | F46: 0.2884660014 | G46: 15583 | H46: 4495.1657 | I46: 3635 | J46: 91148.77156 | K46: 75753.33333 | L46: 0.8310954941 | M46: 0.7992226104 | N46: 1-year | O46: Ventura | P46: 32724 | Q46: 4706 | R46: 2860.790274 | S46: 8184120.989 | T46: 48130 | U46: 6068 | V46: 3688.753799 | W46: 13606904.59 | X46: 32880 | Y46: 5293 | Z46: 3217.629179 | AA46: 10353137.54 | AB46: 32144163.12 | AC46: 5669.58227 | AD46: 9326.462834 | AE46: 81822.30873 | AF46: 100475.2344 | AG46: 0.9258273754 | AH46: 0.7539503022 | AI46: 0.8310954941
A47: Yolo | B47: 45173 | C47: 46979.92 | D47: 941 | E47: 2661.58086 | F47: 0.4763399865 | G47: 5442 | H47: 2592.242207 | I47: 858 | J47: 40868.09693 | K47: 20737.08333 | L47: 0.5074149493 | M47: 0.4969811427 | N47: 1-year | O47: Yolo | P47: 23859 | Q47: 3552 | R47: 2159.270517 | S47: 4662449.164 | T47: 13679 | U47: 2950 | V47: 1793.31307 | W47: 3215971.767 | X47: 7635 | Y47: 2315 | Z47: 1407.294833 | AA47: 1980478.747 | AB47: 9858899.678 | AC47: 3139.888482 | AD47: 5165.116552 | AE47: 35702.98038 | AF47: 46033.21349 | AG47: 0.5808221922 | AH47: 0.4504808977 | AI47: 0.5074149493
A48: Yuba | B48: 21456 | C48: 22314.24 | D48: 545 | E48: 1541.5107 | F48: 0.4508590002 | G48: 3886 | H48: 1752.038075 | I48: 260 | J48: 18760.69123 | K48: 13590.75 | L48: 0.7244269327 | M48: 0.7145245059 | N48: 1-year | O48: Yuba | P48: 5806 | Q48: 2077 | R48: 1262.613982 | S48: 1594194.067 | T48: 11176 | U48: 3556 | V48: 2161.702128 | W48: 4672956.089 | X48: 4474 | Y48: 2033 | Z48: 1235.866261 | AA48: 1527365.416 | AB48: 7794515.572 | AC48: 2791.865966 | AD48: 4592.619514 | AE48: 14168.07171 | AF48: 23353.31074 | AG48: 0.9592519206 | AH48: 0.5819624528 | AI48: 0.7244269327
A49: Alpine | B49: 260 | C49: =+B49*1.04 -> 270.4 | D49: 1 | E49: =+D49*0.94*1.77*1.7 -> 2.82846 | F49: 0.4391440643 | G49: 36 | H49: =+G49*F49 -> 15.80918632 | J49: =+C49-E49-H49-I49 -> 251.7623537 | K49: 167.6666667 | L49: =+K49/J49 -> 0.6659719542 | M49: =+K49/(C49-E49-H49) -> 0.6659719542 | N49: 5-year | O49: Alpine | P49: 128 | Q49: 64 | R49: 38.90577508 | S49: 1513.659334 | T49: 67 | U49: 32 | V49: 19.45288754 | W49: 378.4148336 | X49: 65 | Y49: 37 | Z49: 22.49240122 | AA49: 505.9081125 | AB49: 2397.98228 | AC49: 48.96919726 | AD49: 80.55432949 | AE49: 171.2080242 | AF49: 332.3166832 | AG49: 0.9793154699 | AH49: 0.5045388184 | AI49: 0.6659719542
A50: Amador | B50: 5003 | C50: =+B50*1.04 -> 5203.12 | D50: 73 | E50: =+D50*0.94*1.77*1.7 -> 206.47758 | F50: 0.4391440643 | G50: 716 | H50: =+G50*F50 -> 314.4271501 | I50: 41 | J50: =+C50-E50-H50-I50 -> 4641.21527 | K50: 3396.583333 | L50: =+K50/J50 -> 0.7318305952 | M50: =+K50/(C50-E50-H50) -> 0.7254222921 | N50: 5-year | O50: Amador | P50: 2194 | Q50: 546 | R50: 331.9148936 | S50: 110167.4966 | T50: 1997 | U50: 536 | V50: 325.8358663 | W50: 106169.0117 | X50: 812 | Y50: 276 | Z50: 167.781155 | AA50: 28150.51598 | AB50: 244487.0243 | AC50: 494.4562916 | AD50: 813.3805997 | AE50: 3827.83467 | AF50: 5454.59587 | AG50: 0.8873380451 | AH50: 0.622701189 | AI50: 0.7318305952
A51: Calaveras | B51: 7042 | C51: 7323.68 | D51: 103 | E51: 291.33138 | F51: 0.4391440643 | G51: 1086 | H51: 476.9104539 | I51: 42 | J51: 6513.438166 | K51: 5433 | L51: 0.8341216822 | M51: 0.8287775527 | N51: 5-year | O51: Calaveras | P51: 2459 | Q51: 536 | R51: 325.8358663 | S51: 106169.0117 | T51: 3131 | U51: 726 | V51: 441.337386 | W51: 194778.6883 | X51: 1452 | Y51: 447 | Z51: 271.7325228 | AA51: 73838.56395 | AB51: 374786.264 | AC51: 612.1978961 | AD51: 1007.065539 | AE51: 5506.372627 | AF51: 7520.503705 | AG51: 0.9866749615 | AH51: 0.7224250147 | AI51: 0.8341216822
A52: Colusa | B52: 4503 | C52: 4683.12 | D52: 124 | E52: 350.72904 | F52: 0.4246112238 | G52: 549 | H52: 233.1115619 | I52: 208 | J52: 3891.279398 | K52: 1548 | L52: 0.3978126065 | M52: 0.3776273461 | N52: 5-year | O52: Colusa | P52: 885 | Q52: 266 | R52: 161.7021277 | S52: 26147.57809 | T52: 2286 | U52: 541 | V52: 328.8753799 | W52: 108159.0155 | X52: 1332 | Y52: 405 | Z52: 246.2006079 | AA52: 60614.73933 | AB52: 194921.333 | AC52: 441.4989614 | AD52: 726.2657916 | AE52: =J52-AD52 -> 3165.013607 | AF52: =J52+AD52 -> 4617.54519 | AG52: =K52/AE52 -> 0.4890974234 | AH52: =K52/AF52 -> 0.3352430645 | AI52: =K52/J52 -> 0.3978126065
A53: Del Norte | B53: 6805 | C53: 7077.2 | D53: 161 | E53: 455.38206 | F53: 0.4532510679 | G53: 1908 | H53: 864.8030375 | I53: 33 | J53: 5724.014903 | K53: 5193.5 | L53: 0.9073176937 | M53: 0.9021168241 | N53: 5-year | O53: Del Norte | P53: 2460 | Q53: 476 | R53: 289.3617021 | S53: 83730.19466 | T53: 2747 | U53: 560 | V53: 340.4255319 | W53: 115889.5428 | X53: 1598 | Y53: 391 | Z53: 237.6899696 | AA53: 56496.52165 | AB53: 256116.2591 | AC53: 506.0793012 | AD53: 832.5004505 | AE53: 4891.514452 | AF53: 6556.515353 | AG53: 1.061736616 | AH53: 0.7921128405 | AI53: 0.9073176937
A54: Glenn | B54: 7437 | C54: 7734.48 | D54: 219 | E54: 619.43274 | F54: 0.4246112238 | G54: 1094 | H54: 464.5246788 | I54: 162 | J54: 6488.522581 | K54: 3606.833333 | L54: 0.555878983 | M54: 0.5423383335 | N54: 5-year | O54: Glenn | P54: 2180 | Q54: 559 | R54: 339.8176292 | S54: 115476.0211 | T54: 3541 | U54: 677 | V54: 411.550152 | W54: 169373.5276 | X54: 1716 | Y54: 389 | Z54: 236.4741641 | AA54: 55920.0303 | AB54: 340769.579 | AC54: 583.754725 | AD54: 960.2765227 | AE54: 5528.246058 | AF54: 7448.799104 | AG54: 0.6524371917 | AH54: 0.4842167554 | AI54: 0.555878983
A55: Inyo | B55: 2954 | C55: 3072.16 | D55: 87 | E55: 246.07602 | F55: 0.4391440643 | G55: 420 | H55: 184.440507 | I55: 50 | J55: 2591.643473 | K55: 2081.166667 | L55: 0.8030296946 | M55: 0.787830261 | N55: 5-year | O55: Inyo | P55: 745 | Q55: 149 | R55: 90.5775076 | S55: 8204.284883 | T55: 1274 | U55: 269 | V55: 163.5258359 | W55: 26740.699 | X55: 935 | Y55: 282 | Z55: 171.4285714 | AA55: 29387.7551 | AB55: 64332.73898 | AC55: 253.6389934 | AD55: 417.2361442 | AE55: 2174.407329 | AF55: 3008.879617 | AG55: 0.9571190453 | AH55: 0.6916749526 | AI55: 0.8030296946
A56: Lassen | B56: 4337 | C56: 4510.48 | D56: 112 | E56: 316.78752 | F56: 0.4532510679 | G56: 956 | H56: 433.3080209 | I56: 26 | J56: 3734.384459 | K56: 3188.916667 | L56: 0.8539336808 | M56: 0.8480294239 | N56: 5-year | O56: Lassen | P56: 1393 | Q56: 376 | R56: 228.5714286 | S56: 52244.89796 | T56: 2170 | U56: 497 | V56: 302.1276596 | W56: 91281.12268 | X56: 774 | Y56: 190 | Z56: 115.5015198 | AA56: 13340.60107 | AB56: 156866.6217 | AC56: 396.0639111 | AD56: 651.5251338 | AE56: 3082.859325 | AF56: 4385.909593 | AG56: 1.034402264 | AH56: 0.7270821705 | AI56: 0.8539336808
A57: Mariposa | B57: 3218 | C57: 3346.72 | D57: 30 | E57: 84.8538 | F57: 0.4391440643 | G57: 449 | H57: 197.1756849 | I57: 10 | J57: 3054.690515 | K57: 2104.5 | L57: 0.6889404965 | M57: 0.6866925028 | N57: 5-year | O57: Mariposa | P57: 1016 | Q57: 300 | R57: 182.3708207 | S57: 33259.11623 | T57: 1635 | U57: 449 | V57: 272.9483283 | W57: 74500.7899 | X57: 567 | Y57: 226 | Z57: 137.3860182 | AA57: 18874.91801 | AB57: 126634.8241 | AC57: 355.8578707 | AD57: 585.3861973 | AE57: 2469.304318 | AF57: 3640.076712 | AG57: 0.8522643341 | AH57: 0.5781471563 | AI57: 0.6889404965
A58: Modoc | B58: 2255 | C58: 2345.2 | D58: 38 | E58: 107.48148 | F58: 0.4532510679 | G58: 425 | H58: 192.6317038 | I58: 28 | J58: 2017.086816 | K58: 1000 | L58: 0.4957644817 | M58: 0.4889767965 | N58: 5-year | O58: Modoc | P58: 721 | Q58: 227 | R58: 137.993921 | S58: 19042.32223 | T58: 952 | U58: 301 | V58: 182.9787234 | W58: 33481.21322 | X58: 582 | Y58: 218 | Z58: 132.5227964 | AA58: 17562.29155 | AB58: 70085.827 | AC58: 264.7372792 | AD58: 435.4928243 | AE58: 1581.593992 | AF58: 2452.57964 | AG58: 0.6322735197 | AH58: 0.4077339563 | AI58: 0.4957644817
A59: Mono | B59: 1540 | C59: 1601.6 | D59: 67 | E59: 189.50682 | F59: 0.4391440643 | G59: 96 | H59: 42.15783018 | I59: 167 | J59: 1202.93535 | K59: 832 | L59: 0.6916414919 | M59: 0.6073279298 | N59: 5-year | O59: Mono | P59: 225 | Q59: 152 | R59: 92.40121581 | S59: 8537.984682 | T59: 459 | U59: 293 | V59: 178.1155015 | W59: 31725.13188 | X59: 856 | Y59: 426 | Z59: 258.9665653 | AA59: 67063.68197 | AB59: 107326.7985 | AC59: 327.60769 | AD59: 538.91465 | AE59: 664.0206998 | AF59: 1741.85 | AG59: 1.252972987 | AH59: 0.4776530701 | AI59: 0.6916414919
A60: Plumas | B60: 3896 | C60: 4051.84 | D60: 83 | E60: 234.76218 | F60: 0.4532510679 | G60: 663 | H60: 300.505458 | I60: 69 | J60: 3447.572362 | K60: 2050.25 | L60: 0.5946938265 | M60: 0.5830251134 | N60: 5-year | O60: Plumas | P60: 1484 | Q60: 358 | R60: 217.6291793 | S60: 47362.4597 | T60: 1203 | U60: 303 | V60: 184.1945289 | W60: 33927.62447 | X60: 1209 | Y60: 322 | Z60: 195.7446809 | AA60: 38315.98008 | AB60: 119606.0642 | AC60: 345.8410968 | AD60: 568.9086043 | AE60: 2878.663758 | AF60: 4016.480966 | AG60: 0.7122228133 | AH60: 0.5104592844 | AI60: 0.5946938265
A61: San Benito | B61: 9195 | C61: 9562.8 | D61: 406 | E61: 1148.35476 | F61: 0.3288283495 | G61: 910 | H61: 299.233798 | I61: 343 | J61: 7772.211442 | K61: 6089.333333 | L61: 0.7834749966 | M61: 0.7503604037 | N61: 5-year | O61: San Benito | P61: 2214 | Q61: 544 | R61: 330.6990881 | S61: 109361.8869 | T61: 3988 | U61: 809 | V61: 491.7933131 | W61: 241860.6628 | X61: 2993 | Y61: 998 | Z61: 606.6869301 | AA61: 368069.0311 | AB61: 719291.5808 | AC61: 848.1105947 | AD61: 1395.141928 | AE61: 6377.069514 | AF61: 9167.35337 | AG61: 0.9548795603 | AH61: 0.6642411487 | AI61: 0.7834749966
A62: Sierra | B62: 558 | C62: 580.32 | D62: 2 | E62: 5.65692 | F62: 0.6018086348 | G62: 85 | H62: 51.15373396 | I62: 6 | J62: 517.509346 | K62: 312.5 | L62: 0.6038538287 | M62: 0.5969329915 | N62: 5-year | O62: Sierra | P62: 168 | Q62: 106 | R62: 64.43768997 | S62: 4152.215889 | T62: 270 | U62: 140 | V62: 85.10638298 | W62: 7243.096424 | X62: 120 | Y62: 83 | Z62: 50.45592705 | AA62: 2545.800575 | AB62: 13941.11289 | AC62: 118.07249 | AD62: 194.229246 | AE62: 323.2801 | AF62: 711.738592 | AG62: 0.9666539943 | AH62: 0.4390656956 | AI62: 0.6038538287
A63: Siskiyou | B63: 12692 | C63: 13199.68 | D63: 162 | E63: 458.21052 | F63: 0.4532510679 | G63: 2556 | H63: 1158.509729 | I63: 156 | J63: 11426.95975 | K63: 7053.083333 | L63: 0.6172318348 | M63: 0.6089189193 | N63: 5-year | O63: Siskiyou | P63: 3774 | Q63: 523 | R63: 317.9331307 | S63: 101081.4756 | T63: 6252 | U63: 568 | V63: 345.2887538 | W63: 119224.3235 | X63: 2666 | Y63: 441 | Z63: 268.0851064 | AA63: 71869.62426 | AB63: 292175.4234 | AC63: 540.5325368 | AD63: 889.1760231 | AE63: 10537.78373 | AF63: 12316.13577 | AG63: 0.6693137301 | AH63: 0.572670151 | AI63: 0.6172318348
A64: Tehama | B64: 17109 | C64: 17793.36 | D64: 422 | E64: 1193.61012 | F64: 0.4246112238 | G64: 3151 | H64: 1337.949966 | I64: 280 | J64: 14981.79991 | K64: 10420.58333 | L64: 0.6955494929 | M64: 0.6827886221 | N64: 5-year | O64: Tehama | P64: 5474 | Q64: 935 | R64: 568.3890578 | S64: 323066.121 | T64: 6839 | U64: 1173 | V64: 713.0699088 | W64: 508468.6949 | X64: 4796 | Y64: 1004 | Z64: 610.3343465 | AA64: 372508.0145 | AB64: 1204042.83 | AC64: 1097.288855 | AD64: 1805.040166 | AE64: 13176.75975 | AF64: 16786.84008 | AG64: 0.7908304874 | AH64: 0.6207590758 | AI64: 0.6955494929
A65: Trinity | B65: 3482 | C65: 3621.28 | D65: 30 | E65: 84.8538 | F65: 0.4246112238 | G65: 640 | H65: 271.7511832 | I65: 20 | J65: 3244.675017 | K65: 1832.25 | L65: 0.564694458 | M65: 0.5612350358 | N65: 5-year | O65: Trinity | P65: 1138 | Q65: 327 | R65: 198.7841945 | S65: 39515.15599 | T65: 1424 | U65: 444 | V65: 269.9088146 | W65: 72850.76819 | X65: 920 | Y65: 312 | Z65: 189.6656535 | AA65: 35973.06012 | AB65: 148338.9843 | AC65: 385.1480031 | AD65: 633.5684651 | AE65: 2611.106552 | AF65: 3878.243482 | AG65: 0.7017139913 | AH65: 0.4724432616 | AI65: 0.564694458
A66: Tuolumne | B66: 9779 | C66: 10170.16 | D66: 125 | E66: 353.5575 | F66: 0.4391440643 | G66: 1697 | H66: 745.2274772 | I66: 45 | J66: 9026.375023 | K66: 5586.166667 | L66: 0.6188715462 | M66: 0.6158015353 | N66: 5-year | O66: Tuolumne | P66: 2686 | Q66: 565 | R66: 343.4650456 | S66: 117968.2375 | T66: 4324 | U66: 701 | V66: 426.1398176 | W66: 181595.1442 | X66: 2769 | Y66: 977 | Z66: 593.9209726 | AA66: 352742.1217 | AB66: 652305.5035 | AC66: 807.6543218 | AD66: 1328.591359 | AE66: 7697.783664 | AF66: 10354.96638 | AG66: 0.7256850687 | AH66: 0.539467388 | AI66: 0.6188715462

Sheet Unemp (hidden)
A3: Sum of ann_unempl_pct_2yr_prior | B3: Column Labels | H3: Sum of ann_unempl_pct_yr_of_report | I3: Column Labels
B4: 2012 | C4: 2013 | I4: 2012 | J4: 2013 | N4: 2014 | R4: 2015 | V4: 2016
A5: Row Labels | B5: 4 | C5: 1 | D5: 2 | E5: 3 | F5: 4 | H5: Row Labels | I5: 4 | J5: 1 | K5: 2 | L5: 3 | M5: 4 | N5: 1 | O5: 2 | P5: 3 | Q5: 4 | R5: 1 | S5: 2 | T5: 3 | U5: 4 | V5: 1 | W5: 2
A6: California | B6: 0.124 | C6: 0.118 | D6: 0.118 | E6: 0.118 | F6: 0.118 | H6: California | I6: 0.105 | J6: 0.089 | K6: 0.089 | L6: 0.089 | M6: 0.089 | N6: 0.075 | O6: 0.075 | P6: 0.075 | Q6: 0.075 | R6: 0.062 | S6: 0.062 | T6: 0.062 | U6: 0.062 | V6: 0 | W6: 0
A7: Alameda | B7: 0.113 | C7: 0.104 | D7: 0.104 | E7: 0.104 | F7: 0.104 | H7: Alameda | I7: 0.09 | J7: 0.073 | K7: 0.073 | L7: 0.073 | M7: 0.073 | N7: 0.059 | O7: 0.059 | P7: 0.059 | Q7: 0.059 | R7: 0.047 | S7: 0.047 | T7: 0.047 | U7: 0.047 | V7: 0 | W7: 0
A8: Alpine | B8: 0.154 | C8: 0.148 | D8: 0.148 | E8: 0.148 | F8: 0.148 | H8: Alpine | I8: 0.133 | J8: 0.098 | K8: 0.098 | L8: 0.098 | M8: 0.098 | N8: 0.088 | O8: 0.088 | P8: 0.088 | Q8: 0.088 | R8: 0.079 | S8: 0.079 | T8: 0.079 | U8: 0.079 | V8: 0 | W8: 0
A9: Amador | B9: 0.133 | C9: 0.128 | D9: 0.128 | E9: 0.128 | F9: 0.128 | H9: Amador | I9: 0.118 | J9: 0.103 | K9: 0.103 | L9: 0.103 | M9: 0.103 | N9: 0.083 | O9: 0.083 | P9: 0.083 | Q9: 0.083 | R9: 0.066 | S9: 0.066 | T9: 0.066 | U9: 0.066 | V9: 0 | W9: 0
A10: Butte | B10: 0.139 | C10: 0.136 | D10: 0.136 | E10: 0.136 | F10: 0.136 | H10: Butte | I10: 0.122 | J10: 0.103 | K10: 0.103 | L10: 0.103 | M10: 0.103 | N10: 0.087 | O10: 0.087 | P10: 0.087 | Q10: 0.087 | R10: 0.072 | S10: 0.072 | T10: 0.072 | U10: 0.072 | V10: 0 | W10: 0
A11: Calaveras | B11: 0.153 | C11: 0.146 | D11: 0.146 | E11: 0.146 | F11: 0.146 | H11: Calaveras | I11: 0.13 | J11: 0.1 | K11: 0.1 | L11: 0.1 | M11: 0.1 | N11: 0.081 | O11: 0.081 | P11: 0.081 | Q11: 0.081 | R11: 0.065 | S11: 0.065 | T11: 0.065 | U11: 0.065 | V11: 0 | W11: 0
A12: Colusa | B12: 0.202 | C12: 0.205 | D12: 0.205 | E12: 0.205 | F12: 0.205 | H12: Colusa | I12: 0.2 | J12: 0.19 | K12: 0.19 | L12: 0.19 | M12: 0.19 | N12: 0.175 | O12: 0.175 | P12: 0.175 | Q12: 0.175 | R12: 0.153 | S12: 0.153 | T12: 0.153 | U12: 0.153 | V12: 0 | W12: 0
A13: Contra Costa | B13: 0.111 | C13: 0.104 | D13: 0.104 | E13: 0.104 | F13: 0.104 | H13: Contra Costa | I13: 0.09 | J13: 0.075 | K13: 0.075 | L13: 0.075 | M13: 0.075 | N13: 0.062 | O13: 0.062 | P13: 0.062 | Q13: 0.062 | R13: 0.05 | S13: 0.05 | T13: 0.05 | U13: 0.05 | V13: 0 | W13: 0
A14: Del Norte | B14: 0.131 | C14: 0.131 | D14: 0.131 | E14: 0.131 | F14: 0.131 | H14: Del Norte | I14: 0.134 | J14: 0.118 | K14: 0.118 | L14: 0.118 | M14: 0.118 | N14: 0.102 | O14: 0.102 | P14: 0.102 | Q14: 0.102 | R14: 0.086 | S14: 0.086 | T14: 0.086 | U14: 0.086 | V14: 0 | W14: 0
A15: El Dorado | B15: 0.125 | C15: 0.119 | D15: 0.119 | E15: 0.119 | F15: 0.119 | H15: El Dorado | I15: 0.104 | J15: 0.085 | K15: 0.085 | L15: 0.085 | M15: 0.085 | N15: 0.07 | O15: 0.07 | P15: 0.07 | Q15: 0.07 | R15: 0.057 | S15: 0.057 | T15: 0.057 | U15: 0.057 | V15: 0 | W15: 0
A16: Fresno | B16: 0.169 | C16: 0.165 | D16: 0.165 | E16: 0.165 | F16: 0.165 | H16: Fresno | I16: 0.152 | J16: 0.132 | K16: 0.132 | L16: 0.132 | M16: 0.132 | N16: 0.116 | O16: 0.116 | P16: 0.116 | Q16: 0.116 | R16: 0.102 | S16: 0.102 | T16: 0.102 | U16: 0.102 | V16: 0 | W16: 0
A17: Glenn | B17: 0.159 | C17: 0.158 | D17: 0.158 | E17: 0.158 | F17: 0.158 | H17: Glenn | I17: 0.147 | J17: 0.121 | K17: 0.121 | L17: 0.121 | M17: 0.121 | N17: 0.107 | O17: 0.107 | P17: 0.107 | Q17: 0.107 | R17: 0.087 | S17: 0.087 | T17: 0.087 | U17: 0.087 | V17: 0 | W17: 0
A18: Humboldt | B18: 0.114 | C18: 0.114 | D18: 0.114 | E18: 0.114 | F18: 0.114 | H18: Humboldt | I18: 0.105 | J18: 0.082 | K18: 0.082 | L18: 0.082 | M18: 0.082 | N18: 0.068 | O18: 0.068 | P18: 0.068 | Q18: 0.068 | R18: 0.056 | S18: 0.056 | T18: 0.056 | U18: 0.056 | V18: 0 | W18: 0
A19: Imperial | B19: 0.299 | C19: 0.297 | D19: 0.297 | E19: 0.297 | F19: 0.297 | H19: Imperial | I19: 0.283 | J19: 0.249 | K19: 0.249 | L19: 0.249 | M19: 0.249 | N19: 0.236 | O19: 0.236 | P19: 0.236 | Q19: 0.236 | R19: 0.24 | S19: 0.24 | T19: 0.24 | U19: 0.24 | V19: 0 | W19: 0
A20: Inyo | B20: 0.1 | C20: 0.099 | D20: 0.099 | E20: 0.099 | F20: 0.099 | H20: Inyo | I20: 0.094 | J20: 0.079 | K20: 0.079 | L20: 0.079 | M20: 0.079 | N20: 0.07 | O20: 0.07 | P20: 0.07 | Q20: 0.07 | R20: 0.058 | S20: 0.058 | T20: 0.058 | U20: 0.058 | V20: 0 | W20: 0
A21: Kern | B21: 0.159 | C21: 0.149 | D21: 0.149 | E21: 0.149 | F21: 0.149 | H21: Kern | I21: 0.133 | J21: 0.117 | K21: 0.117 | L21: 0.117 | M21: 0.117 | N21: 0.104 | O21: 0.104 | P21: 0.104 | Q21: 0.104 | R21: 0.102 | S21: 0.102 | T21: 0.102 | U21: 0.102 | V21: 0 | W21: 0
A22: Kings | B22: 0.165 | C22: 0.162 | D22: 0.162 | E22: 0.162 | F22: 0.162 | H22: Kings | I22: 0.153 | J22: 0.135 | K22: 0.135 | L22: 0.135 | M22: 0.135 | N22: 0.121 | O22: 0.121 | P22: 0.121 | Q22: 0.121 | R22: 0.105 | S22: 0.105 | T22: 0.105 | U22: 0.105 | V22: 0 | W22: 0
A23: Lake | B23: 0.177 | C23: 0.168 | D23: 0.168 | E23: 0.168 | F23: 0.168 | H23: Lake | I23: 0.15 | J23: 0.108 | K23: 0.108 | L23: 0.108 | M23: 0.108 | N23: 0.089 | O23: 0.089 | P23: 0.089 | Q23: 0.089 | R23: 0.077 | S23: 0.077 | T23: 0.077 | U23: 0.077 | V23: 0 | W23: 0
A24: Lassen | B24: 0.14 | C24: 0.134 | D24: 0.134 | E24: 0.134 | F24: 0.134 | H24: Lassen | I24: 0.126 | J24: 0.106 | K24: 0.106 | L24: 0.106 | M24: 0.106 | N24: 0.093 | O24: 0.093 | P24: 0.093 | Q24: 0.093 | R24: 0.073 | S24: 0.073 | T24: 0.073 | U24: 0.073 | V24: 0 | W24: 0
A25: Los Angeles | B25: 0.126 | C25: 0.123 | D25: 0.123 | E25: 0.123 | F25: 0.123 | H25: Los Angeles | I25: 0.109 | J25: 0.098 | K25: 0.098 | L25: 0.098 | M25: 0.098 | N25: 0.083 | O25: 0.083 | P25: 0.083 | Q25: 0.083 | R25: 0.067 | S25: 0.067 | T25: 0.067 | U25: 0.067 | V25: 0 | W25: 0
A26: Madera | B26: 0.156 | C26: 0.151 | D26: 0.151 | E26: 0.151 | F26: 0.151 | H26: Madera | I26: 0.136 | J26: 0.125 | K26: 0.125 | L26: 0.125 | M26: 0.125 | N26: 0.11 | O26: 0.11 | P26: 0.11 | Q26: 0.11 | R26: 0.105 | S26: 0.105 | T26: 0.105 | U26: 0.105 | V26: 0 | W26: 0
A27: Marin | B27: 0.08 | C27: 0.074 | D27: 0.074 | E27: 0.074 | F27: 0.074 | H27: Marin | I27: 0.063 | J27: 0.052 | K27: 0.052 | L27: 0.052 | M27: 0.052 | N27: 0.043 | O27: 0.043 | P27: 0.043 | Q27: 0.043 | R27: 0.035 | S27: 0.035 | T27: 0.035 | U27: 0.035 | V27: 0 | W27: 0
A28: Mariposa | B28: 0.119 | C28: 0.119 | D28: 0.119 | E28: 0.119 | F28: 0.119 | H28: Mariposa | I28: 0.11 | J28: 0.105 | K28: 0.105 | L28: 0.105 | M28: 0.105 | N28: 0.088 | O28: 0.088 | P28: 0.088 | Q28: 0.088 | R28: 0.072 | S28: 0.072 | T28: 0.072 | U28: 0.072 | V28: 0 | W28: 0
A29: Mendocino | B29: 0.113 | C29: 0.109 | D29: 0.109 | E29: 0.109 | F29: 0.109 | H29: Mendocino | I29: 0.097 | J29: 0.082 | K29: 0.082 | L29: 0.082 | M29: 0.082 | N29: 0.069 | O29: 0.069 | P29: 0.069 | Q29: 0.069 | R29: 0.059 | S29: 0.059 | T29: 0.059 | U29: 0.059 | V29: 0 | W29: 0
A30: Merced | B30: 0.188 | C30: 0.183 | D30: 0.183 | E30: 0.183 | F30: 0.183 | H30: Merced | I30: 0.17 | J30: 0.145 | K30: 0.145 | L30: 0.145 | M30: 0.145 | N30: 0.128 | O30: 0.128 | P30: 0.128 | Q30: 0.128 | R30: 0.114 | S30: 0.114 | T30: 0.114 | U30: 0.114 | V30: 0 | W30: 0
A31: Modoc | B31: 0.144 | C31: 0.15 | D31: 0.15 | E31: 0.15 | F31: 0.15 | H31: Modoc | I31: 0.135 | J31: 0.124 | K31: 0.124 | L31: 0.124 | M31: 0.124 | N31: 0.105 | O31: 0.105 | P31: 0.105 | Q31: 0.105 | R31: 0.088 | S31: 0.088 | T31: 0.088 | U31: 0.088 | V31: 0 | W31: 0
A32: Mono | B32: 0.103 | C32: 0.101 | D32: 0.101 | E32: 0.101 | F32: 0.101 | H32: Mono | I32: 0.105 | J32: 0.085 | K32: 0.085 | L32: 0.085 | M32: 0.085 | N32: 0.072 | O32: 0.072 | P32: 0.072 | Q32: 0.072 | R32: 0.061 | S32: 0.061 | T32: 0.061 | U32: 0.061 | V32: 0 | W32: 0
A33: Monterey | B33: 0.127 | C33: 0.125 | D33: 0.125 | E33: 0.125 | F33: 0.125 | H33: Monterey | I33: 0.114 | J33: 0.103 | K33: 0.103 | L33: 0.103 | M33: 0.103 | N33: 0.091 | O33: 0.091 | P33: 0.091 | Q33: 0.091 | R33: 0.081 | S33: 0.081 | T33: 0.081 | U33: 0.081 | V33: 0 | W33: 0
A34: Napa | B34: 0.097 | C34: 0.091 | D34: 0.091 | E34: 0.091 | F34: 0.091 | H34: Napa | I34: 0.078 | J34: 0.068 | K34: 0.068 | L34: 0.068 | M34: 0.068 | N34: 0.056 | O34: 0.056 | P34: 0.056 | Q34: 0.056 | R34: 0.046 | S34: 0.046 | T34: 0.046 | U34: 0.046 | V34: 0 | W34: 0
A35: Nevada | B35: 0.114 | C35: 0.106 | D35: 0.106 | E35: 0.106 | F35: 0.106 | H35: Nevada | I35: 0.094 | J35: 0.081 | K35: 0.081 | L35: 0.081 | M35: 0.081 | N35: 0.066 | O35: 0.066 | P35: 0.066 | Q35: 0.066 | R35: 0.055 | S35: 0.055 | T35: 0.055 | U35: 0.055 | V35: 0 | W35: 0
A36: Orange | B36: 0.095 | C36: 0.088 | D36: 0.088 | E36: 0.088 | F36: 0.088 | H36: Orange | I36: 0.076 | J36: 0.065 | K36: 0.065 | L36: 0.065 | M36: 0.065 | N36: 0.055 | O36: 0.055 | P36: 0.055 | Q36: 0.055 | R36: 0.045 | S36: 0.045 | T36: 0.045 | U36: 0.045 | V36: 0 | W36: 0
A37: Placer | B37: 0.115 | C37: 0.108 | D37: 0.108 | E37: 0.108 | F37: 0.108 | H37: Placer | I37: 0.094 | J37: 0.077 | K37: 0.077 | L37: 0.077 | M37: 0.077 | N37: 0.063 | O37: 0.063 | P37: 0.063 | Q37: 0.063 | R37: 0.05 | S37: 0.05 | T37: 0.05 | U37: 0.05 | V37: 0 | W37: 0
A38: Plumas | B38: 0.167 | C38: 0.16 | D38: 0.16 | E38: 0.16 | F38: 0.16 | H38: Plumas | I38: 0.147 | J38: 0.139 | K38: 0.139 | L38: 0.139 | M38: 0.139 | N38: 0.117 | O38: 0.117 | P38: 0.117 | Q38: 0.117 | R38: 0.104 | S38: 0.104 | T38: 0.104 | U38: 0.104 | V38: 0 | W38: 0
A39: Riverside | B39: 0.145 | C39: 0.137 | D39: 0.137 | E39: 0.137 | F39: 0.137 | H39: Riverside | I39: 0.122 | J39: 0.099 | K39: 0.099 | L39: 0.099 | M39: 0.099 | N39: 0.082 | O39: 0.082 | P39: 0.082 | Q39: 0.082 | R39: 0.067 | S39: 0.067 | T39: 0.067 | U39: 0.067 | V39: 0 | W39: 0
A40: Sacramento | B40: 0.127 | C40: 0.121 | D40: 0.121 | E40: 0.121 | F40: 0.121 | H40: Sacramento | I40: 0.106 | J40: 0.089 | K40: 0.089 | L40: 0.089 | M40: 0.089 | N40: 0.073 | O40: 0.073 | P40: 0.073 | Q40: 0.073 | R40: 0.06 | S40: 0.06 | T40: 0.06 | U40: 0.06 | V40: 0 | W40: 0
A41: San Benito | B41: 0.172 | C41: 0.159 | D41: 0.159 | E41: 0.159 | F41: 0.159 | H41: San Benito | I41: 0.139 | J41: 0.111 | K41: 0.111 | L41: 0.111 | M41: 0.111 | N41: 0.093 | O41: 0.093 | P41: 0.093 | Q41: 0.093 | R41: 0.076 | S41: 0.076 | T41: 0.076 | U41: 0.076 | V41: 0 | W41: 0
A42: San Bernardino | B42: 0.142 | C42: 0.134 | D42: 0.134 | E42: 0.134 | F42: 0.134 | H42: San Bernardino | I42: 0.12 | J42: 0.098 | K42: 0.098 | L42: 0.098 | M42: 0.098 | N42: 0.081 | O42: 0.081 | P42: 0.081 | Q42: 0.081 | R42: 0.065 | S42: 0.065 | T42: 0.065 | U42: 0.065 | V42: 0 | W42: 0
A43: San Diego | B43: 0.105 | C43: 0.1 | D43: 0.1 | E43: 0.1 | F43: 0.1 | H43: San Diego | I43: 0.089 | J43: 0.078 | K43: 0.078 | L43: 0.078 | M43: 0.078 | N43: 0.064 | O43: 0.064 | P43: 0.064 | Q43: 0.064 | R43: 0.052 | S43: 0.052 | T43: 0.052 | U43: 0.052 | V43: 0 | W43: 0
A44: San Francisco | B44: 0.096 | C44: 0.086 | D44: 0.086 | E44: 0.086 | F44: 0.086 | H44: San Francisco | I44: 0.073 | J44: 0.055 | K44: 0.055 | L44: 0.055 | M44: 0.055 | N44: 0.044 | O44: 0.044 | P44: 0.044 | Q44: 0.044 | R44: 0.036 | S44: 0.036 | T44: 0.036 | U44: 0.036 | V44: 0 | W44: 0
A45: San Joaquin | B45: 0.173 | C45: 0.168 | D45: 0.168 | E45: 0.168 | F45: 0.168 | H45: San Joaquin | I45: 0.152 | J45: 0.124 | K45: 0.124 | L45: 0.124 | M45: 0.124 | N45: 0.106 | O45: 0.106 | P45: 0.106 | Q45: 0.106 | R45: 0.089 | S45: 0.089 | T45: 0.089 | U45: 0.089 | V45: 0 | W45: 0
A46: San Luis Obispo | B46: 0.099 | C46: 0.094 | D46: 0.094 | E46: 0.094 | F46: 0.094 | H46: San Luis Obispo | I46: 0.081 | J46: 0.068 | K46: 0.068 | L46: 0.068 | M46: 0.068 | N46: 0.056 | O46: 0.056 | P46: 0.056 | Q46: 0.056 | R46: 0.046 | S46: 0.046 | T46: 0.046 | U46: 0.046 | V46: 0 | W46: 0
A47: San Mateo | B47: 0.088 | C47: 0.079 | D47: 0.079 | E47: 0.079 | F47: 0.079 | H47: San Mateo | I47: 0.067 | J47: 0.052 | K47: 0.052 | L47: 0.052 | M47: 0.052 | N47: 0.042 | O47: 0.042 | P47: 0.042 | Q47: 0.042 | R47: 0.034 | S47: 0.034 | T47: 0.034 | U47: 0.034 | V47: 0 | W47: 0
A48: Santa Barbara | B48: 0.094 | C48: 0.089 | D48: 0.089 | E48: 0.089 | F48: 0.089 | H48: Santa Barbara | I48: 0.08 | J48: 0.071 | K48: 0.071 | L48: 0.071 | M48: 0.071 | N48: 0.061 | O48: 0.061 | P48: 0.061 | Q48: 0.061 | R48: 0.053 | S48: 0.053 | T48: 0.053 | U48: 0.053 | V48: 0 | W48: 0
A49: Santa Clara | B49: 0.11 | C49: 0.098 | D49: 0.098 | E49: 0.098 | F49: 0.098 | H49: Santa Clara | I49: 0.084 | J49: 0.065 | K49: 0.065 | L49: 0.065 | M49: 0.065 | N49: 0.052 | O49: 0.052 | P49: 0.052 | Q49: 0.052 | R49: 0.042 | S49: 0.042 | T49: 0.042 | U49: 0.042 | V49: 0 | W49: 0
A50: Santa Cruz | B50: 0.126 | C50: 0.123 | D50: 0.123 | E50: 0.123 | F50: 0.123 | H50: Santa Cruz | I50: 0.111 | J50: 0.103 | K50: 0.103 | L50: 0.103 | M50: 0.103 | N50: 0.087 | O50: 0.087 | P50: 0.087 | Q50: 0.087 | R50: 0.075 | S50: 0.075 | T50: 0.075 | U50: 0.075 | V50: 0 | W50: 0
A51: Shasta | B51: 0.158 | C51: 0.149 | D51: 0.149 | E51: 0.149 | F51: 0.149 | H51: Shasta | I51: 0.134 | J51: 0.118 | K51: 0.118 | L51: 0.118 | M51: 0.118 | N51: 0.097 | O51: 0.097 | P51: 0.097 | Q51: 0.097 | R51: 0.078 | S51: 0.078 | T51: 0.078 | U51: 0.078 | V51: 0 | W51: 0
A52: Sierra | B52: 0.154 | C52: 0.148 | D52: 0.148 | E52: 0.148 | F52: 0.148 | H52: Sierra | I52: 0.143 | J52: 0.129 | K52: 0.129 | L52: 0.129 | M52: 0.129 | N52: 0.1 | O52: 0.1 | P52: 0.1 | Q52: 0.1 | R52: 0.09 | S52: 0.09 | T52: 0.09 | U52: 0.09 | V52: 0 | W52: 0
A53: Siskiyou | B53: 0.166 | C53: 0.165 | D53: 0.165 | E53: 0.165 | F53: 0.165 | H53: Siskiyou | I53: 0.153 | J53: 0.132 | K53: 0.132 | L53: 0.132 | M53: 0.132 | N53: 0.113 | O53: 0.113 | P53: 0.113 | Q53: 0.113 | R53: 0.094 | S53: 0.094 | T53: 0.094 | U53: 0.094 | V53: 0 | W53: 0
A54: Solano | B54: 0.12 | C54: 0.115 | D54: 0.115 | E54: 0.115 | F54: 0.115 | H54: Solano | I54: 0.101 | J54: 0.09 | K54: 0.09 | L54: 0.09 | M54: 0.09 | N54: 0.075 | O54: 0.075 | P54: 0.075 | Q54: 0.075 | R54: 0.061 | S54: 0.061 | T54: 0.061 | U54: 0.061 | V54: 0 | W54: 0
A55: Sonoma | B55: 0.105 | C55: 0.098 | D55: 0.098 | E55: 0.098 | F55: 0.098 | H55: Sonoma | I55: 0.086 | J55: 0.07 | K55: 0.07 | L55: 0.07 | M55: 0.07 | N55: 0.056 | O55: 0.056 | P55: 0.056 | Q55: 0.056 | R55: 0.045 | S55: 0.045 | T55: 0.045 | U55: 0.045 | V55: 0 | W55: 0
A56: Stanislaus | B56: 0.173 | C56: 0.167 | D56: 0.167 | E56: 0.167 | F56: 0.167 | H56: Stanislaus | I56: 0.152 | J56: 0.129 | K56: 0.129 | L56: 0.129 | M56: 0.129 | N56: 0.112 | O56: 0.112 | P56: 0.112 | Q56: 0.112 | R56: 0.095 | S56: 0.095 | T56: 0.095 | U56: 0.095 | V56: 0 | W56: 0
A57: Sutter | B57: 0.195 | C57: 0.19 | D57: 0.19 | E57: 0.19 | F57: 0.19 | H57: Sutter | I57: 0.176 | J57: 0.146 | K57: 0.146 | L57: 0.146 | M57: 0.146 | N57: 0.127 | O57: 0.127 | P57: 0.127 | Q57: 0.127 | R57: 0.108 | S57: 0.108 | T57: 0.108 | U57: 0.108 | V57: 0 | W57: 0
A58: Tehama | B58: 0.156 | C58: 0.15 | D58: 0.15 | E58: 0.15 | F58: 0.15 | H58: Tehama | I58: 0.139 | J58: 0.117 | K58: 0.117 | L58: 0.117 | M58: 0.117 | N58: 0.097 | O58: 0.097 | P58: 0.097 | Q58: 0.097 | R58: 0.08 | S58: 0.08 | T58: 0.08 | U58: 0.08 | V58: 0 | W58: 0
A59: Trinity | B59: 0.184 | C59: 0.178 | D59: 0.178 | E59: 0.178 | F59: 0.178 | H59: Trinity | I59: 0.158 | J59: 0.121 | K59: 0.121 | L59: 0.121 | M59: 0.121 | N59: 0.099 | O59: 0.099 | P59: 0.099 | Q59: 0.099 | R59: 0.078 | S59: 0.078 | T59: 0.078 | U59: 0.078 | V59: 0 | W59: 0
A60: Tulare | B60: 0.169 | C60: 0.167 | D60: 0.167 | E60: 0.167 | F60: 0.167 | H60: Tulare | I60: 0.158 | J60: 0.144 | K60: 0.144 | L60: 0.144 | M60: 0.144 | N60: 0.132 | O60: 0.132 | P60: 0.132 | Q60: 0.132 | R60: 0.117 | S60: 0.117 | T60: 0.117 | U60: 0.117 | V60: 0 | W60: 0
A61: Tuolumne | B61: 0.138 | C61: 0.13 | D61: 0.13 | E61: 0.13 | F61: 0.13 | H61: Tuolumne | I61: 0.116 | J61: 0.108 | K61: 0.108 | L61: 0.108 | M61: 0.108 | N61: 0.087 | O61: 0.087 | P61: 0.087 | Q61: 0.087 | R61: 0.071 | S61: 0.071 | T61: 0.071 | U61: 0.071 | V61: 0 | W61: 0
A62: Ventura | B62: 0.108 | C62: 0.101 | D62: 0.101 | E62: 0.101 | F62: 0.101 | H62: Ventura | I62: 0.09 | J62: 0.079 | K62: 0.079 | L62: 0.079 | M62: 0.079 | N62: 0.067 | O62: 0.067 | P62: 0.067 | Q62: 0.067 | R62: 0.057 | S62: 0.057 | T62: 0.057 | U62: 0.057 | V62: 0 | W62: 0
A63: Yolo | B63: 0.127 | C63: 0.125 | D63: 0.125 | E63: 0.125 | F63: 0.125 | H63: Yolo | I63: 0.115 | J63: 0.091 | K63: 0.091 | L63: 0.091 | M63: 0.091 | N63: 0.077 | O63: 0.077 | P63: 0.077 | Q63: 0.077 | R63: 0.064 | S63: 0.064 | T63: 0.064 | U63: 0.064 | V63: 0 | W63: 0
A64: Yuba | B64: 0.192 | C64: 0.184 | D64: 0.184 | E64: 0.184 | F64: 0.184 | H64: Yuba | I64: 0.169 | J64: 0.131 | K64: 0.131 | L64: 0.131 | M64: 0.131 | N64: 0.112 | O64: 0.112 | P64: 0.112 | Q64: 0.112 | R64: 0.092 | S64: 0.092 | T64: 0.092 | U64: 0.092 | V64: 0 | W64: 0

Sheet Timely (hidden)
B2: 30 DAY 2011 - 2012 | I2: 30 DAY 2013 to current
B3: Sum of qtr_timeliness_30d_ly | C3: Column Labels | I3: Sum of qtr_timeliness_30d_curr_qtr | J3: Column Labels
C4: 2012 | D4: 2013 | J4: 2013 | N4: 2014 | R4: 2015 | V4: 2016
B5: Row Labels | C5: 4 | D5: 1 | E5: 2 | F5: 3 | G5: 4 | I5: Row Labels | J5: 1 | K5: 2 | L5: 3 | M5: 4 | N5: 1 | O5: 2 | P5: 3 | Q5: 4 | R5: 1 | S5: 2 | T5: 3 | U5: 4 | V5: 1 | W5: 2
B6: California | C6: 0.958 | D6: 0.961 | E6: 0.975 | F6: 0.977 | G6: 0.977 | I6: California | J6: 0.966 | K6: 0.971 | L6: 0.973 | M6: 0.965 | N6: 0.96 | O6: 0.959 | P6: 0.97 | Q6: 0.967 | R6: 0.968 | S6: 0.972 | T6: 0.971 | U6: 0.972 | V6: 0.976 | W6: 0.977
B7: Alameda | C7: 0.844 | D7: 0.909 | E7: 0.915 | F7: 0.911 | G7: 0.927 | I7: Alameda | J7: 0.9 | K7: 0.914 | L7: 0.887 | M7: 0.906 | N7: 0.845 | O7: 0.858 | P7: 0.884 | Q7: 0.864 | R7: 0.852 | S7: 0.835 | T7: 0.785 | U7: 0.856 | V7: 0.921 | W7: 0.96
B8: Alpine | C8: 1 | D8: 1 | E8: 1 | F8: 1 | G8: 1 | I8: Alpine | J8: 1 | K8: 1 | L8: 1 | M8: 1 | N8: 1 | O8: 1 | P8: 1 | Q8: 1 | R8: 1 | S8: 1 | T8: 1 | U8: 1 | V8: 1 | W8: 1
B9: Amador | C9: 0.774 | D9: 0.871 | E9: 0.896 | F9: 0.956 | G9: 0.973 | I9: Amador | J9: 0.914 | K9: 0.973 | L9: 0.972 | M9: 0.931 | N9: 0.937 | O9: 0.966 | P9: 1 | Q9: 0.957 | R9: 0.963 | S9: 1 | T9: 1 | U9: 0.976 | V9: 0.958 | W9: 0.989
B10: Butte | C10: 0.827 | D10: 0.886 | E10: 0.87 | F10: 0.895 | G10: 0.916 | I10: Butte | J10: 0.939 | K10: 0.942 | L10: 0.96 | M10: 0.906 | N10: 0.932 | O10: 0.886 | P10: 0.937 | Q10: 0.942 | R10: 0.913 | S10: 0.946 | T10: 0.92 | U10: 0.82 | V10: 0.913 | W10: 0.912
B11: Calaveras | C11: 0.992 | D11: 0.959 | E11: 0.965 | F11: 1 | G11: 0.987 | I11: Calaveras | J11: 0.97 | K11: 0.982 | L11: 0.98 | M11: 1 | N11: 0.993 | O11: 0.958 | P11: 1 | Q11: 1 | R11: 0.993 | S11: 1 | T11: 1 | U11: 1 | V11: 0.991 | W11: 0.991
B12: Colusa | C12: 1 | D12: 1 | E12: 0.981 | F12: 0.938 | G12: 1 | I12: Colusa | J12: 0.934 | K12: 0.98 | L12: 1 | M12: 0.917 | N12: 0.957 | O12: 0.676 | P12: 0.818 | Q12: 0.609 | R12: 0.887 | S12: 0.875 | T12: 1 | U12: 1 | V12: 0.914 | W12: 0.833
B13: Contra Costa | C13: 0.865 | D13: 0.964 | E13: 0.96 | F13: 0.965 | G13: 0.941 | I13: Contra Costa | J13: 0.946 | K13: 0.95 | L13: 0.95 | M13: 0.922 | N13: 0.91 | O13: 0.952 | P13: 0.935 | Q13: 0.925 | R13: 0.934 | S13: 0.968 | T13: 0.966 | U13: 0.954 | V13: 0.958 | W13: 0.965
B14: Del Norte | C14: 1 | D14: 1 | E14: 1 | F14: 1 | G14: 1 | I14: Del Norte | J14: 1 | K14: 1 | L14: 1 | M14: 1 | N14: 1 | O14: 1 | P14: 0.991 | Q14: 1 | R14: 0.989 | S14: 1 | T14: 1 | U14: 1 | V14: 0.991 | W14: 0.989
B15: El Dorado | C15: 1 | D15: 0.998 | E15: 1 | F15: 1 | G15: 1 | I15: El Dorado | J15: 0.979 | K15: 0.992 | L15: 0.995 | M15: 0.988 | N15: 0.988 | O15: 0.988 | P15: 0.995 | Q15: 1 | R15: 1 | S15: 0.995 | T15: 1 | U15: 0.997 | V15: 1 | W15: 0.985
B16: Fresno | C16: 1 | D16: 1 | E16: 1 | F16: 0.968 | G16: 0.984 | I16: Fresno | J16: 0.969 | K16: 0.96 | L16: 0.919 | M16: 0.925 | N16: 0.905 | O16: 0.913 | P16: 0.948 | Q16: 0.957 | R16: 0.958 | S16: 0.941 | T16: 0.944 | U16: 0.935 | V16: 0.959 | W16: 0.949
B17: Glenn | C17: 1 | D17: 0 | E17: 1 | F17: 1 | G17: 1 | I17: Glenn | J17: 1 | K17: 1 | L17: 1 | M17: 1 | N17: 1 | O17: 0.988 | P17: 1 | Q17: 1 | R17: 1 | S17: 1 | T17: 1 | U17: 1 | V17: 0.989 | W17: 1
B18: Humboldt | C18: 0.939 | D18: 0.955 | E18: 0.991 | F18: 0.979 | G18: 0.988 | I18: Humboldt | J18: 0.965 | K18: 0.989 | L18: 0.951 | M18: 0.904 | N18: 0.957 | O18: 0.986 | P18: 0.993 | Q18: 0.994 | R18: 0.997 | S18: 0.998 | T18: 1 | U18: 0.999 | V18: 0.996 | W18: 0.988
B19: Imperial | C19: 1 | D19: 1 | E19: 1 | F19: 1 | G19: 0.998 | I19: Imperial | J19: 1 | K19: 1 | L19: 0.931 | M19: 0.882 | N19: 0.953 | O19: 0.945 | P19: 0.915 | Q19: 0.915 | R19: 0.94 | S19: 0.949 | T19: 0.976 | U19: 0.976 | V19: 0.979 | W19: 0.97
B20: Inyo | C20: 0.986 | D20: 1 | E20: 0.986 | F20: 1 | G20: 0.983 | I20: Inyo | J20: 0.988 | K20: 1 | L20: 1 | M20: 1 | N20: 0.991 | O20: 1 | P20: 0.984 | Q20: 1 | R20: 0.986 | S20: 1 | T20: 1 | U20: 1 | V20: 1 | W20: 0.981
B21: Kern | C21: 0.987 | D21: 0.988 | E21: 0.987 | F21: 0.989 | G21: 0.986 | I21: Kern | J21: 0.975 | K21: 0.991 | L21: 0.992 | M21: 0.984 | N21: 0.977 | O21: 0.984 | P21: 0.994 | Q21: 0.995 | R21: 0.993 | S21: 0.994 | T21: 0.992 | U21: 0.996 | V21: 0.995 | W21: 0.986
B22: Kings | C22: 1 | D22: 1 | E22: 1 | F22: 0.996 | G22: 0.993 | I22: Kings | J22: 0.988 | K22: 0.984 | L22: 0.996 | M22: 0.983 | N22: 0.969 | O22: 0.991 | P22: 0.994 | Q22: 0.998 | R22: 0.997 | S22: 0.998 | T22: 0.998 | U22: 1 | V22: 0.997 | W22: 0.989
B23: Lake | C23: 0.97 | D23: 0.947 | E23: 0.979 | F23: 0.955 | G23: 0.983 | I23: Lake | J23: 0.941 | K23: 0.961 | L23: 0.947 | M23: 0.765 | N23: 0.865 | O23: 0.873 | P23: 0.883 | Q23: 0.951 | R23: 0.975 | S23: 0.98 | T23: 0.99 | U23: 0.989 | V23: 0.971 | W23: 0.953
B24: Lassen | C24: 0.949 | D24: 0.943 | E24: 0.992 | F24: 0.957 | G24: 0.978 | I24: Lassen | J24: 0.971 | K24: 0.989 | L24: 0.979 | M24: 0.957 | N24: 0.902 | O24: 0.962 | P24: 0.938 | Q24: 0.832 | R24: 0.867 | S24: 0.944 | T24: 0.885 | U24: 0.77 | V24: 0.831 | W24: 0.938
B25: Los Angeles | C25: 0.968 | D25: 0.962 | E25: 0.975 | F25: 0.977 | G25: 0.972 | I25: Los Angeles | J25: 0.957 | K25: 0.967 | L25: 0.975 | M25: 0.964 | N25: 0.969 | O25: 0.963 | P25: 0.972 | Q25: 0.965 | R25: 0.967 | S25: 0.971 | T25: 0.96 | U25: 0.965 | V25: 0.968 | W25: 0.964
B26: Madera | C26: 0.964 | D26: 0.976 | E26: 0.984 | F26: 0.991 | G26: 0.985 | I26: Madera | J26: 0.961 | K26: 0.978 | L26: 0.975 | M26: 0.983 | N26: 0.971 | O26: 0.979 | P26: 0.996 | Q26: 0.998 | R26: 0.987 | S26: 1 | T26: 0.988 | U26: 1 | V26: 0.998 | W26: 0.986
B27: Marin | C27: 0.997 | D27: 0.975 | E27: 0.968 | F27: 0.994 | G27: 0.971 | I27: Marin | J27: 0.945 | K27: 0.951 | L27: 0.976 | M27: 0.938 | N27: 0.947 | O27: 0.96 | P27: 0.978 | Q27: 0.969 | R27: 0.982 | S27: 0.969 | T27: 0.994 | U27: 1 | V27: 0.993 | W27: 0.986
B28: Mariposa | C28: 0.83 | D28: 0.94 | E28: 0.906 | F28: 1 | G28: 0.873 | I28: Mariposa | J28: 0.897 | K28: 0.911 | L28: 0.936 | M28: 0.926 | N28: 0.912 | O28: 0.872 | P28: 0.865 | Q28: 0.804 | R28: 0.848 | S28: 1 | T28: 1 | U28: 0.976 | V28: 0.979 | W28: 0.975
B29: Mendocino | C29: 0.998 | D29: 0.992 | E29: 0.994 | F29: 0.991 | G29: 0.994 | I29: Mendocino | J29: 0.994 | K29: 1 | L29: 0.996 | M29: 0.991 | N29: 0.994 | O29: 0.997 | P29: 0.995 | Q29: 0.981 | R29: 0.987 | S29: 1 | T29: 0.995 | U29: 0.991 | V29: 0.997 | W29: 0.93
B30: Merced | C30: 0.993 | D30: 0.974 | E30: 0.994 | F30: 0.997 | G30: 0.996 | I30: Merced | J30: 0.986 | K30: 0.998 | L30: 0.997 | M30: 0.984 | N30: 0.961 | O30: 0.972 | P30: 0.983 | Q30: 0.989 | R30: 0.977 | S30: 0.997 | T30: 0.998 | U30: 0.996 | V30: 0.995 | W30: 0.986
B31: Modoc | C31: 1 | D31: 0.978 | E31: 1 | F31: 0.955 | G31: 1 | I31: Modoc | J31: 1 | K31: 1 | L31: 1 | M31: 1 | N31: 0.967 | O31: 1 | P31: 1 | Q31: 1 | R31: 1 | S31: 0.895 | T31: 1 | U31: 0.923 | V31: 0.946 | W31: 1
B32: Mono | C32: 0.958 | D32: 0.978 | E32: 0.935 | F32: 0.909 | G32: 0.967 | I32: Mono | J32: 0.912 | K32: 1 | L32: 0.971 | M32: 0.921 | N32: 0.934 | O32: 1 | P32: 0.906 | Q32: 1 | R32: 0.939 | S32: 0.963 | T32: 0.962 | U32: 1 | V32: 1 | W32: 0.967
B33: Monterey | C33: 1 | D33: 0.999 | E33: 1 | F33: 1 | G33: 1 | I33: Monterey | J33: 0.998 | K33: 1 | L33: 1 | M33: 1 | N33: 1 | O33: 1 | P33: 1 | Q33: 1 | R33: 1 | S33: 1 | T33: 1 | U33: 1 | V33: 0.998 | W33: 0.998
B34: Napa | C34: 0.966 | D34: 1 | E34: 0.991 | F34: 0.995 | G34: 0.93 | I34: Napa | J34: 0.733 | K34: 0.634 | L34: 0.75 | M34: 0.767 | N34: 0.72 | O34: 0.972 | P34: 0.983 | Q34: 0.882 | R34: 0.942 | S34: 0.988 | T34: 0.97 | U34: 0.972 | V34: 0.97 | W34: 0.987
B35: Nevada | C35: 0.98 | D35: 0.975 | E35: 0.993 | F35: 1 | G35: 1 | I35: Nevada | J35: 0.993 | K35: 1 | L35: 0.996 | M35: 0.996 | N35: 0.996 | O35: 0.976 | P35: 0.99 | Q35: 1 | R35: 0.965 | S35: 0.989 | T35: 1 | U35: 1 | V35: 1 | W35: 0.938
B36: Orange | C36: 0.997 | D36: 0.996 | E36: 0.999 | F36: 0.998 | G36: 0.996 | I36: Orange | J36: 0.998 | K36: 0.998 | L36: 0.998 | M36: 0.995 | N36: 0.984 | O36: 0.977 | P36: 0.982 | Q36: 0.985 | R36: 0.986 | S36: 0.988 | T36: 0.987 | U36: 0.987 | V36: 0.979 | W36: 0.987
B37: Placer | C37: 0.915 | D37: 0.954 | E37: 0.979 | F37: 0.966 | G37: 0.981 | I37: Placer | J37: 0.989 | K37: 0.995 | L37: 0.997 | M37: 0.977 | N37: 0.997 | O37: 0.988 | P37: 0.981 | Q37: 0.993 | R37: 0.982 | S37: 0.982 | T37: 0.947 | U37: 0.967 | V37: 0.981 | W37: 0.976
B38: Plumas | C38: 0.957 | D38: 0.774 | E38: 0.979 | F38: 0.947 | G38: 0.859 | I38: Plumas | J38: 0.919 | K38: 1 | L38: 1 | M38: 0.963 | N38: 0.987 | O38: 1 | P38: 1 | Q38: 0.964 | R38: 1 | S38: 1 | T38: 1 | U38: 0.977 | V38: 1 | W38: 1
B39: Riverside | C39: 0.999 | D39: 0.999 | E39: 1 | F39: 1 | G39: 0.999 | I39: Riverside | J39: 0.997 | K39: 0.999 | L39: 0.996 | M39: 0.997 | N39: 0.997 | O39: 0.996 | P39: 0.997 | Q39: 0.994 | R39: 0.995 | S39: 0.997 | T39: 0.999 | U39: 0.995 | V39: 0.997 | W39: 0.994
B40: Sacramento | C40: 0.965 | D40: 0.91 | E40: 0.991 | F40: 0.97 | G40: 0.987 | I40: Sacramento | J40: 0.99 | K40: 0.989 | L40: 0.988 | M40: 0.979 | N40: 0.976 | O40: 0.975 | P40: 0.989 | Q40: 0.986 | R40: 0.989 | S40: 0.992 | T40: 0.989 | U40: 0.982 | V40: 0.992 | W40: 0.993
B41: San Benito | C41: 0.973 | D41: 0.99 | E41: 0.978 | F41: 0.987 | G41: 1 | I41: San Benito | J41: 0.984 | K41: 0.944 | L41: 1 | M41: 0.994 | N41: 1 | O41: 1 | P41: 1 | Q41: 0.9 | R41: 0.981 | S41: 0.992 | T41: 0.991 | U41: 1 | V41: 1 | W41: 0.967
B42: San Bernardino | C42: 1 | D42: 0.999 | E42: 0.999 | F42: 0.999 | G42: 0.999 | I42: San Bernardino | J42: 0.999 | K42: 1 | L42: 0.997 | M42: 0.998 | N42: 0.997 | O42: 0.999 | P42: 1 | Q42: 1 | R42: 1 | S42: 1 | T42: 1 | U42: 0.999 | V42: 0.999 | W42: 0.995
B43: San Diego | C43: 0.952 | D43: 0.977 | E43: 0.983 | F43: 0.972 | G43: 0.979 | I43: San Diego | J43: 0.969 | K43: 0.965 | L43: 0.963 | M43: 0.979 | N43: 0.974 | O43: 0.902 | P43: 0.935 | Q43: 0.934 | R43: 0.936 | S43: 0.938 | T43: 0.987 | U43: 0.988 | V43: 0.983 | W43: 0.991
B44: San Francisco | C44: 0.974 | D44: 0.988 | E44: 0.989 | F44: 0.976 | G44: 0.982 | I44: San Francisco | J44: 0.976 | K44: 0.977 | L44: 0.975 | M44: 0.97 | N44: 0.966 | O44: 0.971 | P44: 0.977 | Q44: 0.973 | R44: 0.973 | S44: 0.97 | T44: 0.967 | U44: 0.954 | V44: 0.973 | W44: 0.982
B45: San Joaquin | C45: 0.991 | D45: 0.985 | E45: 0.98 | F45: 0.981 | G45: 0.986 | I45: San Joaquin | J45: 0.987 | K45: 0.983 | L45: 0.978 | M45: 0.982 | N45: 0.991 | O45: 0.983 | P45: 0.98 | Q45: 0.978 | R45: 0.987 | S45: 0.994 | T45: 0.992 | U45: 0.994 | V45: 0.997 | W45: 0.984
B46: San Luis Obispo | C46: 0.957 | D46: 0.955 | E46: 0.97 | F46: 0.974 | G46: 0.946 | I46: San Luis Obispo | J46: 0.983 | K46: 0.964 | L46: 0.962 | M46: 0.935 | N46: 0.934 | O46: 0.972 | P46: 0.974 | Q46: 0.985 | R46: 0.953 | S46: 0.98 | T46: 0.965 | U46: 0.957 | V46: 0.955 | W46: 0.975
B47: San Mateo | C47: 0.889 | D47: 0.947 | E47: 0.938 | F47: 0.952 | G47: 0.941 | I47: San Mateo | J47: 0.622 | K47: 0.777 | L47: 0.831 | M47: 0.968 | N47: 0.984 | O47: 0.977 | P47: 0.973 | Q47: 0.97 | R47: 0.975 | S47: 0.973 | T47: 0.988 | U47: 0.965 | V47: 0.971 | W47: 0.981
B48: Santa Barbara | C48: 0.74 | D48: 0.633 | E48: 0.882 | F48: 0.96 | G48: 0.951 | I48: Santa Barbara | J48: 0.954 | K48: 0.93 | L48: 0.944 | M48: 0.924 | N48: 0.626 | O48: 0.796 | P48: 0.875 | Q48: 0.889 | R48: 0.855 | S48: 0.953 | T48: 0.965 | U48: 0.958 | V48: 0.895 | W48: 0.988
B49: Santa Clara | C49: 0.667 | D49: 0.749 | E49: 0.794 | F49: 0.809 | G49: 0.875 | I49: Santa Clara | J49: 0.878 | K49: 0.977 | L49: 0.96 | M49: 0.886 | N49: 0.945 | O49: 0.968 | P49: 0.972 | Q49: 0.972 | R49: 0.96 | S49: 0.967 | T49: 0.98 | U49: 0.982 | V49: 0.983 | W49: 0.986
B50: Santa Cruz | C50: 0.839 | D50: 0.625 | E50: 0.94 | F50: 0.963 | G50: 0.954 | I50: Santa Cruz | J50: 0.815 | K50: 0.956 | L50: 0.933 | M50: 0.929 | N50: 0.721 | O50: 0.807 | P50: 0.872 | Q50: 0.831 | R50: 0.927 | S50: 0.97 | T50: 0.973 | U50: 0.959 | V50: 0.962 | W50: 0.957
B51: Shasta | C51: 0.978 | D51: 0.988 | E51: 0.971 | F51: 0.979 | G51: 0.976 | I51: Shasta | J51: 0.934 | K51: 0.952 | L51: 0.94 | M51: 0.82 | N51: 0.964 | O51: 0.955 | P51: 0.972 | Q51: 0.938 | R51: 0.966 | S51: 0.967 | T51: 0.967 | U51: 0.98 | V51: 0.981 | W51: 0.97
B52: Sierra | C52: 1 | D52: 1 | E52: 1 | F52: 1 | G52: 1 | I52: Sierra | J52: 0.917 | K52: 1 | L52: 1 | M52: 1 | N52: 1 | O52: 0.9 | P52: 1 | Q52: 1 | R52: 1 | S52: 1 | T52: 1 | U52: 1 | V52: 1 | W52: 1
B53: Siskiyou | C53: 0.994 | D53: 1 | E53: 1 | F53: 1 | G53: 1 | I53: Siskiyou | J53: 1 | K53: 0.992 | L53: 1 | M53: 0.994 | N53: 1 | O53: 1 | P53: 1 | Q53: 1 | R53: 1 | S53: 0.985 | T53: 0.985 | U53: 1 | V53: 0.992 | W53: 0.927
B54: Solano | C54: 0.851 | D54: 0.923 | E54: 0.929 | F54: 0.935 | G54: 0.949 | I54: Solano | J54: 0.926 | K54: 0.936 | L54: 0.942 | M54: 0.91 | N54: 0.94 | O54: 0.945 | P54: 0.94 | Q54: 0.932 | R54: 0.931 | S54: 0.945 | T54: 0.975 | U54: 0.957 | V54: 0.949 | W54: 0.988
B55: Sonoma | C55: 0.775 | D55: 0.862 | E55: 0.877 | F55: 0.899 | G55: 0.95 | I55: Sonoma | J55: 0.941 | K55: 0.923 | L55: 0.867 | M55: 0.861 | N55: 0.841 | O55: 0.838 | P55: 0.897 | Q55: 0.959 | R55: 0.958 | S55: 0.918 | T55: 0.925 | U55: 0.89 | V55: 0.893 | W55: 0.862
B56: Stanislaus | C56: 1 | D56: 1 | E56: 1 | F56: 1 | G56: 1 | I56: Stanislaus | J56: 0.986 | K56: 0.994 | L56: 0.984 | M56: 0.962 | N56: 0.953 | O56: 0.915 | P56: 0.965 | Q56: 0.985 | R56: 0.963 | S56: 0.986 | T56: 0.992 | U56: 0.991 | V56: 0.998 | W56: 0.99
B57: Sutter | C57: 0.916 | D57: 0.926 | E57: 0.95 | F57: 0.951 | G57: 0.952 | I57: Sutter | J57: 0.964 | K57: 0.957 | L57: 0.981 | M57: 0.989 | N57: 0.944 | O57: 0.972 | P57: 0.989 | Q57: 0.988 | R57: 1 | S57: 0.968 | T57: 0.979 | U57: 0.991 | V57: 0.976 | W57: 0.958
B58: Tehama | C58: 0.862 | D58: 0.894 | E58: 0.897 | F58: 0.913 | G58: 0.934 | I58: Tehama | J58: 0.961 | K58: 0.953 | L58: 0.943 | M58: 0.917 | N58: 0.967 | O58: 0.944 | P58: 0.936 | Q58: 0.97 | R58: 0.979 | S58: 0.965 | T58: 0.955 | U58: 0.975 | V58: 0.952 | W58: 0.977
B59: Trinity | C59: 0.974 | D59: 0.964 | E59: 1 | F59: 0.979 | G59: 0.915 | I59: Trinity | J59: 0.942 | K59: 0.976 | L59: 1 | M59: 1 | N59: 0.958 | O59: 1 | P59: 1 | Q59: 0.968 | R59: 0.925 | S59: 0.939 | T59: 0.984 | U59: 0.925 | V59: 0.936 | W59: 0.983
B60: Tulare | C60: 1 | D60: 1 | E60: 1 | F60: 1 | G60: 1 | I60: Tulare | J60: 1 | K60: 1 | L60: 1 | M60: 1 | N60: 1 | O60: 1 | P60: 0.991 | Q60: 0.983 | R60: 0.977 | S60: 0.985 | T60: 0.991 | U60: 0.982 | V60: 0.966 | W60: 0.991
B61: Tuolumne | C61: 0.988 | D61: 0.99 | E61: 0.966 | F61: 0.978 | G61: 0.97 | I61: Tuolumne | J61: 0.954 | K61: 0.951 | L61: 0.923 | M61: 0.886 | N61: 0.934 | O61: 0.939 | P61: 0.954 | Q61: 0.965 | R61: 0.893 | S61: 0.951 | T61: 0.877 | U61: 0.971 | V61: 0.993 | W61: 0.984
B62: Ventura | C62: 0.986 | D62: 0.98 | E62: 0.99 | F62: 0.987 | G62: 0.987 | I62: Ventura | J62: 0.981 | K62: 0.993 | L62: 0.984 | M62: 0.945 | N62: 0.925 | O62: 0.965 | P62: 0.977 | Q62: 0.977 | R62: 0.944 | S62: 0.984 | T62: 0.978 | U62: 0.986 | V62: 0.976 | W62: 0.987
B63: Yolo | C63: 0.821 | D63: 0.888 | E63: 0.933 | F63: 0.873 | G63: 0.906 | I63: Yolo | J63: 0.767 | K63: 0.173 | L63: 0.843 | M63: 0.88 | N63: 0.853 | O63: 0.842 | P63: 0.816 | Q63: 0.899 | R63: 0.912 | S63: 0.954 | T63: 0.948 | U63: 0.949 | V63: 0.937 | W63: 0.97
B64: Yuba | C64: 0.996 | D64: 0.986 | E64: 1 | F64: 1 | G64: 1 | I64: Yuba | J64: 0.97 | K64: 1 | L64: 0.986 | M64: 0.969 | N64: 0.994 | O64: 1 | P64: 1 | Q64: 1 | R64: 1 | S64: 1 | T64: 1 | U64: 1 | V64: 1 | W64: 0.996
B66: 30-DAY NON-COMPLIANCE
B67: =B3 -> Sum of qtr_timeliness_30d_ly | C67: PRIOR YEAR FROM: | J67: CURRENT YEAR
B68: =B4 -> 0 | C68: 2012 | D68: 2013 | E68: 0 | F68: 0 | G68: 0 | I68: =I4 -> 0 | J68: 2013 | K68: 0 | L68: 0 | M68: 0 | N68: 2014 | O68: 0 | P68: 0 | Q68: 0 | R68: 2015 | S68: 0 | T68: 0 | U68: 0 | V68: 2016 | W68: 0
B69: Row Labels | C69: 4 | D69: 1 | E69: 2 | F69: 3 | G69: 4 | I69: =I5 -> Row Labels | J69: 1 | K69: 2 | L69: 3 | M69: 4 | N69: 1 | O69: 2 | P69: 3 | Q69: 4 | R69: 1 | S69: 2 | T69: 3 | U69: 4 | V69: 1 | W69: 2
B70: California | C70: =1-C6 -> 0.042 | D70: =1-D6 -> 0.039 | E70: 0.025 | F70: 0.023 | G70: 0.023 | I70: =I6 -> California | J70: =1-J6 -> 0.034 | K70: 0.029 | L70: 0.027 | M70: 0.035 | N70: 0.04 | O70: 0.041 | P70: 0.03 | Q70: 0.033 | R70: 0.032 | S70: 0.028 | T70: 0.029 | U70: 0.028 | V70: 0.024 | W70: 0.023
B71: Alameda | C71: =1-C7 -> 0.156 | D71: 0.091 | E71: 0.085 | F71: 0.089 | G71: 0.073 | I71: =I7 -> Alameda | J71: =1-J7 -> 0.1 | K71: 0.086 | L71: 0.113 | M71: 0.094 | N71: 0.155 | O71: 0.142 | P71: 0.116 | Q71: 0.136 | R71: 0.148 | S71: 0.165 | T71: 0.215 | U71: 0.144 | V71: 0.079 | W71: 0.04
B72: Alpine | C72: =1-C8 -> 0 | D72: 0 | E72: 0 | F72: 0 | G72: 0 | I72: =I8 -> Alpine | J72: =1-J8 -> 0 | K72: 0 | L72: 0 | M72: 0 | N72: 0 | O72: 0 | P72: 0 | Q72: 0 | R72: 0 | S72: 0 | T72: 0 | U72: 0 | V72: 0 | W72: 0
B73: Amador | C73: =1-C9 -> 0.226 | D73: 0.129 | E73: 0.104 | F73: 0.044 | G73: 0.027 | I73: =I9 -> Amador | J73: =1-J9 -> 0.086 | K73: 0.027 | L73: 0.028 | M73: 0.069 | N73: 0.063 | O73: 0.034 | P73: 0 | Q73: 0.043 | R73: 0.037 | S73: 0 | T73: 0 | U73: 0.024 | V73: 0.042 | W73: 0.011
B74: Butte | C74: =1-C10 -> 0.173 | D74: 0.114 | E74: 0.13 | F74: 0.105 | G74: 0.084 | I74: =I10 -> Butte | J74: =1-J10 -> 0.061 | K74: 0.058 | L74: 0.04 | M74: 0.094 | N74: 0.068 | O74: 0.114 | P74: 0.063 | Q74: 0.058 | R74: 0.087 | S74: 0.054 | T74: 0.08 | U74: 0.18 | V74: 0.087 | W74: 0.088
B75: Calaveras | C75: =1-C11 -> 0.008 | D75: 0.041 | E75: 0.035 | F75: 0 | G75: 0.013 | I75: =I11 -> Calaveras | J75: =1-J11 -> 0.03 | K75: 0.018 | L75: 0.02 | M75: 0 | N75: 0.007 | O75: 0.042 | P75: 0 | Q75: 0 | R75: 0.007 | S75: 0 | T75: 0 | U75: 0 | V75: 0.009 | W75: 0.009
B76: Colusa | C76: =1-C12 -> 0 | D76: 0 | E76: 0.019 | F76: 0.062 | G76: 0 | I76: =I12 -> Colusa | J76: =1-J12 -> 0.066 | K76: 0.02 | L76: 0 | M76: 0.083 | N76: 0.043 | O76: 0.324 | P76: 0.182 | Q76: 0.391 | R76: 0.113 | S76: 0.125 | T76: 0 | U76: 0 | V76: 0.086 | W76: 0.167
B77: Contra Costa | C77: =1-C13 -> 0.135 | D77: 0.036 | E77: 0.04 | F77: 0.035 | G77: 0.059 | I77: =I13 -> Contra Costa | J77: =1-J13 -> 0.054 | K77: 0.05 | L77: 0.05 | M77: 0.078 | N77: 0.09 | O77: 0.048 | P77: 0.065 | Q77: 0.075 | R77: 0.066 | S77: 0.032 | T77: 0.034 | U77: 0.046 | V77: 0.042 | W77: 0.035
B78: Del Norte | C78: =1-C14 -> 0 | D78: 0 | E78: 0 | F78: 0 | G78: 0 | I78: =I14 -> Del Norte | J78: =1-J14 -> 0 | K78: 0 | L78: 0 | M78: 0 | N78: 0 | O78: 0 | P78: 0.009 | Q78: 0 | R78: 0.011 | S78: 0 | T78: 0 | U78: 0 | V78: 0.009 | W78: 0.011
B79: El Dorado | C79: =1-C15 -> 0 | D79: 0.002 | E79: 0 | F79: 0 | G79: 0 | I79: =I15 -> El Dorado | J79: =1-J15 -> 0.021 | K79: 0.008 | L79: 0.005 | M79: 0.012 | N79: 0.012 | O79: 0.012 | P79: 0.005 | Q79: 0 | R79: 0 | S79: 0.005 | T79: 0 | U79: 0.003 | V79: 0 | W79: 0.015
B80: Fresno | C80: =1-C16 -> 0 | D80: 0 | E80: 0 | F80: 0.032 | G80: 0.016 | I80: =I16 -> Fresno | J80: =1-J16 -> 0.031 | K80: 0.04 | L80: 0.081 | M80: 0.075 | N80: 0.095 | O80: 0.087 | P80: 0.052 | Q80: 0.043 | R80: 0.042 | S80: 0.059 | T80: 0.056 | U80: 0.065 | V80: 0.041 | W80: 0.051
B81: Glenn | C81: =1-C17 -> 0 | D81: 1 | E81: 0 | F81: 0 | G81: 0 | I81: =I17 -> Glenn | J81: =1-J17 -> 0 | K81: 0 | L81: 0 | M81: 0 | N81: 0 | O81: 0.012 | P81: 0 | Q81: 0 | R81: 0 | S81: 0 | T81: 0 | U81: 0 | V81: 0.011 | W81: 0
B82: Humboldt | C82: =1-C18 -> 0.061 | D82: 0.045 | E82: 0.009 | F82: 0.021 | G82: 0.012 | I82: =I18 -> Humboldt | J82: =1-J18 -> 0.035 | K82: 0.011 | L82: 0.049 | M82: 0.096 | N82: 0.043 | O82: 0.014 | P82: 0.007 | Q82: 0.006 | R82: 0.003 | S82: 0.002 | T82: 0 | U82: 0.001 | V82: 0.004 | W82: 0.012
B83: Imperial | C83: =1-C19 -> 0 | D83: 0 | E83: 0 | F83: 0 | G83: 0.002 | I83: =I19 -> Imperial | J83: =1-J19 -> 0 | K83: 0 | L83: 0.069 | M83: 0.118 | N83: 0.047 | O83: 0.055 | P83: 0.085 | Q83: 0.085 | R83: 0.06 | S83: 0.051 | T83: 0.024 | U83: 0.024 | V83: 0.021 | W83: 0.03
B84: Inyo | C84: =1-C20 -> 0.014 | D84: 0 | E84: 0.014 | F84: 0 | G84: 0.017 | I84: =I20 -> Inyo | J84: =1-J20 -> 0.012 | K84: 0 | L84: 0 | M84: 0 | N84: 0.009 | O84: 0 | P84: 0.016 | Q84: 0 | R84: 0.014 | S84: 0 | T84: 0 | U84: 0 | V84: 0 | W84: 0.019
B85: Kern | C85: =1-C21 -> 0.013 | D85: 0.012 | E85: 0.013 | F85: 0.011 | G85: 0.014 | I85: =I21 -> Kern | J85: =1-J21 -> 0.025 | K85: 0.009 | L85: 0.008 | M85: 0.016 | N85: 0.023 | O85: 0.016 | P85: 0.006 | Q85: 0.005 | R85: 0.007 | S85: 0.006 | T85: 0.008 | U85: 0.004 | V85: 0.005 | W85: 0.014
B86: Kings | C86: =1-C22 -> 0 | D86: 0 | E86: 0 | F86: 0.004 | G86: 0.007 | I86: =I22 -> Kings | J86: =1-J22 -> 0.012 | K86: 0.016 | L86: 0.004 | M86: 0.017 | N86: 0.031 | O86: 0.009 | P86: 0.006 | Q86: 0.002 | R86: 0.003 | S86: 0.002 | T86: 0.002 | U86: 0 | V86: 0.003 | W86: 0.011
B87: Lake | C87: =1-C23 -> 0.03 | D87: 0.053 | E87: 0.021 | F87: 0.045 | G87: 0.017 | I87: =I23 -> Lake | J87: =1-J23 -> 0.059 | K87: 0.039 | L87: 0.053 | M87: 0.235 | N87: 0.135 | O87: 0.127 | P87: 0.117 | Q87: 0.049 | R87: 0.025 | S87: 0.02 | T87: 0.01 | U87: 0.011 | V87: 0.029 | W87: 0.047
B88: Lassen | C88: =1-C24 -> 0.051 | D88: 0.057 | E88: 0.008 | F88: 0.043 | G88: 0.022 | I88: =I24 -> Lassen | J88: =1-J24 -> 0.029 | K88: 0.011 | L88: 0.021 | M88: 0.043 | N88: 0.098 | O88: 0.038 | P88: 0.062 | Q88: 0.168 | R88: 0.133 | S88: 0.056 | T88: 0.115 | U88: 0.23 | V88: 0.169 | W88: 0.062
B89: Los Angeles | C89: =1-C25 -> 0.032 | D89: 0.038 | E89: 0.025 | F89: 0.023 | G89: 0.028 | I89: =I25 -> Los Angeles | J89: =1-J25 -> 0.043 | K89: 0.033 | L89: 0.025 | M89: 0.036 | N89: 0.031 | O89: 0.037 | P89: 0.028 | Q89: 0.035 | R89: 0.033 | S89: 0.029 | T89: 0.04 | U89: 0.035 | V89: 0.032 | W89: 0.036
B90: Madera | C90: =1-C26 -> 0.036 | D90: 0.024 | E90: 0.016 | F90: 0.009 | G90: 0.015 | I90: =I26 -> Madera | J90: =1-J26 -> 0.039 | K90: 0.022 | L90: 0.025 | M90: 0.017 | N90: 0.029 | O90: 0.021 | P90: 0.004 | Q90: 0.002 | R90: 0.013 | S90: 0 | T90: 0.012 | U90: 0 | V90: 0.002 | W90: 0.014
B91: Marin | C91: =1-C27 -> 0.003 | D91: 0.025 | E91: 0.032 | F91: 0.006 | G91: 0.029 | I91: =I27 -> Marin | J91: =1-J27 -> 0.055 | K91: 0.049 | L91: 0.024 | M91: 0.062 | N91: 0.053 | O91: 0.04 | P91: 0.022 | Q91: 0.031 | R91: 0.018 | S91: 0.031 | T91: 0.006 | U91: 0 | V91: 0.007 | W91: 0.014
B92: Mariposa | C92: =1-C28 -> 0.17 | D92: 0.06 | E92: 0.094 | F92: 0 | G92: 0.127 | I92: =I28 -> Mariposa | J92: =1-J28 -> 0.103 | K92: 0.089 | L92: 0.064 | M92: 0.074 | N92: 0.088 | O92: 0.128 | P92: 0.135 | Q92: 0.196 | R92: 0.152 | S92: 0 | T92: 0 | U92: 0.024 | V92: 0.021 | W92: 0.025
B93: Mendocino | C93: =1-C29 -> 0.002 | D93: 0.008 | E93: 0.006 | F93: 0.009 | G93: 0.006 | I93: =I29 -> Mendocino | J93: =1-J29 -> 0.006 | K93: 0 | L93: 0.004 | M93: 0.009 | N93: 0.006 | O93: 0.003 | P93: 0.005 | Q93: 0.019 | R93: 0.013 | S93: 0 | T93: 0.005 | U93: 0.009 | V93: 0.003 | W93: 0.07
B94: Merced | C94: =1-C30 -> 0.007 | D94: 0.026 | E94: 0.006 | F94: 0.003 | G94: 0.004 | I94: =I30 -> Merced | J94: =1-J30 -> 0.014 | K94: 0.002 | L94: 0.003 | M94: 0.016 | N94: 0.039 | O94: 0.028 | P94: 0.017 | Q94: 0.011 | R94: 0.023 | S94: 0.003 | T94: 0.002 | U94: 0.004 | V94: 0.005 | W94: 0.014
B95: Modoc | C95: =1-C31 -> 0 | D95: 0.022 | E95: 0 | F95: 0.045 | G95: 0 | I95: =I31 -> Modoc | J95: =1-J31 -> 0 | K95: 0 | L95: 0 | M95: 0 | N95: 0.033 | O95: 0 | P95: 0 | Q95: 0 | R95: 0 | S95: 0.105 | T95: 0 | U95: 0.077 | V95: 0.054 | W95: 0
B96: Mono | C96: =1-C32 -> 0.042 | D96: 0.022 | E96: 0.065 | F96: 0.091 | G96: 0.033 | I96: =I32 -> Mono | J96: =1-J32 -> 0.088 | K96: 0 | L96: 0.029 | M96: 0.079 | N96: 0.066 | O96: 0 | P96: 0.094 | Q96: 0 | R96: 0.061 | S96: 0.037 | T96: 0.038 | U96: 0 | V96: 0 | W96: 0.033
B97: Monterey | C97: =1-C33 -> 0 | D97: 0.001 | E97: 0 | F97: 0 | G97: 0 | I97: =I33 -> Monterey | J97: =1-J33 -> 0.002 | K97: 0 | L97: 0 | M97: 0 | N97: 0 | O97: 0 | P97: 0 | Q97: 0 | R97: 0 | S97: 0 | T97: 0 | U97: 0 | V97: 0.002 | W97: 0.002
B98: Napa | C98: =1-C34 -> 0.034 | D98: 0 | E98: 0.009 | F98: 0.005 | G98: 0.07 | I98: =I34 -> Napa | J98: =1-J34 -> 0.267 | K98: 0.366 | L98: 0.25 | M98: 0.233 | N98: 0.28 | O98: 0.028 | P98: 0.017 | Q98: 0.118 | R98: 0.058 | S98: 0.012 | T98: 0.03 | U98: 0.028 | V98: 0.03 | W98: 0.013
B99: Nevada | C99: =1-C35 -> 0.02 | D99: 0.025 | E99: 0.007 | F99: 0 | G99: 0 | I99: =I35 -> Nevada | J99: =1-J35 -> 0.007 | K99: 0 | L99: 0.004 | M99: 0.004 | N99: 0.004 | O99: 0.024 | P99: 0.01 | Q99: 0 | R99: 0.035 | S99: 0.011 | T99: 0 | U99: 0 | V99: 0 | W99: 0.062
B100: Orange | C100: =1-C36 -> 0.003 | D100: 0.004 | E100: 0.001 | F100: 0.002 | G100: 0.004 | I100: =I36 -> Orange | J100: =1-J36 -> 0.002 | K100: 0.002 | L100: 0.002 | M100: 0.005 | N100: 0.016 | O100: 0.023 | P100: 0.018 | Q100: 0.015 | R100: 0.014 | S100: 0.012 | T100: 0.013 | U100: 0.013 | V100: 0.021 | W100: 0.013
B101: Placer | C101: =1-C37 -> 0.085 | D101: 0.046 | E101: 0.021 | F101: 0.034 | G101: 0.019 | I101: =I37 -> Placer | J101: =1-J37 -> 0.011 | K101: 0.005 | L101: 0.003 | M101: 0.023 | N101: 0.003 | O101: 0.012 | P101: 0.019 | Q101: 0.007 | R101: 0.018 | S101: 0.018 | T101: 0.053 | U101: 0.033 | V101: 0.019 | W101: 0.024
B102: Plumas | C102: =1-C38 -> 0.043 | D102: 0.226 | E102: 0.021 | F102: 0.053 | G102: 0.141 | I102: =I38 -> Plumas | J102: =1-J38 -> 0.081 | K102: 0 | L102: 0 | M102: 0.037 | N102: 0.013 | O102: 0 | P102: 0 | Q102: 0.036 | R102: 0 | S102: 0 | T102: 0 | U102: 0.023 | V102: 0 | W102: 0
B103: Riverside | C103: =1-C39 -> 0.001 | D103: 0.001 | E103: 0 | F103: 0 | G103: 0.001 | I103: =I39 -> Riverside | J103: =1-J39 -> 0.003 | K103: 0.001 | L103: 0.004 | M103: 0.003 | N103: 0.003 | O103: 0.004 | P103: 0.003 | Q103: 0.006 | R103: 0.005 | S103: 0.003 | T103: 0.001 | U103: 0.005 | V103: 0.003 | W103: 0.006
B104: Sacramento | C104: =1-C40 -> 0.035 | D104: 0.09 | E104: 0.009 | F104: 0.03 | G104: 0.013 | I104: =I40 -> Sacramento | J104: =1-J40 -> 0.01 | K104: 0.011 | L104: 0.012 | M104: 0.021 | N104: 0.024 | O104: 0.025 | P104: 0.011 | Q104: 0.014 | R104: 0.011 | S104: 0.008 | T104: 0.011 | U104: 0.018 | V104: 0.008 | W104: 0.007
B105: San Benito | C105: =1-C41 -> 0.027 | D105: 0.01 | E105: 0.022 | F105: 0.013 | G105: 0 | I105: =I41 -> San Benito | J105: =1-J41 -> 0.016 | K105: 0.056 | L105: 0 | M105: 0.006 | N105: 0 | O105: 0 | P105: 0 | Q105: 0.1 | R105: 0.019 | S105: 0.008 | T105: 0.009 | U105: 0 | V105: 0 | W105: 0.033
B106: San Bernardino | C106: =1-C42 -> 0 | D106: 0.001 | E106: 0.001 | F106: 0.001 | G106: 0.001 | I106: =I42 -> San Bernardino | J106: =1-J42 -> 0.001 | K106: 0 | L106: 0.003 | M106: 0.002 | N106: 0.003 | O106: 0.001 | P106: 0 | Q106: 0 | R106: 0 | S106: 0 | T106: 0 | U106: 0.001 | V106: 0.001 | W106: 0.005
B107: San Diego | C107: =1-C43 -> 0.048 | D107: 0.023 | E107: 0.017 | F107: 0.028 | G107: 0.021 | I107: =I43 -> San Diego | J107: =1-J43 -> 0.031 | K107: 0.035 | L107: 0.037 | M107: 0.021 | N107: 0.026 | O107: 0.098 | P107: 0.065 | Q107: 0.066 | R107: 0.064 | S107: 0.062 | T107: 0.013 | U107: 0.012 | V107: 0.017 | W107: 0.009
B108: San Francisco | C108: =1-C44 -> 0.026 | D108: 0.012 | E108: 0.011 | F108: 0.024 | G108: 0.018 | I108: =I44 -> San Francisco | J108: =1-J44 -> 0.024 | K108: 0.023 | L108: 0.025 | M108: 0.03 | N108: 0.034 | O108: 0.029 | P108: 0.023 | Q108: 0.027 | R108: 0.027 | S108: 0.03 | T108: 0.033 | U108: 0.046 | V108: 0.027 | W108: 0.018
B109: San Joaquin | C109: =1-C45 -> 0.009 | D109: 0.015 | E109: 0.02 | F109: 0.019 | G109: 0.014 | I109: =I45 -> San Joaquin | J109: =1-J45 -> 0.013 | K109: 0.017 | L109: 0.022 | M109: 0.018 | N109: 0.009 | O109: 0.017 | P109: 0.02 | Q109: 0.022 | R109: 0.013 | S109: 0.006 | T109: 0.008 | U109: 0.006 | V109: 0.003 | W109: 0.016
B110: San Luis Obispo | C110: =1-C46 -> 0.043 | D110: 0.045 | E110: 0.03 | F110: 0.026 | G110: 0.054 | I110: =I46 -> San Luis Obispo | J110: =1-J46 -> 0.017 | K110: 0.036 | L110: 0.038 | M110: 0.065 | N110: 0.066 | O110: 0.028 | P110: 0.026 | Q110: 0.015 | R110: 0.047 | S110: 0.02 | T110: 0.035 | U110: 0.043 | V110: 0.045 | W110: 0.025
B111: San Mateo | C111: =1-C47 -> 0.111 | D111: 0.053 | E111: 0.062 | F111: 0.048 | G111: 0.059 | I111: =I47 -> San Mateo | J111: =1-J47 -> 0.378 | K111: 0.223 | L111: 0.169 | M111: 0.032 | N111: 0.016 | O111: 0.023 | P111: 0.027 | Q111: 0.03 | R111: 0.025 | S111: 0.027 | T111: 0.012 | U111: 0.035 | V111: 0.029 | W111: 0.019
B112: Santa Barbara | C112: =1-C48 -> 0.26 | D112: 0.367 | E112: 0.118 | F112: 0.04 | G112: 0.049 | I112: =I48 -> Santa Barbara | J112: =1-J48 -> 0.046 | K112: 0.07 | L112: 0.056 | M112: 0.076 | N112: 0.374 | O112: 0.204 | P112: 0.125 | Q112: 0.111 | R112: 0.145 | S112: 0.047 | T112: 0.035 | U112: 0.042 | V112: 0.105 | W112: 0.012
B113: Santa Clara | C113: =1-C49 -> 0.333 | D113: 0.251 | E113: 0.206 | F113: 0.191 | G113: 0.125 | I113: =I49 -> Santa Clara | J113: =1-J49 -> 0.122 | K113: 0.023 | L113: 0.04 | M113: 0.114 | N113: 0.055 | O113: 0.032 | P113: 0.028 | Q113: 0.028 | R113: 0.04 | S113: 0.033 | T113: 0.02 | U113: 0.018 | V113: 0.017 | W113: 0.014
B114: Santa Cruz | C114: =1-C50 -> 0.161 | D114: 0.375 | E114: 0.06 | F114: 0.037 | G114: 0.046 | I114: =I50 -> Santa Cruz | J114: =1-J50 -> 0.185 | K114: 0.044 | L114: 0.067 | M114: 0.071 | N114: 0.279 | O114: 0.193 | P114: 0.128 | Q114: 0.169 | R114: 0.073 | S114: 0.03 | T114: 0.027 | U114: 0.041 | V114: 0.038 | W114: 0.043
B115: Shasta | C115: =1-C51 -> 0.022 | D115: 0.012 | E115: 0.029 | F115: 0.021 | G115: 0.024 | I115: =I51 -> Shasta | J115: =1-J51 -> 0.066 | K115: 0.048 | L115: 0.06 | M115: 0.18 | N115: 0.036 | O115: 0.045 | P115: 0.028 | Q115: 0.062 | R115: 0.034 | S115: 0.033 | T115: 0.033 | U115: 0.02 | V115: 0.019 | W115: 0.03
B116: Sierra | C116: =1-C52 -> 0 | D116: 0 | E116: 0 | F116: 0 | G116: 0 | I116: =I52 -> Sierra | J116: =1-J52 -> 0.083 | K116: 0 | L116: 0 | M116: 0 | N116: 0 | O116: 0.1 | P116: 0 | Q116: 0 | R116: 0 | S116: 0 | T116: 0 | U116: 0 | V116: 0 | W116: 0
B117: Siskiyou | C117: =1-C53 -> 0.006 | D117: 0 | E117: 0 | F117: 0 | G117: 0 | I117: =I53 -> Siskiyou | J117: =1-J53 -> 0 | K117: 0.008 | L117: 0 | M117: 0.006 | N117: 0 | O117: 0 | P117: 0 | Q117: 0 | R117: 0 | S117: 0.015 | T117: 0.015 | U117: 0 | V117: 0.008 | W117: 0.073
B118: Solano | C118: =1-C54 -> 0.149 | D118: 0.077 | E118: 0.071 | F118: 0.065 | G118: 0.051 | I118: =I54 -> Solano | J118: =1-J54 -> 0.074 | K118: 0.064 | L118: 0.058 | M118: 0.09 | N118: 0.06 | O118: 0.055 | P118: 0.06 | Q118: 0.068 | R118: 0.069 | S118: 0.055 | T118: 0.025 | U118: 0.043 | V118: 0.051 | W118: 0.012
B119: Sonoma | C119: =1-C55 -> 0.225 | D119: 0.138 | E119: 0.123 | F119: 0.101 | G119: 0.05 | I119: =I55 -> Sonoma | J119: =1-J55 -> 0.059 | K119: 0.077 | L119: 0.133 | M119: 0.139 | N119: 0.159 | O119: 0.162 | P119: 0.103 | Q119: 0.041 | R119: 0.042 | S119: 0.082 | T119: 0.075 | U119: 0.11 | V119: 0.107 | W119: 0.138
B120: Stanislaus | C120: =1-C56 -> 0 | D120: 0 | E120: 0 | F120: 0 | G120: 0 | I120: =I56 -> Stanislaus | J120: =1-J56 -> 0.014 | K120: 0.006 | L120: 0.016 | M120: 0.038 | N120: 0.047 | O120: 0.085 | P120: 0.035 | Q120: 0.015 | R120: 0.037 | S120: 0.014 | T120: 0.008 | U120: 0.009 | V120: 0.002 | W120: 0.01
B121: Sutter | C121: =1-C57 -> 0.084 | D121: 0.074 | E121: 0.05 | F121: 0.049 | G121: 0.048 | I121: =I57 -> Sutter | J121: =1-J57 -> 0.036 | K121: 0.043 | L121: 0.019 | M121: 0.011 | N121: 0.056 | O121: 0.028 | P121: 0.011 | Q121: 0.012 | R121: 0 | S121: 0.032 | T121: 0.021 | U121: 0.009 | V121: 0.024 | W121: 0.042
B122: Tehama | C122: =1-C58 -> 0.138 | D122: 0.106 | E122: 0.103 | F122: 0.087 | G122: 0.066 | I122: =I58 -> Tehama | J122: =1-J58 -> 0.039 | K122: 0.047 | L122: 0.057 | M122: 0.083 | N122: 0.033 | O122: 0.056 | P122: 0.064 | Q122: 0.03 | R122: 0.021 | S122: 0.035 | T122: 0.045 | U122: 0.025 | V122: 0.048 | W122: 0.023
B123: Trinity | C123: =1-C59 -> 0.026 | D123: 0.036 | E123: 0 | F123: 0.021 | G123: 0.085 | I123: =I59 -> Trinity | J123: =1-J59 -> 0.058 | K123: 0.024 | L123: 0 | M123: 0 | N123: 0.042 | O123: 0 | P123: 0 | Q123: 0.032 | R123: 0.075 | S123: 0.061 | T123: 0.016 | U123: 0.075 | V123: 0.064 | W123: 0.017
B124: Tulare | C124: =1-C60 -> 0 | D124: 0 | E124: 0 | F124: 0 | G124: 0 | I124: =I60 -> Tulare | J124: =1-J60 -> 0 | K124: 0 | L124: 0 | M124: 0 | N124: 0 | O124: 0 | P124: 0.009 | Q124: 0.017 | R124: 0.023 | S124: 0.015 | T124: 0.009 | U124: 0.018 | V124: 0.034 | W124: 0.009
B125: =B61 -> Tuolumne | C125: =1-C61 -> 0.012 | D125: 0.01 | E125: 0.034 | F125: 0.022 | G125: 0.03 | I125: =I61 -> Tuolumne | J125: =1-J61 -> 0.046 | K125: 0.049 | L125: 0.077 | M125: 0.114 | N125: 0.066 | O125: 0.061 | P125: 0.046 | Q125: 0.035 | R125: 0.107 | S125: 0.049 | T125: 0.123 | U125: 0.029 | V125: 0.007 | W125: 0.016
B126: Ventura | C126: =1-C62 -> 0.014 | D126: 0.02 | E126: 0.01 | F126: 0.013 | G126: 0.013 | I126: =I62 -> Ventura | J126: =1-J62 -> 0.019 | K126: 0.007 | L126: 0.016 | M126: 0.055 | N126: 0.075 | O126: 0.035 | P126: 0.023 | Q126: 0.023 | R126: 0.056 | S126: 0.016 | T126: 0.022 | U126: 0.014 | V126: 0.024 | W126: 0.013
B127: Yolo | C127: =1-C63 -> 0.179 | D127: 0.112 | E127: 0.067 | F127: 0.127 | G127: 0.094 | I127: =I63 -> Yolo | J127: =1-J63 -> 0.233 | K127: 0.827 | L127: 0.157 | M127: 0.12 | N127: 0.147 | O127: 0.158 | P127: 0.184 | Q127: 0.101 | R127: 0.088 | S127: 0.046 | T127: 0.052 | U127: 0.051 | V127: 0.063 | W127: 0.03
B128: Yuba | C128: =1-C64 -> 0.004 | D128: 0.014 | E128: 0 | F128: 0 | G128: 0 | I128: =I64 -> Yuba | J128: =1-J64 -> 0.03 | K128: 0 | L128: 0.014 | M128: 0.031 | N128: 0.006 | O128: 0 | P128: 0 | Q128: 0 | R128: 0 | S128: 0 | T128: 0 | U128: 0 | V128: 0 | W128: 0.004
B130: Sum of qtr_timeliness_exp_ly | C130: Column Labels | I130: Sum of qtr_timeliness_exp_curr_qtr | J130: Column Labels
C131: 2012 | D131: 2013 | J131: 2013 | N131: 2014 | R131: 2015 | V131: 2016
B132: Row Labels | C132: 4 | D132: 1 | E132: 2 | F132: 3 | G132: 4 | I132: Row Labels | J132: 1 | K132: 2 | L132: 3 | M132: 4 | N132: 1 | O132: 2 | P132: 3 | Q132: 4 | R132: 1 | S132: 2 | T132: 3 | U132: 4 | V132: 1 | W132: 2
B133: California | C133: 0.923 | D133: 0.927 | E133: 0.94 | F133: 0.942 | G133: 0.939 | I133: California | J133: 0.937 | K133: 0.943 | L133: 0.919 | M133: 0.924 | N133: 0.906 | O133: 0.924 | P133: 0.928 | Q133: 0.933 | R133: 0.936 | S133: 0.947 | T133: 0.942 | U133: 0.937 | V133: 0.934 | W133: 0.925
B134: Alameda | C134: 0.871 | D134: 0.87 | E134: 0.873 | F134: 0.877 | G134: 0.855 | I134: Alameda | J134: 0.866 | K134: 0.862 | L134: 0.871 | M134: 0.865 | N134: 0.877 | O134: 0.899 | P134: 0.869 | Q134: 0.868 | R134: 0.854 | S134: 0.896 | T134: 0.884 | U134: 0.83 | V134: 0.898 | W134: 0.932
B135: Alpine | C135: 1 | D135: 1 | E135: 1 | F135: 1 | G135: 0.938 | I135: Alpine | J135: 0.929 | K135: 0.95 | L135: 0.727 | M135: 0.647 | N135: 0.789 | O135: 0.917 | P135: 0.789 | Q135: 0.778 | R135: 0.429 | S135: 0.625 | T135: 0.75 | U135: 0.667 | V135: 0.444 | W135: 0.636
B136: Amador | C136: 0.893 | D136: 0.948 | E136: 0.861 | F136: 0.928 | G136: 0.936 | I136: Amador | J136: 0.931 | K136: 0.956 | L136: 0.944 | M136: 0.986 | N136: 0.971 | O136: 0.957 | P136: 0.953 | Q136: 0.94 | R136: 0.942 | S136: 0.94 | T136: 0.962 | U136: 0.959 | V136: 0.974 | W136: 0.959
B137: Butte | C137: 0.936 | D137: 0.936 | E137: 0.922 | F137: 0.949 | G137: 0.955 | I137: Butte | J137: 0.958 | K137: 0.953 | L137: 0.939 | M137: 0.93 | N137: 0.895 | O137: 0.9 | P137: 0.942 | Q137: 0.94 | R137: 0.927 | S137: 0.935 | T137: 0.926 | U137: 0.919 | V137: 0.948 | W137: 0.939
B138: Calaveras | C138: 0.98 | D138: 0.989 | E138: 0.992 | F138: 0.992 | G138: 0.988 | I138: Calaveras | J138: 0.964 | K138: 0.98 | L138: 0.986 | M138: 0.982 | N138: 0.952 | O138: 0.964 | P138: 0.969 | Q138: 0.957 | R138: 0.956 | S138: 0.952 | T138: 0.941 | U138: 0.94 | V138: 0.927 | W138: 0.964
B139: Colusa | C139: 1 | D139: 1 | E139: 0.972 | F139: 1 | G139: 1 | I139: Colusa | J139: 1 | K139: 1 | L139: 0.958 | M139: 0.949 | N139: 0.95 | O139: 0.959 | P139: 0.938 | Q139: 0.897 | R139: 0.903 | S139: 0.918 | T139: 0.947 | U139: 0.954 | V139: 0.971 | W139: 0.987
B140: Contra Costa | C140: 0.831 | D140: 0.821 | E140: 0.891 | F140: 0.846 | G140: 0.875 | I140: Contra Costa | J140: 0.907 | K140: 0.937 | L140: 0.792 | M140: 0.716 | N140: 0.855 | O140: 0.858 | P140: 0.827 | Q140: 0.941 | R140: 0.925 | S140: 0.97 | T140: 0.968 | U140: 0.969 | V140: 0.979 | W140: 0.984
B141: Del Norte | C141: 0.99 | D141: 0.98 | E141: 0.992 | F141: 0.988 | G141: 0.978 | I141: Del Norte | J141: 0.988 | K141: 0.974 | L141: 0.984 | M141: 0.982 | N141: 0.977 | O141: 0.952 | P141: 0.957 | Q141: 0.99 | R141: 0.961 | S141: 0.929 | T141: 0.945 | U141: 0.936 | V141: 0.944 | W141: 0.935
B142: El Dorado | C142: 0.926 | D142: 0.931 | E142: 0.963 | F142: 0.959 | G142: 0.973 | I142: El Dorado | J142: 0.988 | K142: 0.964 | L142: 0.977 | M142: 0.878 | N142: 0.788 | O142: 0.825 | P142: 0.954 | Q142: 0.943 | R142: 0.961 | S142: 0.949 | T142: 0.946 | U142: 0.962 | V142: 0.956 | W142: 0.986
B143: Fresno | C143: 0.952 | D143: 0.95 | E143: 0.971 | F143: 0.973 | G143: 0.97 | I143: Fresno | J143: 0.971 | K143: 0.933 | L143: 0.835 | M143: 0.912 | N143: 0.923 | O143: 0.97 | P143: 0.977 | Q143: 0.964 | R143: 0.926 | S143: 0.973 | T143: 0.923 | U143: 0.95 | V143: 0.91 | W143: 0.969
B144: Glenn | C144: 0.991 | D144: 1 | E144: 1 | F144: 0.982 | G144: 0.992 | I144: Glenn | J144: 1 | K144: 0.993 | L144: 0.992 | M144: 1 | N144: 0.944 | O144: 1 | P144: 0.975 | Q144: 0.985 | R144: 0.985 | S144: 0.986 | T144: 0.99 | U144: 0.991 | V144: 0.978 | W144: 0.986
B145: Humboldt | C145: 0.896 | D145: 0.891 | E145: 0.928 | F145: 0.944 | G145: 0.897 | I145: Humboldt | J145: 0.9 | K145: 0.933 | L145: 0.897 | M145: 0.88 | N145: 0.748 | O145: 0.863 | P145: 0.866 | Q145: 0.905 | R145: 0.919 | S145: 0.936 | T145: 0.917 | U145: 0.958 | V145: 0.966 | W145: 0.985
B146: Imperial | C146: 0.991 | D146: 0.977 | E146: 0.987 | F146: 0.984 | G146: 0.988 | I146: Imperial | J146: 0.987 | K146: 0.989 | L146: 0.914 | M146: 0.982 | N146: 0.894 | O146: 0.883 | P146: 0.826 | Q146: 0.895 | R146: 0.881 | S146: 0.836 | T146: 0.901 | U146: 0.943 | V146: 0.937 | W146: 0.936
B147: Inyo | C147: 0.991 | D147: 1 | E147: 0.991 | F147: 0.993 | G147: 0.99 | I147: Inyo | J147: 0.984 | K147: 0.978 | L147: 0.992 | M147: 0.958 | N147: 0.955 | O147: 0.962 | P147: 0.96 | Q147: 0.929 | R147: 0.949 | S147: 0.905 | T147: 0.932 | U147: 0.948 | V147: 0.9 | W147: 0.892
B148: Kern | C148: 0.982 | D148: 0.977 | E148: 0.969 | F148: 0.951 | G148: 0.963 | I148: Kern | J148: 0.956 | K148: 0.952 | L148: 0.902 | M148: 0.904 | N148: 0.884 | O148: 0.908 | P148: 0.92 | Q148: 0.92 | R148: 0.915 | S148: 0.947 | T148: 0.938 | U148: 0.947 | V148: 0.94 | W148: 0.945
B149: Kings | C149: 0.911 | D149: 0.897 | E149: 0.865 | F149: 0.882 | G149: 0.908 | I149: Kings | J149: 0.953 | K149: 0.969 | L149: 0.962 | M149: 0.944 | N149: 0.887 | O149: 0.845 | P149: 0.805 | Q149: 0.934 | R149: 0.964 | S149: 0.968 | T149: 0.973 | U149: 0.96 | V149: 0.971 | W149: 0.967
B150: Lake | C150: 0.971 | D150: 0.969 | E150: 0.935 | F150: 0.94 | G150: 0.955 | I150: Lake | J150: 0.952 | K150: 0.952 | L150: 0.872 | M150: 0.903 | N150: 0.855 | O150: 0.816 | P150: 0.89 | Q150: 0.923 | R150: 0.946 | S150: 0.957 | T150: 0.945 | U150: 0.921 | V150: 0.931 | W150: 0.934
B151: Lassen | C151: 0.975 | D151: 0.97 | E151: 0.936 | F151: 0.93 | G151: 0.901 | I151: Lassen | J151: 0.921 | K151: 0.959 | L151: 0.912 | M151: 0.912 | N151: 0.827 | O151: 0.875 | P151: 0.849 | Q151: 0.776 | R151: 0.784 | S151: 0.734 | T151: 0.747 | U151: 0.805 | V151: 0.903 | W151: 0.753
B152: Los Angeles | C152: 0.914 | D152: 0.93 | E152: 0.948 | F152: 0.959 | G152: 0.949 | I152: Los Angeles | J152: 0.951 | K152: 0.961 | L152: 0.957 | M152: 0.949 | N152: 0.939 | O152: 0.945 | P152: 0.935 | Q152: 0.929 | R152: 0.948 | S152: 0.949 | T152: 0.942 | U152: 0.922 | V152: 0.895 | W152: 0.829
B153: Madera | C153: 0.981 | D153: 0.98 | E153: 0.99 | F153: 0.992 | G153: 0.985 | I153: Madera | J153: 0.983 | K153: 0.982 | L153: 0.972 | M153: 0.975 | N153: 0.887 | O153: 0.913 | P153: 0.925 | Q153: 0.884 | R153: 0.876 | S153: 0.85 | T153: 0.934 | U153: 0.967 | V153: 0.968 | W153: 0.968
B154: Marin | C154: 0.975 | D154: 0.917 | E154: 0.94 | F154: 0.944 | G154: 0.946 | I154: Marin | J154: 0.933 | K154: 0.951 | L154: 0.954 | M154: 0.949 | N154: 0.901 | O154: 0.93 | P154: 0.926 | Q154: 0.94 | R154: 0.931 | S154: 0.921 | T154: 0.932 | U154: 0.96 | V154: 0.924 | W154: 0.932
B155: Mariposa | C155: 0.988 | D155: 0.981 | E155: 0.967 | F155: 0.989 | G155: 0.963 | I155: Mariposa | J155: 0.938 | K155: 0.943 | L155: 0.987 | M155: 0.868 | N155: 0.915 | O155: 0.925 | P155: 0.977 | Q155: 0.926 | R155: 0.976 | S155: 0.964 | T155: 0.965 | U155: 0.978 | V155: 0.931 | W155: 0.965
B156: Mendocino | C156: 0.993 | D156: 0.995 | E156: 0.998 | F156: 0.987 | G156: 0.991 | I156: Mendocino | J156: 0.989 | K156: 0.989 | L156: 0.995 | M156: 0.994 | N156: 0.955 | O156: 0.98 | P156: 0.965 | Q156: 0.965 | R156: 0.973 | S156: 0.972 | T156: 0.977 | U156: 0.962 | V156: 0.957 | W156: 0.974
B157: Merced | C157: 0.972 | D157: 0.974 | E157: 0.984 | F157: 0.977 | G157: 0.986 | I157: Merced | J157: 0.991 | K157: 0.992 | L157: 0.948 | M157: 0.948 | N157: 0.923 | O157: 0.944 | P157: 0.95 | Q157: 0.95 | R157: 0.948 | S157: 0.966 | T157: 0.953 | U157: 0.954 | V157: 0.963 | W157: 0.958
B158: Modoc | C158: 0.951 | D158: 0.956 | E158: 0.941 | F158: 1 | G158: 1 | I158: Modoc | J158: 0.945 | K158: 0.923 | L158: 1 | M158: 0.962 | N158: 0.944 | O158: 0.873 | P158: 0.844 | Q158: 0.891 | R158: 0.813 | S158: 0.94 | T158: 0.92 | U158: 1 | V158: 0.927 | W158: 0.867
B159: Mono | C159: 0.947 | D159: 0.926 | E159: 0.888 | F159: 0.95 | G159: 0.945 | I159: Mono | J159: 0.891 | K159: 0.958 | L159: 0.848 | M159: 0.966 | N159: 0.903 | O159: 0.856 | P159: 0.893 | Q159: 0.924 | R159: 0.957 | S159: 0.981 | T159: 1 | U159: 0.987 | V159: 0.919 | W159: 0.987
B160: Monterey | C160: 0.994 | D160: 0.994 | E160: 0.991 | F160: 0.994 | G160: 0.993 | I160: Monterey | J160: 0.995 | K160: 0.995 | L160: 0.992 | M160: 0.978 | N160: 0.956 | O160: 0.971 | P160: 0.958 | Q160: 0.954 | R160: 0.95 | S160: 0.96 | T160: 0.972 | U160: 0.962 | V160: 0.96 | W160: 0.971
B161: Napa | C161: 0.955 | D161: 0.964 | E161: 0.982 | F161: 0.985 | G161: 0.962 | I161: Napa | J161: 0.97 | K161: 0.966 | L161: 0.899 | M161: 0.906 | N161: 0.962 | O161: 0.979 | P161: 0.964 | Q161: 0.954 | R161: 0.955 | S161: 0.974 | T161: 0.968 | U161: 0.969 | V161: 0.939 | W161: 0.961
B162: Nevada | C162: 0.964 | D162: 0.984 | E162: 0.992 | F162: 0.988 | G162: 0.969 | I162: Nevada | J162: 0.945 | K162: 0.974 | L162: 0.952 | M162: 0.858 | N162: 0.81 | O162: 0.766 | P162: 0.794 | Q162: 0.859 | R162: 0.846 | S162: 0.825 | T162: 0.903 | U162: 0.92 | V162: 0.859 | W162: 0.871
B163: Orange | C163: 0.995 | D163: 0.994 | E163: 0.995 | F163: 0.995 | G163: 0.994 | I163: Orange | J163: 0.993 | K163: 0.996 | L163: 0.996 | M163: 0.995 | N163: 0.988 | O163: 0.995 | P163: 0.995 | Q163: 0.996 | R163: 0.995 | S163: 0.997 | T163: 0.994 | U163: 0.988 | V163: 0.994 | W163: 0.995
B164: Placer | C164: 0.702 | D164: 0.833 | E164: 0.958 | F164: 0.963 | G164: 0.948 | I164: Placer | J164: 0.967 | K164: 0.974 | L164: 0.974 | M164: 0.947 | N164: 0.974 | O164: 0.975 | P164: 0.971 | Q164: 0.97 | R164: 0.95 | S164: 0.938 | T164: 0 | U164: 0.07 | V164: 0 | W164: 0.915
B165: Plumas | C165: 1 | D165: 0.961 | E165: 0.969 | F165: 0.938 | G165: 0.954 | I165: Plumas | J165: 0.981 | K165: 0.978 | L165: 0.97 | M165: 0.815 | N165: 0.551 | O165: 0.533 | P165: 0.874 | Q165: 0.874 | R165: 0.807 | S165: 0.903 | T165: 0.903 | U165: 0.829 | V165: 0.822 | W165: 0.885
B166: Riverside | C166: 0.914 | D166: 0.939 | E166: 0.948 | F166: 0.947 | G166: 0.942 | I166: Riverside | J166: 0.958 | K166: 0.958 | L166: 0.943 | M166: 0.952 | N166: 0.879 | O166: 0.884 | P166: 0.874 | Q166: 0.886 | R166: 0.903 | S166: 0.921 | T166: 0.92 | U166: 0.932 | V166: 0.942 | W166: 0.946
B167: Sacramento | C167: 0.866 | D167: 0.923 | E167: 0.965 | F167: 0.985 | G167: 0.974 | I167: Sacramento | J167: 0.956 | K167: 0.984 | L167: 0.984 | M167: 0.98 | N167: 0.971 | O167: 0.981 | P167: 0.982 | Q167: 0.984 | R167: 0.975 | S167: 0.987 | T167: 0.987 | U167: 0.988 | V167: 0.99 | W167: 0.992
B168: San Benito | C168: 0.988 | D168: 0.986 | E168: 0.995 | F168: 0.975 | G168: 0.996 | I168: San Benito | J168: 0.977 | K168: 0.976 | L168: 0.973 | M168: 0.967 | N168: 0.95 | O168: 0.946 | P168: 0.964 | Q168: 0.952 | R168: 0.946 | S168: 0.93 | T168: 0.985 | U168: 0.953 | V168: 0.953 | W168: 0.933
B169: San Bernardino | C169: 0.935 | D169: 0.934 | E169: 0.953 | F169: 0.932 | G169: 0.936 | I169: San Bernardino | J169: 0.927 | K169: 0.932 | L169: 0.862 | M169: 0.895 | N169: 0.864 | O169: 0.906 | P169: 0.948 | Q169: 0.963 | R169: 0.957 | S169: 0.962 | T169: 0.957 | U169: 0.952 | V169: 0.95 | W169: 0.961
B170: San Diego | C170: 0.943 | D170: 0.948 | E170: 0.939 | F170: 0.885 | G170: 0.892 | I170: San Diego | J170: 0.914 | K170: 0.896 | L170: 0.911 | M170: 0.952 | N170: 0.964 | O170: 0.968 | P170: 0.974 | Q170: 0.976 | R170: 0.978 | S170: 0.983 | T170: 0.979 | U170: 0.982 | V170: 0.982 | W170: 0.98
B171: San Francisco | C171: 0.958 | D171: 0.921 | E171: 0.967 | F171: 0.932 | G171: 0.913 | I171: San Francisco | J171: 0.753 | K171: 0.898 | L171: 0.817 | M171: 0.694 | N171: 0.756 | O171: 0.9 | P171: 0.834 | Q171: 0.865 | R171: 0.862 | S171: 0.894 | T171: 0.864 | U171: 0.839 | V171: 0.876 | W171: 0.9
B172: San Joaquin | C172: 0.937 | D172: 0.954 | E172: 0.942 | F172: 0.927 | G172: 0.963 | I172: San Joaquin | J172: 0.975 | K172: 0.974 | L172: 0.917 | M172: 0.937 | N172: 0.883 | O172: 0.886 | P172: 0.89 | Q172: 0.892 | R172: 0.889 | S172: 0.903 | T172: 0.914 | U172: 0.911 | V172: 0.906 | W172: 0.907
B173: San Luis Obispo | C173: 0.815 | D173: 0.865 | E173: 0.842 | F173: 0.835 | G173: 0.898 | I173: San Luis Obispo | J173: 0.898 | K173: 0.89 | L173: 0.91 | M173: 0.908 | N173: 0.901 | O173: 0.905 | P173: 0.904 | Q173: 0.929 | R173: 0.933 | S173: 0.932 | T173: 0.959 | U173: 0.945 | V173: 0.962 | W173: 0.978
B174: San Mateo | C174: 0.839 | D174: 0.842 | E174: 0.859 | F174: 0.866 | G174: 0.827 | I174: San Mateo | J174: 0.811 | K174: 0.754 | L174: 0.803 | M174: 0.83 | N174: 0.875 | O174: 0.889 | P174: 0.911 | Q174: 0.889 | R174: 0.933 | S174: 0.92 | T174: 0.924 | U174: 0.9 | V174: 0.902 | W174: 0.885
B175: Santa Barbara | C175: 0.835 | D175: 0.838 | E175: 0.889 | F175: 0.945 | G175: 0.933 | I175: Santa Barbara | J175: 0.922 | K175: 0.94 | L175: 0.865 | M175: 0.847 | N175: 0.817 | O175: 0.886 | P175: 0.913 | Q175: 0.864 | R175: 0.904 | S175: 0.921 | T175: 0.92 | U175: 0.924 | V175: 0.928 | W175: 0.931
B176: Santa Clara | C176: 0.397 | D176: 0.255 | E176: 0.477 | F176: 0.864 | G176: 0.851 | I176: Santa Clara | J176: 0.87 | K176: 0.888 | L176: 0.842 | M176: 0.922 | N176: 0.884 | O176: 0.934 | P176: 0.965 | Q176: 0.944 | R176: 0.972 | S176: 0.973 | T176: 0.984 | U176: 0.984 | V176: 0.974 | W176: 0.988
B177: Santa Cruz | C177: 0.667 | D177: 0.865 | E177: 0.903 | F177: 0.946 | G177: 0.889 | I177: Santa Cruz | J177: 0.923 | K177: 0.96 | L177: 0.789 | M177: 0.686 | N177: 0.693 | O177: 0.938 | P177: 0.973 | Q177: 0.973 | R177: 0.985 | S177: 0.971 | T177: 0.986 | U177: 0.965 | V177: 0.947 | W177: 0.972
B178: Shasta | C178: 0.921 | D178: 0.933 | E178: 0.901 | F178: 0.881 | G178: 0.896 | I178: Shasta | J178: 0.85 | K178: 0.869 | L178: 0.849 | M178: 0.875 | N178: 0.933 | O178: 0.955 | P178: 0.958 | Q178: 0.962 | R178: 0.963 | S178: 0.979 | T178: 0.965 | U178: 0.977 | V178: 0.983 | W178: 0.98
B179: Sierra | C179: 1 | D179: 0.923 | E179: 1 | F179: 1 | G179: 0.958 | I179: Sierra | J179: 0.962 | K179: 1 | L179: 1 | M179: 1 | N179: 0.913 | O179: 1 | P179: 1 | Q179: 0.87 | R179: 1 | S179: 0.9 | T179: 1 | U179: 0.923 | V179: 0.882 | W179: 1
B180: Siskiyou | C180: 0.738 | D180: 0.95 | E180: 0.909 | F180: 0.97 | G180: 0.95 | I180: Siskiyou | J180: 0.95 | K180: 0.963 | L180: 0.961 | M180: 0.883 | N180: 0.869 | O180: 0.854 | P180: 0.896 | Q180: 0.92 | R180: 0.881 | S180: 0.86 | T180: 0.909 | U180: 0.909 | V180: 0.889 | W180: 0.881
B181: Solano | C181: 0.96 | D181: 0.947 | E181: 0.96 | F181: 0.956 | G181: 0.964 | I181: Solano | J181: 0.951 | K181: 0.962 | L181: 0.948 | M181: 0.961 | N181: 0.959 | O181: 0.972 | P181: 0.974 | Q181: 0.972 | R181: 0.972 | S181: 0.985 | T181: 0.977 | U181: 0.967 | V181: 0.972
B182: Sonoma | C182: 0.553 | D182: 0.461 | E182: 0.617 | F182: 0.7 | G182: 0.622 | I182: Sonoma | J182: 0.403 | K182: 0.467 | L182: 0.472 | M182: 0.485 | N182: 0.459 | O182: 0.717 | P182: 0.734 | Q182: 0.759 | R182: 0.705 | S182: 0.756 | T182: 0.61 | U182: 0.515 | V182: 0.509 | W182: 0.587
B183: Stanislaus | C183: 0.978 | D183: 0.971 | E183: 0.967 | F183: 0.96 | G183: 0.957 | I183: Stanislaus | J183: 0.967 | K183: 0.97 | L183: 0.936 | M183: 0.928 | N183: 0.878 | O183: 0.853 | P183: 0.846 | Q183: 0.856 | R183: 0.894 | S183: 0.918 | T183: 0.901 | U183: 0.905 | V183: 0.915 | W183: 0.925
B184: Sutter | C184: 0.95 | D184: 0.961 | E184: 0.945 | F184: 0.943 | G184: 0.959 | I184: Sutter | J184: 0.962 | K184: 0.955 | L184: 0.876 | M184: 0.918 | N184: 0.904 | O184: 0.906 | P184: 0.908 | Q184: 0.916 | R184: 0.889 | S184: 0.915 | T184: 0.89 | U184: 0.878 | V184: 0.881 | W184: 0.9
B185: Tehama | C185: 0.997 | D185: 0.995 | E185: 0.991 | F185: 0.998 | G185: 0.988 | I185: Tehama | J185: 0.99 | K185: 0.988 | L185: 0.982 | M185: 0.992 | N185: 0.91 | O185: 0.922 | P185: 0.932 | Q185: 0.948 | R185: 0.959 | S185: 0.974 | T185: 0.977 | U185: 0.959 | V185: 0.969 | W185: 0.954
B186: Trinity | C186: 0.968 | D186: 0.989 | E186: 0.983 | F186: 0.922 | G186: 0.891 | I186: Trinity | J186: 0.942 | K186: 0.673 | L186: 0.652 | M186: 0.919 | N186: 0.72 | O186: 0.894 | P186: 0.874 | Q186: 0.698 | R186: 0.669 | S186: 0.836 | T186: 0.902 | U186: 0.919 | V186: 0.812 | W186: 0.722
B187: Tulare | C187: 0.955 | D187: 0.939 | E187: 0.972 | F187: 0.97 | G187: 0.978 | I187: Tulare | J187: 0.983 | K187: 0.977 | L187: 0.955 | M187: 0.979 | N187: 0.974 | O187: 0.982 | P187: 0.967 | Q187: 0.983 | R187: 0.978 | S187: 0.986 | T187: 0.982 | U187: 0.979 | V187: 0.98 | W187: 0.987
B188: Tuolumne | C188: 0.983 | D188: 0.937 | E188: 0.927 | F188: 0.946 | G188: 0.96 | I188: Tuolumne | J188: 0.971 | K188: 0.973 | L188: 0.955 | M188: 0.959 | N188: 0.914 | O188: 0.888 | P188: 0.912 | Q188: 0.858 | R188: 0.753 | S188: 0.787 | T188: 0.962 | U188: 0.983 | V188: 0.969 | W188: 0.985
B189: Ventura | C189: 0.952 | D189: 0.956 | E189: 0.97 | F189: 0.964 | G189: 0.954 | I189: Ventura | J189: 0.941 | K189: 0.953 | L189: 0.938 | M189: 0.932 | N189: 0.921 | O189: 0.947 | P189: 0.935 | Q189: 0.94 | R189: 0.957 | S189: 0.955 | T189: 0.964 | U189: 0.961 | V189: 0.967 | W189: 0.968
B190: Yolo | C190: 0.924 | D190: 0.912 | E190: 0.914 | F190: 0.917 | G190: 0.906 | I190: Yolo | J190: 0.875 | K190: 0.915 | L190: 0.907 | M190: 0.915 | N190: 0.911 | O190: 0.895 | P190: 0.894 | Q190: 0.872 | R190: 0.86 | S190: 0.85 | T190: 0.85 | U190: 0.903 | V190: 0.956 | W190: 0.933
B191: Yuba | C191: 0.961 | D191: 0.945 | E191: 0.947 | F191: 0.984 | G191: 0.957 | I191: Yuba | J191: 0.962 | K191: 0.968 | L191: 0.952 | M191: 0.928 | N191: 0.94 | O191: 0.962 | P191: 0.951 | Q191: 0.967 | R191: 0.964 | S191: 0.966 | T191: 0.961 | U191: 0.966 | V191: 0.968 | W191: 0.98
B193: ES NON-COMPLIANCE
B194: =B130 -> Sum of qtr_timeliness_exp_ly | C194: PRIOR YEAR FROM: | J194: CURRENT YEAR
B195: =B131 -> 0 | C195: 2012 | D195: 2013 | E195: 0 | F195: 0 | G195: 0 | I195: =I131 -> 0 | J195: 2013 | K195: 0 | L195: 0 | M195: 0 | N195: 2014 | O195: 0 | P195: 0 | Q195: 0 | R195: 2015 | S195: 0 | T195: 0 | U195: 0 | V195: 2016 | W195: 0
B196: =B132 -> Row Labels | C196: 4 | D196: 1 | E196: 2 | F196: 3 | G196: 4 | I196: =I132 -> Row Labels | J196: 1 | K196: 2 | L196: 3 | M196: 4 | N196: 1 | O196: 2 | P196: 3 | Q196: 4 | R196: 1 | S196: 2 | T196: 3 | U196: 4 | V196: 1 | W196: 2
B197: =B133 -> California | C197: =1-C133 -> 0.077 | D197: =1-D133 -> 0.073 | E197: 0.06 | F197: 0.058 | G197: 0.061 | I197: California | J197: =1-J133 -> 0.063 | K197: 0.057 | L197: 0.081 | M197: 0.076 | N197: 0.094 | O197: 0.076 | P197: 0.072 | Q197: 0.067 | R197: 0.064 | S197: 0.053 | T197: 0.058 | U197: 0.063 | V197: 0.066 | W197: 0.075
B198: =B134 -> Alameda | C198: =1-C134 -> 0.129 | D198: 0.13 | E198: 0.127 | F198: 0.123 | G198: 0.145 | I198: Alameda | J198: =1-J134 -> 0.134 | K198: 0.138 | L198: 0.129 | M198: 0.135 | N198: 0.123 | O198: 0.101 | P198: 0.131 | Q198: 0.132 | R198: 0.146 | S198: 0.104 | T198: 0.116 | U198: 0.17 | V198: 0.102 | W198: 0.068
B199: =B135 -> Alpine | C199: =1-C135 -> 0 | D199: 0 | E199: 0 | F199: 0 | G199: 0.062 | I199: Alpine | J199: =1-J135 -> 0.071 | K199: 0.05 | L199: 0.273 | M199: 0.353 | N199: 0.211 | O199: 0.083 | P199: 0.211 | Q199: 0.222 | R199: 0.571 | S199: 0.375 | T199: 0.25 | U199: 0.333 | V199: 0.556 | W199: 0.364
B200: =B136 -> Amador | C200: =1-C136 -> 0.107 | D200: 0.052 | E200: 0.139 | F200: 0.072 | G200: 0.064 | I200: Amador | J200: =1-J136 -> 0.069 | K200: 0.044 | L200: 0.056 | M200: 0.014 | N200: 0.029 | O200: 0.043 | P200: 0.047 | Q200: 0.06 | R200: 0.058 | S200: 0.06 | T200: 0.038 | U200: 0.041 | V200: 0.026 | W200: 0.041
B201: =B137 -> Butte | C201: =1-C137 -> 0.064 | D201: 0.064 | E201: 0.078 | F201: 0.051 | G201: 0.045 | I201: Butte | J201: =1-J137 -> 0.042 | K201: 0.047 | L201: 0.061 | M201: 0.07 | N201: 0.105 | O201: 0.1 | P201: 0.058 | Q201: 0.06 | R201: 0.073 | S201: 0.065 | T201: 0.074 | U201: 0.081 | V201: 0.052 | W201: 0.061
B202: =B138 -> Calaveras | C202: =1-C138 -> 0.02 | D202: 0.011 | E202: 0.008 | F202: 0.008 | G202: 0.012 | I202: Calaveras | J202: =1-J138 -> 0.036 | K202: 0.02 | L202: 0.014 | M202: 0.018 | N202: 0.048 | O202: 0.036 | P202: 0.031 | Q202: 0.043 | R202: 0.044 | S202: 0.048 | T202: 0.059 | U202: 0.06 | V202: 0.073 | W202: 0.036
B203: =B139 -> Colusa | C203: =1-C139 -> 0 | D203: 0 | E203: 0.028 | F203: 0 | G203: 0 | I203: Colusa | J203: =1-J139 -> 0 | K203: 0 | L203: 0.042 | M203: 0.051 | N203: 0.05 | O203: 0.041 | P203: 0.062 | Q203: 0.103 | R203: 0.097 | S203: 0.082 | T203: 0.053 | U203: 0.046 | V203: 0.029 | W203: 0.013
B204: =B140 -> Contra Costa | C204: =1-C140 -> 0.169 | D204: 0.179 | E204: 0.109 | F204: 0.154 | G204: 0.125 | I204: Contra Costa | J204: =1-J140 -> 0.093 | K204: 0.063 | L204: 0.208 | M204: 0.284 | N204: 0.145 | O204: 0.142 | P204: 0.173 | Q204: 0.059 | R204: 0.075 | S204: 0.03 | T204: 0.032 | U204: 0.031 | V204: 0.021 | W204: 0.016
... 186 more rows

Sheet Calculated Fields (hidden)
A1: Calculated Field
A2: Solve Order | B2: Field | C2: Formula
A3: 1 | B3: pct_unsuccessful_recert_reapply | C3: =incomp_recert_no_bene_reapp/recert_not_rcvd_snap_follow_mth
A4: 2 | B4: pct_apps_from_churn_30d | C4: =apps_rcvd_bene_prev_30d/snap_apps_rcvd
A5: 3 | B5: pct_recerts_without_CF_next_mo | C5: =recert_not_rcvd_snap_follow_mth/cases_sched_recert
A6: 4 | B6: pct_apps_from_churn_90d | C6: =(apps_rcvd_bene_prev_30d+apps_rcvd_bene_prev_60d+apps_rcvd_bene_prev_90d)/snap_apps_rcvd
A7: 5 | B7: pct_all_recert_reapply_90d | C7: =incomp_recert_no_bene_reapp/cases_sched_recert
A9: Calculated Item
A10: Solve Order | B10: Item | C10: Formula
A13: Note: | B13: When a cell is updated by more than one formula,
B14: the value is set by the formula with the last solve order.
B16: To change the solve order for multiple calculated items or fields,
B17: on the Options tab, in the Calculations group, click Fields, Items, & Sets, and then click Solve Order.

Sheet Churn (hidden)
A2: Sum of pct_recerts_without_CF_next_mo | B2: Column Labels
B3: 2011 | C3: 2012 | G3: 2013 | K3: 2014 | O3: 2015 | S3: 2016
A4: Row Labels | B4: 4 | C4: 1 | D4: 2 | E4: 3 | F4: 4 | G4: 1 | H4: 2 | I4: 3 | J4: 4 | K4: 1 | L4: 2 | M4: 3 | N4: 4 | O4: 1 | P4: 2 | Q4: 3 | R4: 4 | S4: 1
A5: California | B5: 0.2185732271 | C5: 0.1790267473 | D5: 0.181392282 | E5: 0.187106759 | F5: 0.1798133402 | G5: 0.2046964013 | H5: 0.2036459206 | I5: 0.209233285 | J5: 0.2200312474 | K5: 0.2193337845 | L5: 0.2265365142 | M5: 0.2263320693 | N5: 0.2549248297 | O5: 0.2472258206 | P5: 0.2546000826 | Q5: 0.2637444279 | R5: 0.2883930972 | S5: 0.3095019457
A6: Alameda | B6: 0.1565323565 | C6: 0.1569365976 | D6: 0.163451087 | E6: 0.166831012 | F6: 0.1785852838 | G6: 0.1658999764 | H6: 0.176127321 | I6: 0.1804030409 | J6: 0.2153769718 | K6: 0.215325492 | L6: 0.215325492 | M6: 0.2592746483 | N6: 0.2818103619 | O6: 0.2616800096 | P6: 0.2448155293 | Q6: 0.2675993069 | R6: 0.2780435938 | S6: 0.2604546025
A7: Alpine | B7: 0.25 | C7: 0.1428571429 | D7: 0.1818181818 | E7: 0.1875 | F7: 0.05714285714 | G7: 0.4666666667 | H7: 0.5 | I7: 0.4482758621 | J7: 0.3793103448 | K7: 0.4 | L7: 0.5294117647 | M7: 0.6875 | N7: 0.7 | O7: 0.5161290323 | P7: 0.4857142857 | Q7: 0.4545454545 | R7: 0.3703703704 | S7: 0.7058823529
A8: Amador | B8: 0.3611111111 | C8: 0.3117647059 | D8: 0.316091954 | E8: 0.2732142857 | F8: 0.3015873016 | G8: 0.4143356643 | H8: 0.4358578053 | I8: 0.4383333333 | J8: 0.4427350427 | K8: 0.4429752066 | L8: 0.4517766497 | M8: 0.4326750449 | N8: 0.4156928214 | O8: 0.4226086957 | P8: 0.4303571429 | Q8: 0.4209591474 | R8: 0.4180327869 | S8: 0.391509434
A9: Butte | B9: 0.613872201 | C9: 0.4052337398 | D9: 0.4220393233 | E9: 0.4087694484 | F9: 0.3894586215 | G9: 0.4089709763 | H9: 0.374301676 | I9: 0.3992462869 | J9: 0.4214517876 | K9: 0.4044493882 | L9: 0.4085744909 | M9: 0.4236126465 | N9: 0.4116567233 | O9: 0.4148702156 | P9: 0.4089577229 | Q9: 0.4182440596 | R9: 0.4151738672 | S9: 0.398538961
A10: Calaveras | B10: 0.3907284768 | C10: 0.2936746988 | D10: 0.2694848085 | E10: 0.3194103194 | F10: 0.322180917 | G10: 0.3891687657 | H10: 0.4128787879 | I10: 0.4344569288 | J10: 0.4196832579 | K10: 0.4031476998 | L10: 0.3927272727 | M10: 0.4065934066 | N10: 0.3893905192 | O10: 0.3495934959 | P10: 0.3817980022 | Q10: 0.4184239734 | R10: 0.4048672566 | S10: 0.4382384533
A11: Colusa | B11: 0.3695652174 | C11: 0.2404371585 | D11: 0.3333333333 | E11: 0.3114035088 | F11: 0.2111111111 | G11: 0.4587155963 | H11: 0.436 | I11: 0.4759825328 | J11: 0.4503546099 | K11: 0.3866171004 | L11: 0.4966216216 | M11: 0.4646017699 | N11: 0.4869565217 | O11: 0.5021834061 | P11: 0.5564202335 | Q11: 0.5479452055 | R11: 0.5272727273 | S11: 0.5353535354
A12: Contra Costa | B12: 0.1917788599 | C12: 0.1922912206 | D12: 0.1536771169 | E12: 0.1333709291 | F12: 0.1796469367 | G12: 0.1777696437 | H12: 0.1730555898 | I12: 0.1739298608 | J12: 0.1915833225 | K12: 0.1827666626 | L12: 0.1827666626 | M12: 0.1962774958 | N12: 0.2193784278 | O12: 0.2349791791 | P12: 0.2279937038 | Q12: 0.2282835302 | R12: 0.255461165 | S12: 0.23366671
A13: Del Norte | B13: 0.3935018051 | C13: 0.3070652174 | D13: 0.2795275591 | E13: 0.2934782609 | F13: 0.3062953995 | G13: 0.44 | H13: 0.3820224719 | I13: 0.4117647059 | J13: 0.3530726257 | K13: 0.3549083064 | L13: 0.3598574822 | M13: 0.4163473819 | N13: 0.3921568627 | O13: 0.3643067847 | P13: 0.3414634146 | Q13: 0.3817934783 | R13: 0.3804945055 | S13: 0.3429355281
A14: El Dorado | B14: 0.4991816694 | C14: 0.3141388175 | D14: 0.3047962867 | E14: 0.3144303797 | F14: 0.3260976813 | G14: 0.4855256475 | H14: 0.4689655172 | I14: 0.5244423351 | J14: 0.5050505051 | K14: 0.4574723691 | L14: 0.4862888483 | M14: 0.4500241429 | N14: 0.476691042 | O14: 0.4584513692 | P14: 0.4557564225 | Q14: 0.4547481052 | R14: 0.4776559865 | S14: 0.4743362832
A15: Fresno | B15: 0.1292609763 | C15: 0.1231184323 | D15: 0.1319213732 | E15: 0.1227690644 | F15: 0.09655588603 | G15: 0.07733320751 | H15: 0.1208453991 | I15: 0.1340255591 | J15: 0.1324527387 | K15: 0.1250805932 | L15: 0.1250805932 | M15: 0.1409398455 | N15: 0.140094559 | O15: 0.1340317171 | P15: 0.1422901603 | Q15: 0.150646325 | R15: 0.1480161135 | S15: 0.1487345717
A16: Glenn | B16: 0.4240506329 | C16: 0.1960352423 | D16: 0.2055674518 | E16: 0.2271662763 | F16: 0.2878151261 | G16: 0.4009009009 | H16: 0.4151329243 | I16: 0.436123348 | J16: 0.4090909091 | K16: 0.3709677419 | L16: 0.4217391304 | M16: 0.4370709382 | N16: 0.4220532319 | O16: 0.4446854664 | P16: 0.4242424242 | Q16: 0.4399185336 | R16: 0.41015625 | S16: 0.3673913043
A17: Humboldt | B17: 0.4808126411 | C17: 0.4059405941 | D17: 0.394420904 | E17: 0.4099099099 | F17: 0.4353912419 | G17: 0.498797664 | H17: 0.4304452882 | I17: 0.4623545517 | J17: 0.447846568 | K17: 0.4061151079 | L17: 0.4149637442 | M17: 0.4177121771 | N17: 0.4230124119 | O17: 0.4237855946 | P17: 0.4574762051 | Q17: 0.4597090095 | R17: 0.4660818713 | S17: 0.4448285797
A18: Imperial | B18: 0.2526851328 | C18: 0.2464266808 | D18: 0.2376723534 | E18: 0.2382905245 | F18: 0.2452085682 | G18: 0.3276529822 | H18: 0.3022308022 | I18: 0.3051160879 | J18: 0.2929591334 | K18: 0.2975110491 | L18: 0.3082896118 | M18: 0.2910523127 | N18: 0.2944250871 | O18: 0.3068532132 | P18: 0.2951043495 | Q18: 0.2851838099 | R18: 0.3278345725 | S18: 0.3150535285
A19: Inyo | B19: 0.2702702703 | C19: 0.2007042254 | D19: 0.2718120805 | E19: 0.2271186441 | F19: 0.2361516035 | G19: 0.4548387097 | H19: 0.4654654655 | I19: 0.4971264368 | J19: 0.4582210243 | K19: 0.4326647564 | L19: 0.5014492754 | M19: 0.473015873 | N19: 0.4666666667 | O19: 0.4588235294 | P19: 0.4503311258 | Q19: 0.4137931034 | R19: 0.4225352113 | S19: 0.4025559105
A20: Kern | B20: 0.3034734918 | C20: 0.2446815266 | D20: 0.2426822157 | E20: 0.2746272094 | F20: 0.2807583042 | G20: 0.3525323341 | H20: 0.3247478 | I20: 0.3404073342 | J20: 0.3493204263 | K20: 0.338902148 | L20: 0.3576767948 | M20: 0.3589148572 | N20: 0.3435408212 | O20: 0.330275762 | P20: 0.3233968616 | Q20: 0.3336149987 | R20: 0.3427065026 | S20: 0.3430932094
A21: Kings | B21: 0.2607709751 | C21: 0.2167857143 | D21: 0.2121103547 | E21: 0.2285429142 | F21: 0.2322770336 | G21: 0.3442800433 | H21: 0.3594793057 | I21: 0.3728923476 | J21: 0.3663943991 | K21: 0.3384757791 | L21: 0.3623716462 | M21: 0.3825503356 | N21: 0.3585083046 | O21: 0.3337874659 | P21: 0.353633218 | Q21: 0.370675453 | R21: 0.3463190184 | S21: 0.3678414097
A22: Lake | B22: 0.5361890694 | C22: 0.4274755927 | D22: 0.4160331721 | E22: 0.4315651604 | F22: 0.3581514763 | G22: 0.396 | H22: 0.3548585486 | I22: 0.3743990385 | J22: 0.3601598174 | K22: 0.3435771358 | L22: 0.3938080495 | M22: 0.3644558918 | N22: 0.3806954436 | O22: 0.3540489642 | P22: 0.3691476591 | Q22: 0.3998884551 | R22: 0.3988529718 | S22: 0.4033149171
A23: Lassen | B23: 0.6069364162 | C23: 0.2713347921 | D23: 0.247311828 | E23: 0.2933579336 | F23: 0.3049792531 | G23: 0.4589473684 | H23: 0.4128630705 | I23: 0.40625 | J23: 0.423853211 | K23: 0.3846153846 | L23: 0.4058577406 | M23: 0.3975694444 | N23: 0.4561717352 | O23: 0.4572564612 | P23: 0.440087146 | Q23: 0.4550669216 | R23: 0.4530938124 | S23: 0.474012474
A24: Los Angeles | B24: 0.2306056535 | C24: 0.01153314268 | D24: 0.01010495485 | E24: 0.008580408466 | F24: 0.007630571676 | G24: 0.03338003503 | H24: 0.03074199093 | I24: 0.02447995299 | J24: 0.0154963192 | K24: 0.01946573067 | L24: 0.01498629302 | M24: 0.01286398343 | N24: 0.1625061877 | O24: 0.1244704148 | P24: 0.164713753 | Q24: 0.1746420419 | S24: 0.4120181823
A25: Madera | B25: 0.319210679 | C25: 0.2407097422 | D25: 0.2726597325 | E25: 0.2784889166 | F25: 0.2726019846 | G25: 0.3317551573 | H25: 0.3266621438 | I25: 0.3302561048 | J25: 0.3065222996 | K25: 0.296388543 | L25: 0.3169889503 | M25: 0.3241082411 | N25: 0.3070825876 | O25: 0.318854265 | P25: 0.3379465723 | Q25: 0.3453155958 | R25: 0.3133283321 | S25: 0.3035443805
A26: Marin | B26: 0.2051282051 | C26: 0.2922794118 | D26: 0.2898368883 | E26: 0.3099630996 | F26: 0.298088411 | G26: 0.3914067098 | H26: 0.3787356322 | I26: 0.3842925659 | J26: 0.3935406699 | K26: 0.362012987 | L26: 0.4091653028 | M26: 0.3942757009 | N26: 0.4078036501 | O26: 0.4020918071 | P26: 0.4254957507 | Q26: 0.4249044238 | R26: 0.4452354874 | S26: 0.4119960669
A27: Mariposa | B27: 0.2956521739 | C27: 0.276 | D27: 0.262295082 | E27: 0.329588015 | F27: 0.2852233677 | G27: 0.4097744361 | H27: 0.3598615917 | I27: 0.4007936508 | J27: 0.4046692607 | K27: 0.3442028986 | L27: 0.4061433447 | M27: 0.4169491525 | N27: 0.4504792332 | O27: 0.3531468531 | P27: 0.3720136519 | Q27: 0.4501607717 | R27: 0.4036697248 | S27: 0.4106583072
A28: Mendocino | B28: 0.294205052 | C28: 0.3258373206 | D28: 0.3193236715 | E28: 0.3506809339 | F28: 0.4038135593 | G28: 0.4469007369 | H28: 0.4509803922 | I28: 0.4492167761 | J28: 0.3964737794 | K28: 0.2222654729 | L28: 0.4020028612 | M28: 0.490605428 | N28: 0.440653532 | O28: 0.5010334849 | P28: 0.475394171 | Q28: 0.4933135215 | R28: 0.4332096475 | S28: 0.4421392347
A29: Merced | B29: 0.3931710615 | C29: 0.2909751037 | D29: 0.3117289028 | E29: 0.3141377687 | F29: 0.2990302504 | G29: 0.3126534621 | H29: 0.2867963761 | I29: 0.3083978217 | J29: 0.3098628009 | K29: 0.2957267485 | L29: 0.3088014419 | M29: 0.3257243196 | N29: 0.3176686794 | O29: 0.311485178 | P29: 0.3153846154 | Q29: 0.326108514 | R29: 0.3296334538 | S29: 0.3318694188
A30: Modoc | B30: 0.5964912281 | C30: 0.2642857143 | D30: 0.2671755725 | E30: 0.25 | F30: 0.2808988764 | G30: 0.5147058824 | H30: 0.4895104895 | I30: 0.5125 | J30: 0.4 | K30: 0.4666666667 | L30: 0.4296875 | M30: 0.5182481752 | N30: 0.487804878 | O30: 0.4304635762 | P30: 0.4936708861 | Q30: 0.421875 | R30: 0.3961038961 | S30: 0.4452554745
A31: Mono | B31: 0.4137931034 | C31: 0.09375 | D31: 0.09345794393 | E31: 0.186746988 | F31: 0.1433823529 | G31: 0.7566137566 | H31: 0.6798029557 | I31: 0.6432748538 | J31: 0.5853658537 | K31: 0.6524822695 | L31: 0.6023391813 | M31: 0.5846153846 | N31: 0.6678571429 | O31: 0.631840796 | P31: 0.6455696203 | Q31: 0.6 | R31: 0.6052631579 | S31: 0.6292134831
A32: Monterey | B32: 0.3079584775 | C32: 0.2167078374 | D32: 0.2491317435 | E32: 0.2514938489 | F32: 0.1714624038 | G32: 0.3553151654 | H32: 0.3515737503 | I32: 0.3878481013 | J32: 0.3508615898 | K32: 0.3223037024 | L32: 0.3752728716 | M32: 0.4150274105 | N32: 0.3561401685 | O32: 0.3731819794 | P32: 0.3892871366 | Q32: 0.3991603172 | R32: 0.3605107067 | S32: 0.4062865742
A33: Napa | B33: 0.5694980695 | C33: 0.3646578141 | D33: 0.40625 | E33: 0.4226519337 | F33: 0.4488636364 | G33: 0.4735294118 | H33: 0.4428571429 | I33: 0.4756554307 | J33: 0.4182847896 | K33: 0.4109867752 | L33: 0.3755458515 | M33: 0.4158415842 | N33: 0.4163987138 | O33: 0.4147058824 | P33: 0.4124872057 | Q33: 0.4036199095 | R33: 0.4081796311 | S33: 0.4491129785
A34: Nevada | B34: 0.3414043584 | C34: 0.2647362978 | D34: 0.2769818529 | E34: 0.3048543689 | F34: 0.2954341987 | G34: 0.5078534031 | H34: 0.4522854852 | I34: 0.4544012688 | J34: 0.4529780564 | K34: 0.4577922078 | L34: 0.4579799537 | M34: 0.4595879556 | N34: 0.4543325527 | O34: 0.4482213439 | P34: 0.4487079092 | Q34: 0.4426605505 | R34: 0.4578125 | S34: 0.4308053167
A35: Orange | B35: 0.1130730601 | C35: 0.1340643192 | D35: 0.1319289917 | E35: 0.1297639457 | F35: 0.1342155855 | G35: 0.1289069724 | H35: 0.139160751 | I35: 0.1337412587 | J35: 0.1517365221 | K35: 0.1754297694 | L35: 0.1754297694 | M35: 0.1702233087 | N35: 0.1919414197 | O35: 0.1932450084 | P35: 0.1924335738 | Q35: 0.1932334849 | R35: 0.2015637949 | S35: 0.1988128362
A36: Placer | B36: 0.1971098266 | C36: 0.1919374248 | D36: 0.1795166858 | E36: 0.18275154 | F36: 0.1897073663 | G36: 0.1689049587 | H36: 0.179698883 | I36: 0.1862037872 | J36: 0.208600183 | K36: 0.2153351699 | L36: 0.2153351699 | M36: 0.2 | N36: 0.2456140351 | O36: 0.2424003158 | P36: 0.2429227238 | Q36: 0.2591660676 | R36: 0.2512185977 | S36: 0.2282560706
A37: Plumas | B37: 0.3 | C37: 0.2365591398 | D37: 0.2256410256 | E37: 0.2966101695 | F37: 0.2903225806 | G37: 0.4782608696 | H37: 0.4710743802 | I37: 0.5 | J37: 0.4641638225 | K37: 0.4384615385 | L37: 0.4484126984 | M37: 0.4692556634 | N37: 0.4454277286 | O37: 0.4076923077 | P37: 0.4785992218 | Q37: 0.5067385445 | R37: 0.4297520661 | S37: 0.4234234234
A38: Riverside | B38: 0.3453929219 | C38: 0.3030413803 | D38: 0.3058081277 | E38: 0.3260175691 | F38: 0.3136283852 | G38: 0.3843365231 | H38: 0.3698152114 | I38: 0.3672580848 | J38: 0.3652104208 | K38: 0.3540643144 | L38: 0.3815779103 | M38: 0.3763372389 | N38: 0.371923873 | O38: 0.3858951926 | P38: 0.3838989037 | Q38: 0.3776630084 | R38: 0.3807857757 | S38: 0.3886172783
A39: Sacramento | B39: 0.1421820068 | C39: 0.1371906628 | D39: 0.1387440017 | E39: 0.1198006932 | F39: 0.1133898806 | G39: 0.1123196163 | H39: 0.1203268641 | I39: 0.122646433 | J39: 0.1456475058 | K39: 0.1536722663 | L39: 0.1536722663 | M39: 0.1620465706 | N39: 0.1872629183 | O39: 0.188660169 | P39: 0.1852048156 | Q39: 0.2002802242 | R39: 0.2073236627 | S39: 0.2037816019
A40: San Benito | B40: 0.3446327684 | C40: 0.2703751617 | D40: 0.2873134328 | E40: 0.3309438471 | F40: 0.2916666667 | G40: 0.4080536913 | H40: 0.3753180662 | I40: 0.4223013049 | J40: 0.4023323615 | K40: 0.3825983313 | L40: 0.4174252276 | M40: 0.421641791 | N40: 0.4043715847 | O40: 0.436827957 | P40: 0.4195323246 | Q40: 0.4445859873 | R40: 0.4388489209 | S40: 0.4197031039
A41: San Bernardino | B41: 0.3181793345 | C41: 0.2819731227 | D41: 0.2869844349 | E41: 0.3100991728 | F41: 0.2914608494 | G41: 0.3517576937 | H41: 0.3272931619 | I41: 0.3308967626 | J41: 0.3279817912 | K41: 0.3283158675 | L41: 0.348851405 | M41: 0.3366167534 | N41: 0.3513220079 | O41: 0.3522557125 | P41: 0.3548246223 | Q41: 0.3537452057 | R41: 0.3661910399 | S41: 0.3668827806
A42: San Diego | B42: 0.1936472455 | C42: 0.2007616785 | D42: 0.2001663787 | E42: 0.193823127 | F42: 0.180598099 | G42: 0.1053021392 | H42: 0.1097303343 | I42: 0.1753828557 | J42: 0.2236782784 | K42: 0.1997044023 | L42: 0.1997044023 | M42: 0.1776635165 | N42: 0.2109481371 | O42: 0.2071751778 | P42: 0.2089825563 | Q42: 0.2218946882 | R42: 0.226994612 | S42: 0.2215177775
A43: San Francisco | B43: 0.2146448774 | C43: 0.2214495441 | D43: 0.2237415477 | E43: 0.2365759863 | F43: 0.2358231707 | G43: 0.2300693241 | H43: 0.2250347705 | I43: 0.239555864 | J43: 0.2527909466 | K43: 0.2595828636 | L43: 0.2595828636 | M43: 0.2375891296 | N43: 0.2731345589 | O43: 0.2539210384 | P43: 0.2411588683 | Q43: 0.2565853659 | R43: 0.2478777589 | S43: 0.246509718
A44: San Joaquin | B44: 0.2994478727 | C44: 0.2473711429 | D44: 0.244916366 | E44: 0.2560315496 | F44: 0.2485866834 | G44: 0.3020948181 | H44: 0.2839084635 | I44: 0.2865105122 | J44: 0.3012790464 | K44: 0.2894791885 | L44: 0.3095320384 | M44: 0.3025027964 | N44: 0.3022058312 | O44: 0.3123063926 | P44: 0.3145374449 | Q44: 0.3172373616 | R44: 0.3351791531 | S44: 0.3354434597
A45: San Luis Obispo | B45: 0.1441334127 | C45: 0.1636469901 | D45: 0.1831218974 | E45: 0.1639175258 | F45: 0.1778107974 | G45: 0.1505376344 | H45: 0.177444387 | I45: 0.1836734694 | J45: 0.1900744417 | K45: 0.1786612984 | L45: 0.1786612984 | M45: 0.2478438493 | N45: 0.2202519832 | O45: 0.2176684882 | P45: 0.2173302108 | Q45: 0.2299417302 | R45: 0.2349632194 | S45: 0.217853839
A46: San Mateo | B46: 0.1424202709 | C46: 0.1345603272 | D46: 0.152131404 | E46: 0.1608738828 | F46: 0.1501706485 | G46: 0.1543950697 | H46: 0.1658130602 | I46: 0.1629027401 | J46: 0.2003757044 | K46: 0.2256208359 | L46: 0.2256208359 | M46: 0.2044346979 | N46: 0.2282182695 | O46: 0.2207395051 | P46: 0.2225282291 | Q46: 0.2289002558 | R46: 0.2447407407 | S46: 0.2507122507
A47: Santa Barbara | B47: 0.1317348378 | C47: 0.1565101565 | D47: 0.1691952507 | E47: 0.1817933297 | F47: 0.1564610012 | G47: 0.148474017 | H47: 0.1880640466 | I47: 0.1954666667 | J47: 0.1737426519 | K47: 0.1807168097 | L47: 0.1807168097 | M47: 0.1935135135 | N47: 0.1959214789 | O47: 0.2101865136 | P47: 0.2101863354 | Q47: 0.1859037328 | R47: 0.1684231458 | S47: 0.2109872611
A48: Santa Clara | B48: 0.1446991404 | C48: 0.1445574771 | D48: 0.1456483126 | E48: 0.12811052 | F48: 0.119847973 | G48: 0.1262781611 | H48: 0.1265642059 | I48: 0.1397806421 | J48: 0.1615838662 | K48: 0.1783419278 | L48: 0.1783419278 | M48: 0.1786173999 | N48: 0.1904142973 | O48: 0.1901887369 | P48: 0.1902634055 | Q48: 0.2024399843 | R48: 0.2053266004 | S48: 0.185033568
A49: Santa Cruz | B49: 0.1849906191 | C49: 0.1563698338 | D49: 0.1513409962 | E49: 0.1932216595 | F49: 0.1625956981 | G49: 0.1818923328 | H49: 0.2245731255 | I49: 0.2313432836 | J49: 0.2088325916 | K49: 0.1973490427 | L49: 0.1973490427 | M49: 0.2178443504 | N49: 0.1941195068 | O49: 0.210817856 | P49: 0.193131695 | Q49: 0.2233452886 | R49: 0.1764705882 | S49: 0.1825816485
A50: Shasta | B50: 0.3907649897 | C50: 0.2862811791 | D50: 0.304004215 | E50: 0.3153197819 | F50: 0.366144866 | G50: 0.4603340292 | H50: 0.4337321135 | I50: 0.4399205561 | J50: 0.4006131834 | K50: 0.3807692308 | L50: 0.4112983152 | M50: 0.3793383948 | N50: 0.4113294208 | O50: 0.418894368 | P50: 0.4220272904 | Q50: 0.4315321984 | R50: 0.4394250513 | S50: 0.4471016376
A51: Sierra | B51: 0.1538461538 | C51: 0.1612903226 | D51: 0.2325581395 | E51: 0.2121212121 | F51: 0.2093023256 | G51: 0.48 | H51: 0.3870967742 | I51: 0.4827586207 | J51: 0.4130434783 | K51: 0.2631578947 | L51: 0.46875 | M51: 0.3636363636 | N51: 0.4893617021 | O51: 0.3846153846 | P51: 0.2916666667 | Q51: 0.3818181818 | R51: 0.5789473684 | S51: 0.4745762712
A52: Siskiyou | B52: 0.379204893 | C52: 0.3057742782 | D52: 0.2873134328 | E52: 0.3099078341 | F52: 0.3058035714 | G52: 0.3948019802 | H52: 0.366704162 | I52: 0.3734177215 | J52: 0.3642921551 | K52: 0.349137931 | L52: 0.3852183651 | M52: 0.4102564103 | N52: 0.3908045977 | O52: 0.3784994401 | P52: 0.3732162459 | Q52: 0.3974854932 | R52: 0.3861082737 | S52: 0.4053156146
A53: Solano | B53: 0.2159981558 | C53: 0.2062043796 | D53: 0.197265625 | E53: 0.1825472599 | F53: 0.1978166761 | G53: 0.1816359993 | H53: 0.1821628453 | I53: 0.1985071974 | J53: 0.2302631579 | K53: 0.2102786826 | L53: 0.2102786826 | M53: 0.1966798419 | N53: 0.249958145 | O53: 0.2337345194 | P53: 0.188615837 | Q53: 0.2120967742 | R53: 0.2515369752 | S53: 0.2404502676
A54: Sonoma | B54: 0.1655882353 | C54: 0.1534995494 | D54: 0.1480970767 | E54: 0.1753018109 | F54: 0.1638881765 | G54: 0.178177458 | H54: 0.1941489362 | I54: 0.2098086124 | J54: 0.2245744216 | K54: 0.2257315374 | L54: 0.2257315374 | M54: 0.2148892441 | N54: 0.2199820789 | O54: 0.2136030229 | P54: 0.2099253404 | Q54: 0.2364464692 | R54: 0.2296072508 | S54: 0.2313415485
A55: Stanislaus | B55: 0.2858273951 | C55: 0.263251048 | D55: 0.2848337529 | E55: 0.3225110022 | F55: 0.2838642839 | G55: 0.3564254442 | H55: 0.3302084896 | I55: 0.3333333333 | J55: 0.3513117397 | K55: 0.3358962411 | L55: 0.3629222909 | M55: 0.3692742984 | N55: 0.367131458 | O55: 0.3622920518 | P55: 0.3652737183 | Q55: 0.382147419 | R55: 0.400781001 | S55: 0.3944426442
A56: Sutter | B56: 0.4189655172 | C56: 0.2328966521 | D56: 0.2794729542 | E56: 0.2781667728 | F56: 0.2889273356 | G56: 0.4244105409 | H56: 0.4181360202 | I56: 0.4130841121 | J56: 0.3968426783 | K56: 0.4009351257 | L56: 0.4154411765 | M56: 0.3935790725 | N56: 0.4108227499 | O56: 0.4176153385 | P56: 0.4545994065 | Q56: 0.4069239501 | R56: 0.3996755003 | S56: 0.3882495457
A57: Tehama | B57: 0.3780718336 | C57: 0.2497978981 | D57: 0.2679245283 | E57: 0.287732342 | F57: 0.3246110325 | G57: 0.4217585693 | H57: 0.3813333333 | I57: 0.3520249221 | J57: 0.4014300306 | K57: 0.3900096061 | L57: 0.370539104 | M57: 0.4146685472 | N57: 0.4573357888 | O57: 0.4371029225 | P57: 0.4581650317 | Q57: 0.4291938998 | R57: 0.430840503 | S57: 0.4309677419
A58: Trinity | B58: 0.36 | C58: 0.3151750973 | D58: 0.3461538462 | E58: 0.4914675768 | F58: 0.4804270463 | G58: 0.4270072993 | H58: 0.480620155 | I58: 0.4852941176 | J58: 0.4042553191 | K58: 0.3834951456 | L58: 0.5652173913 | M58: 0.4939271255 | N58: 0.4902723735 | O58: 0.5 | P58: 0.5337423313 | Q58: 0.5164473684 | R58: 0.5034246575 | S58: 0.5135135135
A59: Tulare | B59: 0.1173784582 | C59: 0.1171883233 | D59: 0.1172002692 | E59: 0.1158703072 | F59: 0.1017764332 | G59: 0.10698728 | H59: 0.1146624385 | I59: 0.1162042622 | J59: 0.1230791746 | K59: 0.123442335 | L59: 0.123442335 | M59: 0.1319188858 | N59: 0.134456744 | O59: 0.1387711864 | P59: 0.1423392067 | Q59: 0.1400088942 | R59: 0.1380687974 | S59: 0.1461402021
A60: Tuolumne | B60: 0.3365695793 | C60: 0.2270011947 | D60: 0.2327790974 | E60: 0.2709677419 | F60: 0.237458194 | G60: 0.4074074074 | H60: 0.4611111111 | I60: 0.4541484716 | J60: 0.4348739496 | K60: 0.4498448811 | L60: 0.4395480226 | M60: 0.4344608879 | N60: 0.4490238612 | O60: 0.4407135362 | P60: 0.4295454545 | Q60: 0.4269547325 | R60: 0.4250513347 | S60: 0.4402061856
A61: Ventura | B61: 0.1974789916 | C61: 0.1929615777 | D61: 0.1886577836 | E61: 0.1722164412 | F61: 0.1848586985 | G61: 0.1828515296 | H61: 0.1913464123 | I61: 0.1874299938 | J61: 0.213490099 | K61: 0.2094887633 | L61: 0.2094887633 | M61: 0.20731065 | N61: 0.2101859337 | O61: 0.2091002629 | P61: 0.2234555443 | Q61: 0.2124584027 | R61: 0.2249426167 | S61: 0.2378569685
A62: Yolo | B62: 0.1658595642 | C62: 0.1546072975 | D62: 0.1643437863 | E62: 0.1689401889 | F62: 0.1897172237 | G62: 0.1602266873 | H62: 0.1709486166 | I62: 0.1873467386 | J62: 0.1744360902 | K62: 0.2029190207 | L62: 0.2029190207 | M62: 0.2032759345 | N62: 0.2095808383 | O62: 0.1926415874 | P62: 0.2070767994 | Q62: 0.2020354316 | R62: 0.1966140823 | S62: 0.2003117693
A63: Yuba | B63: 0.3369565217 | C63: 0.2958070075 | D63: 0.2735141373 | E63: 0.2902675014 | F63: 0.3123317178 | G63: 0.4380504991 | H63: 0.4497663551 | I63: 0.4286523216 | J63: 0.4188984336 | K63: 0.3721174004 | L63: 0.4075052854 | M63: 0.3897379913 | N63: 0.3966155473 | O63: 0.3962053571 | P63: 0.3872576177 | Q63: 0.3889193637 | R63: 0.3993694167 | S63: 0.4084507042
A67: Sum of pct_unsuccessful_recert_reapply | B67: Column Labels
B68: 2011 | C68: 2012 | G68: 2013 | K68: 2014 | O68: 2015 | S68: 2016
A69: Row Labels | B69: 4 | C69: 1 | D69: 2 | E69: 3 | F69: 4 | G69: 1 | H69: 2 | I69: 3 | J69: 4 | K69: 1 | L69: 2 | M69: 3 | N69: 4 | O69: 1 | P69: 2 | Q69: 3 | R69: 4 | S69: 1
A70: California | B70: 0.5705469362 | C70: 0.7016695385 | D70: 0.7034651705 | E70: 0.7014742737 | F70: 0.7175585869 | G70: 0.5236892915 | H70: 0.5371699391 | I70: 0.5496555152 | J70: 0.6609425219 | K70: 0.66452857 | L70: 0.6418631397 | M70: 0.6783687331 | N70: 0.6057260822 | O70: 0.5848206654 | P70: 0.5677031093 | Q70: 0.5402430414 | R70: 0.6305342467 | S70: 0.4759850325
A71: Alameda | B71: 0.4981799272 | C71: 0.4871111111 | D71: 0.4808811305 | E71: 0.4916882157 | F71: 0.5018102824 | G71: 0.5197298258 | H71: 0.4825970549 | I71: 0.4939799331 | J71: 0.5132641292 | K71: 0.4745808545 | L71: 0.4745808545 | M71: 0.4942765568 | N71: 0.534162949 | O71: 0.4920091324 | P71: 0.5114503817 | Q71: 0.4292565947 | R71: 0.4768164436 | S71: 0.4650433944
A72: Alpine | B72: 1 | C72: 0.3333333333 | D72: 0.25 | E72: 0.3333333333 | F72: 1 | G72: 0.1428571429 | H72: 0.2142857143 | I72: 0.3846153846 | J72: 0.3636363636 | K72: 0.1666666667 | L72: 0 | M72: 0.09090909091 | N72: 0.1428571429 | O72: 0 | P72: 0.1176470588 | Q72: 0 | R72: 0.1 | S72: 0.08333333333
A73: Amador | B73: 0.9230769231 | C73: 0.7106918239 | D73: 0.6666666667 | E73: 0.6470588235 | F73: 0.701754386 | G73: 0.4641350211 | H73: 0.3936170213 | I73: 0.463878327 | J73: 0.3281853282 | K73: 0.4402985075 | L73: 0.4494382022 | M73: 0.5560165975 | N73: 0.562248996 | O73: 0.5925925926 | P73: 0.601659751 | Q73: 0.6497890295 | R73: 0.7411764706 | S73: 0.6184738956
A74: Butte | B74: 0.9528469751 | C74: 0.7510971787 | D74: 0.767063922 | E74: 0.7260668973 | F74: 0.7293325168 | G74: 0.5876832845 | H74: 0.6262916188 | I74: 0.5369239311 | J74: 0.6976863753 | K74: 0.7392739274 | L74: 0.704616999 | M74: 0.7223382046 | N74: 0.7742474916 | O74: 0.6977730647 | P74: 0.7118730809 | Q74: 0.6076071257 | R74: 0.6096446701 | S74: 0.633910387
A75: Calaveras | B75: 0.9576271186 | C75: 0.6923076923 | D75: 0.6764705882 | E75: 0.6807692308 | F75: 0.5961538462 | G75: 0.3721682848 | H75: 0.4006116208 | I75: 0.433908046 | J75: 0.3369272237 | K75: 0.4294294294 | L75: 0.4259259259 | M75: 0.4174174174 | N75: 0.4985507246 | O75: 0.6079734219 | P75: 0.4738372093 | Q75: 0.4588859416 | R75: 0.5191256831 | S75: 0.5588235294
A76: Colusa | B76: 0.9411764706 | C76: 0.5681818182 | D76: 0.6071428571 | E76: 0.676056338 | F76: 0.6315789474 | G76: 0.48 | H76: 0.3944954128 | I76: 0.5596330275 | J76: 0.3937007874 | K76: 0.6346153846 | L76: 0.5578231293 | M76: 0.8476190476 | N76: 0.7589285714 | O76: 0.7565217391 | P76: 0.6573426573 | Q76: 0.6416666667 | R76: 0.5793103448 | S76: 0.5849056604
A77: Contra Costa | B77: 0.6594473488 | C77: 0.844840386 | D77: 0.676835081 | E77: 0.6310782241 | F77: 0.6148843931 | G77: 0.5737817433 | H77: 0.5527065527 | I77: 0.4870274277 | J77: 0.6203389831 | K77: 0.563465413 | L77: 0.563465413 | M77: 0.5867816092 | N77: 0.5405555556 | O77: 0.4992405063 | P77: 0.5454062666 | Q77: 0.5220700152 | R77: 0.5249406176 | S77: 0.5002779322
A78: Del Norte | B78: 0.9174311927 | C78: 0.7654867257 | D78: 0.7042253521 | E78: 0.7572016461 | F78: 0.7747035573 | G78: 0.5085227273 | H78: 0.4607843137 | I78: 0.4714285714 | J78: 0.5981012658 | K78: 0.6595744681 | L78: 0.7524752475 | M78: 0.6196319018 | N78: 0.696875 | O78: 0.8380566802 | P78: 0.984962406 | Q78: 0.7900355872 | R78: 0.7906137184 | S78: 0.952
A79: El Dorado | B79: 0.9278688525 | C79: 0.6906710311 | D79: 0.6565143824 | E79: 0.6682769726 | F79: 0.7276853253 | G79: 0.4372384937 | H79: 0.462745098 | I79: 0.4208144796 | J79: 0.44 | K79: 0.4443277311 | L79: 0.4567669173 | M79: 0.5493562232 | N79: 0.4534995206 | O79: 0.5489186406 | P79: 0.5240083507 | Q79: 0.518627451 | R79: 0.4333627538 | S79: 0.4542910448
A80: Fresno | B80: 0.8505625879 | C80: 0.9046520569 | D80: 0.8534452606 | E80: 0.9552694002 | F80: 0.9700892857 | G80: 0.9206833435 | H80: 0.94527897 | I80: 0.8894517282 | J80: 0.8603232693 | K80: 0.7336769759 | L80: 0.7336769759 | M80: 0.7940713536 | N80: 0.8625172891 | O80: 0.7451343837 | P80: 0.7887323944 | Q80: 0.7585432776 | R80: 0.8521194605 | S80: 0.7267393127
A81: Glenn | B81: 0.9402985075 | C81: 0.6404494382 | D81: 0.7083333333 | E81: 0.6391752577 | F81: 0.7591240876 | G81: 0.4325842697 | H81: 0.2610837438 | I81: 0.2777777778 | J81: 0.3888888889 | K81: 0.375 | L81: 0.3350515464 | M81: 0.3979057592 | N81: 0.4594594595 | O81: 0.3707317073 | P81: 0.3461538462 | Q81: 0.3657407407 | R81: 0.3571428571 | S81: 0.5384615385
A82: Humboldt | B82: 0.9084507042 | C82: 0.6467931346 | D82: 0.6705461056 | E82: 0.652014652 | F82: 0.6999175598 | G82: 0.5599173554 | H82: 0.6006415397 | I82: 0.5906735751 | J82: 0.5439519159 | K82: 0.5580159433 | L82: 0.597299444 | M82: 0.6855123675 | N82: 0.6669310071 | O82: 0.6505928854 | P82: 0.5805369128 | Q82: 0.6506390749 | R82: 0.6417816813 | S82: 0.6904145078
A83: Imperial | B83: 0.8590604027 | C83: 0.6842105263 | D83: 0.6735496559 | E83: 0.6865942029 | F83: 0.6609195402 | G83: 0.4412923562 | H83: 0.4237047551 | I83: 0.4626262626 | J83: 0.6075630252 | K83: 0.6974198593 | L83: 0.6963921035 | M83: 0.7925052047 | N83: 0.674556213 | O83: 0.7310664606 | P83: 0.6701916722 | Q83: 0.630859375 | R83: 0.5811481219 | S83: 0.6699029126
A84: Inyo | B84: 0.8666666667 | C84: 0.7192982456 | D84: 0.6049382716 | E84: 0.6417910448 | F84: 0.8271604938 | G84: 0.3404255319 | H84: 0.5290322581 | I84: 0.3468208092 | J84: 0.5 | K84: 0.5165562914 | L84: 0.4335260116 | M84: 0.4966442953 | N84: 0.5542857143 | O84: 0.5512820513 | P84: 0.5661764706 | Q84: 0.7045454545 | R84: 0.5866666667 | S84: 0.6587301587
A85: Kern | B85: 0.836919105 | C85: 0.709836491 | D85: 0.6638635272 | E85: 0.6616352201 | F85: 0.677369138 | G85: 0.4294531116 | H85: 0.4028420357 | I85: 0.4316896985 | J85: 0.6569629111 | K85: 0.6280409731 | L85: 0.5913396482 | M85: 0.6186884236 | N85: 0.655569193 | O85: 0.5904376868 | P85: 0.6089657488 | Q85: 0.5961690676 | R85: 0.6267806268 | S85: 0.5997892836
A86: Kings | B86: 0.8579710145 | C86: 0.6968698517 | D86: 0.6756756757 | E86: 0.6579330422 | F86: 0.7327707454 | G86: 0.5503144654 | H86: 0.5088207985 | I86: 0.5069565217 | J86: 0.9219745223 | K86: 0.9398359161 | L86: 0.8564899452 | M86: 0.8096491228 | N86: 0.840034965 | O86: 0.9010204082 | P86: 0.8003913894 | Q86: 0.6622222222 | R86: 0.7023914969 | S86: 0.5560307956
A87: Lake | B87: 0.9752066116 | C87: 0.7634584013 | D87: 0.7093023256 | E87: 0.6646433991 | F87: 0.7329749104 | G87: 0.5909090909 | H87: 0.5112651646 | I87: 0.4574638844 | J87: 0.7194928685 | K87: 0.9570661896 | L87: 0.7578616352 | M87: 0.832155477 | N87: 0.7559055118 | O87: 0.8067375887 | P87: 0.7317073171 | Q87: 0.7126917713 | R87: 0.7058823529 | S87: 0.6547945205
A88: Lassen | B88: 0.9428571429 | C88: 0.7903225806 | D88: 0.6869565217 | E88: 0.6540880503 | F88: 0.6054421769 | G88: 0.4266055046 | H88: 0.3417085427 | I88: 0.4841628959 | J88: 0.5151515152 | K88: 0.6307692308 | L88: 0.5309278351 | M88: 0.4541484716 | N88: 0.3921568627 | O88: 0.5086956522 | P88: 0.5891089109 | Q88: 0.5630252101 | R88: 0.4933920705 | S88: 0.3815789474
A89: Los Angeles | B89: 0.1012037966 | C89: 0.4656577416 | D89: 0.5326086957 | E89: 0.5947075209 | F89: 0.7524271845 | G89: 0.6838055264 | H89: 0.6739642977 | I89: 0.7504139073 | J89: 0.9211858279 | K89: 1.17136958 | L89: 0.8869918699 | M89: 0.9778672032 | N89: 0.08168593808 | O89: 0.09044293166 | P89: 0.07101899415 | Q89: 0.06214353612 | S89: 0.08937567757
A90: Madera | B90: 0.8763636364 | C90: 0.7315716273 | D90: 0.6975476839 | E90: 0.649103139 | F90: 0.7684529828 | G90: 0.496432212 | H90: 0.4859813084 | I90: 0.5455365194 | J90: 0.5887300252 | K90: 0.6964285714 | L90: 0.6230936819 | M90: 0.6470588235 | N90: 0.6278101582 | O90: 0.5853899309 | P90: 0.5914285714 | Q90: 0.5475409836 | R90: 0.4668794892 | S90: 0.4381237525
A91: Marin | B91: 0.8482142857 | C91: 0.572327044 | D91: 0.5562770563 | E91: 0.5813492063 | F91: 0.5851703407 | G91: 0.445112782 | H91: 0.4476479514 | I91: 0.4414976599 | J91: 0.5136778116 | K91: 0.5994020927 | L91: 0.4853333333 | M91: 0.56 | N91: 0.5864197531 | O91: 0.7398843931 | P91: 0.6484687084 | Q91: 0.618251928 | R91: 0.5719557196 | S91: 0.745823389
A92: Mariposa | B92: 0.9705882353 | C92: 0.5942028986 | D92: 0.671875 | E92: 0.5795454545 | F92: 0.6024096386 | G92: 0.4403669725 | H92: 0.6057692308 | I92: 0.2871287129 | J92: 0.4711538462 | K92: 0.6842105263 | L92: 0.4369747899 | M92: 0.487804878 | N92: 0.3971631206 | O92: 0.7326732673 | P92: 0.6055045872 | Q92: 0.6 | R92: 0.5075757576 | S92: 0.4580152672
A93: Mendocino | B93: 0.9494949495 | C93: 0.610866373 | D93: 0.5340393343 | E93: 0.53259362 | F93: 0.5949632739 | G93: 0.3879728419 | H93: 0.4096618357 | I93: 0.4746906637 | J93: 0.5997719498 | K93: 0.1208406305 | L93: 0.4270462633 | M93: 0.4946808511 | N93: 0.7011995638 | O93: 0.5767326733 | P93: 0.4884422111 | Q93: 0.468875502 | R93: 0.6145610278 | S93: 0.598540146
A94: Merced | B94: 0.9269131556 | C94: 0.8015448604 | D94: 0.7667546174 | E94: 0.7632367632 | F94: 0.7715392062 | G94: 0.5712041885 | H94: 0.64992232 | I94: 0.6226765799 | J94: 0.7702589808 | K94: 0.7845 | L94: 0.8263618677 | M94: 0.8036837376 | N94: 0.8570247934 | O94: 0.8292682927 | P94: 0.8030018762 | Q94: 0.7519548219 | R94: 0.7423649178 | S94: 0.7207763564
A95: Modoc | B95: 0.7058823529 | C95: 0.7567567568 | D95: 0.7714285714 | E95: 0.6774193548 | F95: 0.84 | G95: 0.3 | H95: 0.2714285714 | I95: 0.2926829268 | J95: 0.4722222222 | K95: 0.4126984127 | L95: 0.5090909091 | M95: 0.5070422535 | N95: 0.55 | O95: 0.7846153846 | P95: 0.4871794872 | Q95: 0.8333333333 | R95: 0.8032786885 | S95: 0.5245901639
A96: Mono | B96: 0.75 | C96: 0.4166666667 | D96: 0.6 | E96: 0.6129032258 | F96: 0.641025641 | G96: 0.1048951049 | H96: 0.09420289855 | I96: 0.2181818182 | J96: 0.175 | K96: 0.1956521739 | L96: 0.2330097087 | M96: 0.2368421053 | N96: 0.1069518717 | O96: 0.157480315 | P96: 0.1176470588 | Q96: 0.2407407407 | R96: 0.2028985507 | S96: 0.1339285714
A97: Monterey | B97: 0.8701622971 | C97: 0.7088082902 | D97: 0.6905204461 | E97: 0.6939203354 | F97: 0.7527624309 | G97: 0.3992974239 | H97: 0.39672323 | I97: 0.4055700609 | J97: 0.3764258555 | K97: 0.4800221976 | L97: 0.4542570069 | M97: 0.595959596 | N97: 0.6312408759 | O97: 0.4486692015 | P97: 0.5411764706 | Q97: 0.6256330347 | R97: 0.737311768 | S97: 0.4740740741
A98: Napa | B98: 0.9254237288 | C98: 0.731092437 | D98: 0.7559681698 | E98: 0.697167756 | F98: 0.7576853526 | G98: 0.6873706004 | H98: 0.633640553 | I98: 0.6417322835 | J98: 0.4622823985 | K98: 0.4678217822 | L98: 0.5261627907 | M98: 0.5692640693 | N98: 0.5347490347 | O98: 0.4302600473 | P98: 0.4789081886 | Q98: 0.4910313901 | R98: 0.5599214145 | S98: 0.4573804574
A99: Nevada | B99: 0.8865248227 | C99: 0.66796875 | D99: 0.6137931034 | E99: 0.6656050955 | F99: 0.6666666667 | G99: 0.295532646 | H99: 0.414893617 | I99: 0.3926701571 | J99: 0.384083045 | K99: 0.4131205674 | L99: 0.4646464646 | M99: 0.5172413793 | N99: 0.5034364261 | O99: 0.4567901235 | P99: 0.5322862129 | Q99: 0.4749568221 | R99: 0.4539249147 | S99: 0.5862068966
A100: Orange | B100: 0.6208213945 | C100: 0.5543844857 | D100: 0.6589205397 | E100: 0.6432926829 | F100: 0.6395736176 | G100: 0.5993543759 | H100: 0.6160579535 | I100: 0.5852644088 | J100: 0.6457772996 | K100: 0.5391969407 | L100: 0.5391969407 | M100: 0.6165340578 | N100: 0.6111879818 | O100: 0.5662417922 | P100: 0.5989392831 | Q100: 0.5583044983 | R100: 0.5727565248 | S100: 0.5282701997
A101: Placer | B101: 0.6862170088 | C101: 0.736677116 | D101: 0.6826923077 | E101: 0.6516853933 | F101: 0.5771276596 | G101: 0.5993883792 | H101: 0.5540540541 | I101: 0.5907990315 | J101: 0.8135964912 | K101: 0.684434968 | L101: 0.684434968 | M101: 0.7173076923 | N101: 0.7444444444 | O101: 0.6596091205 | P101: 0.6346456693 | Q101: 0.5409153953 | R101: 0.5776119403 | S101: 0.6034816248
A102: Plumas | B102: 0.8888888889 | C102: 0.7727272727 | D102: 0.5909090909 | E102: 0.7428571429 | F102: 0.8055555556 | G102: 0.3305785124 | H102: 0.2719298246 | I102: 0.3455882353 | J102: 0.3308823529 | K102: 0.4561403509 | L102: 0.5398230088 | M102: 0.6620689655 | N102: 0.5562913907 | O102: 0.6886792453 | P102: 0.4227642276 | Q102: 0.5106382979 | R102: 0.5128205128 | S102: 0.4468085106
A103: Riverside | B103: 0.8701506162 | C103: 0.6495778046 | D103: 0.6754652104 | E103: 0.6867960492 | F103: 0.6828902658 | G103: 0.4723827328 | H103: 0.466294946 | I103: 0.5009251011 | J103: 0.5741878841 | K103: 0.6557079786 | L103: 0.619113192 | M103: 0.6337055838 | N103: 0.6312900982 | O103: 0.6195050722 | P103: 0.5985824303 | Q103: 0.5792241946 | R103: 0.5987347492 | S103: 0.5388884778
A104: Sacramento | B104: 0.6866639643 | C104: 0.6379530917 | D104: 0.684962406 | E104: 0.6983725136 | F104: 0.7242277633 | G104: 0.7144491041 | H104: 0.6651952462 | I104: 0.6497545008 | J104: 0.7297986958 | K104: 0.6582059417 | L104: 0.6582059417 | M104: 0.6603128055 | N104: 0.7047040288 | O104: 0.677170418 | P104: 0.7205641864 | Q104: 0.6262242654 | R104: 0.6704089816 | S104: 0.710175146
A105: San Benito | B105: 0.9262295082 | C105: 0.6459330144 | D105: 0.6753246753 | E105: 0.7328519856 | F105: 0.7105263158 | G105: 0.3815789474 | H105: 0.4 | I105: 0.5449438202 | J105: 0.5338164251 | K105: 0.6105919003 | L105: 0.6012461059 | M105: 0.796460177 | N105: 0.9648648649 | O105: 0.7876923077 | P105: 0.606557377 | Q105: 0.7020057307 | R105: 0.700234192 | S105: 0.7009646302
A106: San Bernardino | B106: 0.9227202473 | C106: 0.7364166197 | D106: 0.7178723747 | E106: 0.7253683402 | F106: 0.7536490431 | G106: 0.4602669618 | H106: 0.5223808663 | I106: 0.5609120521 | J106: 0.765784745 | K106: 0.8001676554 | L106: 0.7552639253 | M106: 0.7640117994 | N106: 0.7614979095 | O106: 0.7215548574 | P106: 0.7143496503 | Q106: 0.6807866064 | R106: 0.6792581249 | S106: 0.598464318
A107: San Diego | B107: 0.9245950475 | C107: 0.9079359554 | D107: 0.9192774936 | E107: 0.9033280507 | F107: 0.9033047736 | G107: 0.851882499 | H107: 0.9007172518 | I107: 0.7757246377 | J107: 0.7914539102 | K107: 0.7198237885 | L107: 0.7198237885 | M107: 0.8045270816 | N107: 0.759424967 | O107: 0.6686427457 | P107: 0.679786128 | Q107: 0.6032821047 | R107: 0.6621965938 | S107: 0.6316697828
A108: San Francisco | B108: 0.6427525622 | C108: 0.629448709 | D108: 0.6232370719 | E108: 0.5556893438 | F108: 0.6328377505 | G108: 0.6497175141 | H108: 0.6872682324 | I108: 0.5538818076 | J108: 0.632183908 | K108: 0.6292073833 | L108: 0.6292073833 | M108: 0.6551528879 | N108: 0.6906108597 | O108: 0.6624068158 | P108: 0.6215454033 | Q108: 0.5736013036 | R108: 0.6301369863 | S108: 0.5924486396
A109: San Joaquin | B109: 0.8877440347 | C109: 0.7006968641 | D109: 0.6688985604 | E109: 0.6556931441 | F109: 0.68730259 | G109: 0.4528154327 | H109: 0.4754350051 | I109: 0.4745136666 | J109: 0.5519004223 | K109: 0.6789499037 | L109: 0.684680661 | M109: 0.7400046221 | N109: 0.7105687313 | O109: 0.6370604148 | P109: 0.6000861883 | Q109: 0.6223219751 | R109: 0.5836734694 | S109: 0.593166468
A110: San Luis Obispo | B110: 0.6570247934 | C110: 0.4964285714 | D110: 0.5843373494 | E110: 0.5377358491 | F110: 0.5515320334 | G110: 0.5204081633 | H110: 0.5685131195 | I110: 0.5899470899 | J110: 0.6684073107 | K110: 0.5352112676 | L110: 0.5352112676 | M110: 0.4853479853 | N110: 0.6122881356 | O110: 0.5690376569 | P110: 0.5517241379 | Q110: 0.5126705653 | R110: 0.5082872928 | S110: 0.4607218684
A111: San Mateo | B111: 0.773006135 | C111: 0.7112462006 | D111: 0.7737789203 | E111: 0.6769547325 | F111: 0.8727272727 | G111: 0.7394957983 | H111: 0.7181467181 | I111: 0.741219963 | J111: 0.75625 | K111: 0.5852348993 | L111: 0.5852348993 | M111: 0.6877234803 | N111: 0.6829590489 | O111: 0.6838790932 | P111: 0.6212871287 | Q111: 0.5932960894 | R111: 0.5859564165 | S111: 0.5590909091
A112: Santa Barbara | B112: 0.8886509636 | C112: 0.6531914894 | D112: 0.6608187135 | E112: 0.630075188 | F112: 0.6770833333 | G112: 0.6592592593 | H112: 0.613003096 | I112: 0.619372442 | J112: 0.7919799499 | K112: 0.4734636872 | L112: 0.4734636872 | M112: 0.6145251397 | N112: 0.5972762646 | O112: 0.5460750853 | P112: 0.5307328605 | Q112: 0.64332893 | R112: 0.7142857143 | S112: 0.6163522013
A113: Santa Clara | B113: 0.301980198 | C113: 0.2899366643 | D113: 0.2798102981 | E113: 0.3248492967 | F113: 0.326286117 | G113: 0.2969058591 | H113: 0.301924353 | I113: 0.2766323024 | J113: 0.3003551497 | K113: 0.2402135231 | L113: 0.2402135231 | M113: 0.320050869 | N113: 0.2555460751 | O113: 0.2430695058 | P113: 0.246394726 | Q113: 0.2091757387 | R113: 0.250297501 | S113: 0.1995575221
A114: Santa Cruz | B114: 0.6997971602 | C114: 0.4795640327 | D114: 0.3987341772 | E114: 0.5665322581 | F114: 0.5224215247 | G114: 0.4730941704 | H114: 0.305785124 | I114: 0.4210526316 | J114: 0.4 | K114: 0.2873134328 | L114: 0.2873134328 | M114: 0.3273542601 | N114: 0.2850162866 | O114: 0.2163833076 | P114: 0.1794453507 | Q114: 0.2423357664 | R114: 0.2821782178 | S114: 0.2095400341
A115: Shasta | B115: 0.9276895944 | C115: 0.7079207921 | D115: 0.6854419411 | E115: 0.6871069182 | F115: 0.7384057971 | G115: 0.4535147392 | H115: 0.4483504597 | I115: 0.3854401806 | J115: 0.4591836735 | K115: 0.5542087542 | L115: 0.5578313253 | M115: 0.6568977841 | N115: 0.6699751861 | O115: 0.666047088 | P115: 0.6651270208 | Q115: 0.5894797027 | R115: 0.6086448598 | S115: 0.6075581395
A116: Sierra | B116: 1 | C116: 0.8 | D116: 0.6 | E116: 0.2857142857 | F116: 0.6666666667 | G116: 0.25 | H116: 0.3333333333 | I116: 0.1785714286 | J116: 0.2631578947 | K116: 0.6666666667 | L116: 0.1666666667 | M116: 0.375 | N116: 0.2608695652 | O116: 0.28 | P116: 0.4285714286 | Q116: 0.2380952381 | R116: 0.09090909091 | S116: 0.1071428571
A117: Siskiyou | B117: 0.9435483871 | C117: 0.686695279 | D117: 0.6493506494 | E117: 0.6319702602 | F117: 0.6350364964 | G117: 0.4137931034 | H117: 0.3466257669 | I117: 0.4858757062 | J117: 0.5371287129 | K117: 0.7098765432 | L117: 0.613372093 | M117: 0.6658653846 | N117: 0.5857843137 | O117: 0.6360946746 | P117: 0.6294117647 | Q117: 0.7761557178 | R117: 0.7169312169 | S117: 0.650273224
A118: Solano | B118: 0.3287086446 | C118: 0.3727876106 | D118: 0.402640264 | E118: 0.3315899582 | F118: 0.3520456708 | G118: 0.3550651956 | H118: 0.3389494549 | I118: 0.2694717995 | J118: 0.2947368421 | K118: 0.2702237522 | L118: 0.2702237522 | M118: 0.2813504823 | N118: 0.2330877428 | O118: 0.2373134328 | P118: 0.214922049 | Q118: 0.2043726236 | R118: 0.2276536313 | S118: 0.2041442824
A119: Sonoma | B119: 0.5559502664 | C119: 0.6438356164 | D119: 0.6033519553 | E119: 0.525107604 | F119: 0.5492957746 | G119: 0.5141318977 | H119: 0.498132005 | I119: 0.4401368301 | J119: 0.6345966958 | K119: 0.4897119342 | L119: 0.4897119342 | M119: 0.5653560043 | N119: 0.6344195519 | O119: 0.5088449532 | P119: 0.5606694561 | Q119: 0.4749518304 | R119: 0.6080827068 | S119: 0.5869346734
A120: Stanislaus | B120: 0.9141274238 | C120: 0.6825902335 | D120: 0.715635477 | E120: 0.7386714727 | F120: 0.7299270073 | G120: 0.4460500963 | H120: 0.4106291165 | I120: 0.4554168524 | J120: 0.6898206091 | K120: 0.7657803468 | L120: 0.7325068292 | M120: 0.7165044523 | N120: 0.7598243688 | O120: 0.7279684601 | P120: 0.7208044983 | Q120: 0.6563114432 | R120: 0.6269636111 | S120: 0.5512425549
A121: Sutter | B121: 0.9588477366 | C121: 0.65625 | D121: 0.6674937965 | E121: 0.643020595 | F121: 0.7005988024 | G121: 0.3464052288 | H121: 0.4021084337 | I121: 0.395173454 | J121: 0.5720164609 | K121: 0.555393586 | L121: 0.5398230088 | M121: 0.7326283988 | N121: 0.5672043011 | O121: 0.5552367288 | P121: 0.5783289817 | Q121: 0.6025104603 | R121: 0.600811908 | S121: 0.6645865835
A122: Tehama | B122: 0.855 | C122: 0.6860841424 | D122: 0.676056338 | E122: 0.6950904393 | F122: 0.7298474946 | G122: 0.4116607774 | H122: 0.451048951 | I122: 0.4513274336 | J122: 0.272264631 | K122: 0.3325123153 | L122: 0.2848360656 | M122: 0.5969387755 | N122: 0.5919463087 | O122: 0.5479651163 | P122: 0.4886649874 | Q122: 0.448392555 | R122: 0.5652841782 | S122: 0.5913173653
A123: Trinity | B123: 0.9259259259 | C123: 0.6419753086 | D123: 0.7160493827 | E123: 0.7222222222 | F123: 0.5925925926 | G123: 0.8034188034 | H123: 0.5887096774 | I123: 0.5757575758 | J123: 0.8315789474 | K123: 0.746835443 | L123: 0.1666666667 | M123: 0.393442623 | N123: 0.5634920635 | O123: 0.6533333333 | P123: 0.4827586207 | Q123: 0.4840764331 | R123: 0.3945578231 | S123: 0.5526315789
A124: Tulare | B124: 1.295194508 | C124: 1.090827338 | D124: 1.214109926 | E124: 1.086156112 | F124: 1.306402439 | G124: 1.134364821 | H124: 1.193595342 | I124: 1.087197232 | J124: 1.450653983 | K124: 1.138211382 | L124: 1.138211382 | M124: 1.123632385 | N124: 1.276874672 | O124: 1.0087241 | P124: 1.099337748 | Q124: 1.041821069 | R124: 1.198136341 | S124: 0.9551451187
A125: Tuolumne | B125: 0.8846153846 | C125: 0.6263157895 | D125: 0.6530612245 | E125: 0.6984126984 | F125: 0.7136150235 | G125: 0.4625668449 | H125: 0.4072289157 | I125: 0.4615384615 | J125: 0.4396135266 | K125: 0.4735632184 | L125: 0.498714653 | M125: 0.5523114355 | N125: 0.4879227053 | O125: 0.5071428571 | P125: 0.5661375661 | Q125: 0.534939759 | R125: 0.5845410628 | S125: 0.4145199063
A126: Ventura | B126: 0.7935382191 | C126: 0.7224669604 | D126: 0.8492678725 | E126: 0.7590634441 | F126: 0.7727910238 | G126: 0.7574827322 | H126: 0.764747191 | I126: 0.8173970784 | J126: 0.8724637681 | K126: 0.7189460477 | L126: 0.7189460477 | M126: 0.8109756098 | N126: 0.8412087912 | O126: 0.7714598141 | P126: 0.8464626192 | Q126: 0.8203622124 | R126: 0.8182701652 | S126: 0.7670600308
A127: Yolo | B127: 0.6934306569 | C127: 0.644 | D127: 0.74204947 | E127: 0.652173913 | F127: 0.6883468835 | G127: 0.6945337621 | H127: 0.7196531792 | I127: 0.609947644 | J127: 0.7902298851 | K127: 0.656612529 | L127: 0.656612529 | M127: 0.6611570248 | N127: 0.7020408163 | O127: 0.6502145923 | P127: 0.6757281553 | Q127: 0.5708955224 | R127: 0.5342465753 | S127: 0.6128404669
A128: Yuba | B128: 0.9274193548 | C128: 0.7417475728 | D128: 0.7299578059 | E128: 0.6666666667 | F128: 0.7120689655 | G128: 0.518766756 | H128: 0.5337662338 | I128: 0.5918097754 | J128: 0.8323281062 | K128: 1.046478873 | L128: 0.9182879377 | M128: 0.9635854342 | N128: 0.9693333333 | O128: 0.9591549296 | P128: 0.861230329 | Q128: 0.8702397743 | R128: 0.9105263158 | S128: 0.7984084881
A131: Sum of pct_apps_from_churn_30d | B131: Column Labels
B132: 2011 | C132: 2012 | G132: 2013 | K132: 2014 | O132: 2015 | S132: 2016
A133: Row Labels | B133: 4 | C133: 1 | D133: 2 | E133: 3 | F133: 4 | G133: 1 | H133: 2 | I133: 3 | J133: 4 | K133: 1 | L133: 2 | M133: 3 | N133: 4 | O133: 1 | P133: 2 | Q133: 3 | R133: 4 | S133: 1
A134: California | B134: 0.09981073379 | C134: 0.1004822029 | D134: 0.09321223169 | E134: 0.08171194821 | F134: 0.08881438782 | G134: 0.1352827757 | H134: 0.1300628697 | I134: 0.1203081173 | J134: 0.1394440936 | K134: 0.1287009586 | L134: 0.1195847138 | M134: 0.1255389051 | N134: 0.1423959935 | O134: 0.1300503585 | P134: 0.127706987 | Q134: 0.1280179352 | R134: 0.1517437405 | S134: 0.1166821718
A135: Alameda | B135: 0.1198317697 | C135: 0.1154920832 | D135: 0.08822797412 | E135: 0.07791730475 | F135: 0.08456832087 | G135: 0.08227559721 | H135: 0.09890688792 | I135: 0.08106078114 | J135: 0.1010616008 | K135: 0.1067653946 | L135: 0.1003676216 | M135: 0.1232224668 | N135: 0.116760047 | O135: 0.1145756458 | P135: 0.1035826043 | Q135: 0.1039216933 | R135: 0.1111884327 | S135: 0.1100371747
A136: Alpine | B136: 0 | C136: 0 | D136: 0.04166666667 | E136: 0.05263157895 | F136: 0 | G136: 0.1875 | H136: 0.07142857143 | I136: 0.08695652174 | J136: 0.1481481481 | K136: 0.06666666667 | L136: 0 | M136: 0.08 | N136: 0.04 | O136: 0.1052631579 | P136: 0 | Q136: 0 | R136: 0 | S136: 0
A137: Amador | B137: 0.02874743326 | C137: 0.03633217993 | D137: 0.02909090909 | E137: 0.03275862069 | F137: 0.0284629981 | G137: 0.1708185053 | H137: 0.1439393939 | I137: 0.1552901024 | J137: 0.1800356506 | K137: 0.1421568627 | L137: 0.1355555556 | M137: 0.1617021277 | N137: 0.1712328767 | O137: 0.1398865784 | P137: 0.1444201313 | Q137: 0.1584582441 | R137: 0.1048034934 | S137: 0.1307189542
A138: Butte | B138: 0.03501259446 | C138: 0.02824193928 | D138: 0.02764155149 | E138: 0.03560209424 | F138: 0.03784461153 | G138: 0.1465980828 | H138: 0.1356951872 | I138: 0.1318080583 | J138: 0.1565644746 | K138: 0.1445783133 | L138: 0.1367902393 | M138: 0.1359137893 | N138: 0.1330354927 | O138: 0.1455989411 | P138: 0.1436502429 | Q138: 0.147766323 | R138: 0.1520106054 | S138: 0.1450955141
A139: Calaveras | B139: 0.03255813953 | C139: 0.008498583569 | D139: 0.02231520223 | E139: 0.02777777778 | F139: 0.03333333333 | G139: 0.1256756757 | H139: 0.1398496241 | I139: 0.1061946903 | J139: 0.1087248322 | K139: 0.1307277628 | L139: 0.1082802548 | M139: 0.09756097561 | N139: 0.1297709924 | O139: 0.1280931587 | P139: 0.1161387632 | Q139: 0.1119751166 | R139: 0.1208053691 | S139: 0.09764309764
A140: Colusa | B140: 0.07278481013 | C140: 0.03606557377 | D140: 0.04119850187 | E140: 0.04330708661 | F140: 0.040625 | G140: 0.2052980132 | H140: 0.111969112 | I140: 0.134057971 | J140: 0.1283018868 | K140: 0.09818181818 | L140: 0.0562248996 | M140: 0.07834101382 | N140: 0.1098484848 | O140: 0.1333333333 | P140: 0.1361256545 | Q140: 0.1483253589 | R140: 0.1266375546 | S140: 0.1045454545
A141: Contra Costa | B141: 0.1126248865 | C141: 0.1078687302 | D141: 0.1103709871 | E141: 0.08781653129 | F141: 0.1043561007 | G141: 0.1146279704 | H141: 0.114884696 | I141: 0.09248287354 | J141: 0.09403393541 | K141: 0.09427987743 | L141: 0.0799911121 | M141: 0.08700071145 | N141: 0.09201592133 | O141: 0.09082238237 | P141: 0.08825786646 | Q141: 0.08524690104 | R141: 0.1062041203 | S141: 0.09717138103
A142: Del Norte | B142: 0.0667539267 | C142: 0.03887399464 | D142: 0.04539007092 | E142: 0.06562054208 | F142: 0.0774748924 | G142: 0.2485207101 | H142: 0.2110481586 | I142: 0.1862348178 | J142: 0.2273972603 | K142: 0.1876046901 | L142: 0.1621621622 | M142: 0.1930693069 | N142: 0.195035461 | O142: 0.1730769231 | P142: 0.2147335423 | Q142: 0.129969419 | R142: 0.158677686 | S142: 0.1692307692
A143: El Dorado | B143: 0.02804141501 | C143: 0.02449979584 | D143: 0.02846685645 | E143: 0.03212348769 | F143: 0.0375050958 | G143: 0.1474789916 | H143: 0.1348028826 | I143: 0.1231587561 | J143: 0.1262854792 | K143: 0.1011426153 | L143: 0.1095823096 | M143: 0.1119047619 | N143: 0.1123595506 | O143: 0.1211827436 | P143: 0.1315789474 | Q143: 0.1272635815 | R143: 0.1338753388 | S143: 0.118077325
A144: Fresno | B144: 0.2037238246 | C144: 0.2059380599 | D144: 0.171529387 | E144: 0.1570326535 | F144: 0.1600209589 | G144: 0.1284361016 | H144: 0.1571790735 | I144: 0.1648837888 | J144: 0.1404399323 | K144: 0.1291714457 | L144: 0.1315149409 | M144: 0.1487758945 | N144: 0.151709515 | O144: 0.1306212332 | P144: 0.1408014676 | Q144: 0.1392582225 | R144: 0.1648351648 | S144: 0.1529230242
A145: Glenn | B145: 0.02004008016 | C145: 0.04940711462 | D145: 0.03696098563 | E145: 0.02395209581 | F145: 0.05252525253 | G145: 0.2024793388 | H145: 0.1368909513 | I145: 0.1854166667 | J145: 0.1649484536 | K145: 0.1517671518 | L145: 0.1391076115 | M145: 0.1007025761 | N145: 0.1522248244 | O145: 0.1365979381 | P145: 0.1218274112 | Q145: 0.09498680739 | R145: 0.1514285714 | S145: 0.1486810552
A146: Humboldt | B146: 0.04445919044 | C146: 0.0257625111 | D146: 0.02977818292 | E146: 0.03460308229 | F146: 0.04701397713 | G146: 0.1373595506 | H146: 0.1182618262 | I146: 0.114019176 | J146: 0.1036036036 | K146: 0.07872888634 | L146: 0.08491686461 | M146: 0.09931895573 | N146: 0.1099114064 | O146: 0.1139275766 | P146: 0.1154551008 | Q146: 0.116927983 | R146: 0.1230088496 | S146: 0.139646389
A147: Imperial | B147: 0.03872919818 | C147: 0.03754578755 | D147: 0.03651609413 | E147: 0.03440648808 | F147: 0.06196648751 | G147: 0.1932534678 | H147: 0.1918876755 | I147: 0.163403106 | J147: 0.1772836538 | K147: 0.1619375179 | L147: 0.1326732673 | M147: 0.1308454273 | N147: 0.1474561656 | O147: 0.1591635202 | P147: 0.1516993645 | Q147: 0.1370708817 | R147: 0.1646549056 | S147: 0.1739663093
A148: Inyo | B148: 0.03333333333 | C148: 0.01162790698 | D148: 0.04416403785 | E148: 0.05357142857 | F148: 0.05610561056 | G148: 0.152866242 | H148: 0.1629834254 | I148: 0.1714285714 | J148: 0.1232876712 | K148: 0.1034482759 | L148: 0.1041666667 | M148: 0.101010101 | N148: 0.118466899 | O148: 0.1510791367 | P148: 0.1294642857 | Q148: 0.1283018868 | R148: 0.1340996169 | S148: 0.1397379913
A149: Kern | B149: 0.05881343326 | C149: 0.05824398725 | D149: 0.05110873948 | E149: 0.05400586645 | F149: 0.06253973759 | G149: 0.2293233083 | H149: 0.2093037361 | I149: 0.2058902133 | J149: 0.227324263 | K149: 0.2056492698 | L149: 0.1993218249 | M149: 0.1772485224 | N149: 0.2113821138 | O149: 0.1785320696 | P149: 0.1779289409 | Q149: 0.190033368 | R149: 0.2046334212 | S149: 0.1958122035
A150: Kings | B150: 0.05365674384 | C150: 0.04241316271 | D150: 0.05173069608 | E150: 0.04280014509 | F150: 0.05541470482 | G150: 0.2023972603 | H150: 0.209653092 | I150: 0.198810851 | J150: 0.231758034 | K150: 0.1809488783 | L150: 0.187113857 | M150: 0.1835921943 | N150: 0.2171755725 | O150: 0.225336731 | P150: 0.1942812378 | Q150: 0.2153550864 | R150: 0.2393822394 | S150: 0.2143129045
A151: Lake | B151: 0.01866475233 | C151: 0.01880674449 | D151: 0.01758957655 | E151: 0.0152574698 | F151: 0.01897810219 | G151: 0.1064718163 | H151: 0.1112582781 | I151: 0.1058897243 | J151: 0.1044776119 | K151: 0.06612784717 | L151: 0.05590551181 | M151: 0.06574141709 | N151: 0.06953892668 | O151: 0.06351446718 | P151: 0.07890625 | Q151: 0.05719237435 | R151: 0.06757990868 | S151: 0.08027522936
A152: Lassen | B152: 0.1417624521 | C152: 0.1103565365 | D152: 0.1036363636 | E152: 0.0550918197 | F152: 0.0987394958 | G152: 0.1610878661 | H152: 0.1545064378 | I152: 0.1557522124 | J152: 0.1396761134 | K152: 0.1033707865 | L152: 0.07862407862 | M152: 0.1201716738 | N152: 0.08788598575 | O152: 0.06829268293 | P152: 0.07435897436 | Q152: 0.08495145631 | R152: 0.0632183908 | S152: 0.05248618785
A153: Los Angeles | B153: 0.1128530371 | C153: 0.1219235138 | D153: 0.1178103819 | E153: 0.1044522518 | F153: 0.1074134136 | G153: 0.1130860995 | H153: 0.0962103647 | I153: 0.07804062919 | J153: 0.1041863989 | K153: 0.1040072436 | L153: 0.09457726331 | M153: 0.0905154719 | N153: 0.1218113607 | O153: 0.08249315815 | P153: 0.08158857693 | Q153: 0.07999604252 | S153: 0.007756270714
A154: Madera | B154: 0.07866582756 | C154: 0.04249291785 | D154: 0.04484848485 | E154: 0.05425492382 | F154: 0.0543071161 | G154: 0.1867358281 | H154: 0.1714046823 | I154: 0.1658345221 | J154: 0.1701916722 | K154: 0.1407928863 | L154: 0.1387421988 | M154: 0.1251580278 | N154: 0.1742665253 | O154: 0.1455223881 | P154: 0.1447184737 | Q154: 0.1546211126 | R154: 0.1723477595 | S154: 0.1537094625
A155: Marin | B155: 0.06872852234 | C155: 0.04914744233 | D155: 0.04684210526 | E155: 0.03709765412 | F155: 0.04104234528 | G155: 0.1622481442 | H155: 0.1323095097 | I155: 0.1424611973 | J155: 0.1404860699 | K155: 0.147260274 | L155: 0.1334716459 | M155: 0.1391752577 | N155: 0.146426093 | O155: 0.1794414736 | P155: 0.1807379612 | Q155: 0.1655300682 | R155: 0.1646471846 | S155: 0.186440678
A156: Mariposa | B156: 0.02479338843 | C156: 0.01459854015 | D156: 0.02008032129 | E156: 0.02797202797 | F156: 0.04705882353 | G156: 0.1413427562 | H156: 0.1617021277 | I156: 0.1486486486 | J156: 0.09395973154 | K156: 0.09278350515 | L156: 0.08189655172 | M156: 0.1428571429 | N156: 0.1821561338 | O156: 0.1434108527 | P156: 0.125 | Q156: 0.1333333333 | R156: 0.1125541126 | S156: 0.08802816901
A157: Mendocino | B157: 0.06629834254 | C157: 0.04131054131 | D157: 0.04345654346 | E157: 0.03382563125 | F157: 0.06652244456 | G157: 0.2158524427 | H157: 0.1824468085 | I157: 0.1596009975 | J157: 0.1799265606 | K157: 0.1067961165 | L157: 0.1077348066 | M157: 0.1366607249 | N157: 0.1716368456 | O157: 0.1502493766 | P157: 0.1570782159 | Q157: 0.1756292906 | R157: 0.1841919548 | S157: 0.2137637028
A158: Merced | B158: 0.06550610194 | C158: 0.04979905644 | D158: 0.05086705202 | E158: 0.04926717288 | F158: 0.06165386023 | G158: 0.2035364213 | H158: 0.1779748402 | I158: 0.1702166394 | J158: 0.2084108671 | K158: 0.1648964896 | L158: 0.1447789878 | M158: 0.1424746605 | N158: 0.1735395189 | O158: 0.1698652511 | P158: 0.1585619285 | Q158: 0.1881846635 | R158: 0.2002735444 | S158: 0.1874476987
A159: Modoc | B159: 0.07486631016 | C159: 0.03260869565 | D159: 0.02547770701 | E159: 0.0490797546 | F159: 0.08176100629 | G159: 0.225 | H159: 0.22 | I159: 0.1075268817 | J159: 0.2011173184 | K159: 0.1276595745 | L159: 0.1632653061 | M159: 0.1275167785 | N159: 0.176056338 | O159: 0.2123287671 | P159: 0.1203007519 | Q159: 0.2269503546 | R159: 0.1224489796 | S159: 0.1455696203
A160: Mono | B160: 0.04398826979 | C160: 0.02903225806 | D160: 0.02127659574 | E160: 0.01546391753 | F160: 0.01923076923 | G160: 0.1073446328 | H160: 0.01805054152 | I160: 0.04838709677 | J160: 0.01543209877 | K160: 0.02280130293 | L160: 0.09166666667 | M160: 0.05882352941 | N160: 0.06910569106 | O160: 0.05076142132 | P160: 0.02369668246 | Q160: 0.09756097561 | R160: 0.05027932961 | S160: 0.0593220339
A161: Monterey | B161: 0.0196499153 | C161: 0.02296416938 | D161: 0.02642642643 | E161: 0.02498345467 | F161: 0.03783545974 | G161: 0.1683848797 | H161: 0.1791014434 | I161: 0.2403280718 | J161: 0.2342342342 | K161: 0.1322933853 | L161: 0.1259673259 | M161: 0.2078586759 | N161: 0.2283114257 | O161: 0.1509954058 | P161: 0.1426356589 | Q161: 0.2481536189 | R161: 0.2054539481 | S161: 0.152624757
A162: Napa | B162: 0.02736512901 | C162: 0.0247005988 | D162: 0.02660944206 | E162: 0.0253164557 | F162: 0.03689469639 | G162: 0.1108354012 | H162: 0.1151284491 | I162: 0.1312649165 | J162: 0.11994003 | K162: 0.08883248731 | L162: 0.09967497291 | M162: 0.09322865554 | N162: 0.1129831516 | O162: 0.1102941176 | P162: 0.1099691675 | Q162: 0.1102222222 | R162: 0.1080277502 | S162: 0.1035781544
A163: Nevada | B163: 0.02826510721 | C163: 0.02423263328 | D163: 0.03545051699 | E163: 0.02239382239 | F163: 0.03293918919 | G163: 0.1291079812 | H163: 0.1218944099 | I163: 0.1264285714 | J163: 0.1248097412 | K163: 0.1013824885 | L163: 0.08803418803 | M163: 0.1080851064 | N163: 0.1042571677 | O163: 0.1053082192 | P163: 0.1112158341 | Q163: 0.0729455217 | R163: 0.09222797927 | S163: 0.1095764273
A164: Orange | B164: 0.1125504711 | C164: 0.1161839441 | D164: 0.1059920859 | E164: 0.08341814766 | F164: 0.08553241717 | G164: 0.08711449457 | H164: 0.09023611997 | I164: 0.08317956511 | J164: 0.08094534712 | K164: 0.09433237272 | L164: 0.09267690737 | M164: 0.1106722341 | N164: 0.1098924367 | O164: 0.1119415176 | P164: 0.1084465109 | Q164: 0.1069100888 | R164: 0.1098716513 | S164: 0.1074185691
A165: Placer | B165: 0.1119133574 | C165: 0.1053737616 | D165: 0.1006493506 | E165: 0.09954751131 | F165: 0.08721986675 | G165: 0.08595387841 | H165: 0.08131067961 | I165: 0.07148864592 | J165: 0.09230769231 | K165: 0.1003255401 | L165: 0.09878844362 | M165: 0.09753196551 | N165: 0.1143312102 | O165: 0.1179968701 | P165: 0.11104 | Q165: 0.1065821256 | R165: 0.09596133932 | S165: 0.102520436
A166: Plumas | B166: 0.03886925795 | C166: 0.0524691358 | D166: 0.02693602694 | E166: 0.02127659574 | F166: 0.03012048193 | G166: 0.1706586826 | H166: 0.1717557252 | I166: 0.1354466859 | J166: 0.1027777778 | K166: 0.05660377358 | L166: 0.07346938776 | M166: 0.09162303665 | N166: 0.08024691358 | O166: 0.07591623037 | P166: 0.1183673469 | Q166: 0.1170960187 | R166: 0.07627118644 | S166: 0.1141141141
A167: Riverside | B167: 0.02875379753 | C167: 0.02917551473 | D167: 0.02728904847 | E167: 0.02565946053 | F167: 0.03270638652 | G167: 0.1824175824 | H167: 0.1759853346 | I167: 0.1717399563 | J167: 0.194404528 | K167: 0.1736188087 | L167: 0.1598360656 | M167: 0.1555401144 | N167: 0.175644954 | O167: 0.1702611387 | P167: 0.1699649711 | Q167: 0.153844038 | R167: 0.173438815 | S167: 0.1766672075
A168: Sacramento | B168: 0.1237361786 | C168: 0.1239449316 | D168: 0.1014763741 | E168: 0.07986670161 | F168: 0.09000216873 | G168: 0.09444517285 | H168: 0.09638957453 | I168: 0.08604354383 | J168: 0.1007714561 | K168: 0.09995541324 | L168: 0.09796937689 | M168: 0.1045229523 | N168: 0.1175408464 | O168: 0.1233777038 | P168: 0.1219351654 | Q168: 0.1182782972 | R168: 0.1262024737 | S168: 0.1279069767
A169: San Benito | B169: 0.03711790393 | C169: 0.03174603175 | D169: 0.02827763496 | E169: 0.03878787879 | F169: 0.0434310532 | G169: 0.1706730769 | H169: 0.1883353584 | I169: 0.1805094131 | J169: 0.2073170732 | K169: 0.1855421687 | L169: 0.1341463415 | M169: 0.124668435 | N169: 0.1586592179 | O169: 0.1396276596 | P169: 0.1203125 | Q169: 0.1563517915 | R169: 0.1827195467 | S169: 0.1594634873
A170: San Bernardino | B170: 0.04001604922 | C170: 0.03570357785 | D170: 0.03286331847 | E170: 0.03343601736 | F170: 0.04375032321 | G170: 0.2177957483 | H170: 0.2104776954 | I170: 0.1915723512 | J170: 0.2109034811 | K170: 0.2004264892 | L170: 0.198052199 | M170: 0.1937694704 | N170: 0.2192763656 | O170: 0.2167775178 | P170: 0.2135730565 | Q170: 0.2079754307 | R170: 0.2367980125 | S170: 0.2299808836
A171: San Diego | B171: 0.1615667379 | C171: 0.1726188989 | D171: 0.1698731068 | E171: 0.1574223617 | F171: 0.1691313503 | G171: 0.1158120805 | H171: 0.1203916421 | I171: 0.1178309323 | J171: 0.1522535592 | K171: 0.1459966303 | L171: 0.1219998486 | M171: 0.1400354461 | N171: 0.1515973093 | O171: 0.1337357676 | P171: 0.1278694451 | Q171: 0.1317504196 | R171: 0.1408550166 | S171: 0.1339063149
A172: San Francisco | B172: 0.09773043075 | C172: 0.1079646018 | D172: 0.1126699293 | E172: 0.08637006418 | F172: 0.08723075092 | G172: 0.1028237147 | H172: 0.1137989779 | I172: 0.0964797914 | J172: 0.1009419552 | K172: 0.1079431995 | L172: 0.1169787765 | M172: 0.1377793628 | N172: 0.1197348433 | O172: 0.1199387947 | P172: 0.1032542207 | Q172: 0.1146888156 | R172: 0.101974958 | S172: 0.1004427872
A173: San Joaquin | B173: 0.05304339914 | C173: 0.04818318451 | D173: 0.04977923989 | E173: 0.04778070101 | F173: 0.05610380117 | G173: 0.1980671965 | H173: 0.1684839045 | I173: 0.1880693269 | J173: 0.1907972665 | K173: 0.1414567031 | L173: 0.1327804878 | M173: 0.134051144 | N173: 0.1545922407 | O173: 0.1616854035 | P173: 0.1522361536 | Q173: 0.1612289546 | R173: 0.1795400639 | S173: 0.1821992591
A174: San Luis Obispo | B174: 0.1097680497 | C174: 0.1084217507 | D174: 0.08695652174 | E174: 0.06491759166 | F174: 0.07572958995 | G174: 0.06596119929 | H174: 0.07230769231 | I174: 0.06607495069 | J174: 0.06640625 | K174: 0.07383419689 | L174: 0.06697282817 | M174: 0.07272082299 | N174: 0.07172207695 | O174: 0.08380884451 | P174: 0.07572815534 | Q174: 0.07279151943 | R174: 0.08680282797 | S174: 0.07771038666
A175: San Mateo | B175: 0.07261499148 | C175: 0.08836247415 | D175: 0.09976293955 | E175: 0.07997051778 | F175: 0.08085637082 | G175: 0.07714285714 | H175: 0.0850319127 | I175: 0.06852017937 | J175: 0.07822410148 | K175: 0.09961832061 | L175: 0.08653639682 | M175: 0.1126646403 | N175: 0.09228227519 | O175: 0.09573578595 | P175: 0.09298678019 | Q175: 0.09415779964 | R175: 0.09632265718 | S175: 0.1135992536
A176: Santa Barbara | B176: 0.1513605442 | C176: 0.1505692972 | D176: 0.1005559584 | E176: 0.08191653787 | F176: 0.1115391671 | G176: 0.09840149471 | H176: 0.09146628949 | I176: 0.08938001173 | J176: 0.09732234809 | K176: 0.09761565111 | L176: 0.07732471407 | M176: 0.0864669641 | N176: 0.09040282161 | O176: 0.08605463134 | P176: 0.08555529794 | Q176: 0.07048008172 | R176: 0.07311072056 | S176: 0.09704090513
A177: Santa Clara | B177: 0.09347060417 | C177: 0.09629691549 | D177: 0.09386458079 | E177: 0.0806372549 | F177: 0.06474950262 | G177: 0.0571280187 | H177: 0.05264005151 | I177: 0.0392526181 | J177: 0.04389711897 | K177: 0.04360927429 | L177: 0.03432848662 | M177: 0.03735845938 | N177: 0.03438067042 | O177: 0.02513069797 | P177: 0.02476315543 | Q177: 0.02336956522 | R177: 0.02513386515 | S177: 0.02333769239
A178: Santa Cruz | B178: 0.1144057326 | C178: 0.1086843474 | D178: 0.05781784271 | E178: 0.04848304581 | F178: 0.05459770115 | G178: 0.03911707181 | H178: 0.06518904824 | I178: 0.05466970387 | J178: 0.05131511088 | K178: 0.03032004492 | L178: 0.0301679808 | M178: 0.04443690638 | N178: 0.02630005977 | O178: 0.01315789474 | P178: 0.01380530973 | Q178: 0.0175887432 | R178: 0.0211750671 | S178: 0.0135910601
A179: Shasta | B179: 0.02643171806 | C179: 0.02461074837 | D179: 0.02576950608 | E179: 0.02528355388 | F179: 0.03934794829 | G179: 0.1783919598 | H179: 0.163728568 | I179: 0.1490742967 | J179: 0.1561579258 | K179: 0.1302027748 | L179: 0.1260720412 | M179: 0.1355525965 | N179: 0.1621704476 | O179: 0.1597998823 | P179: 0.1445392994 | Q179: 0.1392741222 | R179: 0.1530108588 | S179: 0.1580510992
A180: Sierra | B180: 0 | C180: 0.0243902439 | D180: 0.07936507937 | E180: 0.05555555556 | F180: 0 | G180: 0.1785714286 | H180: 0.09756097561 | I180: 0.1666666667 | J180: 0.05405405405 | K180: 0.1489361702 | L180: 0.06666666667 | M180: 0.05263157895 | N180: 0.0612244898 | O180: 0.1025641026 | P180: 0.07692307692 | Q180: 0 | R180: 0.09677419355 | S180: 0.06451612903
A181: Siskiyou | B181: 0.02463605823 | C181: 0.02424942263 | D181: 0.0386869871 | E181: 0.02272727273 | F181: 0.03388090349 | G181: 0.134264232 | H181: 0.1310904872 | I181: 0.1141804788 | J181: 0.1561922366 | K181: 0.09875259875 | L181: 0.1199040767 | M181: 0.1430096051 | N181: 0.1395089286 | O181: 0.1587677725 | P181: 0.1220095694 | Q181: 0.1155046826 | R181: 0.1354764638 | S181: 0.1438848921
A182: Solano | B182: 0.07150170648 | C182: 0.07863164721 | D182: 0.05184462864 | E182: 0.02976 | F182: 0.02530493355 | G182: 0.03141735095 | H182: 0.04126005821 | I182: 0.02980234713 | J182: 0.03145253526 | K182: 0.02556623198 | L182: 0.01765921473 | M182: 0.02362914863 | N182: 0.0183656624 | O182: 0.01342408773 | P182: 0.01248209536 | Q182: 0.01363721278 | R182: 0.01420389462 | S182: 0.01290859879
A183: Sonoma | B183: 0.1052526063 | C183: 0.1056642993 | D183: 0.09187346088 | E183: 0.07981128366 | F183: 0.08111916264 | G183: 0.08163672655 | H183: 0.08811129848 | I183: 0.07271258332 | J183: 0.09713410632 | K183: 0.1075973776 | L183: 0.1054299599 | M183: 0.09938271605 | N183: 0.1172561629 | O183: 0.1030372933 | P183: 0.101530842 | Q183: 0.09469935051 | R183: 0.1254857143 | S183: 0.1274590164
A184: Stanislaus | B184: 0.02365390601 | C184: 0.01820534147 | D184: 0.02569152269 | E184: 0.02148731099 | F184: 0.03747974068 | G184: 0.1952727273 | H184: 0.1990140588 | I184: 0.1916258653 | J184: 0.2108326293 | K184: 0.1747997087 | L184: 0.1601280198 | M184: 0.1764092847 | N184: 0.1784812789 | O184: 0.1781096522 | P184: 0.1853874691 | Q184: 0.181469035 | R184: 0.1719342604 | S184: 0.1859146523
A185: Sutter | B185: 0.04729344729 | C185: 0.03509781358 | D185: 0.04773413897 | E185: 0.03468208092 | F185: 0.04721753794 | G185: 0.1811342593 | H185: 0.1632903622 | I185: 0.1875347802 | J185: 0.1995438997 | K185: 0.1620111732 | L185: 0.1495619524 | M185: 0.1841491841 | N185: 0.1865577889 | O185: 0.1895587321 | P185: 0.1802962009 | Q185: 0.1976744186 | R185: 0.1940104167 | S185: 0.1709401709
A186: Tehama | B186: 0.05149884704 | C186: 0.04213483146 | D186: 0.04871447903 | E186: 0.05853658537 | F186: 0.09956395349 | G186: 0.1819494585 | H186: 0.1471004243 | I186: 0.1401352182 | J186: 0.1229314421 | K186: 0.1158989599 | L186: 0.1133122029 | M186: 0.1124903026 | N186: 0.1463210702 | O186: 0.1478129713 | P186: 0.1384266263 | Q186: 0.1506533436 | R186: 0.1671134942 | S186: 0.15
A187: Trinity | B187: 0.03686635945 | C187: 0.04827586207 | D187: 0.02083333333 | E187: 0.03560830861 | F187: 0.06614785992 | G187: 0.2086614173 | H187: 0.1633986928 | I187: 0.08974358974 | J187: 0.1115702479 | K187: 0.08467741935 | L187: 0.04417670683 | M187: 0.1204379562 | N187: 0.1201716738 | O187: 0.1434108527 | P187: 0.1020408163 | Q187: 0.1099656357 | R187: 0.07798165138 | S187: 0.1286307054
A188: Tulare | B188: 0.2542419267 | C188: 0.2342450656 | D188: 0.2086141533 | E188: 0.1645805317 | F188: 0.1815470068 | G188: 0.1716618206 | H188: 0.1912039582 | I188: 0.1746592135 | J188: 0.2155250226 | K188: 0.1823997076 | L188: 0.1675891078 | M188: 0.2113558492 | N188: 0.2151251916 | O188: 0.2013271968 | P188: 0.2063050017 | Q188: 0.1991659038 | R188: 0.2315489389 | S188: 0.2136788445
A189: Tuolumne | B189: 0.04109589041 | C189: 0.03826266805 | D189: 0.03921568627 | E189: 0.04 | F189: 0.0355450237 | G189: 0.1610526316 | H189: 0.1476355248 | I189: 0.1684100418 | J189: 0.1660899654 | K189: 0.1122112211 | L189: 0.1225033289 | M189: 0.1344743276 | N189: 0.158808933 | O189: 0.1494382022 | P189: 0.1406619385 | Q189: 0.115995116 | R189: 0.1626666667 | S189: 0.133254717
A190: Ventura | B190: 0.1232321017 | C190: 0.1251282051 | D190: 0.1108114183 | E190: 0.09248323491 | F190: 0.08840425532 | G190: 0.1037068781 | H190: 0.1113519681 | I190: 0.09881386009 | J190: 0.1216157205 | K190: 0.1320189926 | L190: 0.1178983834 | M190: 0.1377756002 | N190: 0.1352364157 | O190: 0.1354188759 | P190: 0.1361428087 | Q190: 0.1463129146 | R190: 0.1471355644 | S190: 0.1605871886
A191: Yolo | B191: 0.1363453005 | C191: 0.1380991064 | D191: 0.1020942408 | E191: 0.09961685824 | F191: 0.1126237624 | G191: 0.1155537785 | H191: 0.1149854711 | I191: 0.09910529938 | J191: 0.1064814815 | K191: 0.1186086957 | L191: 0.1201386215 | M191: 0.1069945704 | N191: 0.1142857143 | O191: 0.1123125218 | P191: 0.1109886071 | Q191: 0.09208045255 | R191: 0.08353317346 | S191: 0.0945681907
A192: Yuba | B192: 0.04257767549 | C192: 0.03406202339 | D192: 0.02847571189 | E192: 0.02832244009 | F192: 0.04173622705 | G192: 0.1869212963 | H192: 0.161849711 | I192: 0.1502673797 | J192: 0.1927437642 | K192: 0.187027027 | L192: 0.1670702179 | M192: 0.1728326891 | N192: 0.2097283639 | O192: 0.1912470024 | P192: 0.174251497 | Q192: 0.1752637749 | R192: 0.2273901809 | S192: 0.2011104257
A195: Sum of pct_apps_from_churn_90d | B195: Column Labels
B196: 2011 | C196: 2012 | G196: 2013 | K196: 2014 | O196: 2015 | S196: 2016
A197: Row Labels | B197: 4 | C197: 1 | D197: 2 | E197: 3 | F197: 4 | G197: 1 | H197: 2 | I197: 3 | J197: 4 | K197: 1 | L197: 2 | M197: 3 | N197: 4 | O197: 1 | P197: 2 | Q197: 3 | R197: 4 | S197: 1
A198: California | B198: 0.1921160833 | C198: 0.1947388182 | D198: 0.1830912179 | E198: 0.1671994446 | F198: 0.18311184 | G198: 0.2220569342 | H198: 0.2176411531 | I198: 0.2055256978 | J198: 0.2241074577 | K198: 0.2041435009 | L198: 0.2004283695 | M198: 0.2023835198 | N198: 0.2341057078 | O198: 0.2151553167 | P198: 0.2121607052 | Q198: 0.2102292566 | R198: 0.2492152654 | S198: 0.1979727624
A199: Alameda | B199: 0.196829505 | C199: 0.2049053089 | D199: 0.1787580886 | E199: 0.1614701378 | F199: 0.1834126445 | G199: 0.1839484476 | H199: 0.202620835 | I199: 0.1774324012 | J199: 0.1854309261 | K199: 0.1944180748 | L199: 0.1961573143 | M199: 0.211697507 | N199: 0.2280556132 | O199: 0.2236162362 | P199: 0.1987355514 | Q199: 0.1965295875 | R199: 0.2092321967 | S199: 0.2085839811
A200: Alpine | B200: 0.04 | C200: 0 | D200: 0.08333333333 | E200: 0.1052631579 | F200: 0.08695652174 | G200: 0.1875 | H200: 0.1428571429 | I200: 0.2173913043 | J200: 0.1481481481 | K200: 0.2 | L200: 0.1052631579 | M200: 0.16 | N200: 0.12 | O200: 0.2105263158 | P200: 0.0625 | Q200: 0.05882352941 | R200: 0.07142857143 | S200: 0
A201: Amador | B201: 0.1047227926 | C201: 0.1003460208 | D201: 0.1418181818 | E201: 0.1465517241 | F201: 0.1404174573 | G201: 0.256227758 | H201: 0.2064393939 | I201: 0.2235494881 | J201: 0.2638146168 | K201: 0.204248366 | L201: 0.2155555556 | M201: 0.229787234 | N201: 0.2625570776 | O201: 0.2287334594 | P201: 0.2231947484 | Q201: 0.2355460385 | R201: 0.2227074236 | S201: 0.2418300654
A202: Butte | B202: 0.1246851385 | C202: 0.1103789127 | D202: 0.1226036558 | E202: 0.1160209424 | F202: 0.1323308271 | G202: 0.2186111761 | H202: 0.2105614973 | I202: 0.2008503746 | J202: 0.2387081676 | K202: 0.2177280551 | L202: 0.212106992 | M202: 0.2084891137 | N202: 0.2137006701 | O202: 0.2153099493 | P202: 0.2222993292 | Q202: 0.2263998383 | R202: 0.2414935926 | S202: 0.2232238678
A203: Calaveras | B203: 0.1426356589 | C203: 0.07365439093 | D203: 0.1032078103 | E203: 0.1071428571 | F203: 0.1409090909 | G203: 0.1932432432 | H203: 0.2165413534 | I203: 0.188369153 | J203: 0.2067114094 | K203: 0.1886792453 | L203: 0.1719745223 | M203: 0.1815718157 | N203: 0.2045801527 | O203: 0.2066957787 | P203: 0.2021116139 | Q203: 0.1897356143 | R203: 0.2063758389 | S203: 0.2188552189
A204: Colusa | B204: 0.1835443038 | C204: 0.131147541 | D204: 0.138576779 | E204: 0.1535433071 | F204: 0.13125 | G204: 0.2847682119 | H204: 0.1930501931 | I204: 0.1992753623 | J204: 0.2377358491 | K204: 0.1745454545 | L204: 0.1204819277 | M204: 0.1520737327 | N204: 0.2310606061 | O204: 0.2177777778 | P204: 0.2146596859 | Q204: 0.2296650718 | R204: 0.1834061135 | S204: 0.1863636364
A205: Contra Costa | B205: 0.185992532 | C205: 0.1856237181 | D205: 0.1836432602 | E205: 0.1597706641 | F205: 0.1800592091 | G205: 0.2092910012 | H205: 0.2041928721 | I205: 0.1782077393 | J205: 0.1631089217 | K205: 0.1634320735 | L205: 0.1442061993 | M205: 0.1571297896 | N205: 0.1682275814 | O205: 0.1650063586 | P205: 0.1712531521 | Q205: 0.1571834993 | R205: 0.1851764149 | S205: 0.1790349418
A206: Del Norte | B206: 0.2342931937 | C206: 0.1380697051 | D206: 0.1758865248 | E206: 0.182596291 | F206: 0.2367288379 | G206: 0.3357988166 | H206: 0.2648725212 | I206: 0.2523616734 | J206: 0.3273972603 | K206: 0.2462311558 | L206: 0.2342342342 | M206: 0.2541254125 | N206: 0.274822695 | O206: 0.2237762238 | P206: 0.2711598746 | Q206: 0.1957186544 | R206: 0.2396694215 | S206: 0.2290598291
A207: El Dorado | B207: 0.1130284728 | C207: 0.1200489996 | D207: 0.1150874339 | E207: 0.1309970797 | F207: 0.1271911945 | G207: 0.2243697479 | H207: 0.2115303095 | I207: 0.2074468085 | J207: 0.2171945701 | K207: 0.1675835802 | L207: 0.1769041769 | M207: 0.19 | N207: 0.1929653151 | O207: 0.1938923897 | P207: 0.2182662539 | Q207: 0.2072434608 | R207: 0.2303523035 | S207: 0.1990595611
A208: Fresno | B208: 0.3244764915 | C208: 0.3221909393 | D208: 0.2828101959 | E208: 0.2719010884 | F208: 0.2971967514 | G208: 0.2471087348 | H208: 0.2785780134 | I208: 0.2942720996 | J208: 0.2562923012 | K208: 0.2274291332 | L208: 0.226777855 | M208: 0.2451977401 | N208: 0.2757487411 | O208: 0.2436254057 | P208: 0.2506449579 | Q208: 0.2506863326 | R208: 0.2885736712 | S208: 0.2719012515
... 48 more rows

Sheet tbl_data_dashboard (hidden)
A1: county | B1: qtr_calfresh_hh_ly | C1: qtr_calfresh_hh_prev_qtr | D1: qtr_calfresh_hh_curr_qtr | E1: qtr_calfresh_pers_ly | F1: qtr_calfresh_pers_prev_qtr | G1: qtr_calfresh_pers_curr_qtr | H1: qtr_medical_rcv_calfresh_ly | I1: qtr_medical_rcv_calfresh_prev_qtr | J1: qtr_medical_rcv_calfresh_curr_qtr | K1: qtr_calfresh_rcv_medical_ly | L1: qtr_calfresh_rcv_medical_prev_qtr | M1: qtr_calfresh_rcv_medical_curr_qtr | N1: qtr_pct_calfresh_rcv_medical_ly | O1: qtr_pct_calfresh_rcv_medical_prev_qtr | P1: qtr_pct_calfresh_rcv_medical_curr_qtr | Q1: qtr_timeliness_30d_ly | R1: qtr_timeliness_30d_prev_qtr | S1: qtr_timeliness_30d_curr_qtr | T1: qtr_timeliness_exp_ly | U1: qtr_timeliness_exp_prev_qtr | V1: qtr_timeliness_exp_curr_qtr | W1: qtr_active_err_rt_ly | X1: qtr_active_err_rt_prev_qtr | Y1: qtr_active_err_rt_curr_qtr | Z1: qtr_30d_churn_reapps_ly | AA1: qtr_30d_churn_reapps_prev_qtr | AB1: qtr_30d_churn_reapps_curr_qtr | AC1: qtr_90d_churn_reapps_ly | AD1: qtr_90d_churn_reapps_prev_qtr | AE1: qtr_90d_churn_reapps_curr_qtr | AF1: qtr_30d_churn_recerts_ly | AG1: qtr_30d_churn_recerts_prev_qtr | AH1: qtr_30d_churn_recerts_curr_qtr | AI1: qtr_90d_churn_recerts_ly | AJ1: qtr_90d_churn_recerts_prev_qtr | AK1: qtr_90d_churn_recerts_curr_qtr | AL1: ann_hh_2yr_prior | AM1: ann_hh_1yr_prior | AN1: ann_hh_yr_of_report | AO1: ann_pers_2yr_prior | AP1: ann_pers_1yr_prior | AQ1: ann_pers_yr_of_report | AR1: ann_elderly_2yr_prior | AS1: ann_elderly_1yr_prior | AT1: ann_elderly_yr_of_report | AU1: ann_children_2yr_prior | AV1: ann_children_1yr_prior | AW1: ann_children_yr_of_report | AX1: ann_child_only_hh_2yr_prior | AY1: ann_child_only_hh_1yr_prior | AZ1: ann_child_only_hh_yr_of_report | BA1: ann_child_only_pers_2yr_prior | BB1: ann_child_only_pers_1yr_prior | BC1: ann_child_only_pers_yr_of_report | BD1: ann_esl_2yr_prior | BE1: ann_esl_1yr_prior | BF1: ann_esl_yr_of_report | BG1: ann_tot_pop_2yr_prior | BH1: ann_tot_pop_1yr_prior | BI1: ann_tot_pop_yr_of_report | BJ1: ann_elderly_over60_2yr_prior | BK1: ann_elderly_over60_1yr_prior | BL1: ann_elderly_over60_yr_of_report | BM1: ann_children_less18_2yr_prior | BN1: ann_children_less18_1yr_prior | BO1: ann_children_less18_yr_of_report | BP1: ann_tot_pop_greater5_2yr_prior | BQ1: ann_tot_pop_greater5_1yr_prior | BR1: ann_tot_pop_greater5_yr_of_report | BS1: ann_tot_esl_greater5_2yr_prior | BT1: ann_tot_esl_greater5_1yr_prior | BU1: ann_tot_esl_greater5_yr_of_report | BV1: ann_medical_2yr_prior | BW1: ann_medical_1yr_prior | BX1: ann_medical_yr_of_report | BY1: ann_ssi_rcpt_2yr_prior | BZ1: ann_ssi_rcpt_1yr_prior | CA1: ann_ssi_rcpt_yr_of_report | CB1: ann_unempl_pct_2yr_prior | CC1: ann_unempl_pct_1yr_prior | CD1: ann_unempl_pct_yr_of_report | CE1: ann_calfresh_eligibles_2yr_prior | CF1: ann_calfresh_eligibles_1yr_prior | CG1: ann_calfresh_eligibles_yr_of_report | CH1: ann_eligibles_excl_undocs_ssi_2yr_prior | CI1: ann_eligibles_excl_undocs_ssi_1yr_prior | CJ1: ann_eligibles_excl_undocs_ssi_yr_of_report | CK1: year | CL1: quarter | CM1: month | CN1: date
A2: Alameda | B2: 58805 | C2: 62045 | D2: 63121 | E2: 120874 | F2: 124622 | G2: 126571 | H2: 0.361 | I2: 0.367 | J2: 0.361 | K2: 96974 | L2: 98451 | M2: 98269 | N2: 0.773 | O2: 0.756 | P2: 0.756 | Q2: 0.844 | R2: 0.911 | S2: 0.927 | T2: 0.871 | U2: 0.877 | V2: 0.855 | W2: 0.014 | X2: 0.016 | Y2: 0.046 | Z2: 0.12 | AA2: 0.078 | AB2: 0.085 | AC2: 0.197 | AD2: 0.162 | AE2: 0.183 | AF2: 0.031 | AG2: 0.043 | AH2: 0.045 | AI2: 0.062 | AJ2: 0.082 | AK2: 0.094 | AL2: 48687 | AM2: 56312 | AN2: 62045 | AO2: 102447 | AP2: 116353 | AQ2: 124622 | AR2: 3736 | AS2: 4838 | AT2: 5848 | AU2: 55478 | AV2: 60943 | AW2: 61164 | AX2: 9561 | AY2: 10808 | AZ2: 11499 | BA2: 0 | BB2: 0 | BC2: 0 | BD2: 29796 | BE2: 34800 | BF2: 36077 | BG2: 1513236 | BH2: 1526220 | BI2: 1540790 | BJ2: 248319 | BK2: 256848 | BL2: 265903 | BM2: 340923 | BN2: 341530 | BO2: 343820 | BP2: 0 | BQ2: 0 | BR2: 0 | BS2: 138614 | BT2: 140068 | BU2: 134661 | BV2: 243352 | BW2: 250554 | BX2: 253472 | BY2: 47224 | BZ2: 48001 | CA2: 48146 | CB2: 0.113 | CC2: 0.104 | CD2: 0.09 | CE2: 217269 | CF2: 220935 | CG2: 220282 | CH2: 0.472 | CI2: 0.525 | CJ2: 0.565 | CK2: 2012 | CL2: 4 | CM2: DEC | CN2: 2012-12-01
A3: Alpine | B3: 77 | C3: 84 | D3: 80 | E3: 144 | F3: 147 | G3: 137 | H3: 0.492 | I3: 0.45 | J3: 0.492 | K3: 128 | L3: 121 | M3: 123 | N3: 0.908 | O3: 0.812 | P3: 0.879 | Q3: 1 | R3: 1 | S3: 1 | T3: 1 | U3: 1 | V3: 0.938 | W3: 0.051 | X3: 0.055 | Y3: 0.047 | Z3: 0 | AA3: 0.053 | AB3: 0 | AC3: 0.04 | AD3: 0.105 | AE3: 0.087 | AF3: 0.12 | AG3: 0.105 | AH3: 0.087 | AI3: 0.12 | AJ3: 0.105 | AK3: 0.087 | AL3: 71 | AM3: 78 | AN3: 84 | AO3: 143 | AP3: 144 | AQ3: 147 | AR3: 7 | AS3: 13 | AT3: 9 | AU3: 62 | AV3: 46 | AW3: 53 | AX3: 6 | AY3: 2 | AZ3: 2 | BA3: 0 | BB3: 0 | BC3: 0 | BD3: 0 | BE3: 0 | BF3: 0 | BG3: 1163 | BH3: 1118 | BI3: 1127 | BJ3: 273 | BK3: 276 | BL3: 293 | BM3: 256 | BN3: 239 | BO3: 245 | BP3: 0 | BQ3: 0 | BR3: 0 | BS3: 24 | BT3: 21 | BU3: 24 | BV3: 212 | BW3: 193 | BX3: 201 | BY3: 43 | BZ3: 44 | CA3: 41 | CB3: 0.154 | CC3: 0.148 | CD3: 0.133 | CE3: 144 | CF3: 209 | CG3: 195 | CH3: 0.01 | CI3: 0.721 | CJ3: 0.749 | CK3: 2012 | CL3: 4 | CM3: DEC | CN3: 2012-12-01
A4: Amador | B4: 1552 | C4: 1717 | D4: 1733 | E4: 3032 | F4: 3287 | G4: 3340 | H4: 0.475 | I4: 0.484 | J4: 0.475 | K4: 2633 | L4: 2704 | M4: 2748 | N4: 0.857 | O4: 0.823 | P4: 0.822 | Q4: 0.774 | R4: 0.956 | S4: 0.973 | T4: 0.893 | U4: 0.928 | V4: 0.936 | W4: 0.051 | X4: 0.055 | Y4: 0.047 | Z4: 0.029 | AA4: 0.033 | AB4: 0.029 | AC4: 0.105 | AD4: 0.147 | AE4: 0.14 | AF4: 0.168 | AG4: 0.152 | AH4: 0.199 | AI4: 0.173 | AJ4: 0.171 | AK4: 0.228 | AL4: 1243 | AM4: 1485 | AN4: 1717 | AO4: 2558 | AP4: 2906 | AQ4: 3287 | AR4: 96 | AS4: 133 | AT4: 182 | AU4: 1038 | AV4: 1175 | AW4: 1230 | AX4: 57 | AY4: 60 | AZ4: 61 | BA4: 0 | BB4: 0 | BC4: 0 | BD4: 71 | BE4: 85 | BF4: 81 | BG4: 37853 | BH4: 37288 | BI4: 36899 | BJ4: 11273 | BK4: 11475 | BL4: 11711 | BM4: 6310 | BN4: 6120 | BO4: 6009 | BP4: 0 | BQ4: 0 | BR4: 0 | BS4: 450 | BT4: 458 | BU4: 507 | BV4: 4242 | BW4: 4505 | BX4: 4522 | BY4: 586 | BZ4: 628 | CA4: 654 | CB4: 0.133 | CC4: 0.128 | CD4: 0.118 | CE4: 3324 | CF4: 4098 | CG4: 4237 | CH4: 0.757 | CI4: 0.703 | CJ4: 0.767 | CK4: 2012 | CL4: 4 | CM4: DEC | CN4: 2012-12-01
A5: Butte | B5: 13233 | C5: 13988 | D5: 14325 | E5: 28120 | F5: 29226 | G5: 29899 | H5: 0.415 | I5: 0.438 | J5: 0.415 | K5: 24964 | L5: 26227 | M5: 26485 | N5: 0.877 | O5: 0.87 | P5: 0.868 | Q5: 0.827 | R5: 0.895 | S5: 0.916 | T5: 0.936 | U5: 0.949 | V5: 0.955 | W5: 0.051 | X5: 0.055 | Y5: 0.047 | Z5: 0.035 | AA5: 0.036 | AB5: 0.038 | AC5: 0.125 | AD5: 0.116 | AE5: 0.132 | AF5: 0.265 | AG5: 0.247 | AH5: 0.278 | AI5: 0.27 | AJ5: 0.264 | AK5: 0.299 | AL5: 11643 | AM5: 12883 | AN5: 13988 | AO5: 25150 | AP5: 27531 | AQ5: 29226 | AR5: 470 | AS5: 697 | AT5: 842 | AU5: 11479 | AV5: 12820 | AW5: 12905 | AX5: 1282 | AY5: 1166 | AZ5: 1187 | BA5: 0 | BB5: 0 | BC5: 0 | BD5: 3022 | BE5: 3175 | BF5: 2929 | BG5: 219990 | BH5: 220521 | BI5: 221118 | BJ5: 47578 | BK5: 48592 | BL5: 49667 | BM5: 46333 | BN5: 46265 | BO5: 45992 | BP5: 0 | BQ5: 0 | BR5: 0 | BS5: 6134 | BT5: 5007 | BU5: 5475 | BV5: 52094 | BW5: 52008 | BX5: 51266 | BY5: 10460 | BZ5: 10702 | CA5: 10828 | CB5: 0.139 | CC5: 0.136 | CD5: 0.122 | CE5: 47979 | CF5: 61543 | CG5: 56950 | CH5: 0.516 | CI5: 0.443 | CJ5: 0.512 | CK5: 2012 | CL5: 4 | CM5: DEC | CN5: 2012-12-01
A6: Calaveras | B6: 2354 | C6: 2522 | D6: 2491 | E6: 4774 | F6: 4998 | G6: 4951 | H6: 0.484 | I6: 0.498 | J6: 0.484 | K6: 3991 | L6: 4144 | M6: 4048 | N6: 0.828 | O6: 0.819 | P6: 0.825 | Q6: 0.992 | R6: 1 | S6: 0.987 | T6: 0.98 | U6: 0.992 | V6: 0.988 | W6: 0.051 | X6: 0.055 | Y6: 0.047 | Z6: 0.033 | AA6: 0.028 | AB6: 0.033 | AC6: 0.143 | AD6: 0.107 | AE6: 0.141 | AF6: 0.164 | AG6: 0.209 | AH6: 0.206 | AI6: 0.175 | AJ6: 0.234 | AK6: 0.235 | AL6: 1964 | AM6: 2309 | AN6: 2522 | AO6: 4167 | AP6: 4736 | AQ6: 4998 | AR6: 138 | AS6: 219 | AT6: 278 | AU6: 1692 | AV6: 1877 | AW6: 1881 | AX6: 54 | AY6: 58 | AZ6: 66 | BA6: 0 | BB6: 0 | BC6: 0 | BD6: 125 | BE6: 123 | BF6: 148 | BG6: 45462 | BH6: 45143 | BI6: 45045 | BJ6: 13822 | BK6: 14097 | BL6: 14458 | BM6: 8888 | BN6: 8594 | BO6: 8280 | BP6: 0 | BQ6: 0 | BR6: 0 | BS6: 465 | BT6: 510 | BU6: 559 | BV6: 6574 | BW6: 6701 | BX6: 6850 | BY6: 995 | BZ6: 1005 | CA6: 1023 | CB6: 0.153 | CC6: 0.146 | CD6: 0.13 | CE6: 5161 | CF6: 4923 | CG6: 5990 | CH6: 0.806 | CI6: 0.955 | CJ6: 0.831 | CK6: 2012 | CL6: 4 | CM6: DEC | CN6: 2012-12-01
A7: California | B7: 1735465 | C7: 1843348 | D7: 1887860 | E7: 3905210 | F7: 4074650 | G7: 4147355 | H7: 0.401 | I7: 0.415 | J7: 0.401 | K7: 3136587 | L7: 3205731 | M7: 3223285 | N7: 0.828 | O7: 0.816 | P7: 0.816 | Q7: 0.958 | R7: 0.977 | S7: 0.977 | T7: 0.923 | U7: 0.942 | V7: 0.939 | W7: 0.037 | X7: 0.036 | Y7: 0.032 | Z7: 0.1 | AA7: 0.082 | AB7: 0.089 | AC7: 0.192 | AD7: 0.167 | AE7: 0.183 | AF7: 0.065 | AG7: 0.086 | AH7: 0.091 | AI7: 0.085 | AJ7: 0.109 | AK7: 0.116 | AL7: 1476323 | AM7: 1684027 | AN7: 1843348 | AO7: 3413636 | AP7: 3813817 | AQ7: 4074650 | AR7: 86703 | AS7: 115078 | AT7: 141407 | AU7: 1957593 | AV7: 2138572 | AW7: 2184693 | AX7: 332977 | AY7: 356627 | AZ7: 372370 | BA7: 0 | BB7: 0 | BC7: 0 | BD7: 1103257 | BE7: 1226258 | BF7: 1268115 | BG7: 37309382 | BH7: 37570307 | BI7: 37826160 | BJ7: 6126283 | BK7: 6313717 | BL7: 6506534 | BM7: 9270132 | BN7: 9214425 | BO7: 9170526 | BP7: 0 | BQ7: 0 | BR7: 0 | BS7: 3849542 | BT7: 3841701 | BU7: 3775905 | BV7: 7397966 | BW7: 7594872 | BX7: 7619341 | BY7: 1148055 | BZ7: 1165670 | CA7: 1176286 | CB7: 0.124 | CC7: 0.118 | CD7: 0.105 | CE7: 6356460 | CF7: 6883374 | CG7: 7121280 | CH7: 0.509 | CI7: 0.552 | CJ7: 0.57 | CK7: 2012 | CL7: 4 | CM7: DEC | CN7: 2012-12-01
A8: Colusa | B8: 654 | C8: 701 | D8: 648 | E8: 1628 | F8: 1728 | G8: 1600 | H8: 0.27 | I8: 0.285 | J8: 0.27 | K8: 1489 | L8: 1547 | M8: 1496 | N8: 0.906 | O8: 0.895 | P8: 0.902 | Q8: 1 | R8: 0.938 | S8: 1 | T8: 1 | U8: 1 | V8: 1 | W8: 0.051 | X8: 0.055 | Y8: 0.047 | Z8: 0.073 | AA8: 0.043 | AB8: 0.041 | AC8: 0.184 | AD8: 0.154 | AE8: 0.131 | AF8: 0.095 | AG8: 0.169 | AH8: 0.103 | AI8: 0.101 | AJ8: 0.189 | AK8: 0.113 | AL8: 580 | AM8: 673 | AN8: 701 | AO8: 1551 | AP8: 1716 | AQ8: 1728 | AR8: 26 | AS8: 44 | AT8: 39 | AU8: 995 | AV8: 1083 | AW8: 1055 | AX8: 78 | AY8: 87 | AZ8: 108 | BA8: 0 | BB8: 0 | BC8: 0 | BD8: 561 | BE8: 590 | BF8: 598 | BG8: 21478 | BH8: 21502 | BI8: 21614 | BJ8: 3582 | BK8: 3687 | BL8: 3794 | BM8: 6394 | BN8: 6264 | BO8: 6173 | BP8: 0 | BQ8: 0 | BR8: 0 | BS8: 3556 | BT8: 3215 | BU8: 3235 | BV8: 4645 | BW8: 4710 | BX8: 4695 | BY8: 561 | BZ8: 541 | CA8: 556 | CB8: 0.202 | CC8: 0.205 | CD8: 0.2 | CE8: 4315 | CF8: 4441 | CG8: 4435 | CH8: 0.379 | CI8: 0.38 | CJ8: 0.389 | CK8: 2012 | CL8: 4 | CM8: DEC | CN8: 2012-12-01
A9: Contra Costa | B9: 31361 | C9: 32977 | D9: 33886 | E9: 66920 | F9: 68789 | G9: 70227 | H9: 0.35 | I9: 0.356 | J9: 0.35 | K9: 52959 | L9: 53398 | M9: 53817 | N9: 0.77 | O9: 0.751 | P9: 0.747 | Q9: 0.865 | R9: 0.965 | S9: 0.941 | T9: 0.831 | U9: 0.846 | V9: 0.875 | W9: 0.048 | X9: 0.036 | Y9: 0.006 | Z9: 0.113 | AA9: 0.088 | AB9: 0.104 | AC9: 0.186 | AD9: 0.16 | AE9: 0.18 | AF9: 0.055 | AG9: 0.034 | AH9: 0.047 | AI9: 0.089 | AJ9: 0.057 | AK9: 0.09 | AL9: 26630 | AM9: 30338 | AN9: 32977 | AO9: 57853 | AP9: 64763 | AQ9: 68789 | AR9: 1542 | AS9: 1979 | AT9: 2515 | AU9: 31677 | AV9: 35431 | AW9: 35507 | AX9: 5493 | AY9: 6233 | AZ9: 6651 | BA9: 0 | BB9: 0 | BC9: 0 | BD9: 12415 | BE9: 14843 | BF9: 15201 | BG9: 1052211 | BH9: 1061375 | BI9: 1069803 | BJ9: 192112 | BK9: 198717 | BL9: 205603 | BM9: 260258 | BN9: 258003 | BO9: 255890 | BP9: 0 | BQ9: 0 | BR9: 0 | BS9: 68158 | BT9: 62372 | BU9: 66528 | BV9: 137511 | BW9: 141199 | BX9: 143428 | BY9: 22753 | BZ9: 23292 | CA9: 23603 | CB9: 0.111 | CC9: 0.104 | CD9: 0.09 | CE9: 118316 | CF9: 149672 | CG9: 135137 | CH9: 0.485 | CI9: 0.432 | CJ9: 0.507 | CK9: 2012 | CL9: 4 | CM9: DEC | CN9: 2012-12-01
A10: Del Norte | B10: 2470 | C10: 2629 | D10: 2566 | E10: 5203 | F10: 5445 | G10: 5247 | H10: 0.484 | I10: 0.506 | J10: 0.484 | K10: 4612 | L10: 4826 | M10: 4637 | N10: 0.888 | O10: 0.883 | P10: 0.878 | Q10: 1 | R10: 1 | S10: 1 | T10: 0.99 | U10: 0.988 | V10: 0.978 | W10: 0.051 | X10: 0.055 | Y10: 0.047 | Z10: 0.067 | AA10: 0.066 | AB10: 0.078 | AC10: 0.234 | AD10: 0.183 | AE10: 0.237 | AF10: 0.126 | AG10: 0.23 | AH10: 0.25 | AI10: 0.131 | AJ10: 0.263 | AK10: 0.281 | AL10: 2422 | AM10: 2525 | AN10: 2629 | AO10: 5101 | AP10: 5328 | AQ10: 5445 | AR10: 86 | AS10: 122 | AT10: 157 | AU10: 2182 | AV10: 2398 | AW10: 2343 | AX10: 193 | AY10: 160 | AZ10: 173 | BA10: 0 | BB10: 0 | BC10: 0 | BD10: 332 | BE10: 333 | BF10: 285 | BG10: 28544 | BH10: 28498 | BI10: 28359 | BJ10: 5621 | BK10: 5761 | BL10: 5913 | BM10: 6077 | BN10: 5949 | BO10: 5778 | BP10: 0 | BQ10: 0 | BR10: 0 | BS10: 614 | BT10: 577 | BU10: 549 | BV10: 8333 | BW10: 8219 | BX10: 8091 | BY10: 1941 | BZ10: 1936 | CA10: 1869 | CB10: 0.131 | CC10: 0.131 | CD10: 0.134 | CE10: 5762 | CF10: 5502 | CG10: 5696 | CH10: 0.859 | CI10: 0.954 | CJ10: 0.944 | CK10: 2012 | CL10: 4 | CM10: DEC | CN10: 2012-12-01
A11: El Dorado | B11: 5730 | C11: 6081 | D11: 6224 | E11: 11284 | F11: 11620 | G11: 11772 | H11: 0.406 | I11: 0.421 | J11: 0.406 | K11: 9391 | L11: 9820 | M11: 9730 | N11: 0.818 | O11: 0.813 | P11: 0.804 | Q11: 1 | R11: 1 | S11: 1 | T11: 0.926 | U11: 0.959 | V11: 0.973 | W11: 0.051 | X11: 0.055 | Y11: 0.047 | Z11: 0.028 | AA11: 0.032 | AB11: 0.038 | AC11: 0.113 | AD11: 0.131 | AE11: 0.127 | AF11: 0.118 | AG11: 0.157 | AH11: 0.174 | AI11: 0.122 | AJ11: 0.173 | AK11: 0.196 | AL11: 4717 | AM11: 5602 | AN11: 6081 | AO11: 9642 | AP11: 11204 | AQ11: 11620 | AR11: 354 | AS11: 481 | AT11: 581 | AU11: 4382 | AV11: 4898 | AW11: 4822 | AX11: 315 | AY11: 358 | AZ11: 402 | BA11: 0 | BB11: 0 | BC11: 0 | BD11: 762 | BE11: 850 | BF11: 864 | BG11: 180921 | BH11: 180663 | BI11: 180599 | BJ11: 39740 | BK11: 41293 | BL11: 42806 | BM11: 41107 | BN11: 40109 | BO11: 39168 | BP11: 0 | BQ11: 0 | BR11: 0 | BS11: 3291 | BT11: 3350 | BU11: 3301 | BV11: 18649 | BW11: 19110 | BX11: 19049 | BY11: 2688 | BZ11: 2777 | CA11: 2818 | CB11: 0.125 | CC11: 0.119 | CD11: 0.104 | CE11: 20021 | CF11: 25383 | CG11: 19223 | CH11: 0.473 | CI11: 0.435 | CJ11: 0.606 | CK11: 2012 | CL11: 4 | CM11: DEC | CN11: 2012-12-01
A12: Fresno | B12: 85718 | C12: 88850 | D12: 89468 | E12: 208200 | F12: 215016 | G12: 215286 | H12: 0.529 | I12: 0.535 | J12: 0.529 | K12: 172574 | L12: 175421 | M12: 174945 | N12: 0.801 | O12: 0.798 | P12: 0.794 | Q12: 1 | R12: 0.968 | S12: 0.984 | T12: 0.952 | U12: 0.973 | V12: 0.97 | W12: 0.018 | X12: 0.015 | Y12: 0 | Z12: 0.204 | AA12: 0.157 | AB12: 0.16 | AC12: 0.325 | AD12: 0.272 | AE12: 0.297 | AF12: 0.073 | AG12: 0.093 | AH12: 0.072 | AI12: 0.12 | AJ12: 0.149 | AK12: 0.114 | AL12: 77767 | AM12: 84399 | AN12: 88850 | AO12: 193940 | AP12: 206749 | AQ12: 215016 | AR12: 2885 | AS12: 3822 | AT12: 4650 | AU12: 114569 | AV12: 119928 | AW12: 122558 | AX12: 14973 | AY12: 15136 | AZ12: 15452 | BA12: 0 | BB12: 0 | BC12: 0 | BD12: 58297 | BE12: 60894 | BF12: 61549 | BG12: 932377 | BH12: 939278 | BI12: 946823 | BJ12: 134523 | BK12: 138663 | BL12: 143086 | BM12: 277020 | BN12: 276363 | BO12: 275524 | BP12: 0 | BQ12: 0 | BR12: 0 | BS12: 107585 | BT12: 112468 | BU12: 115573 | BV12: 307147 | BW12: 313221 | BX12: 316699 | BY12: 39199 | BZ12: 39741 | CA12: 40171 | CB12: 0.169 | CC12: 0.165 | CD12: 0.152 | CE12: 245948 | CF12: 261012 | CG12: 283513 | CH12: 0.783 | CI12: 0.789 | CJ12: 0.758 | CK12: 2012 | CL12: 4 | CM12: DEC | CN12: 2012-12-01
A13: Glenn | B13: 1298 | C13: 1389 | D13: 1392 | E13: 3253 | F13: 3419 | G13: 3436 | H13: 0.376 | I13: 0.391 | J13: 0.376 | K13: 3023 | L13: 3167 | M13: 3130 | N13: 0.897 | O13: 0.904 | P13: 0.906 | Q13: 1 | R13: 1 | S13: 1 | T13: 0.991 | U13: 0.982 | V13: 0.992 | W13: 0.051 | X13: 0.055 | Y13: 0.047 | Z13: 0.02 | AA13: 0.024 | AB13: 0.053 | AC13: 0.124 | AD13: 0.116 | AE13: 0.168 | AF13: 0.126 | AG13: 0.112 | AH13: 0.19 | AI13: 0.126 | AJ13: 0.124 | AK13: 0.21 | AL13: 1183 | AM13: 1323 | AN13: 1389 | AO13: 3115 | AP13: 3422 | AQ13: 3419 | AR13: 46 | AS13: 63 | AT13: 87 | AU13: 1843 | AV13: 1955 | AW13: 1908 | AX13: 230 | AY13: 219 | AZ13: 231 | BA13: 0 | BB13: 0 | BC13: 0 | BD13: 700 | BE13: 744 | BF13: 769 | BG13: 28143 | BH13: 28255 | BI13: 28208 | BJ13: 5203 | BK13: 5356 | BL13: 5499 | BM13: 7836 | BN13: 7776 | BO13: 7657 | BP13: 0 | BQ13: 0 | BR13: 0 | BS13: 2406 | BT13: 2387 | BU13: 2433 | BV13: 7211 | BW13: 7202 | BX13: 7157 | BY13: 1112 | BZ13: 1118 | CA13: 1128 | CB13: 0.159 | CC13: 0.158 | CD13: 0.147 | CE13: 5465 | CF13: 6094 | CG13: 6413 | CH13: 0.566 | CI13: 0.544 | CJ13: 0.537 | CK13: 2012 | CL13: 4 | CM13: DEC | CN13: 2012-12-01
A14: Humboldt | B14: 7822 | C14: 8114 | D14: 8197 | E14: 14973 | F14: 15495 | G14: 15547 | H14: 0.399 | I14: 0.416 | J14: 0.399 | K14: 12665 | L14: 13354 | M14: 13296 | N14: 0.83 | O14: 0.837 | P14: 0.83 | Q14: 0.939 | R14: 0.979 | S14: 0.988 | T14: 0.896 | U14: 0.944 | V14: 0.897 | W14: 0.051 | X14: 0.055 | Y14: 0.047 | Z14: 0.045 | AA14: 0.035 | AB14: 0.047 | AC14: 0.149 | AD14: 0.125 | AE14: 0.136 | AF14: 0.124 | AG14: 0.184 | AH14: 0.238 | AI14: 0.128 | AJ14: 0.207 | AK14: 0.27 | AL14: 7065 | AM14: 7731 | AN14: 8114 | AO14: 13832 | AP14: 14836 | AQ14: 15495 | AR14: 307 | AS14: 422 | AT14: 496 | AU14: 6083 | AV14: 6696 | AW14: 6496 | AX14: 622 | AY14: 657 | AZ14: 685 | BA14: 0 | BB14: 0 | BC14: 0 | BD14: 777 | BE14: 843 | BF14: 807 | BG14: 134663 | BH14: 135218 | BI14: 134923 | BJ14: 26929 | BK14: 27992 | BL14: 29078 | BM14: 27047 | BN14: 26890 | BO14: 26337 | BP14: 0 | BQ14: 0 | BR14: 0 | BS14: 2447 | BT14: 2150 | BU14: 2104 | BV14: 27359 | BW14: 27304 | BX14: 27113 | BY14: 5846 | BZ14: 5830 | CA14: 5740 | CB14: 0.114 | CC14: 0.114 | CD14: 0.105 | CE14: 28035 | CF14: 29447 | CG14: 32857 | CH14: 0.494 | CI14: 0.5 | CJ14: 0.467 | CK14: 2012 | CL14: 4 | CM14: DEC | CN14: 2012-12-01
A15: Imperial | B15: 13711 | C15: 14037 | D15: 14563 | E15: 35463 | F15: 36091 | G15: 37524 | H15: 0.498 | I15: 0.503 | J15: 0.498 | K15: 32599 | L15: 32919 | M15: 33980 | N15: 0.898 | O15: 0.891 | P15: 0.892 | Q15: 1 | R15: 1 | S15: 0.998 | T15: 0.991 | U15: 0.984 | V15: 0.988 | W15: 0.051 | X15: 0.055 | Y15: 0.047 | Z15: 0.039 | AA15: 0.034 | AB15: 0.062 | AC15: 0.126 | AD15: 0.121 | AE15: 0.149 | AF15: 0.11 | AG15: 0.168 | AH15: 0.165 | AI15: 0.116 | AJ15: 0.186 | AK15: 0.182 | AL15: 11948 | AM15: 13153 | AN15: 14037 | AO15: 32185 | AP15: 34438 | AQ15: 36091 | AR15: 1032 | AS15: 1259 | AT15: 1456 | AU15: 16828 | AV15: 18301 | AW15: 18176 | AX15: 811 | AY15: 891 | AZ15: 994 | BA15: 0 | BB15: 0 | BC15: 0 | BD15: 15637 | BE15: 17336 | BF15: 17886 | BG15: 175389 | BH15: 177229 | BI15: 178659 | BJ15: 25787 | BK15: 26621 | BL15: 27470 | BM15: 51148 | BN15: 51037 | BO15: 50932 | BP15: 0 | BQ15: 0 | BR15: 0 | BS15: 31401 | BT15: 31970 | BU15: 32769 | BV15: 56998 | BW15: 58086 | BX15: 58377 | BY15: 10065 | BZ15: 10249 | CA15: 10349 | CB15: 0.299 | CC15: 0.297 | CD15: 0.283 | CE15: 45051 | CF15: 52830 | CG15: 44744 | CH15: 0.707 | CI15: 0.651 | CJ15: 0.808 | CK15: 2012 | CL15: 4 | CM15: DEC | CN15: 2012-12-01
A16: Inyo | B16: 886 | C16: 957 | D16: 974 | E16: 1838 | F16: 1951 | G16: 1967 | H16: 0.371 | I16: 0.391 | J16: 0.371 | K16: 1621 | L16: 1733 | M16: 1722 | N16: 0.871 | O16: 0.885 | P16: 0.88 | Q16: 0.986 | R16: 1 | S16: 0.983 | T16: 0.991 | U16: 0.993 | V16: 0.99 | W16: 0.051 | X16: 0.055 | Y16: 0.047 | Z16: 0.033 | AA16: 0.054 | AB16: 0.056 | AC16: 0.158 | AD16: 0.161 | AE16: 0.158 | AF16: 0.073 | AG16: 0.125 | AH16: 0.208 | AI16: 0.079 | AJ16: 0.128 | AK16: 0.221 | AL16: 788 | AM16: 869 | AN16: 957 | AO16: 1619 | AP16: 1813 | AQ16: 1951 | AR16: 76 | AS16: 92 | AT16: 105 | AU16: 735 | AV16: 866 | AW16: 879 | AX16: 81 | AY16: 91 | AZ16: 105 | BA16: 0 | BB16: 0 | BC16: 0 | BD16: 237 | BE16: 267 | BF16: 316 | BG16: 18528 | BH16: 18687 | BI16: 18637 | BJ16: 4894 | BK16: 5025 | BL16: 5121 | BM16: 3850 | BN16: 3816 | BO16: 3727 | BP16: 0 | BQ16: 0 | BR16: 0 | BS16: 648 | BT16: 454 | BU16: 490 | BV16: 3383 | BW16: 3541 | BX16: 3534 | BY16: 388 | BZ16: 390 | CA16: 396 | CB16: 0.1 | CC16: 0.099 | CD16: 0.094 | CE16: 2490 | CF16: 2628 | CG16: 2515 | CH16: 0.659 | CI16: 0.688 | CJ16: 0.777 | CK16: 2012 | CL16: 4 | CM16: DEC | CN16: 2012-12-01
A17: Kern | B17: 53918 | C17: 57915 | D17: 58235 | E17: 134045 | F17: 140798 | G17: 140403 | H17: 0.461 | I17: 0.471 | J17: 0.461 | K17: 114857 | L17: 117648 | M17: 116475 | N17: 0.839 | O17: 0.814 | P17: 0.811 | Q17: 0.987 | R17: 0.989 | S17: 0.986 | T17: 0.982 | U17: 0.951 | V17: 0.963 | W17: 0.031 | X17: 0.032 | Y17: 0.004 | Z17: 0.059 | AA17: 0.054 | AB17: 0.063 | AC17: 0.195 | AD17: 0.159 | AE17: 0.179 | AF17: 0.102 | AG17: 0.157 | AH17: 0.173 | AI17: 0.111 | AJ17: 0.182 | AK17: 0.201 | AL17: 48963 | AM17: 53773 | AN17: 57915 | AO17: 126010 | AP17: 134833 | AQ17: 140798 | AR17: 2133 | AS17: 2783 | AT17: 3379 | AU17: 77838 | AV17: 81944 | AW17: 82189 | AX17: 11285 | AY17: 11845 | AZ17: 11952 | BA17: 0 | BB17: 0 | BC17: 0 | BD17: 35177 | BE17: 37108 | BF17: 37887 | BG17: 841146 | BH17: 848839 | BI17: 855522 | BJ17: 110499 | BK17: 114797 | BL17: 119415 | BM17: 253432 | BN17: 252109 | BO17: 251296 | BP17: 0 | BQ17: 0 | BR17: 0 | BS17: 92352 | BT17: 84185 | BU17: 85452 | BV17: 232379 | BW17: 239601 | BX17: 240099 | BY17: 30257 | BZ17: 30734 | CA17: 31095 | CB17: 0.159 | CC17: 0.149 | CD17: 0.133 | CE17: 209992 | CF17: 213705 | CG17: 213671 | CH17: 0.596 | CI17: 0.626 | CJ17: 0.654 | CK17: 2012 | CL17: 4 | CM17: DEC | CN17: 2012-12-01
A18: Kings | B18: 9200 | C18: 9624 | D18: 9527 | E18: 22197 | F18: 22949 | G18: 22594 | H18: 0.491 | I18: 0.508 | J18: 0.491 | K18: 20037 | L18: 20596 | M18: 20493 | N18: 0.892 | O18: 0.886 | P18: 0.886 | Q18: 1 | R18: 0.996 | S18: 0.993 | T18: 0.911 | U18: 0.882 | V18: 0.908 | W18: 0.051 | X18: 0.055 | Y18: 0.047 | Z18: 0.054 | AA18: 0.043 | AB18: 0.055 | AC18: 0.172 | AD18: 0.144 | AE18: 0.192 | AF18: 0.102 | AG18: 0.145 | AH18: 0.168 | AI18: 0.109 | AJ18: 0.164 | AK18: 0.189 | AL18: 8383 | AM18: 9036 | AN18: 9624 | AO18: 20774 | AP18: 22067 | AQ18: 22949 | AR18: 396 | AS18: 448 | AT18: 563 | AU18: 11804 | AV18: 12407 | AW18: 12535 | AX18: 1468 | AY18: 1524 | AZ18: 1554 | BA18: 0 | BB18: 0 | BC18: 0 | BD18: 5006 | BE18: 5421 | BF18: 5625 | BG18: 152656 | BH18: 151655 | BI18: 150843 | BJ18: 17702 | BK18: 18146 | BL18: 18666 | BM18: 42241 | BN18: 41508 | BO18: 40866 | BP18: 0 | BQ18: 0 | BR18: 0 | BS18: 17173 | BT18: 14643 | BU18: 14061 | BV18: 35073 | BW18: 36327 | BX18: 36030 | BY18: 4731 | BZ18: 4723 | CA18: 4729 | CB18: 0.165 | CC18: 0.162 | CD18: 0.153 | CE18: 35697 | CF18: 28208 | CG18: 33431 | CH18: 0.572 | CI18: 0.783 | CJ18: 0.686 | CK18: 2012 | CL18: 4 | CM18: DEC | CN18: 2012-12-01
A19: Lake | B19: 4835 | C19: 5041 | D19: 5076 | E19: 9863 | F19: 10039 | G19: 10118 | H19: 0.41 | I19: 0.42 | J19: 0.41 | K19: 8599 | L19: 8709 | M19: 8755 | N19: 0.868 | O19: 0.852 | P19: 0.854 | Q19: 0.97 | R19: 0.955 | S19: 0.983 | T19: 0.971 | U19: 0.94 | V19: 0.955 | W19: 0.051 | X19: 0.055 | Y19: 0.047 | Z19: 0.019 | AA19: 0.015 | AB19: 0.019 | AC19: 0.088 | AD19: 0.083 | AE19: 0.097 | AF19: 0.243 | AG19: 0.256 | AH19: 0.277 | AI19: 0.254 | AJ19: 0.278 | AK19: 0.299 | AL19: 3953 | AM19: 4751 | AN19: 5041 | AO19: 8413 | AP19: 9789 | AQ19: 10039 | AR19: 287 | AS19: 382 | AT19: 477 | AU19: 3889 | AV19: 4333 | AW19: 4340 | AX19: 203 | AY19: 232 | AZ19: 256 | BA19: 0 | BB19: 0 | BC19: 0 | BD19: 700 | BE19: 789 | BF19: 790 | BG19: 64599 | BH19: 64419 | BI19: 64394 | BJ19: 16592 | BK19: 16938 | BL19: 17355 | BM19: 13568 | BN19: 13319 | BO19: 13100 | BP19: 0 | BQ19: 0 | BR19: 0 | BS19: 2327 | BT19: 1826 | BU19: 1920 | BV19: 17506 | BW19: 18109 | BX19: 17709 | BY19: 3585 | BZ19: 3653 | CA19: 3701 | CB19: 0.177 | CC19: 0.168 | CD19: 0.15 | CE19: 17289 | CF19: 17844 | CG19: 19370 | CH19: 0.485 | CI19: 0.52 | CJ19: 0.523 | CK19: 2012 | CL19: 4 | CM19: DEC | CN19: 2012-12-01
A20: Lassen | B20: 1395 | C20: 1386 | D20: 1408 | E20: 2980 | F20: 2933 | G20: 2956 | H20: 0.451 | I20: 0.475 | J20: 0.451 | K20: 2658 | L20: 2716 | M20: 2633 | N20: 0.887 | O20: 0.901 | P20: 0.883 | Q20: 0.949 | R20: 0.957 | S20: 0.978 | T20: 0.975 | U20: 0.93 | V20: 0.901 | W20: 0.051 | X20: 0.055 | Y20: 0.047 | Z20: 0.142 | AA20: 0.055 | AB20: 0.099 | AC20: 0.314 | AD20: 0.177 | AE20: 0.212 | AF20: 0.182 | AG20: 0.159 | AH20: 0.172 | AI20: 0.19 | AJ20: 0.174 | AK20: 0.187 | AL20: 1351 | AM20: 1402 | AN20: 1386 | AO20: 3010 | AP20: 3018 | AQ20: 2933 | AR20: 58 | AS20: 61 | AT20: 81 | AU20: 1335 | AV20: 1342 | AW20: 1284 | AX20: 82 | AY20: 78 | AZ20: 87 | BA20: 0 | BB20: 0 | BC20: 0 | BD20: 65 | BE20: 74 | BF20: 70 | BG20: 35136 | BH20: 34668 | BI20: 33650 | BJ20: 5403 | BK20: 5526 | BL20: 5593 | BM20: 6327 | BN20: 6095 | BO20: 5682 | BP20: 0 | BQ20: 0 | BR20: 0 | BS20: 771 | BT20: 745 | BU20: 704 | BV20: 5067 | BW20: 5145 | BX20: 4859 | BY20: 944 | BZ20: 928 | CA20: 930 | CB20: 0.14 | CC20: 0.134 | CD20: 0.126 | CE20: 3896 | CF20: 4149 | CG20: 4471 | CH20: 0.741 | CI20: 0.717 | CJ20: 0.658 | CK20: 2012 | CL20: 4 | CM20: DEC | CN20: 2012-12-01
A21: Los Angeles | B21: 492506 | C21: 516984 | D21: 538221 | E21: 1055754 | F21: 1093422 | G21: 1124832 | H21: 0.335 | I21: 0.344 | J21: 0.335 | K21: 849540 | L21: 865215 | M21: 874210 | N21: 0.792 | O21: 0.778 | P21: 0.768 | Q21: 0.968 | R21: 0.977 | S21: 0.972 | T21: 0.914 | U21: 0.959 | V21: 0.949 | W21: 0.033 | X21: 0.037 | Y21: 0.024 | Z21: 0.113 | AA21: 0.105 | AB21: 0.107 | AC21: 0.201 | AD21: 0.177 | AE21: 0.182 | AF21: 0.67 | AG21: 0.01 | AH21: 0.01 | AI21: 0.02 | AJ21: 0.29 | AK21: 0.36 | AL21: 426713 | AM21: 478664 | AN21: 516984 | AO21: 928981 | AP21: 1027412 | AQ21: 1093422 | AR21: 23188 | AS21: 30250 | AT21: 36571 | AU21: 545520 | AV21: 589565 | AW21: 599556 | AX21: 113467 | AY21: 119837 | AZ21: 124537 | BA21: 0 | BB21: 0 | BC21: 0 | BD21: 378985 | BE21: 413819 | BF21: 423844 | BG21: 9824906 | BH21: 9860836 | BI21: 9911665 | BJ21: 1531382 | BK21: 1574823 | BL21: 1620299 | BM21: 2387311 | BN21: 2357593 | BO21: 2341123 | BP21: 0 | BQ21: 0 | BR21: 0 | BS21: 1428149 | BT21: 1413525 | BU21: 1372113 | BV21: 2382451 | BW21: 2418773 | BX21: 2410140 | BY21: 377574 | BZ21: 382816 | CA21: 385131 | CB21: 0.126 | CC21: 0.123 | CD21: 0.109 | CE21: 1946279 | CF21: 1963598 | CG21: 2021648 | CH21: 0.474 | CI21: 0.521 | CJ21: 0.539 | CK21: 2012 | CL21: 4 | CM21: DEC | CN21: 2012-12-01
A22: Madera | B22: 10012 | C22: 10437 | D22: 10184 | E22: 25548 | F22: 26670 | G22: 25845 | H22: 0.474 | I22: 0.491 | J22: 0.474 | K22: 23703 | L22: 24539 | M22: 23623 | N22: 0.913 | O22: 0.9 | P22: 0.9 | Q22: 0.964 | R22: 0.991 | S22: 0.985 | T22: 0.981 | U22: 0.992 | V22: 0.985 | W22: 0.051 | X22: 0.055 | Y22: 0.047 | Z22: 0.079 | AA22: 0.054 | AB22: 0.054 | AC22: 0.219 | AD22: 0.161 | AE22: 0.192 | AF22: 0.137 | AG22: 0.18 | AH22: 0.206 | AI22: 0.152 | AJ22: 0.215 | AK22: 0.237 | AL22: 8763 | AM22: 10006 | AN22: 10437 | AO22: 23059 | AP22: 25675 | AQ22: 26670 | AR22: 345 | AS22: 467 | AT22: 534 | AU22: 14788 | AV22: 16252 | AW22: 16732 | AX22: 2933 | AY22: 3162 | AZ22: 3223 | BA22: 0 | BB22: 0 | BC22: 0 | BD22: 8899 | BE22: 9919 | BF22: 10100 | BG22: 151328 | BH22: 152008 | BI22: 151790 | BJ22: 24643 | BK22: 25106 | BL22: 25433 | BM22: 42897 | BN22: 42605 | BO22: 42036 | BP22: 0 | BQ22: 0 | BR22: 0 | BS22: 18725 | BT22: 19401 | BU22: 20218 | BV22: 43342 | BW22: 45597 | BX22: 45875 | BY22: 4438 | BZ22: 4466 | CA22: 4441 | CB22: 0.156 | CC22: 0.151 | CD22: 0.136 | CE22: 33115 | CF22: 33539 | CG22: 38099 | CH22: 0.683 | CI22: 0.757 | CJ22: 0.693 | CK22: 2012 | CL22: 4 | CM22: DEC | CN22: 2012-12-01
A23: Marin | B23: 5335 | C23: 5541 | D23: 5639 | E23: 8995 | F23: 9408 | G23: 9538 | H23: 0.303 | I23: 0.321 | J23: 0.303 | K23: 7963 | L23: 8425 | M23: 8290 | N23: 0.872 | O23: 0.873 | P23: 0.867 | Q23: 0.997 | R23: 0.994 | S23: 0.971 | T23: 0.975 | U23: 0.944 | V23: 0.946 | W23: 0.051 | X23: 0.055 | Y23: 0.047 | Z23: 0.069 | AA23: 0.037 | AB23: 0.041 | AC23: 0.139 | AD23: 0.118 | AE23: 0.115 | AF23: 0.05 | AG23: 0.138 | AH23: 0.175 | AI23: 0.054 | AJ23: 0.16 | AK23: 0.19 | AL23: 4610 | AM23: 5241 | AN23: 5541 | AO23: 7873 | AP23: 8890 | AQ23: 9408 | AR23: 490 | AS23: 659 | AT23: 758 | AU23: 3791 | AV23: 4267 | AW23: 4358 | AX23: 1032 | AY23: 1168 | AZ23: 1245 | BA23: 0 | BB23: 0 | BC23: 0 | BD23: 2251 | BE23: 2668 | BF23: 2958 | BG23: 252731 | BH23: 254359 | BI23: 254882 | BJ23: 61646 | BK23: 63398 | BL23: 65062 | BM23: 52051 | BN23: 51983 | BO23: 51763 | BP23: 0 | BQ23: 0 | BR23: 0 | BS23: 9990 | BT23: 8250 | BU23: 11689 | BV23: 22210 | BW23: 22986 | BX23: 22611 | BY23: 3139 | BZ23: 3120 | CA23: 3102 | CB23: 0.08 | CC23: 0.074 | CD23: 0.063 | CE23: 25284 | CF23: 28284 | CG23: 20101 | CH23: 0.307 | CI23: 0.311 | CJ23: 0.463 | CK23: 2012 | CL23: 4 | CM23: DEC | CN23: 2012-12-01
A24: Mariposa | B24: 804 | C24: 875 | D24: 851 | E24: 1704 | F24: 1804 | G24: 1746 | H24: 0.445 | I24: 0.457 | J24: 0.445 | K24: 1478 | L24: 1565 | M24: 1538 | N24: 0.875 | O24: 0.858 | P24: 0.861 | Q24: 0.83 | R24: 1 | S24: 0.873 | T24: 0.988 | U24: 0.989 | V24: 0.963 | W24: 0.051 | X24: 0.055 | Y24: 0.047 | Z24: 0.025 | AA24: 0.028 | AB24: 0.047 | AC24: 0.112 | AD24: 0.101 | AE24: 0.145 | AF24: 0.132 | AG24: 0.154 | AH24: 0.18 | AI24: 0.136 | AJ24: 0.178 | AK24: 0.196 | AL24: 642 | AM24: 796 | AN24: 875 | AO24: 1442 | AP24: 1730 | AQ24: 1804 | AR24: 56 | AS24: 77 | AT24: 83 | AU24: 644 | AV24: 727 | AW24: 709 | AX24: 31 | AY24: 39 | AZ24: 41 | BA24: 0 | BB24: 0 | BC24: 0 | BD24: 23 | BE24: 42 | BF24: 47 | BG24: 18193 | BH24: 17977 | BI24: 17817 | BJ24: 5453 | BK24: 5580 | BL24: 5675 | BM24: 3222 | BN24: 3136 | BO24: 3056 | BP24: 0 | BQ24: 0 | BR24: 0 | BS24: 200 | BT24: 331 | BU24: 155 | BV24: 2752 | BW24: 2868 | BX24: 2854 | BY24: 466 | BZ24: 450 | CA24: 460 | CB24: 0.119 | CC24: 0.119 | CD24: 0.11 | CE24: 2827 | CF24: 2928 | CG24: 2848 | CH24: 0.5 | CI24: 0.574 | CJ24: 0.623 | CK24: 2012 | CL24: 4 | CM24: DEC | CN24: 2012-12-01
A25: Mendocino | B25: 6803 | C25: 7242 | D25: 7216 | E25: 13222 | F25: 13660 | G25: 13612 | H25: 0.389 | I25: 0.403 | J25: 0.389 | K25: 10745 | L25: 11359 | M25: 11042 | N25: 0.833 | O25: 0.83 | P25: 0.82 | Q25: 0.998 | R25: 0.991 | S25: 0.994 | T25: 0.993 | U25: 0.987 | V25: 0.991 | W25: 0.051 | X25: 0.055 | Y25: 0.047 | Z25: 0.066 | AA25: 0.034 | AB25: 0.067 | AC25: 0.184 | AD25: 0.132 | AE25: 0.19 | AF25: 0.091 | AG25: 0.153 | AH25: 0.261 | AI25: 0.094 | AJ25: 0.183 | AK25: 0.307 | AL25: 5927 | AM25: 6735 | AN25: 7242 | AO25: 12079 | AP25: 13122 | AQ25: 13660 | AR25: 394 | AS25: 490 | AT25: 591 | AU25: 5222 | AV25: 5593 | AW25: 5727 | AX25: 535 | AY25: 571 | AZ25: 592 | BA25: 0 | BB25: 0 | BC25: 0 | BD25: 1740 | BE25: 1861 | BF25: 1934 | BG25: 87924 | BH25: 88071 | BI25: 88566 | BJ25: 20784 | BK25: 21515 | BL25: 22245 | BM25: 19415 | BN25: 19200 | BO25: 19078 | BP25: 0 | BQ25: 0 | BR25: 0 | BS25: 4437 | BT25: 4077 | BU25: 4188 | BV25: 22302 | BW25: 22789 | BX25: 23130 | BY25: 3224 | BZ25: 3247 | CA25: 3238 | CB25: 0.113 | CC25: 0.109 | CD25: 0.097 | CE25: 22651 | CF25: 21298 | CG25: 19739 | CH25: 0.52 | CI25: 0.611 | CJ25: 0.687 | CK25: 2012 | CL25: 4 | CM25: DEC | CN25: 2012-12-01
A26: Merced | B26: 20575 | C26: 22003 | D26: 21978 | E26: 51481 | F26: 53940 | G26: 53540 | H26: 0.497 | I26: 0.507 | J26: 0.497 | K26: 43588 | L26: 44721 | M26: 44104 | N26: 0.837 | O26: 0.818 | P26: 0.818 | Q26: 0.993 | R26: 0.997 | S26: 0.996 | T26: 0.972 | U26: 0.977 | V26: 0.986 | W26: 0.015 | X26: 0.02 | Y26: 0.007 | Z26: 0.066 | AA26: 0.049 | AB26: 0.062 | AC26: 0.19 | AD26: 0.156 | AE26: 0.196 | AF26: 0.184 | AG26: 0.247 | AH26: 0.268 | AI26: 0.194 | AJ26: 0.27 | AK26: 0.292 | AL26: 18047 | AM26: 20289 | AN26: 22003 | AO26: 47074 | AP26: 51328 | AQ26: 53940 | AR26: 702 | AS26: 917 | AT26: 1122 | AU26: 28381 | AV26: 30050 | AW26: 30744 | AX26: 3718 | AY26: 3935 | AZ26: 4110 | BA26: 0 | BB26: 0 | BC26: 0 | BD26: 14350 | BE26: 15243 | BF26: 15638 | BG26: 255937 | BH26: 259289 | BI26: 261708 | BJ26: 34500 | BK26: 35643 | BL26: 36841 | BM26: 80434 | BN26: 80297 | BO26: 79582 | BP26: 0 | BQ26: 0 | BR26: 0 | BS26: 31467 | BT26: 36166 | BU26: 31663 | BV26: 81619 | BW26: 84350 | BX26: 84983 | BY26: 10473 | BZ26: 10642 | CA26: 10745 | CB26: 0.188 | CC26: 0.183 | CD26: 0.17 | CE26: 59978 | CF26: 80133 | CG26: 67910 | CH26: 0.775 | CI26: 0.632 | CJ26: 0.79 | CK26: 2012 | CL26: 4 | CM26: DEC | CN26: 2012-12-01
A27: Modoc | B27: 403 | C27: 438 | D27: 425 | E27: 1000 | F27: 997 | G27: 959 | H27: 0.387 | I27: 0.37 | J27: 0.387 | K27: 925 | L27: 873 | M27: 851 | N27: 0.904 | O27: 0.869 | P27: 0.876 | Q27: 1 | R27: 0.955 | S27: 1 | T27: 0.951 | U27: 1 | V27: 1 | W27: 0.051 | X27: 0.055 | Y27: 0.047 | Z27: 0.075 | AA27: 0.049 | AB27: 0.082 | AC27: 0.225 | AD27: 0.11 | AE27: 0.195 | AF27: 0.128 | AG27: 0.123 | AH27: 0.233 | AI27: 0.128 | AJ27: 0.129 | AK27: 0.264 | AL27: 441 | AM27: 402 | AN27: 438 | AO27: 1088 | AP27: 956 | AQ27: 997 | AR27: 19 | AS27: 20 | AT27: 25 | AU27: 531 | AV27: 519 | AW27: 486 | AX27: 18 | AY27: 24 | AZ27: 20 | BA27: 0 | BB27: 0 | BC27: 0 | BD27: 85 | BE27: 69 | BF27: 78 | BG27: 9648 | BH27: 9565 | BI27: 9518 | BJ27: 2722 | BK27: 2781 | BL27: 2834 | BM27: 2116 | BN27: 2072 | BO27: 2010 | BP27: 0 | BQ27: 0 | BR27: 0 | BS27: 258 | BT27: 279 | BU27: 280 | BV27: 2248 | BW27: 2094 | BX27: 2012 | BY27: 401 | BZ27: 404 | CA27: 405 | CB27: 0.144 | CC27: 0.15 | CD27: 0.135 | CE27: 2128 | CF27: 2395 | CG27: 2460 | CH27: 0.494 | CI27: 0.414 | CJ27: 0.409 | CK27: 2012 | CL27: 4 | CM27: DEC | CN27: 2012-12-01
A28: Mono | B28: 351 | C28: 447 | D28: 379 | E28: 570 | F28: 709 | G28: 619 | H28: 0.261 | I28: 0.328 | J28: 0.261 | K28: 452 | L28: 589 | M28: 532 | N28: 0.735 | O28: 0.724 | P28: 0.788 | Q28: 0.958 | R28: 0.909 | S28: 0.967 | T28: 0.947 | U28: 0.95 | V28: 0.945 | W28: 0.051 | X28: 0.055 | Y28: 0.047 | Z28: 0.044 | AA28: 0.016 | AB28: 0.019 | AC28: 0.164 | AD28: 0.144 | AE28: 0.185 | AF28: 0.021 | AG28: 0.083 | AH28: 0.092 | AI28: 0.026 | AJ28: 0.098 | AK28: 0.096 | AL28: 353 | AM28: 383 | AN28: 447 | AO28: 551 | AP28: 619 | AQ28: 709 | AR28: 18 | AS28: 21 | AT28: 32 | AU28: 239 | AV28: 272 | AW28: 326 | AX28: 6 | AY28: 3 | AZ28: 3 | BA28: 0 | BB28: 0 | BC28: 0 | BD28: 164 | BE28: 172 | BF28: 226 | BG28: 14240 | BH28: 14305 | BI28: 14258 | BJ28: 2204 | BK28: 2323 | BL28: 2415 | BM28: 3000 | BN28: 2996 | BO28: 2971 | BP28: 0 | BQ28: 0 | BR28: 0 | BS28: 826 | BT28: 954 | BU28: 870 | BV28: 1254 | BW28: 1381 | BX28: 1413 | BY28: 92 | BZ28: 98 | CA28: 102 | CB28: 0.103 | CC28: 0.101 | CD28: 0.105 | CE28: 2239 | CF28: 2449 | CG28: 2221 | CH28: 0.229 | CI28: 0.232 | CJ28: 0.313 | CK28: 2012 | CL28: 4 | CM28: DEC | CN28: 2012-12-01
A29: Monterey | B29: 16801 | C29: 19325 | D29: 18468 | E29: 39133 | F29: 44518 | G29: 41994 | H29: 0.338 | I29: 0.371 | J29: 0.338 | K29: 34079 | L29: 37980 | M29: 35305 | N29: 0.85 | O29: 0.838 | P29: 0.828 | Q29: 1 | R29: 1 | S29: 1 | T29: 0.994 | U29: 0.994 | V29: 0.993 | W29: 0.003 | X29: 0.019 | Y29: 0 | Z29: 0.02 | AA29: 0.025 | AB29: 0.038 | AC29: 0.122 | AD29: 0.121 | AE29: 0.137 | AF29: 0.074 | AG29: 0.147 | AH29: 0.11 | AI29: 0.079 | AJ29: 0.164 | AK29: 0.12 | AL29: 14448 | AM29: 17107 | AN29: 19325 | AO29: 34158 | AP29: 40060 | AQ29: 44518 | AR29: 591 | AS29: 936 | AT29: 1189 | AU29: 23963 | AV29: 27488 | AW29: 29906 | AX29: 5398 | AY29: 6060 | AZ29: 6608 | BA29: 0 | BB29: 0 | BC29: 0 | BD29: 17012 | BE29: 19759 | BF29: 22110 | BG29: 416259 | BH29: 419998 | BI29: 422868 | BJ29: 64720 | BK29: 66498 | BL29: 68145 | BM29: 111107 | BN29: 111651 | BO29: 111806 | BP29: 0 | BQ29: 0 | BR29: 0 | BS29: 72509 | BT29: 78905 | BU29: 79767 | BV29: 93797 | BW29: 94574 | BX29: 96221 | BY29: 8376 | BZ29: 8492 | CA29: 8502 | CB29: 0.127 | CC29: 0.125 | CD29: 0.114 | CE29: 77947 | CF29: 84701 | CG29: 80400 | CH29: 0.439 | CI29: 0.476 | CJ29: 0.556 | CK29: 2012 | CL29: 4 | CM29: DEC | CN29: 2012-12-01
A30: Napa | B30: 3277 | C30: 3452 | D30: 3387 | E30: 6993 | F30: 7287 | G30: 7181 | H30: 0.312 | I30: 0.325 | J30: 0.312 | K30: 6205 | L30: 6333 | M30: 6259 | N30: 0.857 | O30: 0.83 | P30: 0.832 | Q30: 0.966 | R30: 0.995 | S30: 0.93 | T30: 0.955 | U30: 0.985 | V30: 0.962 | W30: 0.051 | X30: 0.055 | Y30: 0.047 | Z30: 0.027 | AA30: 0.025 | AB30: 0.037 | AC30: 0.107 | AD30: 0.092 | AE30: 0.103 | AF30: 0.2 | AG30: 0.229 | AH30: 0.267 | AI30: 0.213 | AJ30: 0.253 | AK30: 0.322 | AL30: 2706 | AM30: 3231 | AN30: 3452 | AO30: 5911 | AP30: 6899 | AQ30: 7287 | AR30: 184 | AS30: 230 | AT30: 292 | AU30: 3680 | AV30: 4223 | AW30: 4244 | AX30: 831 | AY30: 1012 | AZ30: 1098 | BA30: 0 | BB30: 0 | BC30: 0 | BD30: 2305 | BE30: 2859 | BF30: 3019 | BG30: 136811 | BH30: 137634 | BI30: 138577 | BJ30: 29155 | BK30: 29909 | BL30: 30643 | BM30: 31490 | BN30: 31219 | BO30: 31125 | BP30: 0 | BQ30: 0 | BR30: 0 | BS30: 11651 | BT30: 11887 | BU30: 12388 | BV30: 16230 | BW30: 17142 | BX30: 17126 | BY30: 2085 | BZ30: 2126 | CA30: 2142 | CB30: 0.097 | CC30: 0.091 | CD30: 0.078 | CE30: 19318 | CF30: 22177 | CG30: 18311 | CH30: 0.309 | CI30: 0.312 | CJ30: 0.393 | CK30: 2012 | CL30: 4 | CM30: DEC | CN30: 2012-12-01
A31: Nevada | B31: 3200 | C31: 3667 | D31: 3830 | E31: 6345 | F31: 7105 | G31: 7339 | H31: 0.377 | I31: 0.42 | J31: 0.377 | K31: 5248 | L31: 5872 | M31: 6034 | N31: 0.827 | O31: 0.812 | P31: 0.808 | Q31: 0.98 | R31: 1 | S31: 1 | T31: 0.964 | U31: 0.988 | V31: 0.969 | W31: 0.051 | X31: 0.055 | Y31: 0.047 | Z31: 0.028 | AA31: 0.022 | AB31: 0.033 | AC31: 0.098 | AD31: 0.094 | AE31: 0.129 | AF31: 0.119 | AG31: 0.136 | AH31: 0.161 | AI31: 0.122 | AJ31: 0.161 | AK31: 0.186 | AL31: 2526 | AM31: 3128 | AN31: 3667 | AO31: 5245 | AP31: 6272 | AQ31: 7105 | AR31: 175 | AS31: 247 | AT31: 314 | AU31: 2215 | AV31: 2600 | AW31: 2726 | AX31: 157 | AY31: 169 | AZ31: 219 | BA31: 0 | BB31: 0 | BC31: 0 | BD31: 196 | BE31: 247 | BF31: 270 | BG31: 98639 | BH31: 98593 | BI31: 98202 | BJ31: 28207 | BK31: 29012 | BL31: 29761 | BM31: 18962 | BN31: 18477 | BO31: 18018 | BP31: 0 | BQ31: 0 | BR31: 0 | BS31: 1456 | BT31: 1308 | BU31: 1312 | BV31: 11319 | BW31: 11559 | BX31: 11428 | BY31: 1713 | BZ31: 1749 | CA31: 1771 | CB31: 0.114 | CC31: 0.106 | CD31: 0.094 | CE31: 13228 | CF31: 15526 | CG31: 14198 | CH31: 0.391 | CI31: 0.395 | CJ31: 0.495 | CK31: 2012 | CL31: 4 | CM31: DEC | CN31: 2012-12-01
A32: Orange | B32: 89738 | C32: 97956 | D32: 101210 | E32: 205059 | F32: 218827 | G32: 225212 | H32: 0.345 | I32: 0.356 | J32: 0.345 | K32: 166689 | L32: 173426 | M32: 177324 | N32: 0.791 | O32: 0.772 | P32: 0.769 | Q32: 0.997 | R32: 0.998 | S32: 0.996 | T32: 0.995 | U32: 0.995 | V32: 0.994 | W32: 0.018 | X32: 0.019 | Y32: 0.015 | Z32: 0.113 | AA32: 0.083 | AB32: 0.086 | AC32: 0.185 | AD32: 0.163 | AE32: 0.171 | AF32: 0.034 | AG32: 0.047 | AH32: 0.051 | AI32: 0.055 | AJ32: 0.074 | AK32: 0.081 | AL32: 69096 | AM32: 84958 | AN32: 97956 | AO32: 163737 | AP32: 195627 | AQ32: 218827 | AR32: 5775 | AS32: 7953 | AT32: 10377 | AU32: 106845 | AV32: 122531 | AW32: 131451 | AX32: 26340 | AY32: 29734 | AZ32: 31940 | BA32: 0 | BB32: 0 | BC32: 0 | BD32: 84098 | BE32: 97060 | BF32: 105140 | BG32: 3017327 | BH32: 3047120 | BI32: 3071933 | BJ32: 501840 | BK32: 517519 | BL32: 533455 | BM32: 734006 | BN32: 728891 | BO32: 724926 | BP32: 0 | BQ32: 0 | BR32: 0 | BS32: 316270 | BT32: 333989 | BU32: 322892 | BV32: 433922 | BW32: 453202 | BX32: 460035 | BY32: 63882 | BZ32: 65415 | CA32: 66558 | CB32: 0.095 | CC32: 0.088 | CD32: 0.076 | CE32: 413880 | CF32: 433176 | CG32: 453553 | CH32: 0.395 | CI32: 0.45 | CJ32: 0.482 | CK32: 2012 | CL32: 4 | CM32: DEC | CN32: 2012-12-01
A33: Placer | B33: 7884 | C33: 8227 | D33: 8252 | E33: 17899 | F33: 17815 | G33: 17834 | H33: 0.371 | I33: 0.367 | J33: 0.371 | K33: 12327 | L33: 12099 | M33: 11829 | N33: 0.693 | O33: 0.672 | P33: 0.662 | Q33: 0.915 | R33: 0.966 | S33: 0.981 | T33: 0.702 | U33: 0.963 | V33: 0.948 | W33: 0.051 | X33: 0.055 | Y33: 0.047 | Z33: 0.112 | AA33: 0.1 | AB33: 0.087 | AC33: 0.194 | AD33: 0.18 | AE33: 0.175 | AF33: 0.042 | AG33: 0.04 | AH33: 0.039 | AI33: 0.077 | AJ33: 0.07 | AK33: 0.066 | AL33: 6028 | AM33: 7692 | AN33: 8227 | AO33: 14095 | AP33: 17524 | AQ33: 17815 | AR33: 413 | AS33: 598 | AT33: 791 | AU33: 6988 | AV33: 8196 | AW33: 8043 | AX33: 731 | AY33: 860 | AZ33: 871 | BA33: 0 | BB33: 0 | BC33: 0 | BD33: 1848 | BE33: 2095 | BF33: 2058 | BG33: 350275 | BH33: 356367 | BI33: 360680 | BJ33: 74975 | BK33: 77238 | BL33: 79177 | BM33: 85307 | BN33: 85424 | BO33: 85224 | BP33: 0 | BQ33: 0 | BR33: 0 | BS33: 8551 | BT33: 8075 | BU33: 6656 | BV33: 29306 | BW33: 31025 | BX33: 31306 | BY33: 4738 | BZ33: 4956 | CA33: 5044 | CB33: 0.115 | CC33: 0.108 | CD33: 0.094 | CE33: 43606 | CF33: 41528 | CG33: 42087 | CH33: 0.33 | CI33: 0.416 | CJ33: 0.426 | CK33: 2012 | CL33: 4 | CM33: DEC | CN33: 2012-12-01
A34: Plumas | B34: 666 | C34: 756 | D34: 772 | E34: 1514 | F34: 1654 | G34: 1612 | H34: 0.348 | I34: 0.366 | J34: 0.348 | K34: 1318 | L34: 1404 | M34: 1442 | N34: 0.86 | O34: 0.833 | P34: 0.851 | Q34: 0.957 | R34: 0.947 | S34: 0.859 | T34: 1 | U34: 0.938 | V34: 0.954 | W34: 0.051 | X34: 0.055 | Y34: 0.047 | Z34: 0.039 | AA34: 0.021 | AB34: 0.03 | AC34: 0.113 | AD34: 0.091 | AE34: 0.093 | AF34: 0.085 | AG34: 0.149 | AH34: 0.169 | AI34: 0.085 | AJ34: 0.158 | AK34: 0.175 | AL34: 510 | AM34: 638 | AN34: 756 | AO34: 1195 | AP34: 1497 | AQ34: 1654 | AR34: 27 | AS34: 46 | AT34: 50 | AU34: 552 | AV34: 683 | AW34: 701 | AX34: 26 | AY34: 19 | AZ34: 27 | BA34: 0 | BB34: 0 | BC34: 0 | BD34: 23 | BE34: 25 | BF34: 21 | BG34: 19911 | BH34: 19953 | BI34: 19523 | BJ34: 6075 | BK34: 6266 | BL34: 6395 | BM34: 3556 | BN34: 3503 | BO34: 3317 | BP34: 0 | BQ34: 0 | BR34: 0 | BS34: 221 | BT34: 164 | BU34: 261 | BV34: 3007 | BW34: 3112 | BX34: 3224 | BY34: 656 | BZ34: 657 | CA34: 665 | CB34: 0.167 | CC34: 0.16 | CD34: 0.147 | CE34: 3133 | CF34: 3314 | CG34: 3548 | CH34: 0.388 | CI34: 0.447 | CJ34: 0.461 | CK34: 2012 | CL34: 4 | CM34: DEC | CN34: 2012-12-01
A35: Riverside | B35: 101104 | C35: 109234 | D35: 113640 | E35: 253780 | F35: 267997 | G35: 276481 | H35: 0.433 | I35: 0.445 | J35: 0.433 | K35: 185045 | L35: 188630 | M35: 191044 | N35: 0.721 | O35: 0.691 | P35: 0.69 | Q35: 0.999 | R35: 1 | S35: 0.999 | T35: 0.914 | U35: 0.947 | V35: 0.942 | W35: 0.041 | X35: 0.037 | Y35: 0.027 | Z35: 0.029 | AA35: 0.026 | AB35: 0.033 | AC35: 0.118 | AD35: 0.11 | AE35: 0.123 | AF35: 0.112 | AG35: 0.18 | AH35: 0.186 | AI35: 0.117 | AJ35: 0.197 | AK35: 0.203 | AL35: 79567 | AM35: 95761 | AN35: 109234 | AO35: 209668 | AP35: 242348 | AQ35: 267997 | AR35: 4585 | AS35: 6565 | AT35: 8379 | AU35: 123144 | AV35: 137664 | AW35: 143506 | AX35: 16620 | AY35: 17706 | AZ35: 18716 | BA35: 0 | BB35: 0 | BC35: 0 | BD35: 51693 | BE35: 59766 | BF35: 62978 | BG35: 2191886 | BH35: 2220502 | BI35: 2244399 | BJ35: 359013 | BK35: 369034 | BL35: 378792 | BM35: 617723 | BN35: 615707 | BO35: 611198 | BP35: 0 | BQ35: 0 | BR35: 0 | BS35: 191612 | BT35: 183465 | BU35: 178052 | BV35: 383285 | BW35: 407580 | BX35: 408855 | BY35: 51947 | BZ35: 53606 | CA35: 54970 | CB35: 0.145 | CC35: 0.137 | CD35: 0.122 | CE35: 438966 | CF35: 437744 | CG35: 482427 | CH35: 0.478 | CI35: 0.554 | CJ35: 0.554 | CK35: 2012 | CL35: 4 | CM35: DEC | CN35: 2012-12-01
A36: Sacramento | B36: 87013 | C36: 90856 | D36: 93411 | E36: 199285 | F36: 204104 | G36: 208709 | H36: 0.471 | I36: 0.473 | J36: 0.471 | K36: 158300 | L36: 159403 | M36: 162349 | N36: 0.78 | O36: 0.761 | P36: 0.76 | Q36: 0.965 | R36: 0.97 | S36: 0.987 | T36: 0.866 | U36: 0.985 | V36: 0.974 | W36: 0.053 | X36: 0.025 | Y36: 0.004 | Z36: 0.124 | AA36: 0.08 | AB36: 0.09 | AC36: 0.195 | AD36: 0.155 | AE36: 0.172 | AF36: 0.041 | AG36: 0.042 | AH36: 0.052 | AI36: 0.073 | AJ36: 0.072 | AK36: 0.084 | AL36: 77485 | AM36: 84650 | AN36: 90856 | AO36: 181618 | AP36: 195423 | AQ36: 204104 | AR36: 3071 | AS36: 4102 | AT36: 5103 | AU36: 96069 | AV36: 101965 | AW36: 102959 | AX36: 10638 | AY36: 11260 | AZ36: 11758 | BA36: 0 | BB36: 0 | BC36: 0 | BD36: 44571 | BE36: 47015 | BF36: 46984 | BG36: 1420434 | BH36: 1430884 | BI36: 1439874 | BJ36: 230675 | BK36: 238059 | BL36: 245819 | BM36: 362402 | BN36: 360838 | BO36: 359112 | BP36: 0 | BQ36: 0 | BR36: 0 | BS36: 94002 | BT36: 93023 | BU36: 97511 | BV36: 316277 | BW36: 320369 | BX36: 324426 | BY36: 58046 | BZ36: 59011 | CA36: 60330 | CB36: 0.127 | CC36: 0.121 | CD36: 0.106 | CE36: 261314 | CF36: 276829 | CG36: 310462 | CH36: 0.69 | CI36: 0.703 | CJ36: 0.658 | CK36: 2012 | CL36: 4 | CM36: DEC | CN36: 2012-12-01
A37: San Benito | B37: 2603 | C37: 2609 | D37: 2580 | E37: 6125 | F37: 6114 | G37: 6053 | H37: 0.447 | I37: 0.451 | J37: 0.447 | K37: 5162 | L37: 5147 | M37: 5097 | N37: 0.841 | O37: 0.826 | P37: 0.841 | Q37: 0.973 | R37: 0.987 | S37: 1 | T37: 0.988 | U37: 0.975 | V37: 0.996 | W37: 0.051 | X37: 0.055 | Y37: 0.047 | Z37: 0.037 | AA37: 0.039 | AB37: 0.043 | AC37: 0.171 | AD37: 0.133 | AE37: 0.151 | AF37: 0.118 | AG37: 0.218 | AH37: 0.173 | AI37: 0.123 | AJ37: 0.246 | AK37: 0.205 | AL37: 2406 | AM37: 2637 | AN37: 2609 | AO37: 5731 | AP37: 6256 | AQ37: 6114 | AR37: 145 | AS37: 207 | AT37: 216 | AU37: 3145 | AV37: 3463 | AW37: 3314 | AX37: 453 | AY37: 489 | AZ37: 502 | BA37: 0 | BB37: 0 | BC37: 0 | BD37: 1700 | BE37: 1959 | BF37: 1849 | BG37: 55350 | BH37: 55950 | BI37: 56527 | BJ37: 8052 | BK37: 8367 | BL37: 8675 | BM37: 15932 | BN37: 15728 | BO37: 15546 | BP37: 0 | BQ37: 0 | BR37: 0 | BS37: 6988 | BT37: 6602 | BU37: 6386 | BV37: 9860 | BW37: 10335 | BX37: 10227 | BY37: 857 | BZ37: 871 | CA37: 897 | CB37: 0.172 | CC37: 0.159 | CD37: 0.139 | CE37: 7652 | CF37: 7551 | CG37: 8551 | CH37: 0.743 | CI37: 0.829 | CJ37: 0.721 | CK37: 2012 | CL37: 4 | CM37: DEC | CN37: 2012-12-01
A38: San Bernardino | B38: 140095 | C38: 151637 | D38: 155859 | E38: 342917 | F38: 361404 | G38: 368935 | H38: 0.504 | I38: 0.51 | J38: 0.504 | K38: 252467 | L38: 257438 | M38: 259386 | N38: 0.733 | O38: 0.711 | P38: 0.713 | Q38: 1 | R38: 0.999 | S38: 0.999 | T38: 0.935 | U38: 0.932 | V38: 0.936 | W38: 0.013 | X38: 0.017 | Y38: 0.007 | Z38: 0.04 | AA38: 0.033 | AB38: 0.044 | AC38: 0.13 | AD38: 0.114 | AE38: 0.133 | AF38: 0.141 | AG38: 0.219 | AH38: 0.224 | AI38: 0.144 | AJ38: 0.234 | AK38: 0.24 | AL38: 116206 | AM38: 134618 | AN38: 151637 | AO38: 297700 | AP38: 332778 | AQ38: 361404 | AR38: 6378 | AS38: 8049 | AT38: 10026 | AU38: 165887 | AV38: 179558 | AW38: 187444 | AX38: 20374 | AY38: 21870 | AZ38: 22712 | BA38: 0 | BB38: 0 | BC38: 0 | BD38: 59933 | BE38: 64816 | BF38: 67830 | BG38: 2038523 | BH38: 2053348 | BI38: 2065016 | BJ38: 270467 | BK38: 281997 | BL38: 293471 | BM38: 593309 | BN38: 587130 | BO38: 579792 | BP38: 0 | BQ38: 0 | BR38: 0 | BS38: 169533 | BT38: 158999 | BU38: 172415 | BV38: 459307 | BW38: 479967 | BX38: 486650 | BY38: 62319 | BZ38: 63945 | CA38: 65325 | CB38: 0.142 | CC38: 0.134 | CD38: 0.12 | CE38: 423700 | CF38: 420657 | CG38: 474491 | CH38: 0.697 | CI38: 0.788 | CJ38: 0.756 | CK38: 2012 | CL38: 4 | CM38: DEC | CN38: 2012-12-01
A39: San Diego | B39: 104422 | C39: 112361 | D39: 115372 | E39: 235332 | F39: 246971 | G39: 253631 | H39: 0.39 | I39: 0.399 | J39: 0.39 | K39: 180742 | L39: 184152 | M39: 186377 | N39: 0.746 | O39: 0.724 | P39: 0.72 | Q39: 0.952 | R39: 0.972 | S39: 0.979 | T39: 0.943 | U39: 0.885 | V39: 0.892 | W39: 0.092 | X39: 0.073 | Y39: 0.048 | Z39: 0.162 | AA39: 0.157 | AB39: 0.169 | AC39: 0.247 | AD39: 0.255 | AE39: 0.276 | AF39: 0.078 | AG39: 0.09 | AH39: 0.078 | AI39: 0.123 | AJ39: 0.145 | AK39: 0.125 | AL39: 78038 | AM39: 99130 | AN39: 112361 | AO39: 185458 | AP39: 225828 | AQ39: 246971 | AR39: 5844 | AS39: 8727 | AT39: 11289 | AU39: 105653 | AV39: 122746 | AW39: 125548 | AX39: 15797 | AY39: 17967 | AZ39: 19228 | BA39: 0 | BB39: 0 | BC39: 0 | BD39: 69256 | BE39: 83752 | BF39: 88054 | BG39: 3102745 | BH39: 3125321 | BI39: 3147220 | BJ39: 504520 | BK39: 518489 | BL39: 533349 | BM39: 723487 | BN39: 723802 | BO39: 722277 | BP39: 0 | BQ39: 0 | BR39: 0 | BS39: 232848 | BT39: 255026 | BU39: 228674 | BV39: 422393 | BW39: 441366 | BX39: 442914 | BY39: 73600 | BZ39: 74340 | CA39: 74992 | CB39: 0.105 | CC39: 0.1 | CD39: 0.089 | CE39: 548413 | CF39: 548569 | CG39: 564164 | CH39: 0.337 | CI39: 0.412 | CJ39: 0.438 | CK39: 2012 | CL39: 4 | CM39: DEC | CN39: 2012-12-01
A40: San Francisco | B40: 32934 | C40: 32910 | D40: 32845 | E40: 51367 | F40: 50894 | G40: 50994 | H40: 0.236 | I40: 0.233 | J40: 0.236 | K40: 33789 | L40: 33338 | M40: 33479 | N40: 0.639 | O40: 0.632 | P40: 0.635 | Q40: 0.974 | R40: 0.976 | S40: 0.982 | T40: 0.958 | U40: 0.932 | V40: 0.913 | W40: 0.022 | X40: 0.034 | Y40: 0.027 | Z40: 0.098 | AA40: 0.086 | AB40: 0.087 | AC40: 0.192 | AD40: 0.183 | AE40: 0.191 | AF40: 0.068 | AG40: 0.064 | AH40: 0.071 | AI40: 0.102 | AJ40: 0.1 | AK40: 0.117 | AL40: 28092 | AM40: 32231 | AN40: 32910 | AO40: 43812 | AP40: 50192 | AQ40: 50894 | AR40: 3518 | AS40: 4279 | AT40: 4864 | AU40: 17635 | AV40: 19821 | AW40: 19583 | AX40: 4307 | AY40: 4853 | AZ40: 5068 | BA40: 0 | BB40: 0 | BC40: 0 | BD40: 16345 | BE40: 19063 | BF40: 19407 | BG40: 806254 | BH40: 813123 | BI40: 820349 | BJ40: 154801 | BK40: 158587 | BL40: 162239 | BM40: 108892 | BN40: 112549 | BO40: 116481 | BP40: 0 | BQ40: 0 | BR40: 0 | BS40: 108649 | BT40: 108545 | BU40: 105810 | BV40: 130945 | BW40: 134461 | BX40: 134748 | BY40: 37908 | BZ40: 37828 | CA40: 37817 | CB40: 0.096 | CC40: 0.086 | CD40: 0.073 | CE40: 111296 | CF40: 116917 | CG40: 121506 | CH40: 0.394 | CI40: 0.426 | CJ40: 0.42 | CK40: 2012 | CL40: 4 | CM40: DEC | CN40: 2012-12-01
A41: San Joaquin | B41: 40755 | C41: 43790 | D41: 44548 | E41: 102770 | F41: 107532 | G41: 108719 | H41: 0.473 | I41: 0.48 | J41: 0.473 | K41: 89193 | L41: 90442 | M41: 89441 | N41: 0.845 | O41: 0.824 | P41: 0.818 | Q41: 0.991 | R41: 0.981 | S41: 0.986 | T41: 0.937 | U41: 0.927 | V41: 0.963 | W41: 0.024 | X41: 0.029 | Y41: 0.031 | Z41: 0.053 | AA41: 0.048 | AB41: 0.056 | AC41: 0.144 | AD41: 0.13 | AE41: 0.146 | AF41: 0.144 | AG41: 0.164 | AH41: 0.18 | AI41: 0.149 | AJ41: 0.184 | AK41: 0.199 | AL41: 33315 | AM41: 39626 | AN41: 43790 | AO41: 87635 | AP41: 100921 | AQ41: 107532 | AR41: 1621 | AS41: 2121 | AT41: 2587 | AU41: 53758 | AV41: 59252 | AW41: 60071 | AX41: 7337 | AY41: 7516 | AZ41: 7727 | BA41: 0 | BB41: 0 | BC41: 0 | BD41: 21502 | BE41: 23681 | BF41: 23960 | BG41: 686588 | BH41: 692862 | BI41: 699003 | BJ41: 103052 | BK41: 106544 | BL41: 110087 | BM41: 200536 | BN41: 199369 | BO41: 197931 | BP41: 0 | BQ41: 0 | BR41: 0 | BS41: 68177 | BT41: 65970 | BU41: 64140 | BV41: 173098 | BW41: 180727 | BX41: 181087 | BY41: 26282 | BZ41: 26645 | CA41: 26908 | CB41: 0.173 | CC41: 0.168 | CD41: 0.152 | CE41: 138220 | CF41: 137798 | CG41: 138592 | CH41: 0.63 | CI41: 0.724 | CJ41: 0.776 | CK41: 2012 | CL41: 4 | CM41: DEC | CN41: 2012-12-01
A42: San Luis Obispo | B42: 8628 | C42: 8899 | D42: 8995 | E42: 17122 | F42: 17269 | G42: 17603 | H42: 0.366 | I42: 0.362 | J42: 0.366 | K42: 13231 | L42: 12893 | M42: 13040 | N42: 0.744 | O42: 0.722 | P42: 0.724 | Q42: 0.957 | R42: 0.974 | S42: 0.946 | T42: 0.815 | U42: 0.835 | V42: 0.898 | W42: 0.051 | X42: 0.055 | Y42: 0.047 | Z42: 0.11 | AA42: 0.065 | AB42: 0.076 | AC42: 0.193 | AD42: 0.156 | AE42: 0.158 | AF42: 0.029 | AG42: 0.03 | AH42: 0.047 | AI42: 0.052 | AJ42: 0.058 | AK42: 0.073 | AL42: 7357 | AM42: 8354 | AN42: 8899 | AO42: 14844 | AP42: 16733 | AQ42: 17269 | AR42: 548 | AS42: 698 | AT42: 882 | AU42: 7321 | AV42: 8305 | AW42: 8140 | AX42: 1131 | AY42: 1232 | AZ42: 1285 | BA42: 0 | BB42: 0 | BC42: 0 | BD42: 2579 | BE42: 3089 | BF42: 3116 | BG42: 269713 | BH42: 270119 | BI42: 271021 | BJ42: 58433 | BK42: 60011 | BL42: 61883 | BM42: 50949 | BN42: 50670 | BO42: 50367 | BP42: 0 | BQ42: 0 | BR42: 0 | BS42: 9324 | BT42: 9115 | BU42: 9420 | BV42: 32583 | BW42: 33401 | BX42: 33196 | BY42: 4416 | BZ42: 4490 | CA42: 4420 | CB42: 0.099 | CC42: 0.094 | CD42: 0.081 | CE42: 42530 | CF42: 48412 | CG42: 43667 | CH42: 0.346 | CI42: 0.345 | CJ42: 0.402 | CK42: 2012 | CL42: 4 | CM42: DEC | CN42: 2012-12-01
A43: San Mateo | B43: 11771 | C43: 13612 | D43: 13945 | E43: 25111 | F43: 28106 | G43: 28900 | H43: 0.256 | I43: 0.271 | J43: 0.256 | K43: 20837 | L43: 22492 | M43: 23041 | N43: 0.788 | O43: 0.767 | P43: 0.766 | Q43: 0.889 | R43: 0.952 | S43: 0.941 | T43: 0.839 | U43: 0.866 | V43: 0.827 | W43: 0.051 | X43: 0.055 | Y43: 0.047 | Z43: 0.073 | AA43: 0.08 | AB43: 0.081 | AC43: 0.135 | AD43: 0.158 | AE43: 0.169 | AF43: 0.026 | AG43: 0.033 | AH43: 0.045 | AI43: 0.054 | AJ43: 0.061 | AK43: 0.08 | AL43: 9167 | AM43: 11040 | AN43: 13612 | AO43: 19608 | AP43: 23554 | AQ43: 28106 | AR43: 969 | AS43: 1380 | AT43: 1886 | AU43: 12227 | AV43: 14502 | AW43: 16040 | AX43: 2623 | AY43: 3076 | AZ43: 3538 | BA43: 0 | BB43: 0 | BC43: 0 | BD43: 8033 | BE43: 10086 | BF43: 11878 | BG43: 719729 | BH43: 727980 | BI43: 736362 | BJ43: 138165 | BK43: 142073 | BL43: 145950 | BM43: 159758 | BN43: 160750 | BO43: 162180 | BP43: 0 | BQ43: 0 | BR43: 0 | BS43: 63348 | BT43: 55409 | BU43: 60960 | BV43: 72632 | BW43: 75236 | BX43: 78549 | BY43: 11370 | BZ43: 11278 | CA43: 11180 | CB43: 0.088 | CC43: 0.079 | CD43: 0.067 | CE43: 64089 | CF43: 71742 | CG43: 72926 | CH43: 0.299 | CI43: 0.326 | CJ43: 0.382 | CK43: 2012 | CL43: 4 | CM43: DEC | CN43: 2012-12-01
A44: Santa Barbara | B44: 13368 | C44: 14197 | D44: 14027 | E44: 30550 | F44: 32030 | G44: 31696 | H44: 0.309 | I44: 0.313 | J44: 0.309 | K44: 26689 | L44: 26944 | M44: 26574 | N44: 0.84 | O44: 0.825 | P44: 0.819 | Q44: 0.74 | R44: 0.96 | S44: 0.951 | T44: 0.835 | U44: 0.945 | V44: 0.933 | W44: 0.051 | X44: 0.055 | Y44: 0.047 | Z44: 0.151 | AA44: 0.082 | AB44: 0.112 | AC44: 0.26 | AD44: 0.186 | AE44: 0.22 | AF44: 0.04 | AG44: 0.05 | AH44: 0.049 | AI44: 0.071 | AJ44: 0.093 | AK44: 0.084 | AL44: 12120 | AM44: 13312 | AN44: 14197 | AO44: 28091 | AP44: 30406 | AQ44: 32030 | AR44: 599 | AS44: 727 | AT44: 866 | AU44: 18947 | AV44: 20425 | AW44: 20351 | AX44: 5347 | AY44: 5620 | AZ44: 5628 | BA44: 0 | BB44: 0 | BC44: 0 | BD44: 12203 | BE44: 13586 | BF44: 13341 | BG44: 424050 | BH44: 425756 | BI44: 427358 | BJ44: 75230 | BK44: 76570 | BL44: 78083 | BM44: 98292 | BN44: 98295 | BO44: 97785 | BP44: 0 | BQ44: 0 | BR44: 0 | BS44: 46655 | BT44: 45828 | BU44: 45401 | BV44: 78914 | BW44: 81071 | BX44: 81084 | BY44: 8686 | BZ44: 8708 | CA44: 8597 | CB44: 0.094 | CC44: 0.089 | CD44: 0.08 | CE44: 86815 | CF44: 64486 | CG44: 76855 | CH44: 0.329 | CI44: 0.478 | CJ44: 0.418 | CK44: 2012 | CL44: 4 | CM44: DEC | CN44: 2012-12-01
A45: Santa Clara | B45: 45887 | C45: 49038 | D45: 50330 | E45: 99799 | F45: 105676 | G45: 108071 | H45: 0.308 | I45: 0.313 | J45: 0.308 | K45: 84662 | L45: 85096 | M45: 86567 | N45: 0.801 | O45: 0.786 | P45: 0.785 | Q45: 0.667 | R45: 0.809 | S45: 0.875 | T45: 0.397 | U45: 0.864 | V45: 0.851 | W45: 0 | X45: 0.008 | Y45: 0.012 | Z45: 0.094 | AA45: 0.081 | AB45: 0.065 | AC45: 0.17 | AD45: 0.147 | AE45: 0.143 | AF45: 0.011 | AG45: 0.012 | AH45: 0.011 | AI45: 0.039 | AJ45: 0.04 | AK45: 0.042 | AL45: 41763 | AM45: 46050 | AN45: 49038 | AO45: 92734 | AP45: 100419 | AQ45: 105676 | AR45: 3643 | AS45: 4566 | AT45: 5507 | AU45: 53528 | AV45: 57629 | AW45: 56627 | AX45: 12890 | AY45: 13468 | AZ45: 13623 | BA45: 0 | BB45: 0 | BC45: 0 | BD45: 38857 | BE45: 43239 | BF45: 44837 | BG45: 1786429 | BH45: 1806881 | BI45: 1828597 | BJ45: 282414 | BK45: 292023 | BL45: 301962 | BM45: 430338 | BN45: 432604 | BO45: 436447 | BP45: 0 | BQ45: 0 | BR45: 0 | BS45: 174443 | BT45: 178479 | BU45: 178148 | BV45: 258598 | BW45: 261394 | BX45: 260965 | BY45: 43532 | BZ45: 43993 | CA45: 43944 | CB45: 0.11 | CC45: 0.098 | CD45: 0.084 | CE45: 211901 | CF45: 208028 | CG45: 220691 | CH45: 0.433 | CI45: 0.48 | CJ45: 0.477 | CK45: 2012 | CL45: 4 | CM45: DEC | CN45: 2012-12-01
A46: Santa Cruz | B46: 9855 | C46: 10984 | D46: 10856 | E46: 19790 | F46: 22390 | G46: 21161 | H46: 0.343 | I46: 0.368 | J46: 0.343 | K46: 15515 | L46: 16489 | M46: 15651 | N46: 0.761 | O46: 0.736 | P46: 0.722 | Q46: 0.839 | R46: 0.963 | S46: 0.954 | T46: 0.667 | U46: 0.946 | V46: 0.889 | W46: 0.051 | X46: 0.055 | Y46: 0.047 | Z46: 0.114 | AA46: 0.049 | AB46: 0.055 | AC46: 0.224 | AD46: 0.123 | AE46: 0.176 | AF46: 0.039 | AG46: 0.035 | AH46: 0.025 | AI46: 0.085 | AJ46: 0.084 | AK46: 0.061 | AL46: 9095 | AM46: 10117 | AN46: 10984 | AO46: 18852 | AP46: 20667 | AQ46: 22390 | AR46: 553 | AS46: 752 | AT46: 922 | AU46: 10814 | AV46: 11923 | AW46: 11666 | AX46: 3025 | AY46: 3213 | AZ46: 3317 | BA46: 0 | BB46: 0 | BC46: 0 | BD46: 7769 | BE46: 8669 | BF46: 8532 | BG46: 263260 | BH46: 265569 | BI46: 267569 | BJ46: 45817 | BK46: 47897 | BL46: 50062 | BM46: 55478 | BN46: 55764 | BO46: 55954 | BP46: 0 | BQ46: 0 | BR46: 0 | BS46: 23340 | BT46: 23185 | BU46: 21496 | BV46: 41996 | BW46: 42412 | BX46: 42528 | BY46: 5133 | BZ46: 5143 | CA46: 5104 | CB46: 0.126 | CC46: 0.123 | CD46: 0.111 | CE46: 40817 | CF46: 40432 | CG46: 37039 | CH46: 0.46 | CI46: 0.499 | CJ46: 0.588 | CK46: 2012 | CL46: 4 | CM46: DEC | CN46: 2012-12-01
A47: Shasta | B47: 11929 | C47: 12445 | D47: 12319 | E47: 24418 | F47: 25025 | G47: 24689 | H47: 0.431 | I47: 0.452 | J47: 0.431 | K47: 20995 | L47: 21968 | M47: 21490 | N47: 0.86 | O47: 0.854 | P47: 0.848 | Q47: 0.978 | R47: 0.979 | S47: 0.976 | T47: 0.921 | U47: 0.881 | V47: 0.896 | W47: 0.051 | X47: 0.055 | Y47: 0.047 | Z47: 0.026 | AA47: 0.025 | AB47: 0.039 | AC47: 0.12 | AD47: 0.131 | AE47: 0.142 | AF47: 0.15 | AG47: 0.186 | AH47: 0.26 | AI47: 0.155 | AJ47: 0.207 | AK47: 0.286 | AL47: 9807 | AM47: 11605 | AN47: 12445 | AO47: 21049 | AP47: 24047 | AQ47: 25025 | AR47: 447 | AS47: 691 | AT47: 821 | AU47: 9409 | AV47: 10745 | AW47: 10508 | AX47: 948 | AY47: 872 | AZ47: 922 | BA47: 0 | BB47: 0 | BC47: 0 | BD47: 530 | BE47: 566 | BF47: 495 | BG47: 177472 | BH47: 178089 | BI47: 178477 | BJ47: 42351 | BK47: 43415 | BL47: 44441 | BM47: 39616 | BN47: 39287 | BO47: 39051 | BP47: 0 | BQ47: 0 | BR47: 0 | BS47: 2075 | BT47: 2583 | BU47: 2105 | BV47: 40226 | BW47: 41918 | BX47: 41050 | BY47: 9120 | BZ47: 9261 | CA47: 9329 | CB47: 0.158 | CC47: 0.149 | CD47: 0.134 | CE47: 35938 | CF47: 41267 | CG47: 33389 | CH47: 0.589 | CI47: 0.577 | CJ47: 0.74 | CK47: 2012 | CL47: 4 | CM47: DEC | CN47: 2012-12-01
A48: Sierra | B48: 116 | C48: 156 | D48: 155 | E48: 239 | F48: 302 | G48: 292 | H48: 0.341 | I48: 0.421 | J48: 0.341 | K48: 220 | L48: 283 | M48: 255 | N48: 0.894 | O48: 0.913 | P48: 0.861 | Q48: 1 | R48: 1 | S48: 1 | T48: 1 | U48: 1 | V48: 0.958 | W48: 0.051 | X48: 0.055 | Y48: 0.047 | Z48: 0 | AA48: 0.056 | AB48: 0 | AC48: 0.08 | AD48: 0.148 | AE48: 0.163 | AF48: 0.04 | AG48: 0.037 | AH48: 0.122 | AI48: 0.04 | AJ48: 0.037 | AK48: 0.122 | AL48: 107 | AM48: 119 | AN48: 156 | AO48: 253 | AP48: 235 | AQ48: 302 | AR48: 11 | AS48: 14 | AT48: 23 | AU48: 92 | AV48: 78 | AW48: 95 | AX48: 0 | AY48: 0 | AZ48: 1 | BA48: 0 | BB48: 0 | BC48: 0 | BD48: 5 | BE48: 9 | BF48: 4 | BG48: 3230 | BH48: 3146 | BI48: 3089 | BJ48: 1019 | BK48: 1035 | BL48: 1060 | BM48: 546 | BN48: 508 | BO48: 481 | BP48: 0 | BQ48: 0 | BR48: 0 | BS48: 78 | BT48: 79 | BU48: 60 | BV48: 529 | BW48: 497 | BX48: 514 | BY48: 94 | BZ48: 104 | CA48: 99 | CB48: 0.154 | CC48: 0.148 | CD48: 0.143 | CE48: 423 | CF48: 596 | CG48: 623 | CH48: 0.594 | CI48: 0.409 | CJ48: 0.456 | CK48: 2012 | CL48: 4 | CM48: DEC | CN48: 2012-12-01
A49: Siskiyou | B49: 2520 | C49: 2719 | D49: 2747 | E49: 5784 | F49: 6100 | G49: 6114 | H49: 0.421 | I49: 0.447 | J49: 0.421 | K49: 4965 | L49: 5394 | M49: 5332 | N49: 0.851 | O49: 0.871 | P49: 0.854 | Q49: 0.994 | R49: 1 | S49: 1 | T49: 0.738 | U49: 0.97 | V49: 0.95 | W49: 0.051 | X49: 0.055 | Y49: 0.047 | Z49: 0.025 | AA49: 0.023 | AB49: 0.034 | AC49: 0.104 | AD49: 0.096 | AE49: 0.125 | AF49: 0.127 | AG49: 0.171 | AH49: 0.159 | AI49: 0.131 | AJ49: 0.184 | AK49: 0.179 | AL49: 2319 | AM49: 2490 | AN49: 2719 | AO49: 5350 | AP49: 5722 | AQ49: 6100 | AR49: 125 | AS49: 184 | AT49: 220 | AU49: 2500 | AV49: 2679 | AW49: 2701 | AX49: 138 | AY49: 129 | AZ49: 137 | BA49: 0 | BB49: 0 | BC49: 0 | BD49: 190 | BE49: 175 | BF49: 180 | BG49: 44893 | BH49: 44875 | BI49: 44598 | BJ49: 12659 | BK49: 12996 | BL49: 13353 | BM49: 9247 | BN49: 9107 | BO49: 8878 | BP49: 0 | BQ49: 0 | BR49: 0 | BS49: 985 | BT49: 741 | BU49: 820 | BV49: 10604 | BW49: 10671 | BX49: 10616 | BY49: 2367 | BZ49: 2406 | CA49: 2441 | CB49: 0.166 | CC49: 0.165 | CD49: 0.153 | CE49: 8786 | CF49: 9723 | CG49: 10259 | CH49: 0.594 | CI49: 0.583 | CJ49: 0.597 | CK49: 2012 | CL49: 4 | CM49: DEC | CN49: 2012-12-01
A50: Solano | B50: 18988 | C50: 19954 | D50: 20526 | E50: 38995 | F50: 40161 | G50: 41119 | H50: 0.43 | I50: 0.439 | J50: 0.43 | K50: 34436 | L50: 34998 | M50: 35568 | N50: 0.852 | O50: 0.842 | P50: 0.843 | Q50: 0.851 | R50: 0.935 | S50: 0.949 | T50: 0.96 | U50: 0.956 | V50: 0.964 | W50: 0.017 | X50: 0.013 | Y50: 0.035 | Z50: 0.072 | AA50: 0.03 | AB50: 0.025 | AC50: 0.163 | AD50: 0.131 | AE50: 0.136 | AF50: 0.012 | AG50: 0.012 | AH50: 0.014 | AI50: 0.053 | AJ50: 0.051 | AK50: 0.067 | AL50: 16681 | AM50: 18530 | AN50: 19954 | AO50: 35010 | AP50: 38288 | AQ50: 40161 | AR50: 964 | AS50: 1219 | AT50: 1473 | AU50: 18094 | AV50: 19506 | AW50: 19347 | AX50: 2670 | AY50: 2885 | AZ50: 3060 | BA50: 0 | BB50: 0 | BC50: 0 | BD50: 5899 | BE50: 6664 | BF50: 6772 | BG50: 413117 | BH50: 414337 | BI50: 415913 | BJ50: 70797 | BK50: 73550 | BL50: 76529 | BM50: 100768 | BN50: 99231 | BO50: 97912 | BP50: 0 | BQ50: 0 | BR50: 0 | BS50: 23196 | BT50: 22756 | BU50: 21564 | BV50: 67786 | BW50: 68794 | BX50: 68717 | BY50: 10983 | BZ50: 11239 | CA50: 11520 | CB50: 0.12 | CC50: 0.115 | CD50: 0.101 | CE50: 53730 | CF50: 58474 | CG50: 65053 | CH50: 0.653 | CI50: 0.654 | CJ50: 0.617 | CK50: 2012 | CL50: 4 | CM50: DEC | CN50: 2012-12-01
A51: Sonoma | B51: 16715 | C51: 18390 | D51: 18467 | E51: 31820 | F51: 34447 | G51: 34288 | H51: 0.372 | I51: 0.386 | J51: 0.372 | K51: 27439 | L51: 28889 | M51: 28717 | N51: 0.827 | O51: 0.809 | P51: 0.811 | Q51: 0.775 | R51: 0.899 | S51: 0.95 | T51: 0.553 | U51: 0.7 | V51: 0.622 | W51: 0.051 | X51: 0.055 | Y51: 0.047 | Z51: 0.105 | AA51: 0.08 | AB51: 0.081 | AC51: 0.185 | AD51: 0.165 | AE51: 0.18 | AF51: 0.033 | AG51: 0.036 | AH51: 0.04 | AI51: 0.063 | AJ51: 0.072 | AK51: 0.071 | AL51: 13375 | AM51: 15994 | AN51: 18390 | AO51: 26348 | AP51: 30639 | AQ51: 34447 | AR51: 1041 | AS51: 1513 | AT51: 1870 | AU51: 14575 | AV51: 16897 | AW51: 17154 | AX51: 3209 | AY51: 3713 | AZ51: 3946 | BA51: 0 | BB51: 0 | BC51: 0 | BD51: 7821 | BE51: 9786 | BF51: 10341 | BG51: 484084 | BH51: 486778 | BI51: 489283 | BJ51: 100334 | BK51: 103855 | BL51: 107417 | BM51: 106366 | BN51: 105483 | BO51: 104978 | BP51: 0 | BQ51: 0 | BR51: 0 | BS51: 29531 | BT51: 26893 | BU51: 29280 | BV51: 60646 | BW51: 62644 | BX51: 63908 | BY51: 8469 | BZ51: 8632 | CA51: 8571 | CB51: 0.105 | CC51: 0.098 | CD51: 0.086 | CE51: 77807 | CF51: 66724 | CG51: 74079 | CH51: 0.334 | CI51: 0.455 | CJ51: 0.455 | CK51: 2012 | CL51: 4 | CM51: DEC | CN51: 2012-12-01
A52: Stanislaus | B52: 37376 | C52: 40036 | D52: 40651 | E52: 84867 | F52: 88848 | G52: 89458 | H52: 0.465 | I52: 0.472 | J52: 0.465 | K52: 66984 | L52: 67706 | M52: 67554 | N52: 0.775 | O52: 0.748 | P52: 0.749 | Q52: 1 | R52: 1 | S52: 1 | T52: 0.978 | U52: 0.96 | V52: 0.957 | W52: 0.045 | X52: 0.023 | Y52: 0.01 | Z52: 0.024 | AA52: 0.022 | AB52: 0.038 | AC52: 0.131 | AD52: 0.128 | AE52: 0.158 | AF52: 0.131 | AG52: 0.23 | AH52: 0.219 | AI52: 0.137 | AJ52: 0.254 | AK52: 0.243 | AL52: 31597 | AM52: 36515 | AN52: 40036 | AO52: 74547 | AP52: 83529 | AQ52: 88848 | AR52: 1527 | AS52: 2150 | AT52: 2464 | AU52: 40047 | AV52: 43670 | AW52: 44790 | AX52: 5214 | AY52: 5692 | AZ52: 5991 | BA52: 0 | BB52: 0 | BC52: 0 | BD52: 15560 | BE52: 17532 | BF52: 17992 | BG52: 515205 | BH52: 518141 | BI52: 522651 | BJ52: 79066 | BK52: 81410 | BL52: 84166 | BM52: 146879 | BN52: 145606 | BO52: 144581 | BP52: 0 | BQ52: 0 | BR52: 0 | BS52: 46424 | BT52: 47675 | BU52: 48024 | BV52: 132589 | BW52: 136534 | BX52: 137356 | BY52: 19146 | BZ52: 19462 | CA52: 19745 | CB52: 0.173 | CC52: 0.167 | CD52: 0.152 | CE52: 116015 | CF52: 127006 | CG52: 117475 | CH52: 0.631 | CI52: 0.65 | CJ52: 0.75 | CK52: 2012 | CL52: 4 | CM52: DEC | CN52: 2012-12-01
A53: Sutter | B53: 4566 | C53: 4961 | D53: 4941 | E53: 11259 | F53: 11946 | G53: 11901 | H53: 0.374 | I53: 0.398 | J53: 0.374 | K53: 10042 | L53: 10758 | M53: 10695 | N53: 0.894 | O53: 0.884 | P53: 0.879 | Q53: 0.916 | R53: 0.951 | S53: 0.952 | T53: 0.95 | U53: 0.943 | V53: 0.959 | W53: 0.051 | X53: 0.055 | Y53: 0.047 | Z53: 0.047 | AA53: 0.035 | AB53: 0.047 | AC53: 0.157 | AD53: 0.131 | AE53: 0.151 | AF53: 0.128 | AG53: 0.149 | AH53: 0.182 | AI53: 0.133 | AJ53: 0.162 | AK53: 0.197 | AL53: 4038 | AM53: 4537 | AN53: 4961 | AO53: 10351 | AP53: 11371 | AQ53: 11946 | AR53: 193 | AS53: 261 | AT53: 306 | AU53: 5505 | AV53: 6239 | AW53: 6271 | AX53: 765 | AY53: 789 | AZ53: 830 | BA53: 0 | BB53: 0 | BC53: 0 | BD53: 2025 | BE53: 2271 | BF53: 2311 | BG53: 94669 | BH53: 94764 | BI53: 95351 | BJ53: 16744 | BK53: 17121 | BL53: 17496 | BM53: 25976 | BN53: 25548 | BO53: 25370 | BP53: 0 | BQ53: 0 | BR53: 0 | BS53: 10625 | BT53: 9877 | BU53: 9590 | BV53: 22497 | BW53: 23430 | BX53: 23515 | BY53: 3582 | BZ53: 3672 | CA53: 3661 | CB53: 0.195 | CC53: 0.19 | CD53: 0.176 | CE53: 19470 | CF53: 21064 | CG53: 20846 | CH53: 0.528 | CI53: 0.535 | CJ53: 0.727 | CK53: 2012 | CL53: 4 | CM53: DEC | CN53: 2012-12-01
A54: Tehama | B54: 3941 | C54: 4219 | D54: 4168 | E54: 9262 | F54: 9899 | G54: 9693 | H54: 0.418 | I54: 0.46 | J54: 0.418 | K54: 8307 | L54: 9074 | M54: 8865 | N54: 0.889 | O54: 0.89 | P54: 0.886 | Q54: 0.862 | R54: 0.913 | S54: 0.934 | T54: 0.997 | U54: 0.998 | V54: 0.988 | W54: 0.051 | X54: 0.055 | Y54: 0.047 | Z54: 0.052 | AA54: 0.059 | AB54: 0.1 | AC54: 0.146 | AD54: 0.126 | AE54: 0.209 | AF54: 0.125 | AG54: 0.175 | AH54: 0.222 | AI54: 0.131 | AJ54: 0.188 | AK54: 0.244 | AL54: 3642 | AM54: 3910 | AN54: 4219 | AO54: 8749 | AP54: 9382 | AQ54: 9899 | AR54: 175 | AS54: 234 | AT54: 259 | AU54: 4451 | AV54: 4866 | AW54: 4855 | AX54: 539 | AY54: 493 | AZ54: 469 | BA54: 0 | BB54: 0 | BC54: 0 | BD54: 1197 | BE54: 1145 | BF54: 1161 | BG54: 63487 | BH54: 63514 | BI54: 63623 | BJ54: 14221 | BK54: 14565 | BL54: 14869 | BM54: 16085 | BN54: 15769 | BO54: 15514 | BP54: 0 | BQ54: 0 | BR54: 0 | BS54: 3047 | BT54: 2963 | BU54: 2546 | BV54: 17831 | BW54: 18073 | BX54: 17404 | BY54: 2980 | BZ54: 3021 | CA54: 3057 | CB54: 0.156 | CC54: 0.15 | CD54: 0.139 | CE54: 13763 | CF54: 14706 | CG54: 14556 | CH54: 0.631 | CI54: 0.629 | CJ54: 0.666 | CK54: 2012 | CL54: 4 | CM54: DEC | CN54: 2012-12-01
A55: Trinity | B55: 702 | C55: 776 | D55: 825 | E55: 1463 | F55: 1557 | G55: 1638 | H55: 0.382 | I55: 0.401 | J55: 0.382 | K55: 1275 | L55: 1363 | M55: 1404 | N55: 0.851 | O55: 0.84 | P55: 0.834 | Q55: 0.974 | R55: 0.979 | S55: 0.915 | T55: 0.968 | U55: 0.922 | V55: 0.891 | W55: 0.051 | X55: 0.055 | Y55: 0.047 | Z55: 0.037 | AA55: 0.036 | AB55: 0.066 | AC55: 0.161 | AD55: 0.128 | AE55: 0.179 | AF55: 0.111 | AG55: 0.273 | AH55: 0.288 | AI55: 0.115 | AJ55: 0.309 | AK55: 0.311 | AL55: 604 | AM55: 686 | AN55: 776 | AO55: 1338 | AP55: 1429 | AQ55: 1557 | AR55: 34 | AS55: 63 | AT55: 74 | AU55: 611 | AV55: 616 | AW55: 604 | AX55: 4 | AY55: 3 | AZ55: 5 | BA55: 0 | BB55: 0 | BC55: 0 | BD55: 5 | BE55: 6 | BF55: 8 | BG55: 13713 | BH55: 13546 | BI55: 13470 | BJ55: 4053 | BK55: 4153 | BL55: 4270 | BM55: 2477 | BN55: 2380 | BO55: 2335 | BP55: 0 | BQ55: 0 | BR55: 0 | BS55: 43 | BT55: 21 | BU55: 21 | BV55: 3017 | BW55: 2825 | BX55: 2854 | BY55: 668 | BZ55: 647 | CA55: 655 | CB55: 0.184 | CC55: 0.178 | CD55: 0.158 | CE55: 2266 | CF55: 2939 | CG55: 3088 | CH55: 0.592 | CI55: 0.495 | CJ55: 0.506 | CK55: 2012 | CL55: 4 | CM55: DEC | CN55: 2012-12-01
A56: Tulare | B56: 41151 | C56: 44577 | D56: 43609 | E56: 105927 | F56: 110086 | G56: 110559 | H56: 0.511 | I56: 0.528 | J56: 0.511 | K56: 90105 | L56: 93328 | M56: 93145 | N56: 0.833 | O56: 0.823 | P56: 0.823 | Q56: 1 | R56: 1 | S56: 1 | T56: 0.955 | U56: 0.97 | V56: 0.978 | W56: 0.027 | X56: 0.018 | Y56: 0.091 | Z56: 0.254 | AA56: 0.165 | AB56: 0.182 | AC56: 0.382 | AD56: 0.287 | AE56: 0.326 | AF56: 0.108 | AG56: 0.104 | AH56: 0.126 | AI56: 0.155 | AJ56: 0.153 | AK56: 0.176 | AL56: 38982 | AM56: 39921 | AN56: 44577 | AO56: 98891 | AP56: 105401 | AQ56: 110086 | AR56: 2087 | AS56: 2505 | AT56: 2949 | AU56: 58678 | AV56: 62509 | AW56: 64076 | AX56: 7808 | AY56: 8030 | AZ56: 8010 | BA56: 0 | BB56: 0 | BC56: 0 | BD56: 33559 | BE56: 35817 | BF56: 36803 | BG56: 443066 | BH56: 447665 | BI56: 451627 | BJ56: 60602 | BK56: 62466 | BL56: 64345 | BM56: 143958 | BN56: 143355 | BO56: 142812 | BP56: 0 | BQ56: 0 | BR56: 0 | BS56: 60136 | BT56: 59121 | BU56: 60886 | BV56: 164923 | BW56: 168390 | BX56: 169956 | BY56: 16947 | BZ56: 17127 | CA56: 17288 | CB56: 0.169 | CC56: 0.167 | CD56: 0.158 | CE56: 125950 | CF56: 131314 | CG56: 151607 | CH56: 0.783 | CI56: 0.802 | CJ56: 0.572 | CK56: 2012 | CL56: 4 | CM56: DEC | CN56: 2012-12-01
A57: Tuolumne | B57: 2702 | C57: 2755 | D57: 2785 | E57: 5073 | F57: 5103 | G57: 5153 | H57: 0.443 | I57: 0.439 | J57: 0.443 | K57: 4568 | L57: 4508 | M57: 4547 | N57: 0.88 | O57: 0.871 | P57: 0.878 | Q57: 0.988 | R57: 0.978 | S57: 0.97 | T57: 0.983 | U57: 0.946 | V57: 0.96 | W57: 0.051 | X57: 0.055 | Y57: 0.047 | Z57: 0.041 | AA57: 0.04 | AB57: 0.036 | AC57: 0.134 | AD57: 0.158 | AE57: 0.142 | AF57: 0.103 | AG57: 0.169 | AH57: 0.159 | AI57: 0.105 | AJ57: 0.19 | AK57: 0.18 | AL57: 2464 | AM57: 2680 | AN57: 2755 | AO57: 4864 | AP57: 5076 | AQ57: 5103 | AR57: 150 | AS57: 208 | AT57: 265 | AU57: 2026 | AV57: 2060 | AW57: 1962 | AX57: 139 | AY57: 141 | AZ57: 149 | BA57: 0 | BB57: 0 | BC57: 0 | BD57: 59 | BE57: 56 | BF57: 65 | BG57: 55144 | BH57: 55041 | BI57: 54339 | BJ57: 15916 | BK57: 16275 | BL57: 16528 | BM57: 9602 | BN57: 9458 | BO57: 9222 | BP57: 0 | BQ57: 0 | BR57: 0 | BS57: 618 | BT57: 656 | BU57: 653 | BV57: 8146 | BW57: 8283 | BX57: 8101 | BY57: 1548 | BZ57: 1593 | CA57: 1618 | CB57: 0.138 | CC57: 0.13 | CD57: 0.116 | CE57: 6998 | CF57: 8377 | CG57: 8976 | CH57: 0.704 | CI57: 0.604 | CJ57: 0.574 | CK57: 2012 | CL57: 4 | CM57: DEC | CN57: 2012-12-01
A58: Ventura | B58: 30009 | C58: 31284 | D58: 31902 | E58: 62970 | F58: 64382 | G58: 66179 | H58: 0.356 | I58: 0.363 | J58: 0.356 | K58: 47887 | L58: 47882 | M58: 49085 | N58: 0.734 | O58: 0.714 | P58: 0.716 | Q58: 0.986 | R58: 0.987 | S58: 0.987 | T58: 0.952 | U58: 0.964 | V58: 0.954 | W58: 0.015 | X58: 0.016 | Y58: 0.007 | Z58: 0.123 | AA58: 0.093 | AB58: 0.088 | AC58: 0.232 | AD58: 0.215 | AE58: 0.209 | AF58: 0.063 | AG58: 0.057 | AH58: 0.068 | AI58: 0.11 | AJ58: 0.101 | AK58: 0.117 | AL58: 26153 | AM58: 28856 | AN58: 31284 | AO58: 55840 | AP58: 60915 | AQ58: 64382 | AR58: 1800 | AS58: 2288 | AT58: 2757 | AU58: 32207 | AV58: 35138 | AW58: 35426 | AX58: 7301 | AY58: 7675 | AZ58: 8035 | BA58: 0 | BB58: 0 | BC58: 0 | BD58: 20177 | BE58: 22636 | BF58: 23314 | BG58: 825077 | BH58: 830215 | BI58: 834109 | BJ58: 139918 | BK58: 144495 | BL58: 148960 | BM58: 211379 | BN58: 208859 | BO58: 206821 | BP58: 0 | BQ58: 0 | BR58: 0 | BS58: 81609 | BT58: 80053 | BU58: 79320 | BV58: 124449 | BW58: 125546 | BX58: 123340 | BY58: 14682 | BZ58: 14762 | CA58: 14656 | CB58: 0.108 | CC58: 0.101 | CD58: 0.09 | CE58: 97708 | CF58: 102487 | CG58: 105820 | CH58: 0.577 | CI58: 0.601 | CJ58: 0.615 | CK58: 2012 | CL58: 4 | CM58: DEC | CN58: 2012-12-01
A59: Yolo | B59: 7286 | C59: 7766 | D59: 7861 | E59: 16160 | F59: 16880 | G59: 16929 | H59: 0.384 | I59: 0.407 | J59: 0.384 | K59: 12693 | L59: 13904 | M59: 14295 | N59: 0.765 | O59: 0.8 | P59: 0.822 | Q59: 0.821 | R59: 0.873 | S59: 0.906 | T59: 0.924 | U59: 0.917 | V59: 0.906 | W59: 0.051 | X59: 0.055 | Y59: 0.047 | Z59: 0.136 | AA59: 0.1 | AB59: 0.113 | AC59: 0.22 | AD59: 0.184 | AE59: 0.214 | AF59: 0.046 | AG59: 0.045 | AH59: 0.059 | AI59: 0.077 | AJ59: 0.081 | AK59: 0.105 | AL59: 6418 | AM59: 7126 | AN59: 7766 | AO59: 14801 | AP59: 15941 | AQ59: 16880 | AR59: 416 | AS59: 562 | AT59: 627 | AU59: 7868 | AV59: 8309 | AW59: 8261 | AX59: 1008 | AY59: 1057 | AZ59: 1070 | BA59: 0 | BB59: 0 | BC59: 0 | BD59: 4466 | BE59: 4990 | BF59: 4871 | BG59: 201311 | BH59: 202630 | BI59: 204314 | BJ59: 29028 | BK59: 30153 | BL59: 31386 | BM59: 45349 | BN59: 44868 | BO59: 44406 | BP59: 0 | BQ59: 0 | BR59: 0 | BS59: 14329 | BT59: 16723 | BU59: 13923 | BV59: 30737 | BW59: 30903 | BX59: 31043 | BY59: 5095 | BZ59: 5262 | CA59: 5307 | CB59: 0.127 | CC59: 0.125 | CD59: 0.115 | CE59: 37780 | CF59: 51733 | CG59: 44018 | CH59: 0.387 | CI59: 0.308 | CJ59: 0.383 | CK59: 2012 | CL59: 4 | CM59: DEC | CN59: 2012-12-01
A60: Yuba | B60: 5655 | C60: 5776 | D60: 5770 | E60: 13017 | F60: 13058 | G60: 12952 | H60: 0.477 | I60: 0.496 | J60: 0.477 | K60: 11005 | L60: 11311 | M60: 11122 | N60: 0.859 | O60: 0.849 | P60: 0.842 | Q60: 0.996 | R60: 1 | S60: 1 | T60: 0.961 | U60: 0.984 | V60: 0.957 | W60: 0.051 | X60: 0.055 | Y60: 0.047 | Z60: 0.043 | AA60: 0.028 | AB60: 0.042 | AC60: 0.153 | AD60: 0.119 | AE60: 0.136 | AF60: 0.124 | AG60: 0.167 | AH60: 0.209 | AI60: 0.132 | AJ60: 0.185 | AK60: 0.23 | AL60: 5357 | AM60: 5620 | AN60: 5776 | AO60: 12496 | AP60: 13060 | AQ60: 13058 | AR60: 207 | AS60: 244 | AT60: 298 | AU60: 6134 | AV60: 6598 | AW60: 6360 | AX60: 675 | AY60: 680 | AZ60: 644 | BA60: 0 | BB60: 0 | BC60: 0 | BD60: 1664 | BE60: 1771 | BF60: 1707 | BG60: 72329 | BH60: 72620 | BI60: 73021 | BJ60: 10782 | BK60: 11156 | BL60: 11530 | BM60: 20900 | BN60: 20727 | BO60: 20586 | BP60: 0 | BQ60: 0 | BR60: 0 | BS60: 4801 | BT60: 4197 | BU60: 3903 | BV60: 20604 | BW60: 20858 | BX60: 20229 | BY60: 3643 | BZ60: 3694 | CA60: 3772 | CB60: 0.192 | CC60: 0.184 | CD60: 0.169 | CE60: 15754 | CF60: 13588 | CG60: 19440 | CH60: 0.777 | CI60: 0.948 | CJ60: 0.663 | CK60: 2012 | CL60: 4 | CM60: DEC | CN60: 2012-12-01
A61: Alameda | B61: 60025 | C61: 63121 | D61: 63168 | E61: 122112 | F61: 126571 | G61: 126482 | H61: 0.364 | I61: 0.366 | J61: 0.358 | K61: 97092 | L61: 98269 | M61: 98800 | N61: 0.765 | O61: 0.756 | P61: 0.753 | Q61: 0.909 | R61: 0.927 | S61: 0.9 | T61: 0.87 | U61: 0.855 | V61: 0.866 | W61: 0.012 | X61: 0.046 | Y61: 0.036 | Z61: 0.116 | AA61: 0.085 | AB61: 0.082 | AC61: 0.205 | AD61: 0.183 | AE61: 0.184 | AF61: 0.031 | AG61: 0.045 | AH61: 0.05 | AI61: 0.068 | AJ61: 0.094 | AK61: 0.095 | AL61: 56312 | AM61: 62045 | AN61: 62875 | AO61: 116353 | AP61: 124622 | AQ61: 125835 | AR61: 4838 | AS61: 5848 | AT61: 7267 | AU61: 60943 | AV61: 61164 | AW61: 63938 | AX61: 10808 | AY61: 11499 | AZ61: 9990 | BA61: 0 | BB61: 0 | BC61: 0 | BD61: 34800 | BE61: 36077 | BF61: 39263 | BG61: 1526220 | BH61: 1540790 | BI61: 1563370 | BJ61: 256848 | BK61: 265903 | BL61: 282890 | BM61: 341530 | BN61: 343820 | BO61: 346038 | BP61: 0 | BQ61: 0 | BR61: 0 | BS61: 140068 | BT61: 134661 | BU61: 133681 | BV61: 250554 | BW61: 253472 | BX61: 243275 | BY61: 48001 | BZ61: 48146 | CA61: 48141 | CB61: 0.104 | CC61: 0.09 | CD61: 0.073 | CE61: 220935 | CF61: 220282 | CG61: 220034 | CH61: 0.525 | CI61: 0.565 | CJ61: 0.567 | CK61: 2013 | CL61: 1 | CM61: MAR | CN61: 2013-03-01
A62: Alpine | B62: 82 | C62: 80 | D62: 83 | E62: 152 | F62: 137 | G62: 151 | H62: 0.505 | I62: 0.49 | J62: 0.5 | K62: 138 | L62: 123 | M62: 133 | N62: 0.914 | O62: 0.879 | P62: 0.893 | Q62: 1 | R62: 1 | S62: 1 | T62: 1 | U62: 0.938 | V62: 0.929 | W62: 0.045 | X62: 0.047 | Y62: 0.059 | Z62: 0 | AA62: 0 | AB62: 0.188 | AC62: 0 | AD62: 0.087 | AE62: 0.188 | AF62: 0.043 | AG62: 0.087 | AH62: 0 | AI62: 0.043 | AJ62: 0.087 | AK62: 0.125 | AL62: 78 | AM62: 84 | AN62: 91 | AO62: 144 | AP62: 147 | AQ62: 171 | AR62: 13 | AS62: 9 | AT62: 11 | AU62: 46 | AV62: 53 | AW62: 62 | AX62: 2 | AY62: 2 | AZ62: 0 | BA62: 0 | BB62: 0 | BC62: 0 | BD62: 0 | BE62: 0 | BF62: 0 | BG62: 1118 | BH62: 1127 | BI62: 1228 | BJ62: 276 | BK62: 293 | BL62: 369 | BM62: 239 | BN62: 245 | BO62: 243 | BP62: 0 | BQ62: 0 | BR62: 0 | BS62: 21 | BT62: 24 | BU62: 25 | BV62: 193 | BW62: 201 | BX62: 184 | BY62: 44 | BZ62: 41 | CA62: 42 | CB62: 0.148 | CC62: 0.133 | CD62: 0.098 | CE62: 209 | CF62: 195 | CG62: 222 | CH62: 0.721 | CI62: 0.749 | CJ62: 0.701 | CK62: 2013 | CL62: 1 | CM62: MAR | CN62: 2013-03-01
A63: Amador | B63: 1605 | C63: 1733 | D63: 1717 | E63: 3081 | F63: 3340 | G63: 3319 | H63: 0.465 | I63: 0.492 | J63: 0.486 | K63: 2553 | L63: 2748 | M63: 2703 | N63: 0.832 | O63: 0.822 | P63: 0.813 | Q63: 0.871 | R63: 0.973 | S63: 0.914 | T63: 0.948 | U63: 0.936 | V63: 0.931 | W63: 0.045 | X63: 0.047 | Y63: 0.059 | Z63: 0.036 | AA63: 0.029 | AB63: 0.171 | AC63: 0.1 | AD63: 0.14 | AE63: 0.256 | AF63: 0.166 | AG63: 0.199 | AH63: 0.189 | AI63: 0.196 | AJ63: 0.228 | AK63: 0.196 | AL63: 1485 | AM63: 1717 | AN63: 1685 | AO63: 2906 | AP63: 3287 | AQ63: 3280 | AR63: 133 | AS63: 182 | AT63: 194 | AU63: 1175 | AV63: 1230 | AW63: 1298 | AX63: 60 | AY63: 61 | AZ63: 69 | BA63: 0 | BB63: 0 | BC63: 0 | BD63: 85 | BE63: 81 | BF63: 98 | BG63: 37288 | BH63: 36899 | BI63: 36945 | BJ63: 11475 | BK63: 11711 | BL63: 11769 | BM63: 6120 | BN63: 6009 | BO63: 5919 | BP63: 0 | BQ63: 0 | BR63: 0 | BS63: 458 | BT63: 507 | BU63: 484 | BV63: 4505 | BW63: 4522 | BX63: 4116 | BY63: 628 | BZ63: 654 | CA63: 674 | CB63: 0.128 | CC63: 0.118 | CD63: 0.103 | CE63: 4098 | CF63: 4237 | CG63: 4989 | CH63: 0.703 | CI63: 0.767 | CJ63: 0.657 | CK63: 2013 | CL63: 1 | CM63: MAR | CN63: 2013-03-01
A64: Butte | B64: 13440 | C64: 14325 | D64: 14278 | E64: 28228 | F64: 29899 | G64: 29807 | H64: 0.417 | I64: 0.44 | J64: 0.44 | K64: 24863 | L64: 26485 | M64: 26463 | N64: 0.875 | O64: 0.868 | P64: 0.867 | Q64: 0.886 | R64: 0.916 | S64: 0.939 | T64: 0.936 | U64: 0.955 | V64: 0.958 | W64: 0.045 | X64: 0.047 | Y64: 0.059 | Z64: 0.028 | AA64: 0.038 | AB64: 0.147 | AC64: 0.11 | AD64: 0.132 | AE64: 0.219 | AF64: 0.26 | AG64: 0.278 | AH64: 0.217 | AI64: 0.282 | AJ64: 0.299 | AK64: 0.234 | AL64: 12883 | AM64: 13988 | AN64: 14733 | AO64: 27531 | AP64: 29226 | AQ64: 30211 | AR64: 697 | AS64: 842 | AT64: 1116 | AU64: 12820 | AV64: 12905 | AW64: 13523 | AX64: 1166 | AY64: 1187 | AZ64: 1063 | BA64: 0 | BB64: 0 | BC64: 0 | BD64: 3175 | BE64: 2929 | BF64: 2782 | BG64: 220521 | BH64: 221118 | BI64: 222035 | BJ64: 48592 | BK64: 49667 | BL64: 51734 | BM64: 46265 | BN64: 45992 | BO64: 45459 | BP64: 0 | BQ64: 0 | BR64: 0 | BS64: 5007 | BT64: 5475 | BU64: 4375 | BV64: 52008 | BW64: 51266 | BX64: 47746 | BY64: 10702 | BZ64: 10828 | CA64: 10914 | CB64: 0.136 | CC64: 0.122 | CD64: 0.103 | CE64: 61543 | CF64: 56950 | CG64: 57536 | CH64: 0.443 | CI64: 0.512 | CJ64: 0.521 | CK64: 2013 | CL64: 1 | CM64: MAR | CN64: 2013-03-01
A65: Calaveras | B65: 2418 | C65: 2491 | D65: 2570 | E65: 4875 | F65: 4951 | G65: 5004 | H65: 0.494 | I65: 0.496 | J65: 0.5 | K65: 4019 | L65: 4048 | M65: 4157 | N65: 0.814 | O65: 0.825 | P65: 0.827 | Q65: 0.959 | R65: 0.987 | S65: 0.97 | T65: 0.989 | U65: 0.988 | V65: 0.964 | W65: 0.045 | X65: 0.047 | Y65: 0.059 | Z65: 0.009 | AA65: 0.033 | AB65: 0.126 | AC65: 0.074 | AD65: 0.141 | AE65: 0.193 | AF65: 0.163 | AG65: 0.206 | AH65: 0.137 | AI65: 0.191 | AJ65: 0.235 | AK65: 0.155 | AL65: 2309 | AM65: 2522 | AN65: 2576 | AO65: 4736 | AP65: 4998 | AQ65: 4969 | AR65: 219 | AS65: 278 | AT65: 322 | AU65: 1877 | AV65: 1881 | AW65: 1808 | AX65: 58 | AY65: 66 | AZ65: 103 | BA65: 0 | BB65: 0 | BC65: 0 | BD65: 123 | BE65: 148 | BF65: 134 | BG65: 45143 | BH65: 45045 | BI65: 45214 | BJ65: 14097 | BK65: 14458 | BL65: 15224 | BM65: 8594 | BN65: 8280 | BO65: 7993 | BP65: 0 | BQ65: 0 | BR65: 0 | BS65: 510 | BT65: 559 | BU65: 410 | BV65: 6701 | BW65: 6850 | BX65: 6097 | BY65: 1005 | BZ65: 1023 | CA65: 1043 | CB65: 0.146 | CC65: 0.13 | CD65: 0.1 | CE65: 4923 | CF65: 5990 | CG65: 6022 | CH65: 0.955 | CI65: 0.831 | CJ65: 0.824 | CK65: 2013 | CL65: 1 | CM65: MAR | CN65: 2013-03-01
A66: California | B66: 1767003 | C66: 1887860 | D66: 1919085 | E66: 3956654 | F66: 4147355 | G66: 4194682 | H66: 0.408 | I66: 0.412 | J66: 0.417 | K66: 3127204 | L66: 3223285 | M66: 3250685 | N66: 0.82 | O66: 0.816 | P66: 0.816 | Q66: 0.961 | R66: 0.977 | S66: 0.966 | T66: 0.927 | U66: 0.939 | V66: 0.937 | W66: 0.034 | X66: 0.032 | Y66: 0.031 | Z66: 0.101 | AA66: 0.089 | AB66: 0.135 | AC66: 0.195 | AD66: 0.183 | AE66: 0.222 | AF66: 0.074 | AG66: 0.091 | AH66: 0.072 | AI66: 0.095 | AJ66: 0.116 | AK66: 0.094 | AL66: 1684027 | AM66: 1843348 | AN66: 1942841 | AO66: 3813817 | AP66: 4074650 | AQ66: 4221057 | AR66: 115078 | AS66: 141407 | AT66: 176557 | AU66: 2138572 | AV66: 2184693 | AW66: 2272684 | AX66: 356627 | AY66: 372370 | AZ66: 341378 | BA66: 0 | BB66: 0 | BC66: 0 | BD66: 1226258 | BE66: 1268115 | BF66: 1314549 | BG66: 37570307 | BH66: 37826160 | BI66: 38202206 | BJ66: 6313717 | BK66: 6506534 | BL66: 6820715 | BM66: 9214425 | BN66: 9170526 | BO66: 9150549 | BP66: 0 | BQ66: 0 | BR66: 0 | BS66: 3841701 | BT66: 3775905 | BU66: 3750293 | BV66: 7594872 | BW66: 7619341 | BX66: 7280074 | BY66: 1165670 | BZ66: 1176286 | CA66: 1187606 | CB66: 0.118 | CC66: 0.105 | CD66: 0.089 | CE66: 6883374 | CF66: 7121280 | CG66: 7166749 | CH66: 0.552 | CI66: 0.57 | CJ66: 0.584 | CK66: 2013 | CL66: 1 | CM66: MAR | CN66: 2013-03-01
A67: Colusa | B67: 692 | C67: 648 | D67: 716 | E67: 1707 | F67: 1600 | G67: 1820 | H67: 0.299 | I67: 0.277 | J67: 0.315 | K67: 1618 | L67: 1496 | M67: 1682 | N67: 0.89 | O67: 0.902 | P67: 0.889 | Q67: 1 | R67: 1 | S67: 0.934 | T67: 1 | U67: 1 | V67: 1 | W67: 0.045 | X67: 0.047 | Y67: 0.059 | Z67: 0.036 | AA67: 0.041 | AB67: 0.205 | AC67: 0.131 | AD67: 0.131 | AE67: 0.285 | AF67: 0.079 | AG67: 0.103 | AH67: 0.142 | AI67: 0.082 | AJ67: 0.113 | AK67: 0.159 | AL67: 673 | AM67: 701 | AN67: 713 | AO67: 1716 | AP67: 1728 | AQ67: 1710 | AR67: 44 | AS67: 39 | AT67: 72 | AU67: 1083 | AV67: 1055 | AW67: 1032 | AX67: 87 | AY67: 108 | AZ67: 164 | BA67: 0 | BB67: 0 | BC67: 0 | BD67: 590 | BE67: 598 | BF67: 553 | BG67: 21502 | BH67: 21614 | BI67: 21987 | BJ67: 3687 | BK67: 3794 | BL67: 4033 | BM67: 6264 | BN67: 6173 | BO67: 6106 | BP67: 0 | BQ67: 0 | BR67: 0 | BS67: 3215 | BT67: 3235 | BU67: 2986 | BV67: 4710 | BW67: 4695 | BX67: 4193 | BY67: 541 | BZ67: 556 | CA67: 564 | CB67: 0.205 | CC67: 0.2 | CD67: 0.19 | CE67: 4441 | CF67: 4435 | CG67: 3771 | CH67: 0.38 | CI67: 0.389 | CJ67: 0.461 | CK67: 2013 | CL67: 1 | CM67: MAR | CN67: 2013-03-01
